Workbook

Sheet Design
R1: TSA & Tray Maker On-Line Documentation
I2: Phone: 800-843-7234 | L2: Fax: 888-479-1515 | O2: www.Therafin.com | W2: =TEXT(NOW(),"MM/DD/YY HH:MM")&IF(LEN(Orderno)>0," Ref: "&Orderno,"")&IF(LEN(Form!$F$6)>0," Order: "&Form!$F$6,"") -> 01/20/22 13:53
I3: Therafin Seating Assistant
D5: Company: | K5: Account #: | N5: PO#: | R5: RTS:
D7: Mark For: | K7: Monogram: | R7: Thread Color: | AB7: =IF($AM$140<>1,OR(UsableDepth>SEATDEPTH,AND(AssemblyCode<>1,UsableDepth=0)),FALSE()) -> FALSE | AC7: Value is true if a seat on the order and assembly is chosen and usable seat depth is not provided
A9: =AND(Pads!$V$3=1,Pads!$I$36=4) -> FALSE | D9: Chair Width: | F9: Back/seat contact surface: | M9: Non-contact: | Q9: =AND(OR(Pads!$I$36=4,Pads!$P$36=2,Pads!$I$2=4,Pads!$I$3=4,Pads!$I$4=4,Pads!$P$2=4,Pads!$P$3=4,Pads!$P$4=4,Pads!$I$52=5,Pads!$P$53=3),Pads!$V$3=1) -> FALSE | R9: Vinyl color: | AB9: ='Pick List'!$D$11 -> FALSE | AC9: Cell on pick list that shows a back/seat error occurred
A11: =AND(Pads!$V$3=1,Pads!$P$36=2) -> FALSE | D11: Remark: | T11: =IF('Pick List'!$D$11,"ISSUES REVIEWED?"," Issues reviewed?") -> Issues reviewed? | AA11: =IF(AB11,"+",">") -> > | AB11: FALSE | AC11: Check box and result if user allows errors
C12: SEAT SPECIFICATIONS: | I12: =IF(ISNUMBER(I13),IF(I13>22,"Oversized",""),"Enter seat depth") -> Enter seat depth | K12: =IF($AM$140<>1,IF(AssemblyCode=1,"(Optional)","Required"),"") ->  | AB12: =CHAIRWIDTH-ABS(BACKWIDTHDIF) -> 0 | AC12: BACKWIDTH manually adjusted (Dec 2019) | AD12: CURVED? | AE12: FALSE | AF12: <check box linked here
B13: =IF(SEATIDX=1,">","") -> > | H13: Depth: | J13: Usable: | Q13: =IF(AB52=1,"","") ->  | R13: 2 | T13: =Design!$BA$140 -> 0 | AB13: 1 | AC13: Back shape I, R or T
Q14: 2 | R14: =IF(AB52=1,"","") ->  | AB14: 1 | AC14: Back FW or DT
B15: =AND(CONTIDX=3,SEATIDX<>1,FOAMSREQD) -> FALSE | E15: =IF($B$15,INT(0.33*Design!I13/0.5+0.499)*0.5-$AD$57,"") ->  | G15: 2 | I15: =IF($B$15,I13-E15-G15,0) -> 0 | M15: Normal | AA15: use below in chanl length msg | AB15: 1 | AC15: Back channel selection
C16: Top: | M16: Right Shortened | AA16: =IF($AD$16=9,8,$AD$16) -> -7 | AB16: FALSE | AC16: Seat channel selection (length to the left) | AD16: =INT(SEATDEPTH-IF($AB$52<>1,$Q$14,0)-IF($AB$49=2,$Q$21,0)-IF($AB$49=3,$W$21,0)-7) -> -7 | AE16: seat channel length calculation: seat depth - growth notch depth - leg length diff - 1 to clear the edge
C17: Middle: | M17: Left Shortened | Q17: =IF(SEATIDX>1,Design!I13-$Q$21,"") ->  | T17: =IF(SEATIDX>1,SEATDEPTH,"") ->  | W17: =IF(SEATIDX>1,Design!I13-$W$21) -> FALSE | AB17: 2 | AC17: Back rail size
C18: Bottom: | M18: =IF(AND('Pick List'!$F$448>0,Design!$AD$50),"**Abductor chosen**","Omit abductor T-nuts?") -> Omit abductor T-nuts? | T18: =IF(SEATIDX>1,$AW$140,"") ->  | AB18: 1 | AC18: Monogram font
D19: =IF(CONTIDX=3,"FRONT Layers of Foam","Layers of Foam") -> Layers of Foam | H19: =IF(CONTIDX=3," REAR Layers of Foam"," Use for Planar Anti-thrust Only") -> Use for Planar Anti-thrust Only | T19: =IF(AND(SEATIDX>1,$AB$16),"Channels Attached","") ->  | AB19: =AND(BACKFIP,BACKFOAMSREQD,BACKSHAPE>1) -> FALSE | AC19: Back foam in place gusset
A20: =Seat!$X$2 -> FALSE | C20: =IF(AND(SEATIDX>1,FOAMSREQD),IF(AND(CONTIDX=3,Seat!AB26<>(Seat!AA5+Seat!AB5)),"Total front & rear thicknesses must match","Seat foam thickness: "&Seat!$AC$5&""""),"") ->  | I20: =IF($AB$53,"Additional FIP Gusset:","") ->  | J20: 2 | K20: =IF($AB$53,"inches","") ->  | M20: None | S20: =IF(AND($AB$54,SEATIDX>1),Design!$BA$140-Design!$U$22,"") ->  | U20: =IF(AND($AB$55,SEATIDX>1),Design!$BA$140-Design!$S$22,"") ->  | AB20: FALSE | AC20: T or I custom dimensions selection | AJ20: Wood thick for back thick bkt length, zero if no back
C21: =IF($AJ$140," "&$AI$140," 2 in. Hook-n-Loop strips") -> 2 in. Hook-n-Loop strips | I21: I modification | M21: Normal | Q21: 1 | R21: =IF(AND($AB$54,SEATIDX>1),"Right Shortened","") ->  | T21: =IF(AB49=1,"",IF(SEATIDX>1,IF($AB$50,"WITH TNUTS",IF('Pick List'!$F$448>0,"WITH TNUTS","NO TNUTS")),"")) ->  | V21: =IF(AND($AB$55,SEATIDX>1),"Left Shortened","") ->  | W21: 1 | AC21: Description | AD21: None | AE21: I-Back | AF21: R-Back | AG21: T-Back | AH21: Charge | AI21: For chosen shape | AJ21: V | AN21: Foams required?
A22: ='Pick List'!$B$43 -> FALSE | I22: =$BG$140 -> Mushroom foam on DT seat | M22: =IF($AL$140,"**Hidden not allowed**"," Hidden (base only)") -> Hidden (base only) | S22: =IF(AND(SEATIDX>1,$AB$49=3),MAX($AG$60,$AG$60+$AD$59,CHAIRWIDTH/2+$AD$59-((CHAIRWIDTH-Design!$BA$140)/2)),"") ->  | T22: =AD59 -> 0 | U22: =IF(AND($AB$49=2,SEATIDX>1),MAX($AG$60,$AG$60+$AD$59,CHAIRWIDTH/2+$AD$59-((CHAIRWIDTH-Design!$BA$140)/2)),"") ->  | AB22: 1 | AC22: ="Back: "&INDEX(AC23:AC26,BACKCONFIG,FALSE) -> Back: Complete back | AD22: NA | AE22: =INDEX(AE23:AE26,BACKCONFIG,FALSE) -> 71036 | AF22: =INDEX(AF23:AF26,BACKCONFIG,FALSE) -> 71051 | AG22: =INDEX(AG23:AG26,BACKCONFIG,FALSE) -> 71052 | AH22: =INDEX(AH23:AH26,BACKCONFIG,FALSE) -> 477 | AI22: =INDEX(AI23:AI26,BACKCONFIG,FALSE) -> NA | AJ22: =IF(BACKIDX<>1,INDEX(AJ23:AJ26,BACKCONFIG,1),0) -> 0 | AL22: =CHOOSE($AB$14,"FW ","DT ")&INDEX(AL23:AL26,BACKCONFIG,FALSE) -> FW Back | AN22: =INDEX(AN23:AN26,BACKCONFIG,1) -> TRUE | AO22: ="Back: "&INDEX(AO23:AO26,BACKCONFIG,FALSE) -> Back: Base with foam & cover
A23: ='Pick List'!$B$42 -> FALSE | C23: =IF(AB36," HS relief NA:",IF(FOAMSREQD," Hamstring relief:"," HS relief NA:")) -> HS relief NA: | I23: =IF(AB35,"Pelvic obliquity NA",IF(FOAMSREQD,"Pelvic obliquity","Pelvic obliquity NA")) -> Pelvic obliquity NA | S23: Seat Channels Attached | AB23: 1 | AC23: Complete back | AD23: NA | AE23: 71036 | AF23: 71051 | AG23: 71052 | AH23: 477 | AI23: =INDEX(AD23:AG23,,$AB$13) -> NA | AJ23: 0.5 | AL23: Back | AN23: TRUE | AO23: Base with foam & cover
A24: ='Pick List'!$B$42 -> FALSE | I24: =IF(AND(Seat!$D$2,FOAMSREQD),"Depth adjustable contour","Depth adjustable NA") -> Depth adjustable NA | N24: =IF($AB$61=3," "&$L$75,"") ->  | W24: =AM43 -> 0 | AB24: 2 | AC24: =IF(CURVED,"**NA Vinyl covered base only**","Vinyl covered base only") -> Vinyl covered base only | AD24: NA | AE24: 71056 | AF24: 71077 | AG24: 71078 | AH24: 477 | AI24: =INDEX(AD24:AG24,,$AB$13) -> NA | AJ24: 0.5 | AL24: Base | AN24: FALSE | AO24: Vinyl covered base only
A25: ='Pick List'!$B$44 -> FALSE | I25: Dureflex liner | O25: =IF(AND($AB$61=3,ISNUMBER($AB$60),(OR($AB$60<1,$AB$60>0.5*SEATDEPTH)))," Invalid","") ->  | AB25: 3 | AC25: =IF(CURVED,"**NA Cushion only**","Cushion only") -> Cushion only | AD25: NA | AE25: 71079 | AF25: 71080 | AG25: 71081 | AH25: 477 | AI25: =INDEX(AD25:AG25,,$AB$13) -> NA | AJ25: =IF(Seat!$AG$61=0,0,0.5) -> 0 | AK25: <-crosslink if contoured | AL25: Cush | AN25: TRUE | AO25: Cushion including foam & cover
K26: Contoured Seat w/ Leg Wells | O26: =IF($AB$61=3,$AB$60,"") ->  | P26: =IF($AB$61=3,$H$75,"") ->  | R26: Contoured w/ Pelvic & Leg Wells | AB26: 4 | AC26: =IF(CURVED,"**NA Cushion plus separate base**","Cushion plus separate base") -> Cushion plus separate base | AD26: NA | AE26: 71073 | AF26: 71075 | AG26: 71076 | AH26: 719 | AI26: =INDEX(AD26:AG26,,$AB$13) -> NA | AJ26: =IF(Seat!$AG$61=0,0.5,1) -> 0.5 | AK26: <-base? Crosslink? | AL26: Both | AN26: TRUE | AO26: Cushion plus separate vinyl covered base
G28: =IF($AB$61=2,$L$75,"") ->  | J28: =IF($AB$61=3,$M$75,"") ->  | U28: =IF($AB$61=4,IF(ISNUMBER($N$40)," "&$N$40," "&$L$75),"") ->  | AC28: INDEXED LOOKUP TABLE
P29: =IF($AB$61=3," "&$F$75,"") ->  | R29: =IF($AB$61=4,$Q$75,"") ->  | V29: =IF(AND($AB$61=4,ISNUMBER($AB$60),(OR($AB$60<1,$AB$60>0.5*SEATDEPTH))),"Invalid","") ->  | AA29: =ISBLANK(OtherSeatMod) -> FALSE | AC29: No Back Channel
H30: =IF(AND($AB$61=2,ISNUMBER($AB$60),(OR($AB$60<1,$AB$60>0.5*SEATDEPTH))),"Invalid","") ->  | V30: =IF($AB$61=4,$AB$60,"") ->  | AC30: Lateral Back Channel
E31: Anti-Thrust Seat | G31: =IF($AB$61=2,$AB$60,"") ->  | I31: =IF($AB$61=2,$H$75,"") ->  | O31: =IF($AB$61=3," "&$O$75,"") ->  | W31: =IF($AB$61=4,$H$75,"") ->  | AC31: =IF(AND($AB$15=3,OR($AB$13<>3,$AB$14<>2)),"**Invalid Back Channel**","Full Back Channel") -> Full Back Channel
Q32: =IF($AB$61=4,$M$75,"") -> 
C33: =IF($AB$61=2,$M$75,"") ->  | N33: =IF($AB$61=3," "&$N$75,"") ->  | O33: =IF(Seat!$B$5=3,"Abductor="&$T$75&"""","") ->  | R33: =IF(Seat!$B$5=4,"Well="&$R$75&"""","") ->  | W33: =IF($AB$61=4," "&$F$75,"") ->  | AB33: ='Pick List'!$B$37 -> FALSE | AC33: Mushroom foam?
I34: =IF($AB$61=2," "&$F$75,"") ->  | K34: =IF($AB$61=3,$D$75,"") ->  | AB34: ='Pick List'!$B$40 -> FALSE | AC34: Depth adjustable chosen
N35: =IF(Seat!$B$5=3," Riser="&$S$75&"""","") ->  | V35: =IF($AB$61=4,$O$75,"") ->  | AB35: ='Pick List'!$D$38 -> FALSE | AC35: Pelvic obliquity error condition
J36: =IF(Seat!$B$5=3,"Leg well rise="&$R$75&"""","") ->  | AB36: ='Pick List'!$D$39 -> FALSE | AC36: Hamstring relief error condition | AI36: OtherSeatMod Selection (drop down below seat drawing)
U37: =IF($AB$61=4," "&$N$75,"") ->  | AB37: ='Pick List'!$D$41 -> FALSE | AC37: Dureflex liner error
D38: =IF($AB$61=2,$D$75,"") ->  | K38: Anti-thrust riser | O38: Leg area length | R38: =IF($AB$61=4,$D$75,"") ->  | V38: =IF(Seat!$B$5=4,"Abductor="&$T$75&"""","") ->  | AB38: ='Pick List'!$D$36 -> FALSE | AC38: I-Modification error condition
G39: =IF(Seat!$B$5=2,"Riser="&$S$75&"""","") -> 
K40: Leg/pelvic well rise | O40: Pelvic length | U40: =IF(Seat!$B$5=4," Riser="&$S$75&"""","") ->  | AB40: =IF('Pick List'!$B$469>1,AB50="true") | AI40: TABLE FOR OTHER SEAT MODIFICATIONS. Drop down list is not visible unless you mouse over the arrow.
W41: ` | AB41: I don't think the above is used
K42: Abductor rise | AI42: Formula below | AJ42: Mod# | AK42: Description | AL42: Unused | AM42: Price
AI43: =IF(OtherSeatMod="",1,MATCH($AI$37,AI45:AI51,0)) -> 1 | AJ43: =INDEX(AJ45:AJ52,$AI$43) ->  | AK43: =INDEX(AK45:AK52,$AI$43) ->  | AM43: =INDEX(AM45:AM52,$AI$43) -> 0
AB44: below is old X47 formula on turning the spreader message red
C45: BACK SPECIFICATIONS: | F45: I-BACK | G45: R-BACK | H45: T-BACK | J45: Back Contact Surface: | Q45: Back Non-Contact Surface: | AB45: =AND($AB$13>1,OR('Pick List'!$D$58,AND('Pick List'!$B$58,'Pick List'!$B$75),NOT('Pick List'!$CG$2)),FALSE) | AH45: Leave blank-> | AM45: 0
D46: Back Height: | F46: =IF(ISNUMBER(E46),IF(E46>22,"Oversized",""),"Back height?") -> Back height? | H46: Curved: | AB46: FALSE | AC46: Lower contour message | AD46: =AND($AB$13>1,$AB$46) -> FALSE | AE46: <-test value | AI46: 71105-Trekker base buildup 12W | AJ46: 71105 | AK46: Trekker base buildup 12W | AM46: 48
F47: =IF(BACKWIDTHDIF>0,"Reduce back width by =","") ->  | J47: Top Layer: | S47: =IF(CURVED,"Spreader Bar NA - Curved Back",IF($AB$13>1,IF(AND('Pick List'!$B$68,'Pick List'!$B$83),"**Spreader bar/hinge conflict**",'Pick List'!$K$68),"Spreader Bar")) -> Spreader Bar | X47: =LEFT(S47,1)="*" -> FALSE | AB47: FALSE | AC47: Scapular cutouts selection | AI47: 71106-Trekker base buildup 14W | AJ47: 71106 | AK47: Trekker base buildup 14W | AM47: 48
C48: =IF($AB$13=1,">","") -> > | J48: Middle Layer: | P48: =IF(CURVED,"NA","FIP: ") -> FIP: | S48: =IF(CURVED,"Scapular Cutouts NA - Curved Back",(IF($AB$47,IF($AB$13=3,"R-Back Scapular Cutouts","Scapular Cutouts only for R-Backs"),IF($AB$13=3,"R-Back Scapular Cutouts","Scapular Cutouts only for R-Backs")))) -> Scapular Cutouts only for R-Backs | AB48: FALSE | AC48: Biangular back selection | AM48: 0
A49: ='Pick List'!$B$63 -> FALSE | J49: Bottom Layer: | AB49: 1 | AC49: Leg length differential selection | AM49: 0
A50: ='Pick List'!$B$69 -> FALSE | J50: =IF($AB$13>1,"Back foam thickness: "&BACKFOAMTHICK&"""","") ->  | O50: =IF($AB$19,"Addtl FIP Gusset: ","") ->  | S50: =IF('Pick List'!$B$63,'Pick List'!BV2,"") ->  | V50: =IF('Pick List'!$B$63,'Pick List'!BW2,"") ->  | AA50: True if no error | AB50: =NOT(AND($AD$50,'Pick List'!$F$448=0)) -> TRUE | AC50: =IF(AB50," (w/Abd T-Nuts)"," (NO Abd T-Nuts)") -> (w/Abd T-Nuts) | AD50: FALSE | AE50: <- Omit abductor check box | AM50: 0
A51: ='Pick List'!$B$70 -> FALSE | J51: Base and/or cushion: | S51: =IF(BACKCONTOURED,"Contour lower","Not applicable") -> Not applicable | V51: =IF(BACKCONTOURED,"inches","") ->  | AB51: 2 | AC51: Seat rail size
A52: =AND('Pick List'!$AO$2,'Pick List'!$AP$2>1) -> FALSE | Y52: Back | AB52: 1 | AC52: Growth notch selection
K53: =IF(OR($AB$13=2,$AB$13=4),"I/T Custom dimensions","Dimension mod NA") -> Dimension mod NA | O53: =IF(AND($AB$20,OR($AB$13=2,$AB$13=4)),IF(ISNUMBER($N$53),IF(OR($BD$114>$BD$115,$N$53<$BD$115)," INVALID LBW","inch lesser body width"),"lesser body width?"),"") ->  | AB53: =AND(Seat!$B$5=5,SEATIDX<>5) -> FALSE | AC53: Seat foam in place gusset
K54: =IF(OR(CURVED,$AB$15=3,'Pick List'!$B$63),"Biangular NA","Biangular back") -> Biangular back | N54: =IF(X54,IF(ISNUMBER($M$54),"inches from bottom to hinge","distance to hinge?"),"") ->  | S54: Dureflex Liner | X54: =AND($AB$13>1,$AB$48) -> FALSE | AB54: =IF(Design!$AB$49=2,TRUE(),FALSE()) -> FALSE | AC54: Right Shortened
F55: =IF(AND($AB$15=3,OR($AB$13<>3,$AB$14<>2)),"Full channel valid for DT R-Back only",IF(AND($AB$15=3,$AB$48),"Full channel NA for biangular back","")) ->  | N55: W= | O55: 2 | X55: ='Pick List'!$B$63 -> FALSE | AB55: =IF(Design!$AB$49=3,TRUE(),FALSE()) -> FALSE | AC55: Left Shortened
F56: =IF($AB$13=2,VLOOKUP(BACKIDX,Design!$AZ$129:$BA$137,2),"") ->  | H56: =IF(AB13=2,IF(Design!$E$46<=12,3,IF(Design!$E$46<=15,4,IF(Design!$E$46<=19,5,6))),"") ->  | O56: H= | P56: 2 | T56: =IF($AB$13=4,VLOOKUP(BACKIDX,Design!$AZ$129:$BA$137,2),"") ->  | V56: =IF(AB13=4,IF(Design!$E$46<=12,3,IF(Design!$E$46<=15,4,IF(Design!$E$46<=19,5,6))),"") ->  | AB56: Below is planar anti-thrust leg well length spinner & reverse
D57: =IF(AB13=2,1.125,"") ->  | R57: =IF(AB13=4,1.125,"") ->  | W57: 4 | AB57: 20 | AC57: =AB57-20 -> 0 | AD57: =-AC57/2 -> 0
D58: =MAX($BD$113,0) -> 1.125 | F58: =IF(AND($AB$13=2,$AB$20),IF(O53=" INVALID LBW","INVALID WIDTH","Custom Dims"),"") ->  | I58: =IF(ISNUMBER(I57),I57,H56) ->  | R58: =MAX($BD$113,0) -> 1.125 | T58: =IF(AND($AB$13=4,$AB$20),IF(O53=" INVALID LBW","INVALID WIDTH","Custom Dims"),"") ->  | W58: =IF(ISNUMBER(W57),W57,V56) -> 4 | AB58: Below is leg length differential width spinner & reverse | AF58: Abductor space req'd | AG58: 2.25 | AH58: Input parameter
D59: =IF(AND($AB$20,$AB$13=2,D58<1.125),"Unusual","") ->  | F59: =IF(AND(AB13=2,AB20),Design!BD115,"") ->  | R59: =IF(AND($AB$20,$AB$13=4,R58<1.125),"Unusual","") ->  | T59: =IF(AND(AB13=4,AB20),BD115,"") ->  | AB59: 13 | AC59: =AB59-13 -> 0 | AD59: =AC59/2 -> 0 | AF59: Max short side | AG59: =IF(HASABDTNUTS,(SEATBASEWIDTH/2)-($AG$58/2),SEATBASEWIDTH/2-LEGLENGTHSHIFT) -> -1.125
C60: =IF($AB$13=2,$E$46,"") ->  | F60: =IF(AB13=2,VLOOKUP(BACKIDX,Design!$AZ129:$BA$137,2)-2.25,"") ->  | G60: =IF(AB13=2,Design!$E$46-Design!H56-Design!H63,"") ->  | H60: =Design!$E$46-I58-I64 ->  | M60: =IF($AB$13=3,VLOOKUP(BACKIDX,Design!$AZ$129:$BA$137,2),"") ->  | P60: =IF(AB13=3,Design!$E$46,"") ->  | Q60: =IF($AB$13=4,$E$46,"") ->  | T60: =IF(AB13=4,VLOOKUP(BACKIDX,Design!$AZ129:$BA$137,2)-2.25,"") ->  | U60: =IF($AB$13=4,$E$46-V56,"") ->  | AB60: =IF(AND(ISNUMBER($N$38),ISNUMBER($N$40)),SEATDEPTH-$H$75-$L$75,2) -> 2 | AC60: Slope Distance | AF60: Min long side | AG60: =SEATBASEWIDTH-$AG$59 -> 1.125
F61: =IF(AND($AB$13=2,$AB$48),"-----Biangular-----","") ->  | M61: =IF(AND($AB$13=3,$AB$48),"-----Biangular-----","") ->  | T61: =IF(AND($AB$13=4,$AB$48),"-----Biangular-----","") ->  | V61: =IF(AB13=4,IF(ISNUMBER($W$57),Design!$E$46-Design!W57,$U$60),"") ->  | W61: =IF(ISNUMBER(W57),V61,U60) ->  | AB61: =Seat!B5 -> 1 | AC61: 1 thru 5 representing which type of seat for formatting
F62: =IF($AB$13=2,IF($AB$14=1,"Full Width","Between Canes"),"") ->  | M62: =IF($AB$13=3,IF($AB$14=1,"Full Width","Between Canes"),"") ->  | T62: =IF($AB$13=4,IF($AB$14=1,"Full Width","Between Canes"),"") ->  | AB62: =Seat!B7 -> 1 | AC62: Seat foam and contour pick for formatting
B63: =IF($AB$20,"","") ->  | F63: =IF(AND($AB$13=2,'Pick List'!$B$68),"**Spreader Bar**","") ->  | H63: =Design!H56 ->  | M63: =IF(AND($AB$13=3,'Pick List'!$B$68),"**Spreader Bar**","") ->  | T63: =IF(AND($AB$13=4,'Pick List'!$B$68),IF(Design!$AB14=2,"Spreader Bar","**Spreader Bar**"),"") ->  | AB63: =AND(BACKFOAMSCUSTOM,$AB$13>1,BACKFOAMSREQD) -> FALSE | AC63: Custom contour Back
F64: =IF($AB$13=2,IF($AB$15=3,"Full channel INVALID",IF($AB$15=2,"Channels Attached","")),"") ->  | I64: =IF(ISNUMBER(I63),I63,H63) ->  | M64: =IF($AB$13=3,IF(AND($AB$15=3,$AB$14=1),"Full channel INVALID",IF($AB$15>1,"Channels Attached","")),"") ->  | T64: =IF($AB$13=4,IF($AB$15=3,"Full channel INVALID",IF($AB$15=2,"Channels Attached","")),"") ->  | AB64: =AND(SEATCONTOURED,SEATIDX<>1) -> FALSE | AC64: Custom contour Seat
D65: =Seat!$AS$1&IF(Seat!$BD$2>0," Default usuable depth="&Seat!$BD$2,"")&IF('Pick List'!$V$409>0," HG pad="&'Pick List'!$V$409&"x"&'Pick List'!$W$409,"")&IF('Pick List'!$AG$433<>"N/A"," Hip width="&'Pick List'!$AG$433,"") -> No seat. Assume 2" thick back. | AB65: =Seat!C91 -> 0 | AC65: UNUSED value in custom contour back
B66: 5.1 1/20/22 | D66: =IF(BACKLBW>0,"Back LBW="&BACKLBW,"")&IF(MINBCO>0," Tray BCO to clear pads="&MINBCO,"")&IF('Pick List'!$A$250," **LTS SA/SW cane interference**","")&IF('Pick List'!$W$272>0," LTS pads="&'Pick List'!$W$272&"x"&'Pick List'!$X$272,"")&IF('Pick List'!$B$238<>1,IF('Pick List'!$AG$236>0," Chest width="&'Pick List'!$AG$236," Chest width N/A"),"") ->  | AB66: =SEATCONTOURED -> FALSE | AC66: value in custom contour seat
AI72: Value input for thread color
AI73: =V9 -> 0
D74: A | E74: B | F74: C | H74: D | L74: E | M74: F | N74: G | O74: H | P74: I | Q74: J | R74: Well | S74: Riser | T74: Abd | AI74: Thread color chosen below
D75: =Design!I13 -> 0 | E75: =CHAIRWIDTH -> 0 | F75: =Seat!$BI$27 -> 0 | H75: =Seat!$BJ$27 -> 0 | L75: =Seat!BK$27 -> 0 | M75: =Seat!$BL$27 -> 0 | N75: =Seat!BM$27 -> 0 | O75: =Seat!$BN$7 -> 2 | P75: =Seat!BO$27 -> 0 | Q75: =Seat!$BP$27 -> 2 | R75: =INDEX(Seat!$AH$9:$AH$26,CONTIDX) -> 0 | S75: =Seat!$AG$7 -> 0 | T75: =INDEX(Seat!$AI$9:$AI$26,CONTIDX) -> 0 | AH75: 40 | AI75: =IF(AH75=99,AI73,INDEX(AI76:AI118,AH75,1)) -> White
AH76: 1 | AI76: Beige
AH77: 2 | AI77: Black
AH78: 3 | AI78: Blue
AH79: 4 | AI79: Blue-Candy
AH80: 5 | AI80: Blue-Cosmic
AH81: 6 | AI81: Blue-Electric
AH82: 7 | AI82: Blue-Island | BC82: DO NOT USE OR MOVE THE CELL BELOW. THERE IS SOME SERIOUSLY WRONG WITH IT.
AH83: 8 | AI83: Blue-Light | BC83: White
AH84: 9 | AI84: Blue-Opal
AH85: 10 | AI85: Brown
AH86: 11 | AI86: Burgundy
AH87: 12 | AI87: Cinnamon
AH88: 13 | AI88: Copper
AH89: 14 | AI89: Fuschia
AH90: 15 | AI90: Granny Smith
AH91: 16 | AI91: Green-Forest
AH92: 17 | AI92: Green-Grasshopper | BF92: 1 | BG92: TUBE SIZE
AH93: 18 | AI93: Green-Kelly | BC93: Base Parameters | BF93: 1 | BG93: Choose | BH93: 0
AH94: 19 | AI94: Green-Lime | BF94: 2 | BG94: 7/8" | BH94: 7
AH95: 20 | AI95: Green-Toxic | BC95: Full Width Amt | BD95: -0.25 | BF95: 3 | BG95: 1" | BH95: 1
AH96: 21 | AI96: Grey | BC96: between the canes Amt | BD96: -2.75 | BF96: 4 | BG96: 1-1/8" | BH96: 8
AH97: 22 | AI97: Orange | BF97: 5 | BG97: Mixed | BH97: 9
AH98: 23 | AI98: Pink | BG98: FONT
AH99: 24 | AI99: Pink-Bubblegum | BC99: Minimum center width input | BD99: 6 | BG99: 1=block, 2=script | BH99: 4
AH100: 25 | AI100: Pink-Parfait | BC100: Actual Base Width | BD100: =INDEX(BA129:BA137,BACKIDX) -> 0 | BG100: =IF(BH99=1,"Block","Script") -> Script | BH100: 1
AH101: 26 | AI101: Pink-Pearl | BC101: Actual Back Width/2 | BD101: =BD100/2 -> 0
AH102: 27 | AI102: Purple | BC102: Max of half of width and min width | BD102: =MAX(BD99,BD101) -> 6
AH103: 28 | AI103: Purple-Deep | BC103: FULL CONTOUR THICKNESS | BD103: =IF(BD135>=12,(0.4583*BD137)-1.1667,(0.5263*BD137)-1.5066) | BE103: not used?
AH104: 29 | AI104: Purple-Electric
AH105: 30 | AI105: Purple-Light | BC105: Entered I-Back serif value | BD105: =Design!D58 -> 1.125
AH106: 31 | AI106: Raspberry | BC106: calculated I-Back center width | BD106: =BD100-2*BD105 -> -2.25
AH107: 32 | AI107: Razzleberry | BC107: I-Back center width after limits | BD107: =MAX(MIN(BD106,BD$100),BD$102) -> 6
AH108: 33 | AI108: Root Beer
AH109: 34 | AI109: Red | AO109: Computing IDX for back from two radio button choices | BC109: Entered T-Back serif value | BD109: =R58 -> 1.125
AH110: 35 | AI110: Red-Candy | AQ110: FW | AR110: DT | BC110: calculated T-Back center width | BD110: =BD100-2*BD109 -> -2.25
AH111: 36 | AI111: Silver | AQ111: 1 | AR111: 2 | BC111: T-Back center width after limits | BD111: =MAX(MIN(BD110,BD$100),BD$102) -> 6
AH112: 37 | AI112: Teal-Electric | AO112: NO BACK | AP112: 1 | AQ112: 1 | AR112: 1
AH113: 38 | AI113: Turquoise-Candy | AO113: I-BACK | AP113: 2 | AQ113: 2 | AR113: 3 | BC113: Calculated serif value | BD113: =IF(AND(Design!$AB$20,ISNUMBER(Design!$N$53)),(BD$100-BD114)/2,$AY$125/2) -> 1.125
AH114: 39 | AI114: Vegas Gold | AO114: R-BACK | AP114: 3 | AQ114: 4 | AR114: 5 | BC114: Input lesser body width | BD114: =$N$53 -> 0
AH115: 40 | AI115: White | AO115: T-BACK | AP115: 4 | AQ115: 6 | AR115: 7 | BC115: Lesser body width after limits | BD115: =IF(AND(Design!$AB$20,ISNUMBER(Design!$N$53)),MAX(MIN(BD114,$BA$127),BD$102),$AY$127) -> 0 | BE115: formula was | BF115: =MAX(MIN(BD111,$AY$124),BD$99) -> 6
AH116: 41 | AI116: Yellow | BE116: allowing insets under 1-1/8" with only warning of "unusual"
AH117: 42 | AI117: Yellow Gold
AH118: 99 | AI118: INPUT
AM123: =IF(BACKSHAPE=1,1,2*BACKSHAPE-3+Design!$AB$14) -> 1 | AN123: Needed? | BB123: 1.125 | BC123: <-total diff between actual LBW and standard LBW for FW T-back before a spreader bar is required
AM124: formula to right would add serif and lbw to desc below | AN124: =AN124&", "&BACKWIDTH&""" W x "&Design!$E$46&""" H"&IF(NOT('Pick List'!$B$45),IF(BACKSHAPE=2,", serif="&Design!$H$56&" lbw="&Design!$F$60,IF(BACKSHAPE=4,", serif="&Design!$V$56&" lbw="&Design!$T$60,"")),"")
AN125: =AN127&", "&BACKWIDTH&""" W x "&Design!$E$46&""" H" -> NO BACK, 0" W x " H | AR125: =BACKWIDTH&"""W "&Design!$E$46&"""H" -> 0"W "H | AW125: Dimension adjustments--> | AX125: 2.75 | AY125: 2.25 | BA125: =(BA127-BB127)/2 -> 0 | BB125: <-Inset on one side. Used for foam thickness calc only
AL126: Computed in little table above | AN126: =SUBSTITUTE(AN127,comma,":") -> NO BACK | BB126: V-- Used for contour foam thickness & LTS brackets | BF126: Below used for Hip Guide depth calc
AK127: =INDEX(AK129:AK137,BACKIDX,1) -> 0 | AM127: =INDEX(AQ112:AR115,$AB$13,$AB$14) -> 1 | AN127: =INDEX(AN129:AN137,BACKIDX,1) -> NO BACK | AP127: =INDEX(AP129:AP137,BACKIDX,1) -> ITEM | AQ127: =INDEX(AQ129:AQ137,BACKIDX,1) -> 0 | AT127: =INDEX(AT129:AT137,BACKIDX,1) -> 0 | AU127: =IF(INDEX(AU129:AU137,BACKIDX,1)="PRICE",0,INDEX(AU129:AU137,BACKIDX,1)) -> 0 | AV127: =IF(INDEX(AV129:AV137,BACKIDX,1)="COST","",INDEX(AV129:AV137,BACKIDX,1)) ->  | AX127: =BACKWIDTH -> 0 | AY127: =INDEX(AY129:AY137,BACKIDX,1) -> 0 | BA127: =INDEX(BA129:BA137,BACKIDX,1) -> 0 | BB127: =INDEX(BB129:BB137,BACKIDX,1) -> 0 | BC127: <-BACK REAL LBW | BF127: =INDEX(BF129:BF137,BACKIDX,1) -> 2
AK128: SPREADER BAR MESSAGE | AM128: Idx | AN128: BACK | AP128: Item | AQ128: HCPCS | AR128: between the canes | AS128: Delta Amt | AT128: Rec Qty | AU128: Retail Price | AV128: Cost | AW128: Text | AX128: Width | AY128: Std Ctr Width | AZ128: Index | BA128: Base width | BB128: Actual Ctr Width | BF128: Useable depth reduction | BG128: Reduction in seat depth due to back thickness
AM129: 1 | AN129: NO BACK | AP129: ITEM | AR129: =FALSE() -> FALSE | AS129: 0 | AT129: 0 | AU129: PRICE | AV129: COST | AZ129: =AM129 -> 1 | BB129: 0 | BF129: 2 | BG129: Assume 2" if no back (never picked due to IF)
AM130: 2 | AN130: I-Back, Full width | AP130: 50005 | AQ130: E2617 | AR130: =FALSE() -> FALSE | AS130: =$BD$95 -> -0.25 | AT130: 1 | AU130: 477 | AW130: Full Width Dimensions | AX130: =$AX$127 -> 0 | AY130: =BA130-$AY$125 -> -2.5 | AZ130: =AM130 -> 2 | BA130: =BACKWIDTH+AS130 -> -0.25 | BB130: =IF(Design!$AB$20,$BD$107,AY130) -> -2.5 | BF130: =Seat!$AH$61 -> 0 | BG130: Assume full width, use contour at edge
AM131: 3 | AN131: I-Back, Between the canes | AP131: 50015 | AQ131: E2617 | AR131: =TRUE() -> TRUE | AS131: =$BD$96 -> -2.75 | AT131: 1 | AU131: 477 | AW131: Drop-Thru Dimensions | AX131: =$AX$127-$AX$125 -> -2.75 | AY131: =BA131-$AY$125 -> -5 | AZ131: =AM131 -> 3 | BA131: -2.75 | BB131: =IF(Design!$AB$20,$BD$107,AY131) -> -5 | BF131: =Seat!$AH$61 -> 0 | BG131: Assume full width, use contour at edge
AM132: 4 | AN132: R-Back, Full width | AP132: 50020 | AQ132: E2617 | AR132: =FALSE() -> FALSE | AS132: =$BD$95 -> -0.25 | AT132: 1 | AU132: 477 | AW132: Full Width Dimensions | AX132: =$AX$127 -> 0 | AY132: =BA132 -> -0.25 | AZ132: 4 | BA132: -0.25 | BB132: =AY132 -> -0.25 | BF132: =Seat!$AH$61 -> 0 | BG132: Assume full width, use contour at edge
AM133: 5 | AN133: R-Back, Between canes | AP133: 50030 | AQ133: E2617 | AR133: =TRUE() -> TRUE | AS133: =$BD$96 -> -2.75 | AT133: 1 | AU133: 477 | AW133: Drop-Thru Dimensions | AX133: =$AX$127-$AX$125 -> -2.75 | AY133: =BA133 -> -2.75 | AZ133: 5 | BA133: -2.75 | BB133: =AY133 -> -2.75 | BF133: =Seat!$AH$61 -> 0 | BG133: Assume full width, use contour at edge
AJ134: If actual LBW is less than standard LBW minus factor in BB120 then a spreader bar is required-> | AK134: =IF($BB$134<($AY$134-$BB$123),IF('Pick List'!$B$83,"Spreader Bar","** Spreader Bar or Hinge Hdw Req'd **"),"Spreader Bar") -> Spreader Bar | AM134: 6 | AN134: T-Back, Full width | AP134: 50010 | AQ134: E2617 | AR134: =FALSE() -> FALSE | AS134: =$BD$95 -> -0.25 | AT134: 1 | AU134: 477 | AW134: Full Width Dimensions | AX134: =$AX$127 -> 0 | AY134: =BA134-$AY$125 -> -2.5 | AZ134: 6 | BA134: -0.25 | BB134: =IF(Design!$AB$20,$BD$111,AY134) -> -2.5 | BF134: =Seat!$AG$61 -> 0 | BG134: Use contour thickness at LBW
AK135: =IF(OR('Pick List'!$B$82=1,'Pick List'!$B$83),"Spreader Bar","** Spreader Bar or Hinge Hdw Req'd **") -> Spreader Bar | AM135: 7 | AN135: T-Back, Between the canes | AP135: 50000 | AQ135: E2617 | AR135: =TRUE() -> TRUE | AS135: =$BD$96 -> -2.75 | AT135: 1 | AU135: 477 | AW135: Drop-Thru Dimensions | AX135: =$AX$127-$AX$125 -> -2.75 | AY135: =BA135-$AY$125 -> -5 | AZ135: 7 | BA135: -2.75 | BB135: =IF(Design!$AB$20,$BD$111,AY135) -> -5 | BF135: =Seat!$AG$61 -> 0 | BG135: Use contour thickness at LBW
AM136: 8 | AN136: Back vinyl base, full width - NOT USED | AP136: 50004 | AQ136: E2617 | AR136: =FALSE() -> FALSE | AS136: =$BD$95 -> -0.25 | AT136: 1 | AU136: 382 | AX136: =$AX$127 -> 0 | AY136: =BA136 -> -0.25 | AZ136: 8 | BA136: -0.25 | BB136: =AY136 -> -0.25 | BF136: 2 | BG136: Assume 2" if no back
AM137: 9 | AN137: Back vinyl base, between the canes - NOT USED | AP137: 50004 | AQ137: E2617 | AR137: =FALSE() -> FALSE | AS137: =$BD$96 -> -2.75 | AT137: 1 | AU137: 382 | AX137: =$AX$127-$AX$125 -> -2.75 | AY137: =BA137-$AY$125 -> -5 | AZ137: 9 | BA137: -2.75 | BB137: =AY137 -> -5 | BF137: 2 | BG137: Assume 2" if no back
AL138: Below for notch cond formating
AN139: =AK140&", "&CHAIRWIDTH&""" W x "&SEATDEPTH&""" D" -> , " W x " D | AR139: =CHAIRWIDTH&"""W "&SEATDEPTH&"""D" -> "W "D | AZ139: Seat Base Width
AE140: =INDEX(AE142:AE150,SEATIDX,1) ->  | AF140: =INDEX(AF142:AF150,SEATIDX,1) ->  | AI140: =INDEX(AI142:AI150,SEATIDX,1) ->  | AJ140: =INDEX(AJ142:AJ150,SEATIDX,1) -> FALSE | AK140: =INDEX(AK142:AK150,SEATIDX,1) ->  | AL140: =INDEX(AL142:AL150,SEATIDX,1) -> FALSE | AM140: 1 | AN140: =INDEX(AN142:AN150,SEATIDX) -> NO SEAT | AO140: =INDEX(AO142:AO150,SEATIDX) -> FALSE | AP140: =INDEX(AP142:AP150,SEATIDX) -> 0 | AQ140: =INDEX(AQ142:AQ150,SEATIDX) -> 0 | AR140: =INDEX(AR142:AR150,SEATIDX) -> 0 | AT140: =INDEX(AT142:AT150,SEATIDX) -> 0 | AU140: =IF(INDEX(AU142:AU150,SEATIDX,1)="PRICE",0,INDEX(AU142:AU150,SEATIDX,1)) -> 0 | AV140: =IF(INDEX(AV142:AV150,SEATIDX,1)="COST","",INDEX(AV142:AV150,SEATIDX,1)) ->  | AW140: =INDEX(AW142:AW150,SEATIDX) ->  | AX140: =INDEX(AX142:AX150,SEATIDX) -> 0 | AY140: =INDEX(AY142:AY150,SEATIDX) -> 0 | BA140: =INDEX(BA142:BA150,SEATIDX) -> 0 | BB140: =INDEX(BB142:BB150,SEATIDX) -> 0 | BC140: =INDEX(BC142:BC150,SEATIDX) -> Mushroom foam on drop-thru seat | BD140: =INDEX(BD142:BD150,SEATIDX) -> FALSE | BE140: =INDEX(BE142:BE150,SEATIDX) -> FALSE | BG140: =INDEX(BG142:BG150,SEATIDX) -> Mushroom foam on DT seat
AE141: PHldr Mod | AF141: Place Holder Description | AI141: Hardware message | AJ141: Incl H&L? | AK141: FOR DESC ON FORM | AL141: Cushion only? | AM141: Idx | AN141: SEAT | AO141: Foams Req'd | AP141: Item | AQ141: HCPCS | AR141: Hdw req'd? | AT141: Qty | AU141: Retail | AV141: Cost | AW141: Short Desc | AX141: Export field | AY141: Export field | AZ141: Index | BA141: Base width | BB141: Base Thickness | BC141: Mushroom foam long message | BD141: DT? | BE141: Base only? | BG141: Mushroom foam FORM msg
AJ142: =FALSE -> FALSE | AL142: =FALSE -> FALSE | AM142: 1 | AN142: NO SEAT | AO142: =FALSE -> FALSE | AT142: 0 | AU142: PRICE | AV142: COST | AZ142: =AM142 -> 1 | BB142: 0 | BC142: Mushroom foam on drop-thru seat | BD142: =FALSE -> FALSE | BE142: =FALSE -> FALSE | BG142: Mushroom foam on DT seat
AE143: 71046 | AF143: Seat: Base with foam & cover | AJ143: =FALSE -> FALSE | AK143: Seat: Full width | AL143: =FALSE -> FALSE | AM143: 2 | AN143: Full width seat | AO143: =TRUE() -> TRUE | AP143: 50345 | AQ143: E2609 | AR143: =TRUE() -> TRUE | AS143: -0.25 | AT143: 1 | AU143: 477 | AW143: FW Seat | AX143: FW Seat | AY143: 71046 | AZ143: 2 | BA143: =CHAIRWIDTH+AS143 -> -0.25 | BB143: 0.5 | BC143: Mushroom foam not allowed on full width seat | BD143: =FALSE -> FALSE | BE143: =FALSE -> FALSE | BG143: Mushroom NA on FW seat
AE144: 71046 | AF144: Seat: Base with foam & cover | AJ144: =FALSE -> FALSE | AK144: Seat: Drop-thru | AL144: =FALSE -> FALSE | AM144: 3 | AN144: Drop-thru seat | AO144: =TRUE() -> TRUE | AP144: 50340 | AQ144: E2609 | AR144: =TRUE() -> TRUE | AS144: -2.75 | AT144: 1 | AU144: 477 | AW144: DT Seat | AX144: DT Seat | AY144: 71046 | AZ144: 3 | BA144: -2.75 | BB144: 0.5 | BC144: Mushroom foam on drop-thru seat | BD144: =TRUE -> TRUE | BE144: =FALSE -> FALSE | BG144: Mushroom foam on DT seat
AE145: 71047 | AF145: Seat: Cushion including foam & cover | AI145: ** Cushion includes hook-n-loop ** | AJ145: =TRUE -> TRUE | AK145: Seat: Full width | AL145: =TRUE -> TRUE | AM145: 4 | AN145: Cushion only, FW seat | AO145: =TRUE() -> TRUE | AP145: 50345 | AQ145: E2609 | AR145: =FALSE() -> FALSE | AS145: -0.25 | AT145: 1 | AU145: 477 | AW145: FW Cushion | AX145: FW Cush | AY145: 71047 | AZ145: 4 | BA145: -0.25 | BB145: =IF(Seat!$D$2,0.5,0) -> 0 | BC145: Mushroom foam not allowed on FW cushion only | BD145: =FALSE -> FALSE | BE145: =FALSE -> FALSE | BG145: Mushroom foam NA
AE146: 71055 | AF146: Seat: Vinyl covered base only | AI146: ** Vinyl base includes hook-n-loop ** | AJ146: =TRUE -> TRUE | AK146: Seat: Full width | AL146: =FALSE -> FALSE | AM146: 5 | AN146: Vinyl base only, FW seat | AO146: =FALSE -> FALSE | AP146: 50345 | AQ146: E2609 | AR146: =TRUE() -> TRUE | AS146: -0.25 | AT146: 1 | AU146: 477 | AW146: FW Base | AX146: FW Base | AY146: 71055 | AZ146: 5 | BA146: -0.25 | BB146: 0.5 | BC146: Mushroom foam not allowed for vinyl covered base | BD146: =FALSE -> FALSE | BE146: =TRUE -> TRUE | BG146: Mushroom foam NA
AE147: 71072 | AF147: Seat: Cushion plus separate vinyl covered base | AI147: ** Cushion includes hook-n-loop ** | AJ147: TRUE | AK147: Seat: Full width | AL147: =FALSE -> FALSE | AM147: 6 | AN147: Cushion + sep base, FW seat | AO147: =TRUE -> TRUE | AP147: 50345 | AQ147: E2609 | AR147: =TRUE() -> TRUE | AS147: -0.25 | AT147: 1 | AU147: 719 | AW147: FW Cushion+Base | AX147: FW Both | AY147: 71072 | AZ147: =AM147 -> 6 | BA147: -0.25 | BB147: =IF(Seat!$D$2,1,0.5) -> 0.5 | BC147: Mushroom foam not allowed for FW cushion+base | BD147: =FALSE -> FALSE | BE147: =FALSE -> FALSE | BG147: Mushroom foam NA
AE148: 71047 | AF148: Seat: Cushion including foam & cover | AI148: ** Cushion includes hook-n-loop ** | AJ148: =TRUE -> TRUE | AK148: Seat: Drop-thru | AL148: =TRUE -> TRUE | AM148: 7 | AN148: Cushion only, DT seat | AO148: =TRUE() -> TRUE | AP148: 50340 | AQ148: E2609 | AR148: =FALSE() -> FALSE | AS148: -2.75 | AT148: 1 | AU148: 477 | AW148: DT Cushion | AX148: DT Cush | AY148: 71047 | AZ148: =AM148 -> 7 | BA148: -2.75 | BB148: =IF(Seat!$D$2,0.5,0) -> 0 | BC148: Mushroom foam not allowed on DT cushion only | BD148: =FALSE -> FALSE | BE148: =FALSE -> FALSE | BG148: Mushroom foam NA
AE149: 71055 | AF149: Seat: Vinyl covered base only | AI149: ** Vinyl base includes hook-n-loop ** | AJ149: =TRUE -> TRUE | AK149: Seat: Drop-thru | AL149: =FALSE -> FALSE | AM149: 8 | AN149: Vinyl base only, DT seat | AO149: =FALSE -> FALSE | AP149: 50340 | AQ149: E2609 | AR149: =TRUE() -> TRUE | AS149: -2.75 | AT149: 1 | AU149: 477 | AW149: DT Base | AX149: DT Base | AY149: 71055 | AZ149: =AM149 -> 8 | BA149: -2.75 | BB149: 0.5 | BC149: Mushroom foam not allowed for vinyl covered base | BD149: =FALSE -> FALSE | BE149: =TRUE -> TRUE | BG149: Mushroom foam NA
AE150: 71072 | AF150: Seat: Cushion plus separate vinyl covered base | AI150: ** Cushion includes hook-n-loop ** | AJ150: TRUE | AK150: Seat: Drop-thru | AL150: =FALSE -> FALSE | AM150: 9 | AN150: Cushion + sep base, DT seat | AO150: =TRUE -> TRUE | AP150: 50340 | AQ150: E2609 | AR150: =TRUE() -> TRUE | AS150: -2.75 | AT150: 1 | AU150: 719 | AW150: DT Cushion+Base | AX150: DT Both | AY150: 71072 | AZ150: 9 | BA150: -2.75 | BB150: =IF(Seat!$D$2,1,0.5) -> 0.5 | BC150: Mushroom foam on drop-thru cushion plus base | BD150: =TRUE -> TRUE | BE150: =FALSE -> FALSE | BG150: Mushroom foam on DT seat
AN152: BACK EXTRA COVER SELECTION
AM153: 1 | AN153: =INDEX(AN155:AN156,$AM$153,1) -> Extra identical back cover | AO153: =INDEX(AO155:AO156,$AM$153,1) -> 0 | AP153: =INDEX(AP155:AP156,$AM$153,1) -> Regular
AN154: Description of extra back cover | AO154: Color retail | AP154: Export text
AM155: 1 | AN155: Extra identical back cover | AO155: =Pads!Y2 -> 0 | AP155: Regular
AM156: 2 | AN156: Extra shower cap back cover | AO156: 0 | AP156: Shower
AN159: SEAT EXTRA COVER SELECTION
AM160: 1 | AN160: =INDEX(AN162:AN163,$AM$160,1) -> Extra identical seat cover | AO160: =INDEX(AO162:AO163,$AM$160,1) -> 0 | AP160: =INDEX(AP162:AP163,$AM$160,1) -> Regular
AN161: Description of extra seat cover | AO161: Color retail | AP161: Export text
AM162: 1 | AN162: Extra identical seat cover | AO162: =Pads!Y13 -> 0 | AP162: Regular
AM163: 2 | AN163: Extra shower cap seat cover | AO163: 0 | AP163: Shower

Sheet Pick List
H1: For price preference radio buttons | AP1: CUSTOM HEADREST T-NUT INFO | AS1: Below is export keyword | AV1: INPUT FIELDS FOR EXPORT KEY WORD AND DESCRIPTIONS | BA1: CUSTOM ABDUCTOR T-NUT INFO | BJ1: Seat-> | BK1: 1 | BM1: =INDEX(BM$2:BM$9,$BK1) -> 1/2 Unit | BN1: =INDEX(BN$2:BN$9,$BK1) -> 50223 | BO1: =INDEX($BN$2:$BO$9,$BK1,2) -> 102 | BP1: =INDEX($BN$2:$BP$9,$BK1,3) -> 1 | BS1: Lumbar Description | BT1: Mod | BU1: Price | BV1: Before Text | BW1: After Text | BX1: Combined text
H2: TRUE | K2: =MATCH(TRUE,H2:H4,0) -> 1 | L2: =INDEX(L4:L6,K2,1) -> Ext Retail | N2: =INDEX(N4:N6,K2,1) -> Retail | P2: =INDEX(P4:P6,K2,1) -> 0 | W2: FORM check box to show HCPCS for b/s mods | X2: TRUE | AO2: =IF(OR($AQ$2=AW3,AQ2=AW4,AQ2=AW5,AQ2=AW6,AQ2=AW7),TRUE,FALSE) -> FALSE | AP2: 1 | AQ2: =INDEX(AQ3:AQ7,$AP$2) -> T-nuts for Therafin headrest | AS2: =INDEX(AS3:AS7,$AP$2) -> Therafin | AV2: Therafin | AW2: T-nuts for Therafin headrest | BA2: 1 | BB2: =INDEX(BB3:BB7,$BA$2) -> T-nuts for Therafin abductor | BD2: =IF(Design!$AD$50,"None",IF($BA$9,$BD$3,INDEX(BD3:BD7,$BA$2))) -> Therafin | BE2: <-key word for export | BK2: 1 | BL2: Foam-in-place kit - 1/2 Unit | BM2: 1/2 Unit | BN2: 50223 | BO2: 102 | BP2: 1 | BR2: 9 | BS2: =INDEX(BS3:BS13,$BR$2) -> Use bottom layer as sacral buildup | BT2: =INDEX(BT3:BT12,$BR$2) -> 72059 | BU2: =INDEX(BU3:BU12,$BR$2) -> 0 | BV2: =INDEX(BV3:BV12,$BR$2) -> Buildup lowest | BW2: =INDEX(BW3:BW12,$BR$2) -> inches of back | BX2: =INDEX(BX3:BX12,$BR$2) -> Use bottom layer as sacral buildup on lowest *NA* inches of back | BZ2: TEXT TO USE IF FLAT BACK
H3: FALSE | L3: Price | P3: Mult | W3: Back mod HCPCS code input | X3: K0108 | AO3: Above TRUE if T-nut pattern NOT "Therafin headrest" | AP3: 1 | AQ3: =IF('Pick List'!$B$182,$AW$3,IF($AO$4,"T-nut for Therafin headrest",$AW$2)) -> T-nuts for Therafin headrest | AS3: =IF('Pick List'!$B$182,$AV$3,IF($AO$4,"Therafin",$AV$2)) -> Therafin | AV3: Vertical | AW3: T-nuts for Therafin vertical headrest | BA3: 1 | BB3: =IF(Design!$AB$50,$BE3,"No abductor T-nuts") -> T-nuts for Therafin abductor | BD3: Therafin | BE3: T-nuts for Therafin abductor | BK3: 2 | BL3: Foam-in-place kit - 1 Unit | BM3: 1 Unit | BN3: 50225 | BO3: 204 | BP3: 1 | BR3: 1 | BS3: =IF(CURVED,"Sacral Buildup NA - Curved Back",$BZ3) -> Lumbar 1/2" soft on top | BT3: 71082 | BU3: 93 | BV3: Lumbar foam | BW3: inches tall | BX3: =BS3&" - foam "&$BX$14&" tall" -> Lumbar 1/2" soft on top - foam *NA* tall | BZ3: Lumbar 1/2" soft on top
H4: FALSE | K4: 1 | L4: Ext Retail | N4: Retail | P4: 0 | W4: Back mod HCPCS code applied if box checked | X4: =IF(X2,X3,"") -> K0108 | AO4: =OR($A$184,$A$176) -> FALSE | AP4: 2 | AQ4: =IF('Pick List'!$B$182,$AW$3,IF($AO$4,"T-nut for Therafin headrest",$AW$4)) -> T-nuts for Metalcraft headrest | AS4: =IF('Pick List'!$B$182,$AV$3,IF($AO$4,"Therafin",$AV$4)) -> Metalcraft | AV4: Metalcraft | AW4: T-nuts for Metalcraft headrest | BA4: 2 | BB4: =IF(Design!$AB$50,IF($BA$9,$BE$3,$BE4),"No abductor T-nuts") -> Abductor T-nuts 1 in. on center | BD4: One inch | BE4: Abductor T-nuts 1 in. on center | BK4: 3 | BL4: Foam-in-place kit - 1-1/2 Unit | BM4: 1-1/2 Unit | BN4: 50227 | BO4: 255 | BP4: 1 | BR4: 2 | BS4: Lumbar 1" soft on top | BT4: 71082 | BU4: 93 | BV4: Lumbar foam | BW4: inches tall | BX4: =BS4&" - foam "&$BX$14&" tall" -> Lumbar 1" soft on top - foam *NA* tall | BZ4: Lumbar 1" soft on top
K5: 2 | L5: Ext Primary | N5: Discount | P5: =IF(ISNUMBER(Form!D7),1-Form!D7,1) -> 1 | W5: Seat mod HCPCS code input | X5: K0108 | AO5: Above TRUE if Therafin headrest pad or hdw chosen | AP5: 3 | AQ5: =IF('Pick List'!$B$182,$AW$3,IF($AO$4,"T-nut for Therafin headrest",$AW$5)) -> T-nuts for i2i headrest | AS5: =IF('Pick List'!$B$182,$AV$3,IF($AO$4,"Therafin",$AV$5)) -> i2i | AV5: i2i | AW5: T-nuts for i2i headrest | BA5: 3 | BB5: =IF(Design!$AB$50,IF($BA$9,$BE$3,$BE5),"No abductor T-nuts") -> T-nuts for Metalcraft abductor | BD5: Metalcraft | BE5: T-nuts for Metalcraft abductor | BK5: 4 | BL5: Foam-in-place kit - 2 Units | BM5: 2 Units | BN5: 50225 | BO5: 408 | BP5: 2 | BR5: 3 | BS5: Lumbar 1/2" medium on top | BT5: 71082 | BU5: 93 | BV5: Lumbar foam | BW5: inches tall | BX5: Lumbar 1/2" medium on top - foam *NA* tall | BZ5: Lumbar 1/2" medium on top
K6: 3 | L6: Ext Cost | N6: Cost | P6: =IF(ISNUMBER(Form!$D$8),P5*(1-Form!$D$8),P5) -> 1 | W6: Seat mod HCPCS code applied if box checked | X6: =IF(X2,X5,"") -> K0108 | AP6: 4 | AQ6: =IF('Pick List'!$B$182,$AW$3,IF($AO$4,"T-nut for Therafin headrest",$AW$6)) -> T-nuts for Whitmyer headrest | AS6: =IF('Pick List'!$B$182,$AV$3,IF($AO$4,"Therafin",$AV$6)) -> Whitmyer | AV6: Whitmyer | AW6: T-nuts for Whitmyer headrest | BA6: 4 | BB6: =IF(Design!$AB$50,IF($BA$9,$BE$3,$BE6),"No abductor T-nuts") -> Abductor T-nuts 2 in. on center | BD6: Two inch | BE6: Abductor T-nuts 2 in. on center | BK6: 5 | BL6: Foam-in-place kit - 1/2 Unit+bag | BM6: 1/2 Unit+bag | BN6: 50224 | BO6: 102 | BP6: 1 | BR6: 4 | BS6: Lumbar 1" medium on top | BT6: 71082 | BU6: 93 | BV6: Lumbar foam | BW6: inches tall | BX6: Lumbar 1" medium on top - foam *NA* tall | BZ6: Lumbar 1" medium on top
AP7: 5 | AQ7: =IF('Pick List'!$B$182,$AW$3,IF($AO$4,"T-nut for Therafin headrest",$AW$7)) -> T-nuts for 2 in. on center headrest | AS7: =IF('Pick List'!$B$182,$AV$3,IF($AO$4,"Therafin",$AV$7)) -> Two inch | AV7: Two inch | AW7: T-nuts for 2 in. on center headrest | BA7: 5 | BB7: =IF(Design!$AB$50,IF($BA$9,$BE$3,$BE7),"No abductor T-nuts") -> T-nuts for other abductor | BD7: Other | BE7: T-nuts for other abductor | BK7: 6 | BL7: Foam-in-place kit - 1 Unit+bag | BM7: 1 Unit+bag | BN7: 50226 | BO7: 204 | BP7: 1 | BR7: 5 | BS7: Lumbar 1/2" soft + hook-n-loop | BT7: 71088 | BU7: 126 | BV7: Lumbar foam | BW7: inches tall | BX7: Lumbar 1/2" soft + hook-n-loop - foam *NA* tall | BZ7: Lumbar 1/2" soft + hook-n-loop
A8: "Comma"-> | B8: , | AP8: number of shares of assembly cost= | AQ8: =COUNTIF(AS8:AS9,TRUE) -> 0 | AR8: Back on order? | AS8: =$B$47 -> FALSE | BA8: =OR($BA$2<>1,Design!$AD$50) -> FALSE | BB8: <-Custom adductor T-nuts? | BK8: 7 | BL8: Foam-in-place kit - 1-1/2 Unit+bag | BM8: 1-1/2 Unit+bag | BN8: 50228 | BO8: 255 | BP8: 1 | BR8: 6 | BS8: Lumbar 1" soft + hook-n-loop | BT8: 71088 | BU8: 126 | BV8: Lumbar foam | BW8: inches tall | BX8: Lumbar 1" soft + hook-n-loop - foam *NA* tall | BZ8: Lumbar 1" soft + hook-n-loop
A9: "Quote"-> | B9: " | AP9: seat share of assembly cost= | AQ9: =IF($B$19,$AQ$563/AQ8,0) -> 0 | AR9: Seat on order? | AS9: =$B$19 -> FALSE | BA9: =$F$448>0 -> FALSE | BB9: <-Therafin abductor ordered? | BK9: 8 | BL9: Foam-in-place kit - 2 Units+bag | BM9: 2 Units+bag | BN9: 50226 | BO9: 408 | BP9: 2 | BR9: 7 | BS9: Lumbar 1/2" med + hook-n-loop | BT9: 71088 | BU9: 126 | BV9: Lumbar foam | BW9: inches tall | BX9: Lumbar 1/2" med + hook-n-loop - foam *NA* tall | BZ9: Lumbar 1/2" med + hook-n-loop
AP10: back share of assembly cost= | AQ10: =IF($B$47,$AQ$563/AQ8,0) -> 0 | AT10: TABLE OF DATA USED IN THE EXPORT ROUTINE | BJ10: Back-> | BK10: 1 | BM10: =INDEX(BM$2:BM$9,$BK10) -> 1/2 Unit | BN10: =INDEX(BN$2:BN$9,$BK10) -> 50223 | BO10: =INDEX($BN$2:$BO$9,$BK10,2) -> 102 | BP10: =INDEX($BN$2:$BP$9,$BK10,3) -> 1 | BR10: 8 | BS10: Lumbar 1" med + hook-n-loop | BT10: 71088 | BU10: 126 | BV10: Lumbar foam | BW10: inches tall | BX10: Lumbar 1" med + hook-n-loop - foam *NA* tall | BZ10: Lumbar 1" med + hook-n-loop
C11: Design screen errors?= | D11: =COUNTIF(D14:D72,TRUE)>0 -> FALSE | AP11: total back modifications= | AQ11: =SUM(AQ47:AQ68)+AQ10 -> 0 | AT11: 1 | AU11: 2 | AV11: 3 | AW11: 4 | AX11: 5 | AY11: 6 | AZ11: 7 | BA11: 8 | BB11: 9 | BC11: 10 | BD11: 11 | BE11: 12 | BR11: 9 | BS11: Use bottom layer as sacral buildup | BT11: 72059 | BU11: 0 | BV11: Buildup lowest | BW11: inches of back | BX11: =BS11&" on lowest "&$BX$14&" inches of back" -> Use bottom layer as sacral buildup on lowest *NA* inches of back | BZ11: Use bottom layer as sacral buildup
Y12: back price includes freight if not zero | AP12: total seat modifications= | AQ12: =SUM(AQ19:AQ43)+AQ9 -> 0 | AT12: Idx | AU12: RT | AV12: Item | AW12: Qty | AX12: Description | AY12: DATA1 TEXT | AZ12: DATA2 TEXT | BA12: DATA3 # | BB12: DATA4 # | BC12: DATA5 # | BD12: DATA6 # | BE12: DATA7 # | BF12: DATA8 # | BG12: DATA9# | BK12: SPREADER BARS | BR12: 10 | BS12: Future option | BT12: 71086 | BU12: 200 | BV12: Mid-point at | BW12: inches high | BX12: =BS12&" with mid-point "&$BX$14&" high" -> Future option with mid-point *NA* high | BZ12: Future option
B13: PICKED? | D13: ERROR? | E13: =COUNTIF(B47:B49,TRUE)+AAA ->  | F13: UNUSED? | J13: Information from the Design Screen | AA13: Retail | AB13: Prim | AC13: Cost | AD13: Used | AK13: 0 | AP13: Consol Price | AQ13: Price | AR13: HCPCS | AS13: DEVELOPMENT NOTE | AU13: =IF(LEN(Form!$I$7)>1,"REM","") ->  | AV13: =IF(LEN(Form!$I$7)>1,"Remark","") ->  | AW13: 0 | AX13: =IF(LEN(Form!$I$7)>1,SUBSTITUTE(SUBSTITUTE(Form!$I$7,quote," in."),comma," -"),"") ->  | BL13: =IF(AND(CHAIRWIDTH>=12,CHAIRWIDTH<=20),TRUE(),FALSE()) -> FALSE | BM13: True if bar is available for chair size | BT13: Material | BU13: Thick
B14: =IF(ISBLANK(Design!E11),FALSE,TRUE) -> FALSE | J14: =Design!$E$11 -> 0 | X14: Remark | AK14: =IF(B14,1,0) -> 0 | AL14: ="" ->  | AM14: =IF($B14,$X14,0) -> 0 | AO14: =IF(B14,J14,"") ->  | AP14: =IF($B14,$Y14,0) -> 0 | AT14: =AK14 -> 0 | AU14: REM | AV14: =AM14 -> 0 | AW14: =AN14 ->  | AX14: =SUBSTITUTE(SUBSTITUTE(Design!$E$11,quote," in."),comma," -") ->  | BJ14: Row# | BK14: =MATCH(CHAIRWIDTH,$BK$15:$BK$23) ->  | BL14: =IF(BL13,VLOOKUP(CHAIRWIDTH,BK15:BL23,2,FALSE),"**Spreader Bar not avail for "&CHAIRWIDTH&quote&" chair**") -> **Spreader Bar not avail for " chair** | BM14: =IF($BL$13,INDEX($BM$15:$BM$23,$BK$14),"NA") -> NA | BT14: =INDEX(BT15:BT24,$BR$2) -> 05891 | BU14: =INDEX(BU15:BU24,$BR$2) -> 1.5 | BW14: Distance or NA= | BX14: =IF(ISNUMBER(Design!$U$50),Design!$U$50,"*NA*") -> *NA*
B15: =AND(B47,NOT(ISBLANK(Design!$L$7))) -> FALSE | J15: =IF(B15,"Monogram: "&Design!$L$7&" Font: "&CHOOSE(Design!$AB$18,"Block","Script")&" Thread color: "&IF(LEN(Design!$AI$75)<2,"UNSPECIFIED",Design!$AI$75),"(No monogram)") -> (No monogram) | X15: Monogram | Y15: =AD15 -> 0 | AA15: 0 | AD15: =CHOOSE($K$2,AA15,$P$5*AA15,$P$6*AA15) -> 0 | AK15: =IF(AM15=0,AK14,AK14+1) -> 0 | AL15: ="" ->  | AM15: =IF($B15,$X15,0) -> 0 | AN15: 1 | AO15: =IF(B15,J15,"") ->  | AP15: =IF($B15,$Y15,0) -> 0 | AS15: <-if charge for monogram, split like col vinyl back/seat | AT15: =AK15 -> 0 | AU15: MGRM | AV15: =AM15 -> 0 | AW15: =AN15 -> 1 | AX15: =J15 -> (No monogram) | BK15: 12 | BL15: Spreader Bar for 12 in. chair | BM15: 50080-12 | BN15: 9-1/4 Spreader Bar for 12 in. chair | BS15: 1/2" thick soft foam | BT15: 05888 | BU15: 0.5
B16: =Pads!$M$36 -> FALSE | D16: =OR(AND(B16,NOT($B$47),NOT($B$19)),AND(B16,Pads!$V$3=1,Pads!$I$36=4)) -> FALSE | J16: ="Contact surface = "&Pads!J36 -> Contact surface = SMOOTH DARTEX | X16: =Pads!K36 -> 72066 | Y16: =AD16 -> 0 | AA16: =Pads!L36 -> 0 | AD16: =CHOOSE($K$2,AA16,$P$5*AA16,$P$6*AA16) -> 0 | AK16: 0 | AL16: ="" ->  | AM16: =IF(AND($B16,OR($B$19,$B$47),Form!$A$4),$X16,0) -> 0 | AN16: 1 | AO16: =IF(B16,J16,"") ->  | AP16: =IF(AND($B16,Form!$A$4),$Y16,0) -> 0 | AQ16: =IF($B16,$Y16,0) -> 0 | AS16: <-if charge for KSO, split like col vinyl back/seat | AT16: =AK16 -> 0 | AU16: COVM | AV16: =AM16 -> 0 | AW16: 1 | AX16: =SUBSTITUTE(AO16,"*","") ->  | BK16: 13 | BL16: Spreader Bar for 13 in. chair | BM16: 50080-13 | BN16: 10-1/4 Spreader Bar for 13 in. chair | BS16: 1" thick soft foam | BT16: 05887 | BU16: 1
B17: =Pads!$T$36 -> FALSE | D17: =OR(AND(B17,NOT($B$47),NOT($B$19)),AND(B17,Pads!$V$3=1,Pads!$P$36=2)) -> FALSE | J17: ="Non-contact = "&Pads!$Q$36 -> Non-contact = BLACK VINYL | X17: =Pads!R36 -> 72073 | Y17: =AD17 -> 0 | AA17: =Pads!$Y$2 -> 0 | AD17: =CHOOSE($K$2,AA17,$P$5*AA17,$P$6*AA17) -> 0 | AK17: 0 | AL17: ="" ->  | BK17: 14 | BL17: Spreader Bar for 14 in. chair | BM17: 50080-14 | BN17: 11-1/4 Spreader Bar for 14 in. chair | BS17: 1/2" thick medium foam | BT17: 05889 | BU17: 0.5
J18: Seat Specs and Modifications from the Design screen | V18: seat price includes freight if not zero | AK18: 0 | AU18: 0 | AV18: =AM18 -> 0 | AW18: 0 | BK18: 15 | BL18: Spreader Bar for 15 in. chair | BM18: 50080-15 | BN18: 12-1/4 Spreader Bar for 15 in. chair | BS18: 1" thick medium foam | BT18: 05890 | BU18: 1
B19: =SEATIDX<>1 -> FALSE | D19: =AND(SEATIDX<>1,OR(NOT(AND(ISNUMBER(CHAIRWIDTH),ISNUMBER(SEATDEPTH))),Seat!$X$2)) -> FALSE | J19: =IF(B19,Design!$AN$139&CHOOSE(Design!$AB$51,", Tube=7/8",", Tube=1")&quote&IF(Form!$A$1,", with hardware","")&IF(Form!$A$3,", incl mods",""),"(No seat)") -> (No seat) | X19: =Design!$AP$140 -> 0 | Y19: =AD19+AddForFreight -> 0 | AA19: 0 | AD19: =CHOOSE($K$2,AA19,$P$5*AA19,$P$6*AA19) -> 0 | AK19: =IF(AM19=0,AK15,AK15+1) -> 0 | AL19: =IF(D19,Design!$AA$11,"") ->  | AM19: =IF($B19,$X19,0) -> 0 | AN19: 1 | AO19: =IF(B19,J19,"") ->  | AP19: =IF($B19,$Y19,0)+IF(Form!$A$1,$AQ$84,0)+IF(Form!$A$3,$AQ$12,0) -> 0 | AR19: E2609 | AT19: =AK19 -> 0 | AU19: SEAT | AV19: 0 | AW19: =AN19 -> 1 | AX19: =SUBSTITUTE(SUBSTITUTE(Design!$AN$139,quote," in."),comma," -") -> - in. W x in. D | AY19: =Design!$AY$140 -> 0 | AZ19: =Design!$AX$140 -> 0 | BA19: =CHAIRWIDTH -> 0 | BB19: =SEATDEPTH -> 0 | BC19: =CHOOSE(Design!$AB$51,0.875,1) -> 1 | BD19: =IF(AND(SEATIDX>1,NOT(Design!$BE$140)),Seat!$AC$5,0) -> 0 | BE19: =$AM$84 ->  | BK19: 16 | BL19: Spreader Bar for 16 in. chair | BM19: 50080-16 | BN19: 13-1/4 Spreader Bar for 16 in. chair | BS19: 1/2" soft foam w/Hook-N-Loop | BT19: 05888 | BU19: 0.5
B20: =B19 -> FALSE | J20: =IF(B20,Design!$AF$140,"") ->  | X20: =Design!$AE$140 ->  | Y20: =AD20 -> 0 | AA20: =Design!$AU$140 -> 0 | AD20: =CHOOSE($K$2,AA20,$P$5*AA20,$P$6*AA20) -> 0 | AK20: =IF(AM20=0,AK19,AK19+1) -> 0 | AL20: ="" ->  | AM20: =IF(AND($B20,Form!$A$4),$X20,0) -> 0 | AN20: 1 | AO20: =IF(B20,J20,"") ->  | AP20: =IF(AND($B20,Form!$A$4),$Y20,0) -> 0 | AQ20: =IF($B20,$Y20,0) -> 0 | AR20: E2609 | AT20: =AK20 -> 0 | AU20: SEATM | AV20: 0 | AW20: =AN20 -> 1 | AX20: =AO20 ->  | BK20: 17 | BL20: Spreader Bar for 17 in. chair | BM20: 50080-17 | BN20: 14-1/4 Spreader Bar for 17 in. chair | BS20: 1" soft foam w/Hook-N-Loop | BT20: 05887 | BU20: 1
B21: =AND(B19,Design!$AB$49<>1) -> FALSE | J21: =CHOOSE(Design!$AB$49,"(No leg length differential)","Seat: Right shortened LLD, short side="&Design!$Q$17&""" D, long side="&Design!$U$22&""" W"&Design!$AC$50,"Seat: Left shortened LLD, short side="&Design!$W$17&""" D, long side="&Design!$S$22&""" W"&Design!$AC$50) -> (No leg length differential) | X21: 71008 | Y21: =AD21 -> 105 | AA21: 105 | AD21: =CHOOSE($K$2,AA21,$P$5*AA21,$P$6*AA21) -> 105 | AK21: 0 | AL21: ="" ->  | AM21: =IF(AND($B$19,$B21,Form!$A$4),$X21,0) -> 0 | AN21: 1 | AO21: =IF(B21,J21,"") ->  | AP21: =IF(AND($B21,Form!$A$4),$Y21,0) -> 0 | AQ21: 0 | AR21: =IF(Y21>0,SEATMODHCPCS,"") -> K0108 | AT21: 0 | AU21: SEATM | AV21: 0 | AW21: 1 | AX21: Leg length differential | AY21: =CHOOSE(Design!$AB$49," ","Right short","Left short") ->  | AZ21: =IF(Design!$AB$50,"w/Abd T-Nuts","NO Abd T-Nuts") -> w/Abd T-Nuts | BA21: =CHOOSE(Design!$AB$49,0,Design!$Q$17,Design!$W$17) -> 0 | BB21: =CHOOSE(Design!$AB$49,0,Design!$U$22,Design!$S$22) -> 0 | BK21: 18 | BL21: Spreader Bar for 18 in. chair | BM21: 50080-18 | BN21: 15-1/4 Spreader Bar for 18 in. chair | BS21: 1/2" medium foam w/Hook-N-Loop | BT21: 05889 | BU21: 0.5
B22: =AND(B19,SEATIDX<>1) -> FALSE | J22: =IF(AND(B22,FOAMSREQD),"Seat: "&Seat!$BR$7&IF(Design!$AB$53,", addtl gusset="&Design!$J$20&quote,""),"NA") -> NA | X22: =IF(FOAMSREQD,IF(Seat!D7="-","Desc",Seat!D7),0) -> 0 | Y22: =IF(FOAMSREQD,AD22,0) -> 0 | AA22: =Seat!$F$7 -> 0 | AD22: 0 | AK22: 0 | AL22: ="" ->  | AM22: =IF(AND(FOAMSREQD,$B$19,$B22,Form!$A$4),$X22,0) -> 0 | AN22: 1 | AP22: =IF(AND($B22,Form!$A$4),$Y22,0) -> 0 | AQ22: 0 | AT22: 0 | AU22: SEATM | AV22: 0 | AW22: 1 | AX22: =Seat!$C$6 -> NA | AZ22: =Seat!$BI$4 -> 0 | BA22: =Seat!BI$28 -> 0 | BB22: =Seat!BJ$28 -> 0 | BC22: =Seat!BK$28 -> 0 | BD22: =Seat!BL$28 -> 0 | BE22: =Seat!BM$28 -> 0 | BF22: =Seat!BN$28 -> 0 | BG22: =Seat!BO$27 -> 0 | BK22: 19 | BL22: Spreader Bar for 19 in. chair | BM22: 50080-19 | BN22: 16-1/4 Spreader Bar for 19 in. chair | BS22: 1"medium foam w/Hook-N-Loop | BT22: 05890 | BU22: 1
B23: =AND(B19,Design!$AB$52>1) -> FALSE | D23: =AND(Design!$AL$140,B23,Design!$AB$52=3) -> FALSE | J23: =IF($B$23,CHOOSE(Design!$AB$52,"","Seat: Growth notches "&Design!$R13&""" W x "&Design!$Q$14&""" D","Seat: Hidden growth notches "&Design!$R$13&""" W x "&Design!$Q14&""" D"),"Seat has no growth notches") -> Seat has no growth notches | X23: =IF($B$23,CHOOSE(Design!$AB$52,"","71009","71085"),"NA") -> NA | Y23: 0 | AA23: =IF($B$23,CHOOSE(Design!$AB$52,0,93,0),0) -> 0 | AD23: 0 | AK23: 0 | AL23: =IF(D23,Design!$AA$11,"") ->  | AM23: =IF(AND($B$19,$B23,Form!$A$4),$X23,0) -> 0 | AN23: 1 | AP23: =IF(AND($B23,Form!$A$4),$Y23,0) -> 0 | AQ23: 0 | AT23: 0 | AU23: SEATM | AV23: 0 | AW23: 1 | AX23: =CHOOSE(Design!$AB$52,"","Growth notches","Hidden growth notches") ->  | AZ23: =CHOOSE(Design!$AB$52,"","Regular","Hidden") ->  | BA23: =CHOOSE(Design!$AB$52,0,Design!$R$13,Design!$R$13) -> 0 | BB23: =CHOOSE(Design!$AB$52,0,Design!$Q$14,Design!$Q$14) -> 0 | BK23: 20 | BL23: Spreader Bar for 20 in. chair | BM23: 50080-20 | BN23: 17-1/4 Spreader Bar for 20 in. chair | BS23: =Seat!$J$60 -> 1-1/2 in. Soft Visco Foam | BT23: =Seat!$P$61 -> 05891 | BU23: =Seat!$K$61 -> 1.5
B24: =AND(B19,OR(CHAIRWIDTH>22,Design!I13>22)) -> FALSE | J24: =IF($B$24,"Seat: Oversized dimensions","(Oversized seat dimensions)") -> (Oversized seat dimensions) | X24: 71024 | Y24: 116 | AA24: 116 | AD24: 116 | AK24: 0 | AL24: ="" ->  | AM24: =IF(AND($B$19,$B24,Form!$A$4),$X24,0) -> 0 | AN24: 1 | AP24: =IF(AND($B24,Form!$A$4),$Y24,0) -> 0 | AQ24: 0 | AR24: K0108 | AT24: 0 | AU24: SEATM | AV24: 0 | AW24: 1 | AX24: Oversized seat | BS24: Future lumbar support | BT24: NA | BU24: NA
B25: =AND(B19,Seat!$Z$7<>"NA") -> FALSE | J25: =IF(B25,"Seat"&IF(CONTIDX=3," front: ",": ")&"Foam top layer - "&Seat!$Z$7,"NA") -> NA | X25: =Seat!$AE$7 -> Foam | Y25: 0 | AA25: =Seat!$AC$7 -> 0 | AD25: 0 | AK25: 0 | AL25: ="" ->  | AM25: =IF(AND($B$19,$B25,Form!$A$4),$X25,0) -> 0 | AN25: 1 | AP25: =IF(AND($B25,Form!$A$4),$Y25,0) -> 0 | AQ25: 0 | AT25: 0 | AU25: SEATM | AV25: Top | AW25: 1 | AX25: =Seat!$Z$6 -> NA | AY25: =Seat!$AE$7 -> Foam | AZ25: =Seat!$AF$7 -> FIP | BA25: =Seat!$AB$5 -> 0
B26: =AND(B19,Seat!$R$7<>"NA") -> FALSE | J26: =IF(B26,"Seat"&IF(CONTIDX=3," front: ",": ")&"Foam middle layer - "&Seat!$R$7,"NA") -> NA | X26: =Seat!$W$7 -> Foam | Y26: 0 | AA26: =Seat!$U$7 -> 0 | AD26: 0 | AK26: 0 | AL26: ="" ->  | AM26: =IF(AND($B$19,$B26,Form!$A$4),$X26,0) -> 0 | AN26: 1 | AP26: =IF(AND($B26,Form!$A$4),$Y26,0) -> 0 | AQ26: 0 | AT26: 0 | AU26: SEATM | AV26: Middle | AW26: 1 | AX26: =Seat!$R$6 -> NA | AY26: =Seat!$W$7 -> Foam | AZ26: =Seat!$X$7 -> 05887 | BA26: =Seat!$T$5 -> 1
B27: =AND(B19,Seat!$J$7<>"NA") -> FALSE | J27: =IF(B27,"Seat"&IF(CONTIDX=3," front: ",": ")&"Foam bottom layer - "&Seat!$J$7,"NA") -> NA | X27: =Seat!$O$7 -> Foam | Y27: 0 | AA27: =Seat!$M$7 -> 0 | AD27: 0 | AK27: 0 | AL27: ="" ->  | AM27: =IF(AND($B$19,$B27,Form!$A$4),$X27,0) -> 0 | AN27: 1 | AP27: =IF(AND($B27,Form!$A$4),$Y27,0) -> 0 | AQ27: 0 | AT27: 0 | AU27: SEATM | AV27: Bottom | AW27: 1 | AX27: =Seat!$J$6 -> NA | AY27: =Seat!$O$7 -> Foam | AZ27: =Seat!$P$7 -> 05890 | BA27: =Seat!$L$5 -> 1
B28: =AND(B19,Seat!$Z$26<>"NA") -> FALSE | J28: =IF(B28,"Seat rear: Foam top layer - "&Seat!$Z$26,"NA") -> NA | X28: =Seat!$AE$26 -> Foam | Y28: =AD28 -> 0 | AA28: =Seat!$AC$26 -> 0 | AD28: 0 | AK28: 0 | AL28: ="" ->  | AM28: =IF(AND($B$19,$B28,Form!$A$4),$X28,0) -> 0 | AN28: 1 | AO28: =IF(B28,J28,"") ->  | AP28: =IF(AND($B28,Form!$A$4),$Y28,0) -> 0 | AQ28: 0 | AT28: 0 | AU28: SEATM | AV28: RTop | AW28: 1 | AX28: =Seat!$Z$27 -> NA | AY28: =Seat!AE26 -> Foam | AZ28: =Seat!AF26 -> FIP | BA28: =Seat!$AA$26 -> 0
B29: =AND(B19,Seat!$R$26<>"NA") -> FALSE | J29: =IF(B29,"Seat rear: Foam middle layer - "&Seat!$R$26,"NA") -> NA | X29: =Seat!$W$26 -> Foam | Y29: =AD29 -> 0 | AA29: =Seat!$U$26 -> 0 | AD29: 0 | AK29: 0 | AL29: ="" ->  | AM29: =IF(AND($B$19,$B29,Form!$A$4),$X29,0) -> 0 | AN29: 1 | AO29: =IF(B29,J29,"") ->  | AP29: =IF(AND($B29,Form!$A$4),$Y29,0) -> 0 | AQ29: 0 | AT29: 0 | AU29: SEATM | AV29: RMiddle | AW29: 1 | AX29: =Seat!$R$27 -> NA | AY29: =Seat!W26 -> Foam | AZ29: =Seat!X26 -> 05887 | BA29: =Seat!$S$26 -> 0
B30: =AND(B19,Seat!$J$26<>"NA") -> FALSE | J30: =IF(B30,"Seat rear: Foam bottom layer - "&Seat!$J$26,"NA") -> NA | X30: =Seat!$O$26 -> Foam | Y30: =AD30 -> 0 | AA30: =Seat!$M$26 -> 0 | AD30: 0 | AK30: 0 | AL30: ="" ->  | AM30: =IF(AND($B$19,$B30,Form!$A$4),$X30,0) -> 0 | AN30: 1 | AO30: =IF(B30,J30,"") ->  | AP30: =IF(AND($B30,Form!$A$4),$Y30,0) -> 0 | AQ30: 0 | AT30: 0 | AU30: SEATM | AV30: RBottom | AW30: 1 | AX30: =Seat!$J$27 -> NA | AY30: =Seat!O26 -> Foam | AZ30: =Seat!P26 -> 05890 | BA30: =Seat!$K$26 -> 0
B31: =AND(B19,Design!$AB$16) -> FALSE | J31: =IF(B31,"Seat: Channels attached","No seat channels") -> No seat channels | X31: 71025 | Y31: 93 | AA31: 93 | AD31: 93 | AK31: 0 | AL31: =IF(AND($B$56,$D$56),Design!$AA$11,"") ->  | AM31: =IF(AND($B$19,$B31,Form!$A$4),$X31,0) -> 0 | AN31: 1 | AP31: =IF(AND($B31,$B$19,Form!$A$4),$Y31,0) -> 0 | AQ31: 0 | AR31: K0108 | AT31: 0 | AU31: SEATM | AV31: =X31 -> 71025 | AW31: 1 | AX31: Seat channels attached | BA31: =Design!$AA$16 -> -7
B32: =AND($B$19,OtherSeatModIndex<>1) -> FALSE | J32: =IF(B32,"Seat: "&OtherSeatModDesc,"No other seat mod") -> No other seat mod | P32: =IF($B$19,"","No seat was selected") -> No seat was selected | X32: =OtherSeatModNum ->  | Y32: 0 | AA32: =OtherSeatModPrice -> 0 | AD32: 0 | AK32: 0 | AM32: =IF(AND($B32,Form!$A$4),$X32,0) -> 0 | AN32: 1 | AP32: =IF(AND($B32,$B$19,Form!$A$4),$Y32,0) -> 0 | AQ32: 0 | AT32: =AK32 -> 0 | AU32: SEATM | AV32: =X32 ->  | AW32: =AN32 -> 1 | AX32: =RIGHT(J32,LEN(J32)-6) -> er seat mod
B33: =AND($B$16,$B$19) -> FALSE | D33: =$D$16 -> FALSE | J33: =IF($B$16,$J$16,"") ->  | X33: =IF(B33,$X$16,"") ->  | Y33: =AD33 -> 0 | AA33: =Pads!$L$36 -> 0 | AD33: =CHOOSE($K$2,AA33,$P$5*AA33,$P$6*AA33) -> 0 | AK33: 0 | AL33: =IF($D33,Design!$AA$11,"") ->  | AM33: =IF(AND($B$19,$B33,Form!$A$4),$X33,0) -> 0 | AN33: 1 | AO33: =IF(B33,"Seat: "&$J33,"") ->  | AP33: =IF(AND(B33,Form!$A$4),Y33,0) -> 0 | AQ33: =IF(B33,Y33,0) -> 0 | AR33: =IF(Y33>0,SEATMODHCPCS,"") ->  | AS33: <-Seat colored vinyl charge | AT33: =AK33 -> 0 | AU33: SEATM | AV33: =AM33 -> 0 | AW33: =AN33 -> 1 | AX33: Contact surface
B34: =AND($B$17,$B$19) -> FALSE | D34: =$D$17 -> FALSE | J34: =IF($B$17,$J$17,"") ->  | X34: =IF(B34,$X$17,"") ->  | Y34: =AD34 -> 0 | AA34: =Pads!$S$36 -> 0 | AD34: =CHOOSE($K$2,AA34,$P$5*AA34,$P$6*AA34) -> 0 | AK34: =IF(AM34=0,AK33,AK33+1) -> 0 | AL34: =IF($D34,Design!$AA$11,"") ->  | AM34: =IF(AND($B$19,$B34,Form!$A$4),$X34,0) -> 0 | AN34: 1 | AO34: =IF(B34,"Seat: "&$J34,"") ->  | AP34: =IF(AND(B34,Form!$A$4),Y34,0) -> 0 | AQ34: =IF(B34,Y34,0) -> 0 | AS34: <-Seat colored vinyl charge | AT34: =AK34 -> 0 | AU34: SEATM | AV34: =AM34 -> 0 | AW34: =AN34 -> 1 | AX34: Non-contact surface
B35: FALSE | D35: =AND(B35,NOT($B$19)) -> FALSE | E35: =COUNTIF(B35:B43,TRUE) -> 0 | K35: Seat: 2" Hook-N-Loop | X35: 71023 | Y35: =AD35 -> 93 | AA35: 93 | AD35: =CHOOSE($K$2,AA35,$P$5*AA35,$P$6*AA35) -> 93 | AK35: =IF(AM35=0,AK34,AK34+1) -> 0 | AL35: ="" ->  | AM35: =IF(AND($B$19,$B35,Form!$A$4),$X35,0) -> 0 | AN35: 1 | AO35: =IF(B35,K35,"") ->  | AP35: =IF(AND($B$19,$B35,Form!$A$4),$Y35,0) -> 0 | AQ35: =IF(AND($B$19,$B35),$Y35,0) -> 0 | AR35: K0108 | AT35: =AK35 -> 0 | AU35: SEATM | AV35: =X35 -> 71023 | AW35: 1 | AX35: 2 in. Hook-N-Loop
B36: FALSE | D36: =AND(B36,NOT($B$19)) -> FALSE | K36: Seat: I-seat modification | X36: 71026 | Y36: 116 | AA36: 116 | AD36: 116 | AK36: 0 | AL36: =IF($D36,Design!$AA$11,"") ->  | AM36: =IF(AND($B$19,$B36,Form!$A$4),$X36,0) -> 0 | AN36: 1 | AP36: =IF(AND($B$19,$B36,Form!$A$4),$Y36,0) -> 0 | AQ36: 0 | AR36: K0108 | AT36: 0 | AU36: SEATM | AV36: 71026 | AW36: 1 | AX36: I-Seat modification | BS36: NOTE: On January 7, 2020 the shorten base option was modified to change the mod # and description if the customer is Travis Medical
B37: FALSE | D37: =OR(AND(B37,NOT($B$19)),AND($B$37,NOT(Design!$BD$140))) -> FALSE | K37: ="Seat: "&Design!$BC$140 -> Seat: Mushroom foam on drop-thru seat | X37: 71032 | Y37: 247 | AA37: 247 | AD37: 247 | AK37: 0 | AL37: =IF($D37,Design!$AA$11,"") ->  | AM37: =IF(AND($B$19,$B37,Form!$A$4),$X37,0) -> 0 | AN37: 1 | AP37: =IF(AND($B$19,$B37,Form!$A$4),$Y37,0) -> 0 | AQ37: 0 | AR37: K0108 | AT37: 0 | AU37: SEATM | AV37: 71032 | AW37: 1 | AX37: Mushroom foam | BS37: Hamstring relief pick list | BT37: Mod | BU37: Price | BV37: Diagram description | BX37: Form description
B38: FALSE | D38: =AND(B38,OR(NOT($B$19),NOT(FOAMSREQD))) -> FALSE | K38: Seat: Pelvic obliquity | X38: 71030 | Y38: 116 | AA38: 116 | AD38: 116 | AK38: 0 | AL38: =IF($D38,Design!$AA$11,"") ->  | AM38: =IF(AND($B$19,$B38,Form!$A$4),$X38,0) -> 0 | AN38: 1 | AP38: =IF(AND($B$19,$B38,Form!$A$4),$Y38,0) -> 0 | AQ38: 0 | AR38: K0108 | AT38: 0 | AU38: SEATM | AV38: 71030 | AW38: 1 | AX38: Pelvic obliquity | BR38: 1 | BS38: =INDEX(BS39:BS40,$BR$38) -> Shorten base | BT38: =INDEX(BT39:BT40,$BR$38) -> 72061 | BU38: =INDEX(BU39:BU40,$BR$38) -> 116 | BV38: =INDEX(BV39:BV40,$BR$38) -> Hamstring relief - shorten base | BX38: =INDEX(BX39:BX40,$BR$38) -> Hamstring relief - shorten base
B39: FALSE | D39: =AND(B39,OR(NOT($B$19),NOT(FOAMSREQD))) -> FALSE | K39: ="Seat: "&BX$38 -> Seat: Hamstring relief - shorten base | X39: =BT38 -> 72061 | Y39: =AD39 -> 116 | AA39: =BU38 -> 116 | AD39: 116 | AK39: =IF(AM39=0,AK38,AK38+1) -> 0 | AL39: =IF($D39,Design!$AA$11,"") ->  | AM39: =IF(AND($B$19,$B39,Form!$A$4),$X39,0) -> 0 | AN39: 1 | AP39: =IF(AND($B$19,$B39,Form!$A$4),$Y39,0) -> 0 | AQ39: 0 | AR39: K0108 | AT39: 0 | AU39: SEATM | AV39: 72061 | AW39: 1 | AX39: =$BS$38 -> Shorten base | BR39: 1 | BS39: =IF(OR(CUID="C00320",CUID="C04819"),"Beveled edge","Shorten base") -> Shorten base | BT39: =IF(OR(CUID="C00320",CUID="C04819"),"70174","72061") -> 72061 | BU39: 116 | BV39: =IF(OR(CUID="C00320",CUID="C04819"),"Beveled edge","Hamstring relief - shorten base") -> Hamstring relief - shorten base | BX39: =IF(OR(CUID="C00320",CUID="C04819"),"Beveled edge","Hamstring relief - shorten base") -> Hamstring relief - shorten base
B40: FALSE | D40: =AND(B40,OR(NOT($B$19),NOT(Seat!$D$2),NOT(FOAMSREQD))) -> FALSE | K40: Seat: Depth adjustable contour | X40: 72065 | Y40: =AD40 -> 174 | AA40: 174 | AD40: =CHOOSE($K$2,AA40,$P$5*AA40,$P$6*AA40) -> 174 | AK40: 0 | AL40: =IF(D40,Design!$AA$11,"") ->  | AM40: =IF(AND($B$19,$B40,Form!$A$4),$X40,0) -> 0 | AN40: 1 | AP40: =IF(AND($B$19,$B40,Form!$A$4),$Y40,0) -> 0 | AQ40: 0 | AR40: K0108 | AT40: =AK40 -> 0 | AU40: SEATM | AV40: =X40 -> 72065 | AW40: =AN40 -> 1 | AX40: Depth adjustable contour | BR40: 2 | BS40: Extend foam | BT40: 72060 | BU40: 116 | BV40: Hamstring relief - extend foam | BX40: Hamstring relief - extend foam over base
B41: FALSE | D41: =AND(B41,NOT($B$19)) -> FALSE | K41: Seat: Dureflex incontinence liner | X41: 72057 | Y41: =AD41 -> 69 | AA41: 69 | AD41: =CHOOSE($K$2,AA41,$P$5*AA41,$P$6*AA41) -> 69 | AK41: 0 | AL41: ="" ->  | AM41: =IF(AND($B$19,$B41,Form!$A$4),$X41,0) -> 0 | AN41: 1 | AP41: =IF(AND($B$19,$B41,Form!$A$4),$Y41,0) -> 0 | AQ41: 0 | AR41: K0108 | AT41: =AK41 -> 0 | AU41: SEATM | AV41: =X41 -> 72057 | AW41: =AN41 -> 1 | AX41: Dureflex incontinence liner
A42: Suggest FIP | B42: =$BA$8 -> FALSE | D42: =AND(B42,NOT($B$19)) -> FALSE | K42: ="Seat: "&$BB$2 -> Seat: T-nuts for Therafin abductor | X42: T-nuts | Y42: =AD42 -> 0 | AA42: 0 | AD42: 0 | AK42: 0 | AL42: ="" ->  | AM42: =IF(AND($B$19,Form!$A$4,$B$42),$X42,0) -> 0 | AN42: 1 | AO42: =K42 -> Seat: T-nuts for Therafin abductor | AP42: =IF(AND($B$19,$B42),$Y42,0) -> 0 | AQ42: 0 | AT42: 0 | AU42: SEATM | AV42: ABTnuts | AW42: =AN42 -> 1 | AX42: Custom Abd T-nuts | AY42: =BD2 -> Therafin
A43: =AND('Pick List'!$B$19,CONTIDX>=15) -> FALSE | B43: FALSE | D43: =AND(B43,NOT($B$19)) -> FALSE | K43: Seat: Foam-in-Place Kit | X43: =$BN$1 -> 50223 | Y43: 102 | AA43: =$BO$1 -> 102 | AD43: 102 | AK43: 0 | AL43: ="" ->  | AM43: =IF(AND($B$19,$B43),$X43,0) -> 0 | AN43: =BP1 -> 1 | AO43: =IF(B43,K43&" - "&BM1,"") ->  | AP43: =IF(AND($B$19,$B43),$Y43,0) -> 0 | AR43: K0108 | AT43: =AK43 -> 0 | AU43: COMT | AV43: 50223 | AW43: 1 | AX43: Foam-in-place kit
B44: FALSE | J44: =IF(B44,Design!$AN$160,"(No extra seat cover)") -> (No extra seat cover) | X44: 50252 | Y44: =AD44 -> 256 | AA44: 256 | AD44: 256 | AK44: 0 | AL44: ="" ->  | AM44: =IF(AND($B$19,$B44),$X44,0) -> 0 | AN44: 1 | AO44: =IF(B44,J44,"") ->  | AP44: =IF(AND($B$19,$B44),$Y44,0) -> 0 | AQ44: =IF(AND($B$19,$B44),$Y44,0) -> 0 | AR44: K0108 | AS44: <-Cover colored vinyl charge | AT44: =AK44 -> 0 | AU44: COMT | AV44: =AM44 -> 0 | AW44: =AN44 -> 1 | AX44: Extra cover for seat | AY44: =Design!$AP$160 -> Regular
B45: =AND($B$16,$B$19,$B$44,Design!$AM$160=1) -> FALSE | D45: =$D$16 -> FALSE | J45: =IF($B$16,$J$16,"") ->  | X45: =IF(B45,$X$16,"") ->  | Y45: =AD45 -> 0 | AA45: =Pads!$L$36 -> 0 | AD45: =CHOOSE($K$2,AA45,$P$5*AA45,$P$6*AA45) -> 0 | AK45: 0 | AL45: =IF($D45,Design!$AA$11,"") ->  | AM45: =IF($B45,$X45,0) -> 0 | AN45: 1 | AO45: =IF(B45,J45,"") ->  | AP45: =IF(B45,Y45,0) -> 0 | AQ45: =IF(B45,Y45,0) -> 0 | AT45: =AK45 -> 0 | AU45: COVM | AV45: =AM45 -> 0 | AW45: 1 | AX45: Contact surface
B46: =AND($B$17,$B$19,$B$44,Design!$AM$160=1) -> FALSE | D46: =$D$17 -> FALSE | J46: =IF($B$17,$J$17,"") ->  | X46: =IF(B46,$X$17,"") ->  | Y46: =AD46 -> 0 | AA46: =Pads!$S$36 -> 0 | AD46: =CHOOSE($K$2,AA46,$P$5*AA46,$P$6*AA46) -> 0 | AK46: =IF(AM46=0,AK45,AK45+1) -> 0 | AL46: =IF($D46,Design!$AA$11,"") ->  | AM46: =IF($B46,$X46,0) -> 0 | AN46: 1 | AO46: =IF(B46,J46,"") ->  | AP46: =IF(B46,Y46,0) -> 0 | AQ46: =IF(B46,Y46,0) -> 0 | AT46: =AK46 -> 0 | AU46: COVM | AV46: =AM46 -> 0 | AW46: =AN46 -> 1 | AX46: Non-contact surface
B47: =BACKSHAPE>1 -> FALSE | D47: =OR(AND(BACKSHAPE<>1,NOT(AND(ISNUMBER(CHAIRWIDTH),ISNUMBER(Design!$E$46)))),$A$250) -> FALSE | J47: =IF(B47,Design!$AN$125&CHOOSE(Design!$AB$17,", Tube=7/8",", Tube=1")&quote&IF(A250," **LTS CHOICE?** ","")&IF(Form!$A$1," w/hdw",""),"(No back)")&IF(Form!$A$3," incl mods","") -> (No back) | X47: =Design!$AP$127 -> ITEM | Y47: =AD47+AddForFreight -> 0 | AA47: 0 | AD47: =CHOOSE($K$2,AA47,$P$5*AA47,$P$6*AA47) -> 0 | AK47: =IF(AM47=0,AK46,AK46+1) -> 0 | AL47: =IF(D47,Design!$AA$11,"") ->  | AM47: =IF($B47,$X47,0) -> 0 | AN47: 1 | AO47: =IF(B47,J47,"") ->  | AP47: =IF($B47,$Y47,0)+IF(Form!$A$1,$AQ$83,0)+IF(Form!$A$3,$AQ$11,0) -> 0 | AR47: E2617 | AT47: =AK47 -> 0 | AU47: BACK | AV47: =AM47 -> 0 | AW47: 1 | AX47: =Design!$AN126 -> NO BACK | AY47: =Design!AI22 -> NA | AZ47: =Design!$AL$22 -> FW Back | BA47: =BACKWIDTH -> 0 | BB47: =Design!$E$46 -> 0 | BC47: =CHOOSE(Design!$AB$17,"7/8","1") -> 1 | BD47: =BACKFOAMTHICK -> 0 | BE47: =$AM$83 -> 
B48: =B47 -> FALSE | J48: =IF(B48,Design!AO22,"(Placeholder)") -> (Placeholder) | T48: Back Specifications | X48: =Design!AI22 -> NA | Y48: =AD48 -> 0 | AA48: =IF($B48,IF(Design!$AH$22<>0,Design!$AH$22,0),0) -> 0 | AD48: =CHOOSE($K$2,AA48,$P$5*AA48,$P$6*AA48) -> 0 | AK48: 0 | AL48: ="" ->  | AM48: =IF(AND($B$47,$B48,Form!$A$4),$X48,0) -> 0 | AN48: 1 | AO48: =IF(B48,J48,"") ->  | AP48: =IF(AND($B48,Form!$A$4),$Y48,0) -> 0 | AQ48: =IF($B48,$Y48,0) -> 0 | AR48: E2617 | AT48: =AK48 -> 0 | AU48: BACKM | AV48: =AM48 -> 0 | AW48: =AN48 -> 1 | AX48: =Design!$AC$22 -> Back: Complete back
B49: =AND($B$47,Design!$AB$20) -> FALSE | D49: =AND(B49,OR(Design!$BD$114>Design!$BD$115,Design!$N$53<Design!$BD$115,BACKSHAPE=3)) -> FALSE | J49: =IF($B$49,IF(BACKSHAPE=2,IF($D$49,"Back: Custom dimensions NA","Back: Custom dimensions")&", Top serif="&Design!$I$58&" Bot serif="&Design!$I$64&" Ctr="&Design!$F$59&" Inset="&Design!$D$58,IF(BACKSHAPE=4,IF(D49,"Back: Custom dimensions NA","Back: Custom dimensions")&", Top serif="&Design!$W$58&" Bot="&Design!$W$61&" Ctr="&Design!$T$59&" Inset="&Design!$R$58,IF(BACKSHAPE=3,"Back: Custom R-Back dimensions NA","(Standard dimensions)"))),"(Standard dimensions)") -> (Standard dimensions) | X49: =IF($B$49,CHOOSE(BACKSHAPE,"NA","71011","Warning","71013"),"NA") -> NA | Y49: =AD49 -> 0 | AA49: 0 | AD49: 0 | AK49: 0 | AL49: =IF(AND($B49,$D49),Design!$AA$11,"") ->  | AM49: =IF(AND($B$47,$B49,Form!$A$4),$X49,0) -> 0 | AN49: 1 | AP49: =IF(AND($B49,Form!$A$4),$Y49,0) -> 0 | AQ49: =IF($B49,$Y49,0) -> 0 | AR49: =IF(Y49>0,BACKMODHCPCS,"") ->  | AT49: 0 | AU49: BACKM | AV49: =AM49 -> 0 | AW49: 1 | AX49: Back custom dimensions | BA49: =CHOOSE(BACKSHAPE,0,Design!$I$58,0,Design!$W$58) -> 0 | BB49: =CHOOSE(BACKSHAPE,0,Design!$I$64,0,Design!$W$61) -> 0 | BC49: =CHOOSE(BACKSHAPE,0,Design!$F$59,0,Design!$T$59) -> 0 | BD49: =CHOOSE(BACKSHAPE,0,Design!$D$58,0,Design!$R$58) -> 0
B50: =AND(B47,Design!$AB$48) -> FALSE | D50: =AND(Design!$AB$48,NOT(ISNUMBER(Design!$M$54))) -> FALSE | J50: =IF(B50,IF(ISNUMBER(Design!$M$54),"Back: Biangular hinge "&Design!$M$54&""" H","Missing biangular back distance"),"(Biangular back)") -> (Biangular back) | X50: 71050 | Y50: 402 | AA50: 402 | AD50: 402 | AK50: 0 | AL50: =IF(AND($B50,$D50),Design!$AA$11,"") ->  | AM50: =IF(AND($B$47,$B50,Form!$A$4),$X50,0) -> 0 | AN50: 1 | AP50: =IF(AND($B50,Form!$A$4),$Y50,0) -> 0 | AQ50: =IF($B50,$Y50,0) -> 0 | AR50: K0108 | AT50: 0 | AU50: BACKM | AV50: =X50 -> 71050 | AW50: 1 | AX50: Biangular back | BA50: =Design!$M$54 -> 0
B51: =AND(B47,Design!$AB$47,BACKSHAPE=3) -> FALSE | J51: =IF(B51,"Back: Scapular cutouts "&Design!$O$55&""" W x "&Design!$P$56&""" H","(Scapular cutouts)") -> (Scapular cutouts) | X51: 71035 | Y51: 158 | AA51: 158 | AD51: 158 | AK51: 0 | AL51: ="" ->  | AM51: =IF(AND($B$47,$B51,Form!$A$4),$X51,0) -> 0 | AN51: 1 | AP51: =IF(AND($B51,Form!$A$4),$Y51,0) -> 0 | AQ51: 0 | AR51: K0108 | AT51: 0 | AU51: BACKM | AV51: =X51 -> 71035 | AW51: 1 | AX51: Scapular cutouts | BA51: =Design!$O$55 -> 2 | BB51: =Design!$P$56 -> 2
B52: =AND(B47,BACKFOAMSREQD) -> FALSE | J52: =IF(AND(B52,BACKFOAMSREQD),"Back: "&Seat!$C$61&", foam thickness="&BACKFOAMTHICK&quote&IF(Design!$AB$19,", addtl gusset="&BACKGUS&quote,""),"NA") -> NA | X52: =IF(BACKFOAMSREQD,IF(Seat!$D$61="-","Desc",Seat!$D$61),0) -> Desc | Y52: =IF(BACKFOAMSREQD,AD52,0) -> 0 | AA52: =Seat!$F$61 -> 0 | AD52: 0 | AK52: 0 | AL52: ="" ->  | AM52: =IF(AND($B$47,$B52,Form!$A$4),$X52,0) -> 0 | AN52: 1 | AP52: =IF(AND($B52,Form!$A$4),$Y52,0) -> 0 | AQ52: 0 | AT52: 0 | AU52: BACKM | AV52: =AM52 -> 0 | AW52: 1 | AX52: =Seat!$C$60 -> NA | AZ52: =IF(AND(BACKFIP,BACKCONFIG<>2,BACKIDX<>1),BACKGUS,"") ->  | BA52: =BACKFOAMTHICK+BACKBASETHICK -> 0
B53: =AND(B47,Seat!$Z$61<>"NA") -> FALSE | J53: =IF(B53,"Back: Foam top layer - "&Seat!$Z$61,"NA") -> NA | X53: =Seat!$AE$61 -> Foam | Y53: 0 | AA53: =Seat!$AC$61 -> 0 | AD53: 0 | AK53: 0 | AL53: ="" ->  | AM53: =IF(AND($B$47,$B53,Form!$A$4),$X53,0) -> 0 | AN53: 1 | AP53: =IF(AND($B53,Form!$A$4),$Y53,0) -> 0 | AQ53: 0 | AT53: 0 | AU53: BACKM | AV53: Top | AW53: 1 | AX53: =Seat!$Z$60 -> NA | AY53: =Seat!$AE$61 -> Foam | AZ53: =Seat!$AF$61 ->  | BA53: =Seat!$AB$59 -> 0 | BB53: 0 | BC53: 0
B54: =AND(B47,Seat!$R$61<>"NA") -> FALSE | J54: =IF(B54,"Back: Foam middle layer - "&Seat!$R$61,"NA") -> NA | X54: =Seat!$W$61 -> Foam | Y54: 0 | AA54: =Seat!$U$61 -> 0 | AD54: 0 | AK54: 0 | AL54: ="" ->  | AM54: =IF(AND($B$47,$B54,Form!$A$4),$X54,0) -> 0 | AN54: 1 | AP54: =IF(AND($B54,Form!$A$4),$Y54,0) -> 0 | AQ54: 0 | AT54: 0 | AU54: BACKM | AV54: Middle | AW54: 1 | AX54: =Seat!$R$60 -> NA | AY54: =Seat!$W$61 -> Foam | AZ54: =Seat!$X$61 ->  | BA54: =Seat!$T$59 -> 0 | BB54: =IF(AND(BACKFIP,BACKCONFIG<>2,BACKIDX<>1),BACKGUS,0) -> 0 | BC54: =IF(BACKFIP,BACKFOAMTHICK+BACKBASETHICK,0) -> 0
B55: =AND(B47,Seat!$J$61<>"NA") -> FALSE | J55: =IF(B55,"Back: Foam bottom layer - "&Seat!$J$61,"NA") -> NA | X55: =Seat!$O$61 -> Foam | Y55: 0 | AA55: =Seat!$M$61 -> 0 | AD55: 0 | AK55: 0 | AL55: ="" ->  | AM55: =IF(AND($B$47,$B55,Form!$A$4),$X55,0) -> 0 | AN55: 1 | AP55: =IF(AND($B55,Form!$A$4),$Y55,0) -> 0 | AQ55: 0 | AT55: 0 | AU55: BACKM | AV55: Bottom | AW55: 1 | AX55: =Seat!$J$60 -> 1-1/2 in. Soft Visco Foam | AY55: =Seat!$O$61 -> Foam | AZ55: =Seat!$P$61 -> 05891 | BA55: =Seat!$L$59 -> 1.5 | BB55: 0 | BC55: 0
B56: =AND(B47,Design!$AB$15>1) -> FALSE | D56: =OR(AND(Design!AB$15=3,OR(BACKSHAPE<>3,Design!$AB$14<>2)),AND(Design!$AB$15=3,Design!$AB$20)) -> FALSE | J56: =IF(B56,IF($D$56,IF(Design!$AB$48,"***Full back channels NA for biangular back***","*** Full back channels valid for DT R-Back only ***"),CHOOSE(Design!$AB$15,"(No back channel)","Back: Lateral channels attached","Back: Full channels attached")),"(No back channels)") -> (No back channels) | X56: 71025 | Y56: 93 | AA56: 93 | AD56: 93 | AK56: 0 | AL56: =IF(AND($B$56,$D$56),Design!$AA$11,"") ->  | AM56: =IF(AND($B$47,$B56,Form!$A$4),$X56,0) -> 0 | AN56: 1 | AP56: =IF(AND($B56,Form!$A$4),$Y56,0) -> 0 | AQ56: 0 | AR56: K0108 | AT56: 0 | AU56: BACKM | AV56: =X56 -> 71025 | AW56: 1 | AX56: Back channels attached | AY56: =CHOOSE(Design!$AB$15,"","Lateral","Full") -> 
B57: =AND(B47,OR(CHAIRWIDTH>22,Design!E46>22)) -> FALSE | J57: =IF(B57,"Back: Oversized dimensions, w > 22"&quote&" or h > 22"&quote,"(Not oversized)") -> (Not oversized) | X57: =IF(B57,"71024","") ->  | Y57: 116 | AA57: 116 | AD57: 116 | AK57: 0 | AL57: ="" ->  | AM57: =IF(AND($B$47,$B57,Form!$A$4),$X57,0) -> 0 | AN57: 1 | AP57: =IF(AND($B57,Form!$A$4),$Y57,0) -> 0 | AQ57: 0 | AR57: K0108 | AT57: 0 | AU57: BACKM | AV57: =AM57 -> 0 | AW57: 1 | AX57: Oversized back
A58: No hinge needed | J58: Back Modifications | P58: =IF($B$47,"","No back was selected") -> No back was selected | AK58: 0 | AL58: ="" ->  | AM58: =IF(AND($B$47,$B58,Form!$A$4),$X58,0) -> 0 | AO58: =IF(B58,#REF!,"") ->  | AP58: =IF(AND($B58,Form!$A$4),$Y58,0) -> 0
A59: =COUNTIF(A85:A99,TRUE)>0 -> FALSE | B59: =CURVED -> FALSE | J59: Curved back | X59: =CHOOSE(BACKSHAPE," ","70166","70169","70167") ->  | Y59: 0 | AA59: =CHOOSE(BACKSHAPE,0,278,205,263) -> 0 | AD59: 0 | AK59: 0 | AL59: =IF($D59,Design!$AA$11,"") ->  | AM59: =IF(AND($B$47,$B59,Form!$A$4),$X59,0) -> 0 | AN59: 1 | AO59: =IF(B59,J59,"") ->  | AP59: =IF(AND(B59,Form!$A$4),Y59,0) -> 0 | AQ59: =IF($B$59,Y59,0) -> 0 | AR59: Incl w/E2617 | AT59: =AK59 -> 0 | AU59: BACKM | AV59: =AM59 -> 0 | AW59: =AN59 -> 1 | AX59: Curved back
B60: =AND(Pads!$M$52,$B$47) -> FALSE | D60: =OR(AND(B60,NOT($B$47),NOT($B$19)),AND(B60,Pads!$V$3=1,Pads!$I$52=5)) -> FALSE | J60: =IF($B$60,"Contact surface = "&Pads!$H$52,"") ->  | X60: =IF(B60,Pads!$K$52,"") ->  | Y60: =AD60 -> 0 | AA60: =Pads!$L$52 -> 0 | AD60: =CHOOSE($K$2,AA60,$P$5*AA60,$P$6*AA60) -> 0 | AK60: 0 | AL60: =IF($D60,Design!$AA$11,"") ->  | AM60: =IF(AND($B$47,$B60,Form!$A$4),$X60,0) -> 0 | AN60: 1 | AO60: =IF(B60,"Back: "&J60,"") ->  | AP60: =IF(AND(B60,Form!$A$4),Y60,0) -> 0 | AQ60: =IF($B$60,Y60,0) -> 0 | AR60: =IF(Y60>0,BACKMODHCPCS,"") ->  | AS60: <-Back colored vinyl charge | AT60: =AK60 -> 0 | AU60: BACKM | AV60: 0 | AW60: =AN60 -> 1 | AX60: Contact surface
B61: =AND(Pads!$T$53,$B$47) -> FALSE | D61: =OR(AND(B61,NOT($B$47),NOT($B$19)),AND(B61,Pads!$V$3=1,Pads!$P$53=3)) -> FALSE | J61: =IF($B$61,"Non-contact = "&Pads!$O$53,"") ->  | X61: =IF(B61,Pads!$R$53,"") ->  | Y61: =AD61 -> 0 | AA61: =Pads!$S$53 -> 0 | AD61: =CHOOSE($K$2,AA61,$P$5*AA61,$P$6*AA61) -> 0 | AK61: =IF(AM61=0,AK60,AK60+1) -> 0 | AL61: =IF($D61,Design!$AA$11,"") ->  | AM61: =IF(AND($B$47,$B61,Form!$A$4),$X61,0) -> 0 | AN61: 1 | AO61: =IF(B61,"Back: "&J61,"") ->  | AP61: =IF(AND(B61,Form!$A$4),Y61,0) -> 0 | AQ61: =IF($B$60,Y61,0) -> 0 | AS61: <-Back colored vinyl charge | AT61: =AK61 -> 0 | AU61: BACKM | AV61: 0 | AW61: =AN61 -> 1 | AX61: Non-contact surface
A62: hinge msg used? | B62: =C62=2 -> FALSE | C62: 1 | D62: =AND(B62,NOT($B$47)) -> FALSE | K62: Back: Zipper on bottom | X62: 71005 | Y62: 0 | AA62: 0 | AD62: =CHOOSE($K$2,AA62,$P$5*AA62,$P$6*AA62) -> 0 | AK62: =IF(AM62=0,AK61,AK61+1) -> 0 | AL62: ="" ->  | AM62: =IF(AND($B$47,$B62,Form!$A$4),$X62,0) -> 0 | AN62: 1 | AO62: =IF(B62,K62,"") ->  | AP62: =IF($B62,$Y62,0) -> 0 | AT62: =AK62 -> 0 | AU62: BACKM | AV62: 0 | AW62: 1 | AX62: Back zipper on bottom
A63: =IF(AND($B$68,$B$83),"hinge interference","") ->  | B63: FALSE | D63: =OR($B$59,AND($B63,Design!$U$50=0)) -> FALSE | E63: =COUNTIF(B63:B69,TRUE) -> 0 | K63: ="Back: "&'Pick List'!$BX$2 -> Back: Use bottom layer as sacral buildup on lowest *NA* inches of back | X63: =$BT$2 -> 72059 | Y63: 0 | AA63: =$BU$2 -> 0 | AD63: =CHOOSE($K$2,AA63,$P$5*AA63,$P$6*AA63) -> 0 | AK63: 0 | AL63: =IF($D63,Design!$AA$11,"") ->  | AM63: =IF(AND($B$47,$B63,Form!$A$4),$X63,0) -> 0 | AN63: 1 | AO63: =IF(B63,K63,"") ->  | AP63: =IF(AND($B$47,$B63,Form!$A$4),$Y63,0) -> 0 | AQ63: =IF(AND($B$47,$B63),$Y63,0) -> 0 | AT63: =AK63 -> 0 | AU63: BACKM | AV63: 0 | AW63: 1 | AX63: Back lumbar support | AY63: =SUBSTITUTE($BS$2,quote," in.") -> Use bottom layer as sacral buildup | AZ63: =SUBSTITUTE($BX$2,quote," in.") -> Use bottom layer as sacral buildup on lowest *NA* inches of back | BA63: =Design!$U$50 -> 0 | BB63: ='Pick List'!$BU$14 -> 1.5 | BC63: ='Pick List'!$BT$14 -> 05891
B64: =Design!$AB$46 -> FALSE | D64: FALSE | K64: ="Back: "&Design!$S$51&" "&IF(ISNUMBER(Design!$U$51),Design!$U$51,"X")&" "&Design!$V$51 -> Back: Not applicable X | X64: =Design!$Y$52 -> Back | Y64: 0 | AA64: =Design!$Y$51 -> 0 | AB64: (no charge now) | AD64: =CHOOSE($K$2,AA64,$P$5*AA64,$P$6*AA64) -> 0 | AK64: =IF(AM64=0,AK63,AK63+1) -> 0 | AL64: =IF(AND($B64,Design!$U$51=0),Design!$AA$11,"") ->  | AM64: =IF(AND($B$47,$B64,Form!$A$4),$X64,0) -> 0 | AN64: 1 | AO64: =IF(B64,K64,"") ->  | AP64: =IF(AND($B$47,$B64,Form!$A$4),$Y64,0) -> 0 | AQ64: =IF(AND($B$47,$B64),$Y64,0) -> 0 | AT64: =AK64 -> 0 | AU64: COMT | AV64: 0 | AW64: =AN64 -> 1 | AX64: =Design!$S$51&" "&IF(ISNUMBER(Design!$U$51),Design!$U$51,"X")&" "&Design!$V$51 -> Not applicable X | AZ64: =Design!$S$51&" "&IF(ISNUMBER(Design!$U$51),Design!$U$51,"X")&" "&Design!$V$51 -> Not applicable X | BA64: =Design!$U$51 -> 0 | BB64: =Design!$V$51 ->  | BC64: =Design!$Y$51 -> 0
A65: NoCheckBox> | B65: FALSE | D65: =AND(B65,NOT($B$47)) -> FALSE | K65: Back: Mushroom foam overlay | O65: CHECK BOX REMOVED SO NEVER CHOSEN | X65: 71032 | Y65: 247 | AA65: 247 | AD65: 247 | AK65: =IF(AM65=0,AK64,AK64+1) -> 0 | AL65: ="" ->  | AM65: =IF(AND($B$47,$B65,Form!$A$4),$X65,0) -> 0 | AN65: 1 | AO65: =IF(B65,K65,"") ->  | AP65: =IF(AND($B$47,$B65,Form!$A$4),$Y65,0) -> 0 | AQ65: =IF(AND($B$47,$B65),$Y65,0) -> 0 | AR65: K0108 | AT65: 0 | AU65: BACKM | AV65: 0 | AW65: 1 | AX65: Back mushroom foam
B66: =$AO$2 -> FALSE | D66: =AND(B66,NOT($B$47)) -> FALSE | K66: Back: Custom headrest T-nuts | X66: T-nuts | Y66: 0 | AA66: 0 | AD66: 0 | AK66: =IF(AM66=0,AK65,AK65+1) -> 0 | AL66: ="" ->  | AM66: =IF(OR('Pick List'!$B$182,AND($B$47,$B66,Form!$A$4)),$X66,0) -> 0 | AN66: 1 | AO66: =IF(OR('Pick List'!$B$182,B66),"Back: "&$AQ$2,"") ->  | AP66: =IF(OR('Pick List'!$B$182,$B66),$Y66,0) -> 0 | AQ66: =IF(OR('Pick List'!$B$182,$B66),$Y66,0) -> 0 | AT66: 0 | AU66: BACKM | AV66: HRTnuts | AW66: =AN66 -> 1 | AX66: Custom headrest T-nuts | AY66: =$AS$2 -> Therafin
A67: T-Back? (spreader okay) | B67: FALSE | D67: =AND(B67,NOT($B$47)) -> FALSE | K67: Back: Dureflex incontinence liner | X67: 72056 | Y67: 69 | AA67: 69 | AD67: =CHOOSE($K$2,AA67,$P$5*AA67,$P$6*AA67) -> 69 | AH67: =IF(OR(AND('Pick List'!$B$82>1,LEFT($K$68,1)="*"),AND($B$47,$B$68,OR(NOT($A$68),$B$83,NOT($BL$13)))),Design!$AA$11,"") | AK67: 0 | AL67: ="" ->  | AM67: =IF(AND($B$47,$B67,Form!$A$4),$X67,0) -> 0 | AN67: 1 | AO67: =IF(B67,K67,"") ->  | AP67: =IF(AND($B$47,$B67,Form!$A$4),$Y67,0) -> 0 | AQ67: =IF(AND($B$47,$B67),$Y67,0) -> 0 | AR67: K0108 | AT67: =AK67 -> 0 | AU67: BACKM | AV67: =AM67 -> 0 | AW67: 1 | AX67: Dureflex incontinence liner
A68: =Design!$AB13=4 -> FALSE | B68: FALSE | D68: =OR(AND(B68,CURVED),AND(B68,NOT($B$47)),AND($B$68,$B$83),AND($B$68,NOT($A$68)),LEFT(K68,1)="*") -> FALSE | I68: =MAX(1,Design!$R$47) -> 1 | K68: =IF(CURVED,"Spreader Bar not allowed for curved back",IF(NOT($B$68),IF($A$68,IF($BL$13,Design!$AK$127,"Spreader Bar"),"Spreader Bar not allowed"),IF(AND($B$68,Hardware!$P$3),"**Spreader Bar & seat-to-back hinge interference.**",IF($A$68,$BL$14,"** "&$BL$14&" **")))) -> Spreader Bar not allowed | X68: =IF(OR($D$68,NOT($B$68)),"Warning",$BM$14) -> Warning | Y68: =IF($B$68,AD68*I68,0) -> 0 | AA68: 61 | AD68: 61 | AI68: ="50080-"&CHAIRWIDTH | AK68: 0 | AL68: =IF(OR($D$68,AND('Pick List'!$B$82>1,LEFT($K$68,1)="*"),AND($B$47,$B$68,OR(NOT($A$68),$B$83,NOT($BL$13)))),Design!$AA$11,"") ->  | AM68: =IF(OR(AND('Pick List'!$B$82>1,LEFT($K68,1)="*"),AND($B$47,$B68)),$X68,0) -> 0 | AN68: =MAX(1,$I68) -> 1 | AO68: =IF(OR(AND('Pick List'!$B$82>1,LEFT($K$68,1)="*"),AND($B$47,B68)),K68,"") ->  | AP68: =IF(OR(LEFT($K$68,1)="*",AND($B$47,$B68)),$Y68,0) -> 0 | AT68: 0 | AU68: COMT | AV68: 0 | AW68: 1 | AX68: Spreader bar
A69: Suggest FIP | B69: FALSE | D69: =AND(B69,NOT($B$47)) -> FALSE | K69: Back: Foam-in-Place Kit | X69: =$BN$10 -> 50223 | Y69: =AD69 -> 102 | AA69: =$BO$10 -> 102 | AD69: 102 | AK69: 0 | AL69: ="" ->  | AM69: =IF(AND($B$47,$B69),$X69,0) -> 0 | AN69: =BP10 -> 1 | AO69: =IF(B69,K69&" - "&$BM$10,"") ->  | AP69: =IF(AND($B$47,$B69),$Y69,0) -> 0 | AR69: K0108 | AT69: 0 | AU69: COMT | AV69: 0 | AW69: 1 | AX69: Back foam-in-place kit
A70: =AND('Pick List'!$B$47,BACKFIP) -> FALSE | B70: FALSE | J70: =IF(B70,Design!$AN$153,"(No extra back cover)") -> (No extra back cover) | X70: 50251 | Y70: =AD70 -> 256 | AA70: 256 | AD70: 256 | AK70: 0 | AL70: ="" ->  | AM70: =IF(AND($B$47,$B70),$X70,0) -> 0 | AN70: 1 | AO70: =IF(B70,J70,"") ->  | AP70: =IF(AND($B$47,$B70),$Y70,0) -> 0 | AR70: K0108 | AT70: 0 | AU70: COMT | AV70: 0 | AW70: 1 | AX70: Extra cover for back | AY70: =Design!$AP$153 -> Regular
B71: =AND($B$60,$B$47,$B$70,Design!$AM$153=1) -> FALSE | D71: =D60 -> FALSE | J71: =IF($B$60,$J$60,"") ->  | X71: =IF(B71,$X$60,"") ->  | Y71: =AD71 -> 0 | AA71: =Pads!$L$52 -> 0 | AD71: =CHOOSE($K$2,AA71,$P$5*AA71,$P$6*AA71) -> 0 | AK71: 0 | AL71: =IF($D71,Design!$AA$11,"") ->  | AM71: =IF($B71,$X71,0) -> 0 | AN71: 1 | AO71: =IF(B71,J71,"") ->  | AP71: =IF(B71,Y71,0) -> 0 | AQ71: =IF(B71,Y71,0) -> 0 | AS71: <-Cover colored vinyl charge | AT71: =AK71 -> 0 | AU71: COVM | AV71: =AM71 -> 0 | AW71: =AN71 -> 1 | AX71: Contact surface
B72: =AND($B$61,$B$47,$B$70,Design!$AM$153=1) -> FALSE | D72: =D61 -> FALSE | J72: =IF($B$61,$J$61,"") ->  | X72: =IF(B72,$X$61,"") ->  | Y72: =AD72 -> 0 | AA72: =Pads!$S$53 -> 0 | AD72: =CHOOSE($K$2,AA72,$P$5*AA72,$P$6*AA72) -> 0 | AK72: 0 | AL72: =IF($D72,Design!$AA$11,"") ->  | AM72: =IF($B72,$X72,0) -> 0 | AN72: 1 | AO72: =IF(B72,J72,"") ->  | AP72: =IF(B72,Y72,0) -> 0 | AQ72: =IF(B72,Y72,0) -> 0 | AS72: <-Cover colored vinyl charge | AT72: =AK72 -> 0 | AU72: COVM | AV72: 0 | AW72: 1 | AX72: Non-contact surface
AM73: =IF($B73,$X73,0) -> 0 | AT73: =AK73 -> 0 | AV73: 0 | AW73: 0
AT74: 0 | AV74: 0 | AW74: 0
Y75: =$D$544 -> FALSE | AT75: 0 | AV75: 0 | AW75: 0
O76: =$D$83 -> FALSE | P76: =$D$409 -> FALSE | Q76: =$E$102 -> FALSE | R76: =$D$448 -> FALSE | T76: =$D$175 -> FALSE | U76: =$D$492 -> FALSE | V76: =$D$235 -> FALSE | W76: =$D$508 -> FALSE | X76: =OR(AND($B$372,$D$372),$D$305) -> FALSE | Y76: =OR(AND($B$404,$D$404),$D$375) -> FALSE | AT76: 0 | AV76: 0 | AW76: 0
A77: Tube size | O77: =IF($O$76,"ATTACHING HDW","Attaching hdw") -> Attaching hdw | Q77: =IF($Q$76,"Misc Products","Misc Products") -> Misc Products | T77: =IF($T$76,"HEADRESTS","Headrests") -> Headrests | V77: =IF($V$76,"LATERAL SUPPORTS","Lateral Supports") -> Lateral Supports | X77: =IF($X$76,"Anterior Support","Anterior Support") -> Anterior Support | Y77: Hip Belts | AT77: 0 | AV77: 0 | AW77: 0
A78: =Design!$AB$17 -> 2 | O78: =IF($P$76,"HIP GUIDES","Hip Guides") -> Hip Guides | Q78: =IF($R$76,"ABDUCTOR","Abductor") -> Abductor | S78: =IF($D$463,"ADDUCTORS","Adductors") -> Adductors | U78: =IF($D$492,"KNEE","Knee") -> Knee | V78: =IF($D$508,"SHOE HOLDERS","Shoe Holders") -> Shoe Holders | X78: =IF($Y$75,"TRAYS","Trays") -> Trays | Y78: =IF($Y$75,"REMARKS","Remarks") -> Remarks | AT78: 0 | AV78: 0 | AW78: 0
U79: =B492 -> 1 | AT79: 0 | AV79: 0 | AW79: 0
AT80: 0 | AV80: 0 | AW80: 0
P81: ATTACHING HARDWARE | X81: =IF(D83,"ISSUES REVIEWED?"," Issues reviewed?") -> Issues reviewed? | AA81: =IF(AB81,"+",">") -> > | AB81: FALSE | AT81: 0 | AV81: 0
A82: column true if hinge not needed | B82: 1 | D82: any error? | G82: hinge depth | J82: =IF($B$47,IF(Design!$AB$17=1," Back tube = 7/8"&quote&" ","Back tube = 1"&quote&" "),"")&IF($B$19,IF(Design!$AB$51=1," Seat tube = 7/8"&quote," Seat tube = 1"&quote),"") ->  | AK82: =AK72 -> 0 | AR82: sum for "incl hdw" in back/seat below | AV82: 0
B83: =AND($B$96,Hardware!$P$3) -> FALSE | C83: <--Has hinge? | D83: =OR(OR(D84,D96),AND($B$82=1,OR($B$47,$B$19)),AND($B$82>1,NOT($B$47),NOT($B$19))) -> FALSE | E83: =COUNTIF(B85:B99,TRUE) -> 0 | G83: =G96 -> 0 | Q83: =IF(AND($B$68,$B$83),"Spreader bar & seat-to-back hinge interference","") ->  | AA83: Retail | AB83: Prim | AC83: Cost | AD83: Used | AJ83: =IFERROR(VLOOKUP($AK82+1,$AK85:$AP100,1,FALSE),"") ->  | AL83: =IFERROR(VLOOKUP($AK82+1,$AK85:$AP100,2,FALSE),"") ->  | AM83: =IFERROR(VLOOKUP($AK82+1,$AK85:$AP100,3,FALSE),"") ->  | AN83: =IFERROR(VLOOKUP($AK82+1,$AK85:$AP100,4,FALSE),"") ->  | AO83: =IFERROR(VLOOKUP($AK82+1,$AK85:$AP100,5,FALSE),"") ->  | AQ83: =AQ97 -> 0 | AR83: Incl w/cushion | AT83: =AJ83 ->  | AU83: =IF(OR($B$84,$B$85),"REM","COMT") -> REM | AX83: =IF($B$84,SUBSTITUTE(SUBSTITUTE(AO83,"** ","")," **",""),IF($B$85,"Do not need back hdw",LEFT($AO$83,8))) -> 
B84: =OR(B82=1,D97) -> TRUE | D84: =AND(OR($B$47,$B$19),B84) -> FALSE | J84: =IF(AND(OR($B$47,$B$19),$E$83=0),"¢","") ->  | K84: =IF($E$83=0,"No Back or Seat Attaching Hardware","No Back or Seat Attaching Hardware") -> No Back or Seat Attaching Hardware | Q84: =IF($B$23,CHOOSE(Design!$AB$52,"","Seat has growth notches "&Design!$R13&""" W x "&Design!$Q$14&""" D","Seat has hidden growth notches "&Design!$R$13&""" W x "&Design!$Q14&""" D"),"") ->  | AJ84: =IFERROR(VLOOKUP($AK82+2,$AK85:$AP100,1,FALSE),"") ->  | AL84: =IFERROR(VLOOKUP($AK82+2,$AK85:$AP100,2,FALSE),"") ->  | AM84: =IFERROR(VLOOKUP($AK82+2,$AK85:$AP100,3,FALSE),"") ->  | AN84: =IFERROR(VLOOKUP($AK82+2,$AK85:$AP100,4,FALSE),"") ->  | AO84: =IFERROR(VLOOKUP($AK82+2,$AK85:$AP100,5,FALSE),"") ->  | AQ84: =AQ99 -> 0 | AR84: K0108 | AT84: =AJ84 ->  | AU84: =IF(OR($B$84,$B$85),"REM","COMT") -> REM | AX84: =IF($B$84,SUBSTITUTE(SUBSTITUTE(AO84,"** ","")," **",""),IF($B$85,"Do not need seat hdw",LEFT($AO$84,8))) -> 
A85: =IF(B85,TRUE,FALSE) -> FALSE | B85: =B82=2 -> FALSE | K85: Do not need attaching hardware | AW85: 0
J86: Back Attaching Hardware | S86: Seat Attaching Hardware | AK86: =IF(AM86=0,AK82,AK82+1) -> 0 | AL86: =IF(AND($B$84,$B$47),$AA$81,"") ->  | AM86: =IF($B$47,IF($B$84,"Warning",IF($B$85,"Note ",0)),0) -> 0 | AO86: =IF($B$47,IF($B$84,"** No back attaching hardware selected **",IF($B$85,"** Do not need back hardware **","")),"") -> 
AK87: =IF(AM87=0,AK86,AK86+1) -> 0 | AL87: =IF(AND($B$84,$B$19),$AA$81,"") ->  | AM87: =IF($B$19,IF($B$84,"Warning",IF($B$85,"Note ",0)),0) -> 0 | AO87: =IF($B$19,IF($B$84,"** No seat attaching hardware selected **",IF($B$85,"** Do not need seat hardware **","")),"") -> 
J93: Two or Four Knobs | T93: Hinged Collars | W93: Swingtabs | Y93: Knobs &
J94: & optional hinges | N94: Molded J & Ls | Q94: Js & Ls | T94: & Rail Locks | W94: & Rail Locks | Y94: Swingtabs
B95: Choose kit?
B96: =B82=3 -> FALSE | D96: =OR(AND(ChooseOwnKit,OR($X$97="UNAVAIL",AND(NOT($B$47),NOT($B$19)),NOT(Hardware!$G$3))),$D$98,$D$100,D97) -> FALSE | G96: =IF($B96,Hardware!$T$3,0) -> 0 | J96: =IF(OR(D96,E98),"¢","") ->  | K96: Choose your own kit | O96: =IF(AND($B$96,NOT($B$47),NOT($B$19)),"Hardware chosen without a back or seat","") ->  | X96: Item # | Y96: ='Pick List'!$L$2 -> Ext Retail | AA96: Retail | AD96: Used | AK96: =IF(AM96=0,AK87,AK87+1) -> 0
A97: =HingeNotNeeded -> 0 | C97: =AND(BackHdwDesc<>"NONE",ChooseOwnKit) -> FALSE | D97: =AND(ChooseOwnKit,BackHdwDesc="NONE",SEATHDWDESC="NONE") -> FALSE | E97: Hdw error | K97: =IF($B$47,"Back Hdw:","NO BACK") -> NO BACK | X97: =Hardware!$D$3 -> No | Y97: =MAX(J97,1)*AD97 -> 0 | AA97: =Hardware!$J$3 -> 0 | AD97: =CHOOSE($K$2,AA97,$P$5*AA97,$P$6*AA97) -> 0 | AK97: 0 | AL97: =IF(OR($D$98,$E$98),$AA$81,"") ->  | AM97: =IF($C97,$X97,0) -> 0 | AN97: 1 | AO97: ="Back Hdw: "&Hardware!C3 -> Back Hdw: None | AP97: =IF(AND($C97,Form!$A$2),$Y97,0) -> 0 | AQ97: =IF($C97,$Y97,0) -> 0 | AR97: Incl w/cushion
C98: hinge+spreader bar error or hinge rise error-> | D98: =OR(AND(ChooseOwnKit,$B$68,$B$83),AND(ChooseOwnKit,HingeRise>0,THICKNESSOFSEAT>3)) -> FALSE | E98: =AND(B96,(OR(AND(CURVED,NOT(WORKSCURVED)),Hardware!$D$3="99999",ISNUMBER(SEARCH("seat too thick",AO97))))) -> FALSE | M98: =IF(AND($B$68,Hardware!$P$3),"Spreader bar & seat-to-back hinge interference. ",Hardware!$S$3)&IF($B$96,Hardware!$R$3,"") ->  | AK98: 0 | AO98: =IF(B98,K98,"") -> 
C99: =AND(SEATHDWDESC<>"NONE",ChooseOwnKit) -> FALSE | K99: =IF($B$19,"Seat Hdw:","NO SEAT") -> NO SEAT | X99: =Hardware!$D$66 -> No | Y99: =MAX(J99,1)*AD99 -> 0 | AA99: =Hardware!$J$66 -> 0 | AD99: =CHOOSE($K$2,AA99,$P$5*AA99,$P$6*AA99) -> 0 | AK99: 0 | AL99: =IF($D$100,$AA$81,"") ->  | AM99: =IF($C99,$X99,0) -> 0 | AN99: 1 | AO99: ="Seat Hdw: "&Hardware!C66 -> Seat Hdw: None | AP99: =IF(AND($C99,Form!$A$2),$Y99,0) -> 0 | AQ99: =IF($C99,$Y99,0) -> 0 | AR99: K0108
C100: hinge & spreader bar alert-> | D100: =AND(ChooseOwnKit,BACKHDWHASHINGE,SEATHDWHINGECODE=3) -> FALSE | M100: =IF(Hardware!$P$3,CHOOSE(Hardware!$P$66,"Works with seat-to-back hinge in back hardware kit","Note: Back hardware includes seat-to-back hinge","Not a good combination with a seat-to-back hinge"),"") ->  | AV100: =AM100 -> 0 | AW100: 0
AV101: 0 | AW101: 0
B102: =COUNTIF(B104:B172,TRUE)>0 -> FALSE | E102: =COUNTIF(D104:D172,TRUE)>0 -> FALSE | P102: MISCELLANEOUS PRODUCTS | AK102: =AK99 -> 0 | AV102: 0 | AW102: 0
K103: Qty | N103: Description | U103: HCPCS | W103: Retail | X103: Item # | Y103: ='Pick List'!$L$2 -> Ext Retail | AA103: Retail | AD103: Used | AM103: =CONCATENATE(AS104,AS105,AS106,AS107,AS108,AS109,AS110,AS111,AS112,AS113,AS114,AS115,AS116,AS117,AS118,AS119,AS120,AS121,AS122,AS123,AS124,AS125,AS126,AS127,AS128,AS129,AS130,AS131,AS132,AS133)&CONCATENATE(AS134,AS135,AS136,AS137,AS138,AS139,AS140,AS141,AS142,AS143,AS144,AS145,AS146,AS147,AS148,AS149,AS150,AS151,AS152,AS153,AS154,AS155,AS156,AS157,AS158,AS159,AS160,AS161,AS162,AS163,AS164,AS165,AS166,AS167,AS168,AS169,AS170,AS171,AS172) ->  | AW103: 0
B104: FALSE | D104: =AND(B104,OR(ISBLANK(M104),NOT(ISNUMBER(W104)),ISBLANK(X104))) -> FALSE | L104: =IF(D104,"¢","") ->  | M104: ENTER DESC, RETAIL PRICE, ITEM # THEN CHECK BOX | Y104: =IF(ISNA(AD104),"",MAX(K104,1)*AD104) -> 0 | AA104: =W104 -> 0 | AD104: =CHOOSE($K$2,AA104,$P$5*AA104,$P$6*AA104) -> 0 | AK104: =IF(AM104=0,AK102,AK102+1) -> 0 | AL104: =IF(D104,">","") ->  | AM104: =IF($B104,IF(ISBLANK($X104),"MISSING",$X104),0) -> 0 | AN104: =MAX(1,K104) -> 1 | AO104: =M104 -> ENTER DESC, RETAIL PRICE, ITEM # THEN CHECK BOX | AP104: =IF($B104,$Y104,0) -> 0 | AR104: =U104 -> 0 | AS104: =IF($B104,IF(ISBLANK($X104),"___MISSING ","___"&$K104&"|"&$X104&" "),"") ->  | AT104: =AK104 -> 0 | AU104: COMT | AV104: 0 | AW104: 1 | AX104: =SUBSTITUTE(SUBSTITUTE(AO104,quote," in."),comma," -") -> ENTER DESC - RETAIL PRICE - ITEM # THEN CHECK BOX
B105: FALSE | D105: =AND(B105,OR(ISBLANK(M105),NOT(ISNUMBER(W105)),ISBLANK(X105))) -> FALSE | L105: =IF(D105,"¢","") ->  | Y105: 0 | AA105: =W105 -> 0 | AD105: =CHOOSE($K$2,AA105,$P$5*AA105,$P$6*AA105) -> 0 | AK105: 0 | AM105: 0 | AN105: 1 | AO105: =M105 -> 0 | AP105: 0 | AR105: =U105 -> 0 | AS105: =IF($B105,IF(ISBLANK($X105),"___MISSING ","___"&$K105&"|"&$X105&" "),"") ->  | AT105: =AK105 -> 0 | AU105: COMT | AV105: 0 | AW105: 1 | AX105: 0
B106: FALSE | D106: =AND(B106,OR(ISBLANK(M106),NOT(ISNUMBER(W106)),ISBLANK(X106))) -> FALSE | M106: 1/2" Spacer | U106: K0108 | W106: 23 | X106: 50098 | Y106: 23 | AA106: =W106 -> 23 | AD106: =CHOOSE($K$2,AA106,$P$5*AA106,$P$6*AA106) -> 23 | AK106: 0 | AM106: 0 | AN106: 1 | AO106: 1/2" Spacer | AP106: 0 | AR106: K0108 | AT106: 0 | AU106: COMT | AV106: 0 | AW106: 1 | AX106: 1/2 in. Spacer
B107: FALSE | D107: =AND(B107,OR(ISBLANK(M107),NOT(ISNUMBER(W107)),ISBLANK(X107))) -> FALSE | M107: Amputee Counterbalance with one plate - 4.48 lbs | U107: K0108 | W107: 357 | X107: 31959 | Y107: 357 | AA107: 357 | AD107: 357 | AK107: =IF(AM107=0,AK106,AK106+1) -> 0 | AM107: 0 | AN107: 1 | AO107: Amputee Counterbalance with one plate - 4.48 lbs | AP107: 0 | AR107: K0108 | AT107: 0 | AU107: COMT | AV107: =AM107 -> 0 | AW107: =AN107 -> 1 | AX107: Amputee Counterbalance with one plate - 4.48 lbs
B108: FALSE | D108: FALSE | M108: Amputee Counterbalance with three plates - 11.71 lbs | U108: K0108 | W108: 525 | X108: 31961 | Y108: 525 | AA108: 525 | AD108: 525 | AK108: 0 | AM108: 0 | AN108: 1 | AO108: Amputee Counterbalance with three plates - 11.71 lbs | AP108: 0 | AR108: K0108 | AT108: 0 | AU108: COMT | AV108: 0 | AW108: 1 | AX108: Amputee Counterbalance with three plates - 11.71 lbs
B109: FALSE | D109: FALSE | M109: Amputee Counterbalance with two plates - 8.09 lbs | U109: K0108 | W109: 452 | X109: 31960 | Y109: 452 | AA109: 452 | AD109: 452 | AK109: 0 | AM109: 0 | AN109: 1 | AO109: Amputee Counterbalance with two plates - 8.09 lbs | AP109: 0 | AR109: K0108 | AT109: 0 | AU109: COMT | AV109: 0 | AW109: 1 | AX109: Amputee Counterbalance with two plates - 8.09 lbs
B110: FALSE | D110: FALSE | M110: Back, Easy Clip, 14" Wide x 14" Tall | U110: E2611 | W110: 368 | X110: 50017 | Y110: 368 | AA110: 368 | AD110: 368 | AK110: 0 | AM110: 0 | AN110: 1 | AO110: Back, Easy Clip, 14" Wide x 14" Tall | AP110: 0 | AR110: E2611 | AT110: 0 | AU110: COMT | AV110: 0 | AW110: 1 | AX110: Back - Easy Clip - 14 in. Wide x 14 in. Tall
B111: FALSE | D111: FALSE | M111: Back, Easy Clip, 16" Wide x 16" Tall | U111: E2611 | W111: 368 | X111: 50018 | Y111: 368 | AA111: 368 | AD111: 368 | AK111: 0 | AM111: 0 | AN111: 1 | AO111: Back, Easy Clip, 16" Wide x 16" Tall | AP111: 0 | AR111: E2611 | AT111: 0 | AU111: COMT | AV111: 0 | AW111: 1 | AX111: Back - Easy Clip - 16 in. Wide x 16 in. Tall
B112: FALSE | D112: FALSE | M112: Back, Easy Clip, 18" Wide x 16" Tall | U112: E2611 | W112: 368 | X112: 50019 | Y112: 368 | AA112: 368 | AD112: 368 | AK112: 0 | AM112: 0 | AN112: 1 | AO112: Back, Easy Clip, 18" Wide x 16" Tall | AP112: 0 | AR112: E2611 | AT112: 0 | AU112: COMT | AV112: 0 | AW112: 1 | AX112: Back - Easy Clip - 18 in. Wide x 16 in. Tall
B113: FALSE | D113: FALSE | M113: Basic 4-point hip belt w/pad, 1" strap & SR plastic buckle | U113: E0978 | W113: 142 | X113: 51058 | Y113: 142 | AA113: 142 | AD113: 142 | AK113: 0 | AM113: 0 | AN113: 1 | AO113: Basic 4-point hip belt w/pad, 1" strap & SR plastic buckle | AP113: 0 | AR113: E0978 | AT113: 0 | AU113: COMT | AV113: 0 | AW113: 1 | AX113: Basic 4-point hip belt w/pad - 1 in. strap & SR plastic buckle
B114: FALSE | D114: FALSE | M114: Basic 4-point hip belt w/pad, 1-1/2" strap & PB metal buckle | U114: E0978 | W114: 157 | X114: 51065 | Y114: 157 | AA114: 157 | AD114: 157 | AK114: 0 | AM114: 0 | AN114: 1 | AO114: Basic 4-point hip belt w/pad, 1-1/2" strap & PB metal buckle | AP114: 0 | AR114: E0978 | AT114: 0 | AU114: COMT | AV114: 0 | AW114: 1 | AX114: Basic 4-point hip belt w/pad - 1-1/2 in. strap & PB metal buckle
B115: FALSE | D115: FALSE | M115: Basic 4-point hip belt w/pad, 1-1/2" strap & PB security buckle | U115: E0978 | W115: 167 | X115: 51034 | Y115: 167 | AA115: 167 | AD115: 167 | AK115: 0 | AM115: 0 | AN115: 1 | AO115: Basic 4-point hip belt w/pad, 1-1/2" strap & PB security buckle | AP115: 0 | AR115: E0978 | AT115: 0 | AU115: COMT | AV115: 0 | AW115: 1 | AX115: Basic 4-point hip belt w/pad - 1-1/2 in. strap & PB security buckle
B116: FALSE | D116: FALSE | M116: Basic 4-point hip belt w/pad, 1-1/2" strap & SR plastic buckle | U116: E0978 | W116: 142 | X116: 51059 | Y116: 142 | AA116: 142 | AD116: 142 | AK116: 0 | AM116: 0 | AN116: 1 | AO116: Basic 4-point hip belt w/pad, 1-1/2" strap & SR plastic buckle | AP116: 0 | AR116: E0978 | AT116: 0 | AU116: COMT | AV116: 0 | AW116: 1 | AX116: Basic 4-point hip belt w/pad - 1-1/2 in. strap & SR plastic buckle
B117: FALSE | D117: FALSE | M117: Basic 4-point hip belt w/pad, 2" strap & PB metal buckle | U117: E0978 | W117: 157 | X117: 51066 | Y117: 157 | AA117: 157 | AD117: 157 | AK117: 0 | AM117: 0 | AN117: 1 | AO117: Basic 4-point hip belt w/pad, 2" strap & PB metal buckle | AP117: 0 | AR117: E0978 | AT117: 0 | AU117: COMT | AV117: 0 | AW117: 1 | AX117: Basic 4-point hip belt w/pad - 2 in. strap & PB metal buckle
B118: FALSE | D118: FALSE | M118: Basic 4-point hip belt w/pad, 2" strap & PB security buckle | U118: K0108 | W118: 167 | X118: 51035 | Y118: 167 | AA118: 167 | AD118: 167 | AK118: 0 | AM118: 0 | AN118: 1 | AO118: Basic 4-point hip belt w/pad, 2" strap & PB security buckle | AP118: 0 | AR118: K0108 | AT118: 0 | AU118: COMT | AV118: 0 | AW118: 1 | AX118: Basic 4-point hip belt w/pad - 2 in. strap & PB security buckle
B119: FALSE | D119: FALSE | M119: Basic 4-point hip belt w/pad, 2" strap & SR plastic buckle | U119: E0978 | W119: 142 | X119: 51060 | Y119: 142 | AA119: 142 | AD119: 142 | AK119: 0 | AM119: 0 | AN119: 1 | AO119: Basic 4-point hip belt w/pad, 2" strap & SR plastic buckle | AP119: 0 | AR119: E0978 | AT119: 0 | AU119: COMT | AV119: 0 | AW119: 1 | AX119: Basic 4-point hip belt w/pad - 2 in. strap & SR plastic buckle
B120: FALSE | D120: FALSE | M120: Bracket, 1" Drop Hook for 1" diameter cane w/ hardware | U120: K0108 | W120: 54 | X120: 32603H | Y120: 54 | AA120: 54 | AD120: 54 | AK120: 0 | AM120: 0 | AN120: 1 | AO120: Bracket, 1" Drop Hook for 1" diameter cane w/ hardware | AP120: 0 | AR120: K0108 | AT120: 0 | AU120: COMT | AV120: 0 | AW120: 1 | AX120: Bracket - 1 in. Drop Hook for 1 in. diameter cane w/ hardware
B121: FALSE | D121: FALSE | M121: Calf Panel Convenience Pocket, Small | U121: K0108 | W121: 27 | X121: 60041 | Y121: 27 | AA121: 27 | AD121: 27 | AK121: 0 | AM121: 0 | AN121: 1 | AO121: Calf Panel Convenience Pocket, Small | AP121: 0 | AR121: K0108 | AT121: 0 | AU121: COMT | AV121: 0 | AW121: 1 | AX121: Calf Panel Convenience Pocket - Small
B122: FALSE | D122: FALSE | M122: Calf Panel Convenience Pocket, Medium | U122: K0108 | W122: 27 | X122: 60042 | Y122: 27 | AA122: 27 | AD122: 27 | AK122: 0 | AM122: 0 | AN122: 1 | AO122: Calf Panel Convenience Pocket, Medium | AP122: 0 | AR122: K0108 | AT122: 0 | AU122: COMT | AV122: 0 | AW122: 1 | AX122: Calf Panel Convenience Pocket - Medium
B123: FALSE | D123: FALSE | M123: Calf Panel Convenience Pocket, Large | U123: K0108 | W123: 27 | X123: 60043 | Y123: 27 | AA123: 27 | AD123: 27 | AK123: 0 | AL123: =IF(D123,">","") ->  | AM123: 0 | AN123: 1 | AO123: Calf Panel Convenience Pocket, Large | AP123: 0 | AR123: K0108 | AT123: 0 | AU123: COMT | AV123: 0 | AW123: 1 | AX123: Calf Panel Convenience Pocket - Large
B124: FALSE | D124: FALSE | M124: Calf Panel, Premium, 2X-Large (Fits 28-32 inch chairs) | U124: K0038 | W124: 174 | X124: 60045 | Y124: 174 | AA124: 174 | AD124: 174 | AK124: 0 | AM124: 0 | AN124: 1 | AO124: Calf Panel, Premium, 2X-Large (Fits 28-32 inch chairs) | AP124: 0 | AR124: K0038 | AT124: 0 | AU124: COMT | AV124: 0 | AW124: 1 | AX124: Calf Panel - Premium - 2X-Large (Fits 28-32 inch chairs)
B125: FALSE | D125: FALSE | M125: Calf Panel, Premium, Large (Fits 20-24 inch chairs) | U125: K0038 | W125: 90 | X125: 60040 | Y125: 90 | AA125: 90 | AD125: 90 | AK125: 0 | AM125: 0 | AN125: 1 | AO125: Calf Panel, Premium, Large (Fits 20-24 inch chairs) | AP125: 0 | AR125: K0038 | AT125: 0 | AU125: COMT | AV125: 0 | AW125: 1 | AX125: Calf Panel - Premium - Large (Fits 20-24 inch chairs)
B126: FALSE | D126: FALSE | M126: Calf Panel, Premium, Medium (Fits 16-20 inch chairs) | U126: K0038 | W126: 90 | X126: 60039 | Y126: 90 | AA126: 90 | AD126: 90 | AK126: 0 | AM126: 0 | AN126: 1 | AO126: Calf Panel, Premium, Medium (Fits 16-20 inch chairs) | AP126: 0 | AR126: K0038 | AT126: 0 | AU126: COMT | AV126: 0 | AW126: 1 | AX126: Calf Panel - Premium - Medium (Fits 16-20 inch chairs)
B127: FALSE | D127: FALSE | M127: Calf Panel, Premium, Small (Fits 12-16 inch chairs) | U127: K0108 | W127: 90 | X127: 60038 | Y127: 90 | AA127: 90 | AD127: 90 | AK127: 0 | AM127: 0 | AN127: 1 | AO127: Calf Panel, Premium, Small (Fits 12-16 inch chairs) | AP127: 0 | AR127: K0108 | AT127: 0 | AU127: COMT | AV127: 0 | AW127: 1 | AX127: Calf Panel - Premium - Small (Fits 12-16 inch chairs)
B128: FALSE | D128: FALSE | M128: Calf Panel, Premium, X-Large (Fits 24-28 inch chairs) | U128: K0038 | W128: 163 | X128: 60044 | Y128: 163 | AA128: 163 | AD128: 163 | AK128: 0 | AM128: 0 | AN128: 1 | AO128: Calf Panel, Premium, X-Large (Fits 24-28 inch chairs) | AP128: 0 | AR128: K0038 | AT128: 0 | AU128: COMT | AV128: 0 | AW128: 1 | AX128: Calf Panel - Premium - X-Large (Fits 24-28 inch chairs)
B129: FALSE | D129: FALSE | M129: Calf Panel, Standard, Large | U129: K0038 | W129: 65 | X129: 30487 | Y129: 65 | AA129: 65 | AD129: 65 | AK129: 0 | AM129: 0 | AN129: 1 | AO129: Calf Panel, Standard, Large | AP129: 0 | AR129: K0038 | AT129: 0 | AU129: COMT | AV129: 0 | AW129: 1 | AX129: Calf Panel - Standard - Large
B130: FALSE | D130: FALSE | M130: Calf Panel, Standard, Medium | U130: K0038 | W130: 65 | X130: 30486 | Y130: 65 | AA130: 65 | AD130: 65 | AK130: 0 | AM130: 0 | AN130: 1 | AO130: Calf Panel, Standard, Medium | AP130: 0 | AR130: K0038 | AT130: 0 | AU130: COMT | AV130: 0 | AW130: 1 | AX130: Calf Panel - Standard - Medium
B131: FALSE | D131: FALSE | M131: Calf Panel, Standard, Small | U131: K0038 | W131: 65 | X131: 30485 | Y131: 65 | AA131: 65 | AD131: 65 | AK131: 0 | AM131: 0 | AN131: 1 | AO131: Calf Panel, Standard, Small | AP131: 0 | AR131: K0038 | AT131: 0 | AU131: COMT | AV131: 0 | AW131: 1 | AX131: Calf Panel - Standard - Small
B132: FALSE | D132: FALSE | M132: Collar Assembly, Rotational To 1" | U132: K0108 | W132: 82 | X132: 31544 | Y132: 82 | AA132: 82 | AD132: 82 | AK132: 0 | AM132: 0 | AN132: 1 | AO132: Collar Assembly, Rotational To 1" | AP132: 0 | AR132: K0108 | AT132: 0 | AU132: COMT | AV132: 0 | AW132: 1 | AX132: Collar Assembly - Rotational To 1 in.
B133: FALSE | D133: FALSE | M133: Collar Assembly, Rotational To 7/8" | U133: E2617 | W133: 82 | X133: 31545 | Y133: 82 | AA133: 82 | AD133: 82 | AK133: 0 | AM133: 0 | AN133: 1 | AO133: Collar Assembly, Rotational To 7/8" | AP133: 0 | AR133: E2617 | AT133: 0 | AU133: COMT | AV133: 0 | AW133: 1 | AX133: Collar Assembly - Rotational To 7/8 in.
B134: FALSE | D134: FALSE | M134: Device Armrest Mount | U134: K0108 | W134: 373 | X134: 32351 | Y134: 373 | AA134: 373 | AD134: 373 | AK134: 0 | AM134: 0 | AN134: 1 | AO134: Device Armrest Mount | AP134: 0 | AR134: K0108 | AT134: 0 | AU134: COMT | AV134: 0 | AW134: 1 | AX134: Device Armrest Mount
B135: FALSE | D135: FALSE | M135: Device Frame Mount | U135: K0108 | W135: 483 | X135: 32350 | Y135: 483 | AA135: 483 | AD135: 483 | AK135: 0 | AM135: 0 | AN135: 1 | AO135: Device Frame Mount | AP135: 0 | AR135: K0108 | AT135: 0 | AU135: COMT | AV135: 0 | AW135: 1 | AX135: Device Frame Mount
B136: FALSE | D136: FALSE | M136: Device Mount - 10 in. Tablet | U136: K0108 | W136: 373 | X136: 32358 | Y136: =IF(ISNA(AD136),"",MAX(K136,1)*AD136) -> 373 | AA136: 373 | AD136: 373 | AK136: 0 | AM136: 0 | AN136: =MAX(1,K136) -> 1 | AO136: Device Mount - 10 in. Tablet | AP136: =IF($B136,$Y136,0) -> 0 | AR136: K0108 | AT136: 0 | AU136: COMT | AV136: 0 | AW136: 1 | AX136: =SUBSTITUTE(SUBSTITUTE(AO136,quote," in."),comma," -") -> Device Mount - 10 in. Tablet
B137: FALSE | D137: FALSE | M137: Device Mount - 7 in. Tablet | U137: K0108 | W137: 163 | X137: 32357 | Y137: 163 | AA137: 163 | AD137: 163 | AK137: 0 | AM137: 0 | AN137: 1 | AO137: Device Mount - 7 in. Tablet | AP137: 0 | AR137: K0108 | AT137: 0 | AU137: COMT | AV137: 0 | AW137: 1 | AX137: Device Mount - 7 in. Tablet
B138: FALSE | D138: FALSE | M138: Device Mount - I-Pad | U138: K0108 | W138: 174 | X138: 32355 | Y138: 174 | AA138: 174 | AD138: 174 | AK138: 0 | AM138: 0 | AN138: 1 | AO138: Device Mount - I-Pad | AP138: 0 | AR138: K0108 | AT138: 0 | AU138: COMT | AV138: 0 | AW138: 1 | AX138: Device Mount - I-Pad
B139: FALSE | D139: FALSE | M139: Device Mount - I-Pad Air w/ Case Skin or Sleeve | U139: K0108 | W139: 174 | X139: 32301 | Y139: 174 | AA139: 174 | AD139: 174 | AK139: 0 | AM139: 0 | AN139: 1 | AO139: Device Mount - I-Pad Air w/ Case Skin or Sleeve | AP139: 0 | AR139: K0108 | AT139: 0 | AU139: COMT | AV139: 0 | AW139: 1 | AX139: Device Mount - I-Pad Air w/ Case Skin or Sleeve
B140: FALSE | D140: FALSE | M140: Device Mount - I-Pad Mini | U140: K0108 | W140: 168 | X140: 32356 | Y140: 168 | AA140: 168 | AD140: 168 | AK140: 0 | AM140: 0 | AN140: 1 | AO140: Device Mount - I-Pad Mini | AP140: 0 | AR140: K0108 | AT140: 0 | AU140: COMT | AV140: 0 | AW140: 1 | AX140: Device Mount - I-Pad Mini
B141: FALSE | D141: FALSE | M141: Device Mount - I-Pad w/ Lifeproof or Lifedge Case | U141: K0108 | W141: 210 | X141: 32300 | Y141: 210 | AA141: 210 | AD141: 210 | AK141: 0 | AM141: 0 | AN141: 1 | AO141: Device Mount - I-Pad w/ Lifeproof or Lifedge Case | AP141: 0 | AR141: K0108 | AT141: 0 | AU141: COMT | AV141: 0 | AW141: 1 | AX141: Device Mount - I-Pad w/ Lifeproof or Lifedge Case
B142: FALSE | D142: FALSE | M142: Device Mount - Smart Phone | U142: K0108 | W142: 142 | X142: 32359 | Y142: 142 | AA142: 142 | AD142: 142 | AK142: 0 | AM142: 0 | AN142: 1 | AO142: Device Mount - Smart Phone | AP142: 0 | AR142: K0108 | AT142: 0 | AU142: COMT | AV142: 0 | AW142: 1 | AX142: Device Mount - Smart Phone
B143: FALSE | D143: FALSE | M143: Device Mount - Smart Phone, Large | U143: K0108 | W143: 142 | X143: 32354 | Y143: 142 | AA143: 142 | AD143: 142 | AK143: 0 | AM143: 0 | AN143: 1 | AO143: Device Mount - Smart Phone, Large | AP143: 0 | AR143: K0108 | AT143: 0 | AU143: COMT | AV143: 0 | AW143: 1 | AX143: Device Mount - Smart Phone - Large
B144: FALSE | D144: FALSE | M144: Device Mount - Tray | U144: K0108 | W144: 200 | X144: 32352 | Y144: 200 | AA144: 200 | AD144: 200 | AK144: 0 | AM144: 0 | AN144: 1 | AO144: Device Mount - Tray | AP144: 0 | AR144: K0108 | AT144: 0 | AU144: COMT | AV144: 0 | AW144: 1 | AX144: Device Mount - Tray
B145: FALSE | D145: FALSE | M145: Device Mount Extension Kit | U145: K0108 | W145: 300 | X145: 32360 | Y145: 300 | AA145: 300 | AD145: 300 | AK145: 0 | AM145: 0 | AN145: 1 | AO145: Device Mount Extension Kit | AP145: 0 | AR145: K0108 | AT145: 0 | AU145: COMT | AV145: 0 | AW145: 1 | AX145: Device Mount Extension Kit
B146: FALSE | D146: FALSE | M146: Drop Seat Insert for ___ inch chair | U146: K0108 | W146: 112 | Y146: 112 | AA146: 112 | AD146: 112 | AK146: 0 | AM146: 0 | AN146: 1 | AO146: Drop Seat Insert for ___ inch chair | AP146: 0 | AR146: K0108 | AT146: 0 | AU146: COMT | AV146: 0 | AW146: 1 | AX146: Drop Seat Insert for ___ inch chair
B147: FALSE | D147: FALSE | M147: Headrest adapter plate | U147: K0108 | W147: 109 | X147: 32825 | Y147: 109 | AA147: 109 | AD147: 109 | AK147: 0 | AM147: 0 | AN147: 1 | AO147: Headrest adapter plate | AP147: 0 | AR147: K0108 | AT147: 0 | AU147: COMT | AV147: 0 | AW147: 1 | AX147: Headrest adapter plate
B148: FALSE | D148: FALSE | M148: Headrest Mounting Plate | U148: K0038 | W148: 52 | X148: 32910B | Y148: 52 | AA148: =W148 -> 52 | AD148: 52 | AK148: =IF(AM148=0,AK147,AK147+1) -> 0 | AM148: 0 | AN148: 1 | AO148: Headrest Mounting Plate | AP148: 0 | AR148: =U148 -> K0038 | AT148: 0 | AU148: COMT | AV148: 0 | AW148: 1 | AX148: Headrest Mounting Plate
B149: FALSE | D149: FALSE | M149: Hinged Back Swing Tab, Pair | U149: K0108 | W149: 64 | X149: 50014 | Y149: 64 | AA149: =W149 -> 64 | AD149: 64 | AK149: =IF(AM149=0,AK148,AK148+1) -> 0 | AM149: 0 | AN149: 1 | AO149: Hinged Back Swing Tab, Pair | AP149: 0 | AR149: =U149 -> K0108 | AT149: 0 | AU149: COMT | AV149: 0 | AW149: 1 | AX149: Hinged Back Swing Tab - Pair
B150: FALSE | D150: FALSE | M150: Hinged Collar | U150: K0108 | W150: 21 | X150: 50410 | Y150: 21 | AA150: =W150 -> 21 | AD150: 21 | AK150: =IF(AM150=0,AK149,AK149+1) -> 0 | AM150: 0 | AN150: 1 | AO150: Hinged Collar | AP150: 0 | AR150: =U150 -> K0108 | AT150: 0 | AU150: COMT | AV150: 0 | AW150: 1 | AX150: Hinged Collar
B151: FALSE | D151: FALSE | M151: Hinged Seat Swing Tab, Pair | U151: K0108 | W151: 62 | X151: 50009 | Y151: 62 | AA151: =W151 -> 62 | AD151: 62 | AK151: =IF(AM151=0,AK150,AK150+1) -> 0 | AM151: 0 | AN151: 1 | AO151: Hinged Seat Swing Tab, Pair | AP151: 0 | AR151: =U151 -> K0108 | AT151: 0 | AU151: COMT | AV151: 0 | AW151: 1 | AX151: Hinged Seat Swing Tab - Pair
B152: FALSE | D152: FALSE | M152: Hip Guide, Flat, No-Mount, 14" | U152: E0956 | W152: 100 | X152: 34503 | Y152: 100 | AA152: =W152 -> 100 | AD152: 100 | AK152: =IF(AM152=0,AK151,AK151+1) -> 0 | AM152: 0 | AN152: 1 | AO152: Hip Guide, Flat, No-Mount, 14" | AP152: 0 | AR152: =U152 -> E0956 | AT152: =AK152 -> 0 | AU152: COMT | AV152: 0 | AW152: 1 | AX152: Hip Guide - Flat - No-Mount - 14 in.
B153: FALSE | D153: FALSE | M153: Hip Guide, Flat, No-Mount, 16" | U153: E0956 | W153: 100 | X153: 34504 | Y153: =IF(ISNA(AD153),"",MAX(K153,1)*AD153) -> 100 | AA153: =W153 -> 100 | AD153: =CHOOSE($K$2,AA153,$P$5*AA153,$P$6*AA153) -> 100 | AK153: 0 | AM153: 0 | AN153: 1 | AO153: Hip Guide, Flat, No-Mount, 16" | AP153: 0 | AR153: =U153 -> E0956 | AT153: 0 | AU153: COMT | AV153: 0 | AW153: 1 | AX153: Hip Guide - Flat - No-Mount - 16 in.
B154: FALSE | D154: FALSE | M154: Hip Guide, Flat, No-Mount, 18" | U154: E0956 | W154: 100 | X154: 34505 | Y154: 100 | AA154: 100 | AD154: 100 | AK154: 0 | AM154: 0 | AN154: 1 | AO154: Hip Guide, Flat, No-Mount, 18" | AP154: 0 | AR154: E0956 | AT154: 0 | AU154: COMT | AV154: 0 | AW154: 1 | AX154: Hip Guide - Flat - No-Mount - 18 in.
B155: FALSE | D155: FALSE | M155: Hip Harness, Static Seat, Front Pull, Large | U155: K0108 | W155: 179 | X155: 50728 | Y155: 179 | AA155: 179 | AD155: 179 | AK155: 0 | AM155: 0 | AN155: 1 | AO155: Hip Harness, Static Seat, Front Pull, Large | AP155: 0 | AR155: K0108 | AT155: 0 | AU155: COMT | AV155: 0 | AW155: 1 | AX155: Hip Harness - Static Seat - Front Pull - Large
B156: FALSE | D156: FALSE | M156: Hip Harness, Static Seat, Front Pull, Medium | U156: K0108 | W156: 179 | X156: 50727 | Y156: 179 | AA156: 179 | AD156: 179 | AK156: 0 | AM156: 0 | AN156: 1 | AO156: Hip Harness, Static Seat, Front Pull, Medium | AP156: 0 | AR156: K0108 | AT156: 0 | AU156: COMT | AV156: 0 | AW156: 1 | AX156: Hip Harness - Static Seat - Front Pull - Medium
B157: FALSE | D157: FALSE | M157: Hip Harness, Static Seat, Front Pull, Small | U157: K0108 | W157: 179 | X157: 50726 | Y157: 179 | AA157: 179 | AD157: 179 | AK157: 0 | AM157: 0 | AN157: 1 | AO157: Hip Harness, Static Seat, Front Pull, Small | AP157: 0 | AR157: K0108 | AT157: 0 | AU157: COMT | AV157: 0 | AW157: 1 | AX157: Hip Harness - Static Seat - Front Pull - Small
B158: FALSE | D158: FALSE | M158: Hip Harness, Static Seat, Rear Pull, Large | U158: K0108 | W158: 179 | X158: 50731 | Y158: 179 | AA158: 179 | AD158: 179 | AK158: 0 | AM158: 0 | AN158: 1 | AO158: Hip Harness, Static Seat, Rear Pull, Large | AP158: 0 | AR158: K0108 | AT158: 0 | AU158: COMT | AV158: 0 | AW158: 1 | AX158: Hip Harness - Static Seat - Rear Pull - Large
B159: FALSE | D159: FALSE | M159: Hip Harness, Static Seat, Rear Pull, Medium | U159: K0108 | W159: 179 | X159: 50730 | Y159: 179 | AA159: 179 | AD159: 179 | AK159: 0 | AM159: 0 | AN159: 1 | AO159: Hip Harness, Static Seat, Rear Pull, Medium | AP159: 0 | AR159: K0108 | AT159: 0 | AU159: COMT | AV159: 0 | AW159: 1 | AX159: Hip Harness - Static Seat - Rear Pull - Medium
B160: FALSE | D160: FALSE | M160: Hip Harness, Static Seat, Rear Pull, Small | U160: K0108 | W160: 179 | X160: 50729 | Y160: 179 | AA160: 179 | AD160: 179 | AK160: 0 | AM160: 0 | AN160: 1 | AO160: Hip Harness, Static Seat, Rear Pull, Small | AP160: 0 | AR160: K0108 | AT160: 0 | AU160: COMT | AV160: 0 | AW160: 1 | AX160: Hip Harness - Static Seat - Rear Pull - Small
B161: FALSE | D161: FALSE | M161: IV Pole | U161: K0108 | W161: 62 | X161: 31082 | Y161: 62 | AA161: 62 | AD161: 62 | AK161: 0 | AM161: 0 | AN161: 1 | AO161: IV Pole | AP161: 0 | AR161: K0108 | AT161: 0 | AU161: COMT | AV161: 0 | AW161: 1 | AX161: IV Pole
B162: FALSE | D162: FALSE | M162: LTS Pad, 4 x 5 Flat w/ Knit Neo and Black Vinyl | U162: E0952 | W162: 79 | X162: 50765 | Y162: 79 | AA162: 79 | AD162: 79 | AK162: 0 | AM162: 0 | AN162: 1 | AO162: LTS Pad, 4 x 5 Flat w/ Knit Neo and Black Vinyl | AP162: 0 | AR162: E0952 | AT162: 0 | AU162: COMT | AV162: 0 | AW162: 1 | AX162: LTS Pad - 4 x 5 Flat w/ Knit Neo and Black Vinyl
B163: FALSE | D163: FALSE | M163: LTS Pad, 4 x 5 Flat w/.25 Foam, Knit Neo and Black Vinyl | U163: E0952 | W163: 79 | X163: 50766 | Y163: 79 | AA163: 79 | AD163: 79 | AK163: 0 | AM163: 0 | AN163: 1 | AO163: LTS Pad, 4 x 5 Flat w/.25 Foam, Knit Neo and Black Vinyl | AP163: 0 | AR163: E0952 | AT163: 0 | AU163: COMT | AV163: 0 | AW163: 1 | AX163: LTS Pad - 4 x 5 Flat w/.25 Foam - Knit Neo and Black Vinyl
B164: FALSE | D164: FALSE | M164: LTS Pad, 4 x 5 Flat w/.25 Foam, Knit Neo and Black Vinyl | U164: E0952 | W164: 79 | X164: 50767 | Y164: 79 | AA164: 79 | AD164: 79 | AK164: 0 | AM164: 0 | AN164: 1 | AO164: LTS Pad, 4 x 5 Flat w/.25 Foam, Knit Neo and Black Vinyl | AP164: 0 | AR164: E0952 | AT164: 0 | AU164: COMT | AV164: 0 | AW164: 1 | AX164: LTS Pad - 4 x 5 Flat w/.25 Foam - Knit Neo and Black Vinyl
B165: FALSE | D165: FALSE | M165: Seat hardware, Swingtabs & Rail Locks | U165: K0108 | W165: 92 | X165: 50474 | Y165: 92 | AA165: 92 | AD165: 92 | AK165: 0 | AM165: 0 | AN165: 1 | AO165: Seat hardware, Swingtabs & Rail Locks | AP165: 0 | AR165: K0108 | AT165: 0 | AU165: COMT | AV165: 0 | AW165: 1 | AX165: Seat hardware - Swingtabs & Rail Locks
B166: FALSE | D166: FALSE | M166: Seating System Vinyl Color Swatches | U166: K0108 | W166: 16 | X166: 40011 | Y166: 16 | AA166: 16 | AD166: 16 | AK166: 0 | AM166: 0 | AN166: 1 | AO166: Seating System Vinyl Color Swatches | AP166: 0 | AR166: K0108 | AT166: 0 | AU166: COMT | AV166: 0 | AW166: 1 | AX166: Seating System Vinyl Color Swatches
B167: FALSE | D167: FALSE | M167: Soft Toe Strap w/ Buckle, 1" Pair | U167: E0952 | W167: 50 | X167: 50768 | Y167: 50 | AA167: 50 | AD167: 50 | AK167: 0 | AM167: 0 | AN167: 1 | AO167: Soft Toe Strap w/ Buckle, 1" Pair | AP167: 0 | AR167: E0952 | AT167: 0 | AU167: COMT | AV167: 0 | AW167: 1 | AX167: Soft Toe Strap w/ Buckle - 1 in. Pair
B168: FALSE | D168: FALSE | M168: Soft Toe Strap w/ Buckle, 1.5" Pair | U168: E0952 | W168: 50 | X168: 50769 | Y168: 50 | AA168: 50 | AD168: 50 | AK168: 0 | AM168: 0 | AN168: 1 | AO168: Soft Toe Strap w/ Buckle, 1.5" Pair | AP168: 0 | AR168: E0952 | AT168: 0 | AU168: COMT | AV168: 0 | AW168: 1 | AX168: Soft Toe Strap w/ Buckle - 1.5 in. Pair
B169: FALSE | D169: FALSE | L169: =IF(D169,"¢","") ->  | M169: Split Collar, 1 in. | U169: K0108 | W169: 22 | X169: 32878 | Y169: 22 | AA169: 22 | AD169: 22 | AK169: 0 | AM169: 0 | AN169: 1 | AO169: Split Collar, 1 in. | AP169: 0 | AR169: K0108 | AT169: 0 | AU169: COMT | AV169: 0 | AW169: 1 | AX169: Split Collar - 1 in.
B170: FALSE | D170: FALSE | M170: Split Collar, 7/8 in. | U170: K0108 | W170: 22 | X170: 32879 | Y170: 22 | AA170: 22 | AD170: 22 | AK170: 0 | AM170: 0 | AN170: 1 | AO170: Split Collar, 7/8 in. | AP170: 0 | AR170: K0108 | AT170: 0 | AU170: COMT | AV170: 0 | AW170: 1 | AX170: Split Collar - 7/8 in.
B171: FALSE | D171: FALSE | M171: Universal Rail Lock - Pair | U171: E2609 | W171: 65 | X171: 32557 | Y171: 65 | AA171: 65 | AD171: 65 | AK171: 0 | AM171: 0 | AN171: 1 | AO171: Universal Rail Lock - Pair | AP171: 0 | AR171: E2609 | AT171: 0 | AU171: COMT | AV171: 0 | AW171: 1 | AX171: Universal Rail Lock - Pair
B172: FALSE | D172: FALSE | M172: Wedge Seat Cushion: __ Wide __ Long ________ Foam | U172: K0108 | W172: 174 | X172: 50044 | Y172: 174 | AA172: 174 | AD172: 174 | AK172: 0 | AM172: 0 | AN172: 1 | AO172: Wedge Seat Cushion: __ Wide __ Long ________ Foam | AP172: 0 | AR172: K0108 | AT172: 0 | AU172: COMT | AV172: 0 | AW172: 1 | AX172: Wedge Seat Cushion: __ Wide __ Long ________ Foam
AV173: 0 | AW173: 0
P174: HEADRESTS | X174: =IF(D175,"ISSUES REVIEWED?"," Issues reviewed?") -> Issues reviewed? | AA174: =IF(AB174,"+",">") -> > | AB174: FALSE | AV174: 0 | AW174: 0
A175: any hdw? | B175: 1 | D175: =COUNTIF(D176:D232,TRUE)>0 -> FALSE | AK175: =AK172 -> 0 | AV175: 0 | AW175: 0
A176: =$F$177>0 -> FALSE | B176: =B175=1 -> TRUE | D176: =AND($F$184>0,$F$177=0) -> FALSE | J176: =IF(D176,"¢","") ->  | K176: No Headrest Hardware | Q176: Multi-axis | S176: Surelock | U176: Flip-down | X176: Item # | Y176: ='Pick List'!$L$2 -> Ext Retail | AA176: Retail | AD176: Used | AJ176: =IFERROR(VLOOKUP($AK175+1,$AK177:$AP182,1,FALSE),AK175) -> 0 | AL176: =IFERROR(VLOOKUP($AK175+1,$AK177:$AP182,2,FALSE),"") ->  | AM176: =IFERROR(VLOOKUP($AK175+1,$AK177:$AP182,3,FALSE),"") ->  | AN176: =IFERROR(VLOOKUP($AK175+1,$AK177:$AP182,4,FALSE),"") ->  | AO176: =IFERROR(VLOOKUP($AK175+1,$AK177:$AP182,5,FALSE),"") ->  | AT176: =AJ176 -> 0 | AU176: COMT | AX176: Headrest hdw
B177: =B175=2 -> FALSE | D177: =AND($B177,OR($F$184<>$F$177,AND($B$205,Belts!$A$318))) -> FALSE | F177: =COUNTIF(B177:B182,TRUE) -> 0 | K177: =IF(D177,"¢","") ->  | L177: Multi-axis headrest hardware | X177: 50215 | Y177: =MAX(J177,1)*AD177 -> 238 | AA177: 238 | AD177: =CHOOSE($K$2,AA177,$P$5*AA177,$P$6*AA177) -> 238 | AK177: =IF(AM177=0,AK175,AK175+1) -> 0 | AL177: =IF(D177,$AA$174,"") ->  | AM177: =IF($B177,$X177,0) -> 0 | AN177: =MAX(1,J177) -> 1 | AO177: Headrest: Multi-axis hardware | AP177: =IF($B177,$Y177,0) -> 0 | AR177: E1028
B178: =B175=3 -> FALSE | D178: =AND($B178,OR($F$184<>$F$177,AND($B$205,Belts!$A$318))) -> FALSE | K178: =IF(D178,"¢","") ->  | L178: Surelock headrest hardware | X178: 50218 | Y178: 233 | AA178: 233 | AD178: 233 | AK178: 0 | AM178: 0 | AN178: 1 | AO178: Headrest: Surelock hardware | AP178: 0 | AR178: E1028
B179: =B175=4 -> FALSE | D179: =AND($B179,OR($F$184<>$F$177,AND($B$205,Belts!$A$318))) -> FALSE | L179: Flip-down headrest hardware | X179: =IF($A$229,"50229","50230") -> 50230 | Y179: 255 | AA179: 255 | AD179: 255 | AK179: 0 | AM179: 0 | AN179: 1 | AO179: ="Headrest: Flip-down hardware"&IF($A$229," w/ mount for flat pad"," w/ ball mount attachment") -> Headrest: Flip-down hardware w/ ball mount attachment | AP179: 0 | AR179: E1028
B180: =B175=5 -> FALSE | D180: =AND($B180,OR($F$184<>$F$177,AND($B$205,Belts!$A$318))) -> FALSE | L180: Basic removable headrest w/short bar | Q180: Basic | U180: Vertical | X180: 50413 | Y180: 136 | AA180: 136 | AD180: 136 | AK180: 0 | AM180: 0 | AN180: 1 | AO180: Headrest: Basic removable hardware w/ short bar | AP180: 0 | AR180: E1028
B181: =B175=6 -> FALSE | D181: =AND($B181,OR($F$184<>$F$177,AND($B$205,Belts!$A$318))) -> FALSE | L181: Basic removable headrest w/long bar | X181: 50414 | Y181: 136 | AA181: 136 | AD181: 136 | AK181: 0 | AM181: 0 | AN181: 1 | AO181: Headrest: Basic removable hardware w/ long bar | AP181: 0 | AR181: E1028
B182: =B175=7 -> FALSE | D182: =AND($B182,OR($F$184<>$F$177,AND($B$205,Belts!$A$318))) -> FALSE | L182: Vertical headrest hardware | X182: 50476 | Y182: 72 | AA182: 72 | AD182: 72 | AK182: 0 | AM182: 0 | AN182: 1 | AO182: Headrest: Vertical mounting hardware | AP182: 0 | AR182: E1028
B183: 1 | AK183: =AK182 -> 0 | AV183: 0 | AW183: 0
A184: =$F$184>0 -> FALSE | B184: =B183=1 -> TRUE | D184: =AND($F$184=0,$F$177>0) -> FALSE | F184: =COUNTIF(B186:B205,TRUE)+COUNTIF(B214:B232,TRUE) -> 0 | J184: =IF(D184,"¢","") ->  | K184: No Headrest Pads | AJ184: =IFERROR(VLOOKUP($AK183+1,$AK185:$AP232,1,FALSE),AK183) -> 0 | AL184: =IFERROR(VLOOKUP($AK183+1,$AK185:$AP232,2,FALSE),"") ->  | AM184: =IFERROR(VLOOKUP($AK183+1,$AK185:$AQ232,7,FALSE),"") ->  | AN184: =IFERROR(VLOOKUP($AK183+1,$AK185:$AP232,4,FALSE),"") ->  | AO184: =IFERROR(VLOOKUP($AK183+1,$AK185:$AS232,9,FALSE),"") ->  | AP184: Price | AQ184: Part# for Diagram | AS184: Desc for Diagram
A185: =COUNTIF(B186:B188,TRUE)>0 -> FALSE | D185: =OR(AND($F$184=0,CHOOSE($B$175,FALSE,TRUE,TRUE,TRUE,TRUE,TRUE,TRUE)),AND($F$177=0,$A185)) -> FALSE | K185: Smooth Soft Pad Headrests | X185: Item # | Y185: ='Pick List'!$L$2 -> Ext Retail | AA185: Retail | AD185: Used | AK185: =IF(AM185=0,AK183,AK183+1) -> 0
B186: =B183=2 -> FALSE | D186: =AND($B186,$F$177<>$F$184) -> FALSE | K186: =IF(D186,"¢","") ->  | L186: Sm 5H x 8L with smooth cover | X186: 50365 | Y186: =MAX(J186,1)*AD186 -> 147 | AA186: 147 | AD186: =CHOOSE($K$2,AA186,$P$5*AA186,$P$6*AA186) -> 147 | AK186: =IF(AM186=0,AK185,AK185+1) -> 0 | AL186: =IF(D186,$AA$174,"") ->  | AM186: =IF($B186,$X186,0) -> 0 | AN186: =MAX(1,J186) -> 1 | AO186: Headrest: Soft Pad, Small 5-1/2H x 8L w/ smooth cover | AP186: =IF($B186,$Y186,0) -> 0 | AQ186: =IF($B186,$X186,0) -> 0 | AR186: E0955 | AS186: Headrest: Soft Pad, Small 5-1/2H x 8L w/ smooth cover | AT186: =AK186 -> 0 | AU186: COMT | AV186: =AM186 -> 0 | AW186: 1 | AX186: =SUBSTITUTE(SUBSTITUTE(AO186,quote," in."),comma," -") -> Headrest: Soft Pad - Small 5-1/2H x 8L w/ smooth cover
B187: =B183=3 -> FALSE | D187: =AND($B187,$F$177<>$F$184) -> FALSE | K187: =IF(D187,"¢","") ->  | L187: Med 5H x 10L with smooth cover | X187: 50366 | Y187: =MAX(J187,1)*AD187 -> 147 | AA187: 147 | AD187: =CHOOSE($K$2,AA187,$P$5*AA187,$P$6*AA187) -> 147 | AK187: =IF(AM187=0,AK186,AK186+1) -> 0 | AL187: =IF(D187,$AA$174,"") ->  | AM187: =IF($B187,$X187,0) -> 0 | AN187: =MAX(1,J187) -> 1 | AO187: Headrest: Soft Pad, Med 5-1/2H x 10L w/ smooth cover | AP187: =IF($B187,$Y187,0) -> 0 | AQ187: =IF($B187,$X187,0) -> 0 | AR187: E0955 | AS187: Headrest: Soft Pad, Med 5-1/2H x 10L w/ smooth cover | AT187: =AK187 -> 0 | AU187: COMT | AV187: 0 | AW187: 1 | AX187: =SUBSTITUTE(SUBSTITUTE(AO187,quote," in."),comma," -") -> Headrest: Soft Pad - Med 5-1/2H x 10L w/ smooth cover
B188: =B183=4 -> FALSE | D188: =AND($B188,$F$177<>$F$184) -> FALSE | L188: Lg 5H x 14L with smooth cover | X188: 50367 | Y188: =MAX(J188,1)*AD188 -> 147 | AA188: 147 | AD188: =CHOOSE($K$2,AA188,$P$5*AA188,$P$6*AA188) -> 147 | AK188: =IF(AM188=0,AK187,AK187+1) -> 0 | AL188: =IF(D188,$AA$174,"") ->  | AM188: =IF($B188,$X188,0) -> 0 | AN188: =MAX(1,J188) -> 1 | AO188: Headrest: Soft Pad, Large 5-1/2H x 14L w/ smooth cover | AP188: =IF($B188,$Y188,0) -> 0 | AQ188: =IF($B188,$X188,0) -> 0 | AR188: E0955 | AS188: Headrest: Soft Pad, Large 5-1/2H x 14L w/ smooth cover | AT188: =AK188 -> 0 | AU188: COMT | AV188: 0 | AW188: 1 | AX188: =SUBSTITUTE(SUBSTITUTE(AO188,quote," in."),comma," -") -> Headrest: Soft Pad - Large 5-1/2H x 14L w/ smooth cover
A190: =COUNTIF(B191:B194,TRUE)>0 -> FALSE | D190: =OR(AND($F$184=0,CHOOSE($B$175,FALSE,TRUE,TRUE,FALSE,FALSE,FALSE,FALSE)),AND($F$177=0,$A190)) -> FALSE | K190: ProFit Headrests | O190: =CHOOSE($B$175,"","","","Not intended for Flipdown Hardware","Not intended for Basic Hardware","Not intended for Basic Hardware","Not intended for Vertical Hardware") ->  | X190: Item # | Y190: ='Pick List'!$L$2 -> Ext Retail | AA190: Retail | AD190: Used | AK190: =AK188 -> 0
B191: =B183=19 -> FALSE | D191: =AND($B191,OR($F$177<>$F$184,$B$175>3)) -> FALSE | K191: =IF(D191,"¢","") ->  | L191: Small 3.25 x 7 to 11 with knit cover | X191: 50363 | Y191: =MAX(J191,1)*AD191 -> 285 | AA191: 285 | AD191: =CHOOSE($K$2,AA191,$P$5*AA191,$P$6*AA191) -> 285 | AK191: =IF(AM191=0,AK190,AK190+1) -> 0 | AL191: =IF(D191,$AA$174,"") ->  | AM191: =IF($B191,$X191,0) -> 0 | AN191: =MAX(1,J191) -> 1 | AO191: Headrest: ProFit, Small 3.25 x 7 - 11 w/ knit cover | AP191: =IF($B191,$Y191,0) -> 0 | AQ191: =IF($B191,$X191,0) -> 0 | AR191: E0955 | AS191: Headrest: ProFit, Small 3.25 x 7 - 11 w/ knit cover | AT191: =AK191 -> 0 | AU191: COMT | AV191: =AM191 -> 0 | AW191: =AN191 -> 1 | AX191: =SUBSTITUTE(SUBSTITUTE(AO191,quote," in."),comma," -") -> Headrest: ProFit - Small 3.25 x 7 - 11 w/ knit cover
B192: =B$183=20 -> FALSE | D192: =AND($B192,OR($F$177<>$F$184,$B$175>3)) -> FALSE | L192: Large 5.25 x 8 to 16 with knit cover | X192: 50361 | Y192: =MAX(J192,1)*AD192 -> 285 | AA192: 285 | AD192: =CHOOSE($K$2,AA192,$P$5*AA192,$P$6*AA192) -> 285 | AK192: =IF(AM192=0,AK191,AK191+1) -> 0 | AL192: =IF(D192,$AA$174,"") ->  | AM192: =IF($B192,$X192,0) -> 0 | AN192: =MAX(1,J192) -> 1 | AO192: Headrest: ProFit, Large 5.25 x 8 - 16 w/ knit cover | AP192: =IF($B192,$Y192,0) -> 0 | AQ192: =IF($B192,$X192,0) -> 0 | AR192: E0955 | AS192: Headrest: ProFit, Large 5.25 x 8 - 16 w/ knit cover | AT192: =AK192 -> 0 | AU192: COMT | AV192: 0 | AW192: 1 | AX192: =SUBSTITUTE(SUBSTITUTE(AO192,quote," in."),comma," -") -> Headrest: ProFit - Large 5.25 x 8 - 16 w/ knit cover
B193: =B$183=17 -> FALSE | D193: =AND($B193,OR($F$177<>$F$184,$B$175>3)) -> FALSE | L193: Small 3.25 x 7 to 11 with smooth cover | X193: 50368 | Y193: =MAX(J193,1)*AD193 -> 285 | AA193: 285 | AD193: =CHOOSE($K$2,AA193,$P$5*AA193,$P$6*AA193) -> 285 | AK193: =IF(AM193=0,AK192,AK192+1) -> 0 | AL193: =IF(D193,$AA$174,"") ->  | AM193: =IF($B193,$X193,0) -> 0 | AN193: =MAX(1,J193) -> 1 | AO193: Headrest: ProFit, Small 3.25 x 7 - 11 w/ smooth cover | AP193: =IF($B193,$Y193,0) -> 0 | AQ193: =IF($B193,$X193,0) -> 0 | AR193: E0955 | AS193: Headrest: ProFit, Large 5.25 x 8 - 16 w/ knit cover | AT193: =AK193 -> 0 | AU193: COMT | AV193: =AM193 -> 0 | AW193: =AN193 -> 1 | AX193: =SUBSTITUTE(SUBSTITUTE(AO193,quote," in."),comma," -") -> Headrest: ProFit - Small 3.25 x 7 - 11 w/ smooth cover
B194: =B$183=18 -> FALSE | D194: =AND($B194,OR($F$177<>$F$184,$B$175>3)) -> FALSE | L194: Large 5.25 x 8 to 16 with smooth cover | X194: 50369 | Y194: =MAX(J194,1)*AD194 -> 285 | AA194: 285 | AD194: =CHOOSE($K$2,AA194,$P$5*AA194,$P$6*AA194) -> 285 | AK194: =IF(AM194=0,AK193,AK193+1) -> 0 | AL194: =IF(D194,$AA$174,"") ->  | AM194: =IF($B194,$X194,0) -> 0 | AN194: =MAX(1,J194) -> 1 | AO194: Headrest: ProFit, Large 5.25 x 8 - 16 w/ smooth cover | AP194: =IF($B194,$Y194,0) -> 0 | AQ194: =IF($B194,$X194,0) -> 0 | AR194: E0955 | AS194: Headrest: ProFit, Large 5.25 x 8 - 16 w/ knit cover | AT194: =AK194 -> 0 | AU194: COMT | AV194: 0 | AW194: 1 | AX194: =SUBSTITUTE(SUBSTITUTE(AO194,quote," in."),comma," -") -> Headrest: ProFit - Large 5.25 x 8 - 16 w/ smooth cover
A196: =COUNTIF(B197:B205,TRUE)>0 -> FALSE | D196: =OR(AND($F$184=0,CHOOSE($B$175,FALSE,TRUE,TRUE,FALSE,FALSE,FALSE,FALSE)),AND($F$177=0,$A196)) -> FALSE | K196: Tri-Form Headrest Pads | O196: =CHOOSE($B$175,"","","","Not intended for Flipdown Hardware","Not intended for Basic Hardware","Not intended for Basic Hardware","Not intended for Vertical Hardware") ->  | X196: Item # | Y196: ='Pick List'!$L$2 -> Ext Retail
B197: =B183=5 -> FALSE | D197: =OR(AND($B197,$F$177<>$F$184),AND($B197,$B$175>3)) -> FALSE | K197: =IF(D197,"¢","") ->  | L197: Tri-Form with straight sides (consists of 3 items below) | X197: =X198&IF(X199<>" ","+"&X199,"")&IF(X200<>" ","+"&X200,"") -> 32414R+32414C+32414L | Y197: =MAX($J$197,1)*AD197 -> 508 | AA197: =SUM(AA198:AA200) -> 508 | AD197: =CHOOSE($K$2,AA197,$P$5*AA197,$P$6*AA197) -> 508 | AK197: =AK194 -> 0 | AV197: =AM197 -> 0 | AW197: 0 | AX197: =SUBSTITUTE(SUBSTITUTE(AO197,quote," in."),comma," -") -> 
L198: Straight right pad | X198: 32414R | Y198: =MAX($J$197,1)*AD198 -> 144 | AA198: 144 | AD198: 144 | AK198: =IF(AM198=0,AK197,AK197+1) -> 0 | AL198: =IF($D$197,$AA$174,"") ->  | AM198: =IF($B$197,X198,0) -> 0 | AN198: =MAX(1,$J$197) -> 1 | AO198: Tri-Form Headrest: Straight right side | AP198: =IF($B$197,$Y198,0) -> 0 | AQ198: =IF($B$197,$X$197,0) -> 0 | AR198: K0108 | AS198: Headrest: Tri-Form w/ straight sides | AT198: =AK198 -> 0 | AU198: =IF($B$197,"HEAD","COMT") -> COMT | AV198: =AM198&".00" -> 0.00 | AW198: 1 | AX198: =SUBSTITUTE(SUBSTITUTE(AO198,quote," in."),comma," -") -> Tri-Form Headrest: Straight right side | AZ198: 32414
L199: Contoured center Pad | X199: 32414C | Y199: =MAX($J$197,1)*AD199 -> 220 | AA199: 220 | AD199: 220 | AK199: =IF(AM199=0,AK198,AK198+1) -> 0 | AL199: =IF($D$197,$AA$174,"") ->  | AM199: =IF($B$197,X199,0) -> 0 | AN199: =MAX(1,$J$197) -> 1 | AO199: Tri-Form Headrest: Contoured center pad | AP199: =IF($B$197,$Y199,0) -> 0 | AQ199: =IF($B$197,$X$197,0) -> 0 | AR199: E0955 | AS199: Headrest: Tri-Form w/ straight sides | AT199: =AK199 -> 0 | AU199: =IF(AT199>AT198,IF(AU198="COMT","HEAD","HEADM"),AU198) -> COMT | AV199: =AM199&".00" -> 0.00 | AW199: 1 | AX199: =SUBSTITUTE(SUBSTITUTE(AO199,quote," in."),comma," -") -> Tri-Form Headrest: Contoured center pad | AZ199: 32414
L200: Straight left pad | X200: 32414L | Y200: =MAX($J$197,1)*AD200 -> 144 | AA200: 144 | AD200: 144 | AK200: =IF(AM200=0,AK199,AK199+1) -> 0 | AL200: =IF($D$197,$AA$174,"") ->  | AM200: =IF($B$197,X200,0) -> 0 | AN200: =MAX(1,$J$197) -> 1 | AO200: Tri-Form Headrest: Straight left side | AP200: =IF($B$197,$Y200,0) -> 0 | AQ200: =IF($B$197,$X$197,0) -> 0 | AR200: K0108 | AS200: Headrest: Tri-Form w/ straight sides | AT200: =AK200 -> 0 | AU200: =IF(AT200>AT199,IF(AU199="COMT","HEAD","HEADM"),AU199) -> COMT | AV200: =AM200&".00" -> 0.00 | AW200: 1 | AX200: =SUBSTITUTE(SUBSTITUTE(AO200,quote," in."),comma," -") -> Tri-Form Headrest: Straight left side | AZ200: 32414
B201: =B183=6 -> FALSE | D201: =OR(AND($B201,$F$177<>$F$184),AND($B201,$B$175>3)) -> FALSE | K201: =IF(D201,"¢","") ->  | L201: Tri-Form with curved sides (consists of 3 items below) | X201: =X202&IF(X203<>" ","+"&X203,"")&IF(X204<>" ","+"&X204,"") -> 32458R+32458C+32458L | Y201: =MAX($J$201,1)*AD201 -> 590 | AA201: =SUM(AA202:AA204) -> 590 | AD201: 590 | AK201: =AK200 -> 0
L202: Curved right pad | X202: 32458R | Y202: =MAX($J$201,1)*AD202 -> 185 | AA202: 185 | AD202: 185 | AK202: =IF(AM202=0,AK201,AK201+1) -> 0 | AL202: =IF($D$201,$AA$174,"") ->  | AM202: =IF($B$201,X202,0) -> 0 | AN202: =MAX(1,$J$201) -> 1 | AO202: Tri-Form Headrest: Curved right side | AP202: =IF($B$201,$Y202,0) -> 0 | AQ202: =IF($B$201,$X$201,0) -> 0 | AR202: K0108 | AS202: Headrest: Tri-Form w/ curved sides | AT202: =AK202 -> 0 | AU202: =IF($B$201,"HEAD","COMT") -> COMT | AV202: =AM202&".00" -> 0.00 | AW202: =AN202 -> 1 | AX202: =SUBSTITUTE(SUBSTITUTE(AO202,quote," in."),comma," -") -> Tri-Form Headrest: Curved right side | AZ202: 32458
L203: Contoured center pad | X203: 32458C | Y203: =MAX($J$201,1)*AD203 -> 220 | AA203: 220 | AD203: 220 | AK203: =IF(AM203=0,AK202,AK202+1) -> 0 | AL203: =IF($D$201,$AA$174,"") ->  | AM203: =IF($B$201,X203,0) -> 0 | AN203: =MAX(1,$J$201) -> 1 | AO203: Tri-Form Headrest: Contoured center pad | AP203: =IF($B$201,$Y203,0) -> 0 | AQ203: =IF($B$201,$X$201,0) -> 0 | AR203: E0955 | AS203: Headrest: Tri-Form w/ curved sides | AT203: =AK203 -> 0 | AU203: =IF(AT203>AT202,IF(AU202="COMT","HEAD","HEADM"),AU202) -> COMT | AV203: =AM203&".00" -> 0.00 | AW203: =AN203 -> 1 | AX203: =SUBSTITUTE(SUBSTITUTE(AO203,quote," in."),comma," -") -> Tri-Form Headrest: Contoured center pad | AZ203: 32458
L204: Curved left pad | X204: 32458L | Y204: =MAX($J$201,1)*AD204 -> 185 | AA204: 185 | AD204: 185 | AK204: =IF(AM204=0,AK203,AK203+1) -> 0 | AL204: =IF($D$201,$AA$174,"") ->  | AM204: =IF($B$201,X204,0) -> 0 | AN204: =MAX(1,$J$201) -> 1 | AO204: Tri-Form Headrest: Curved left side | AP204: =IF($B$201,$Y204,0) -> 0 | AQ204: =IF($B$201,$X$201,0) -> 0 | AR204: K0108 | AS204: Headrest: Tri-Form w/ curved sides | AT204: =AK204 -> 0 | AU204: =IF(AT204>AT203,IF(AU203="COMT","HEAD","HEADM"),AU203) -> COMT | AV204: =AM204&".00" -> 0.00 | AW204: =AN204 -> 1 | AX204: =SUBSTITUTE(SUBSTITUTE(AO204,quote," in."),comma," -") -> Tri-Form Headrest: Curved left side | AZ204: 32458
B205: =B183=7 -> FALSE | D205: =OR(AND($B205,$F$177<>$F$184),AND($B205,$B$175>3),D207,D208,D209,AND($B205,Belts!$A$318)) -> FALSE | K205: =IF(D205,"¢","") ->  | L205: Custom Tri-Form | O205: (choose pads & enter dimensions for custom sized pads) | X205: =X207&IF(X208<>" ","+"&X208,"")&IF(X209<>" ","+"&X209,"") -> 50373R+50373C+50373L | Y205: =MAX(J205,1)*AD205 -> 736 | AA205: =SUM(AA207:AA209) -> 736 | AD205: 736 | AK205: =AK204 -> 0
L206: Right Pad | O206: Center Pad | R206: Left Pad | AK206: =IF(AM206=0,AK205,AK205+1) -> 0 | AS206: ="Headrest: Custom Tri-Form pads - "&IF(N$220,"Right:"&$M$218&"W x "&$M$219&"H ","")&IF(Q$220,"Center:"&$P$218&"W x "&$P$219&"H ","")&IF(U$220,"Left:"&$T$218&"W x "&$T$219&"H","")
D207: =AND(B205,OR(AND(Belts!B321,NOT(N212)),AND(Belts!$A$321,NOT(Belts!$A$327)),$F$177<>$F$184,$B$175>3,D210,D211)) -> FALSE | X207: =Belts!F321 -> 50373R | Y207: =MAX($J$205,1)*AD207 -> 258 | AA207: =Belts!G321 -> 258 | AD207: =CHOOSE($K$2,AA207,$P$5*AA207,$P$6*AA207) -> 258 | AK207: 0 | AL207: =IF($D207,$AA$174,"") ->  | AM207: =IF(AND($B$205,Belts!A321),X207,0) -> 0 | AN207: =MAX(1,$J$205) -> 1 | AO207: ="Tri-Form Headrest: "&Belts!E321 -> Tri-Form Headrest: Right side WxH | AP207: =IF($B$205,$Y207,0) -> 0 | AQ207: =IF($B$205,$X$205,0) -> 0 | AR207: K0108 | AS207: ="Tri-Form: "&Belts!I$321&", "&Belts!I$327&", "&Belts!I$332 -> Tri-Form: Right WxH, Center WxH, Left WxH | AT207: =AK207 -> 0 | AU207: =IF(AND($B$205,Belts!A321),"HEAD","COMT") -> COMT | AV207: =AM207&".00" -> 0.00 | AW207: =AN207 -> 1 | AX207: =SUBSTITUTE(SUBSTITUTE(AO207,quote," in."),comma," -") -> Tri-Form Headrest: Right side WxH | AZ207: 50373 | BA207: =IF(Belts!$B$321,$M$208,0) -> 0 | BB207: =IF(Belts!$B$321,$M$209,0) -> 0
... 354 more rows

Sheet Diagram
F2: =Design!$L$5&" "&Design!$E$5&IF(ISTEXT(Design!$S$5)," RTS: "&Design!$S$5,"")&IF(NOT(ISBLANK(Design!$O$5))," PO: "&Design!$O$5,"")&" "&TEXT(NOW(),"MM/DD/YY HH:MM")&IF(LEN(Orderno)>0," Ref: "&Orderno,"")&IF(LEN(Form!$F$6)>0," Order: "&Form!$F$6,"")&" "&CSR&" TSA "&Revdate -> 01/20/22 13:53 TSA 5.1 1/20/22
T3: =IF(ISBLANK(Design!$E$7),"","Mark For: "&Design!$E$7)&IF('Pick List'!$B$15," "&'Pick List'!$J$15,"") -> 
E4: =Form!AA1 ->  | U4: =Design!$E$11 -> 0
A5: =AND('Pick List'!$B$16,OR('Pick List'!$B$19,'Pick List'!$B$47)) -> FALSE | C5: =IF(A5,"[_] Contact: "&Pads!$J$36,"") ->  | T5: ='Pick List'!$AL$176 ->  | U5: ='Pick List'!AO176 -> 
A6: =AND('Pick List'!$B$17,OR('Pick List'!$B$19,'Pick List'!$B$47)) -> FALSE | C6: =IF(A6,"[_] Non-contact: "&Pads!$Q$36,"") ->  | H6: =IF(NOT('Pick List'!$B$176),'Pick List'!$AM176&" hdw","") ->  | T6: ='Pick List'!$AL$184 ->  | U6: ='Pick List'!AO184&IF(AND('Pick List'!$B205,'Pick List'!$B210,Pads!$K$21<>"Standard"),", CS="&Pads!$J$21,"")&IF(AND('Pick List'!$B205,'Pick List'!$B211,Pads!$R$21<>"Standard"),", NC="&Pads!$Q$21,"") -> 
A7: =AND('Pick List'!$B$47,'Pick List'!C62=2,OR('Pick List'!$B$19,'Pick List'!$B$47)) -> FALSE | C7: =IF(A7,"[_] Back Zipper on Bottom","") ->  | H7: =IF(NOT('Pick List'!$B$184),'Pick List'!$AM184&" pads","") ->  | U7: =IF('Pick List'!$B$304,"Strap positioning guides","") -> 
T8: ='Pick List'!$AL$47 ->  | U8: ='Pick List'!AO47 -> 
C9: Back Layers of Foam | J9: =IF('Pick List'!$B$304," "&'Pick List'!$AM$304&" strap guides","") ->  | T9: ='Pick List'!$AL48 ->  | U9: ='Pick List'!AO48&IF(AND('Pick List'!$B$47,'Pick List'!$B$70)," + extra cover","") -> 
C10: =IF('Pick List'!AO53="","",RIGHT('Pick List'!AO53,LEN('Pick List'!AO53)-SEARCH("-",'Pick List'!AO53)-1)) ->  | T10: ='Pick List'!$AL49 ->  | U10: ='Pick List'!AO49 -> 
C11: =IF('Pick List'!AO54="","",RIGHT('Pick List'!AO54,LEN('Pick List'!AO54)-SEARCH("-",'Pick List'!AO54)-1)) ->  | H11: =IF('Pick List'!$B$47,'Pick List'!$AM47&" Back","") ->  | M11: =IF('Pick List'!$B$51," "&Design!$O$55&""" W x "&Design!$P$56&""" H","") ->  | T11: ='Pick List'!$AL50 ->  | U11: ='Pick List'!AO50 -> 
C12: =IF('Pick List'!AO55="","",RIGHT('Pick List'!AO55,LEN('Pick List'!AO55)-SEARCH("-",'Pick List'!AO55)-1)) ->  | H12: =IF('Pick List'!$B$47,Design!$AR$125,"") ->  | T12: ='Pick List'!$AL51 ->  | U12: ='Pick List'!AO51 -> 
H13: =IF('Pick List'!$B$47,IF('Pick List'!$B$84,"No hdw",IF('Pick List'!$B$85,"No hdw",'Pick List'!$AM83&IF('Pick List'!$AM$83="",""," hdw"))),"") ->  | M13: =IF('Pick List'!$B$237," "&'Pick List'!$AM$238&" sleeves","") ->  | T13: ='Pick List'!$AL52 ->  | U13: ='Pick List'!AO52 -> 
E14: =IF(AND(AssemblyCode<>1,'Pick List'!$B$238<>1,BACKSHAPE<>1),IF(BackChannel=1,"Pad top "&PadTop&""" above seat","Install on channels"&IF(PadTop>0,", top="&PadTop,"")),IF(PadTop>0,"Pad top "&PadTop&""" above seat?","")) ->  | G14: =IF('Pick List'!$B$238<>1,IF('Pick List'!$AG$236>0," Chest width="&'Pick List'!$AG$236," Chest width N/A"),"") ->  | T14: =IF(ISNUMBER(SEARCH("BACK",'Pick List'!AO83)),'Pick List'!AL83,"") ->  | U14: =IF('Pick List'!$B$47,IF('Pick List'!$B$84,"No back attaching hardware selected",'Pick List'!AO83),"") -> 
F15: =IF('Pick List'!$A$250,"CLEARANCE?","") ->  | G15: =IF(AND('Pick List'!$B$47,Design!$AB$15>1),INDEX(Design!$AC$29:$AC$31,Design!$AB$15),"") ->  | O15: =IF(LEN('Pick List'!$AM234)>1,'Pick List'!$AM234,"")&IF(AND(LEN('Pick List'!$AM234)>1,LEN('Pick List'!$AM235)>1),"+","")&'Pick List'!$AM235 ->  | T15: =IF(LEN('Pick List'!$AM234)>1,'Pick List'!$AL$234,"")&IF(LEN('Pick List'!$AM235)>1,'Pick List'!$AL$235,"") ->  | U15: =IF(OR(LEN('Pick List'!$AM234)>1,LEN('Pick List'!$AM235)>1),"LTS: ","")&IF(LEN('Pick List'!$AM234)>1,SUBSTITUTE('Pick List'!AO234,"LTS: ",""),"")&IF(AND(LEN('Pick List'!$AM234)>1,LEN('Pick List'!$AM235)>1)," + ","")&SUBSTITUTE('Pick List'!AO235,"LTS: ","") -> 
G16: =IF(AND('Pick List'!$B$47,'Pick List'!$B$70),'Pick List'!$J$70,"") ->  | O16: =IF(LEN('Pick List'!$AM236)>1,'Pick List'!$AM236,"")&IF(AND(LEN('Pick List'!$AM236)>1,LEN('Pick List'!$AM237)>1),"+","")&'Pick List'!$AM237 ->  | T16: =IF(LEN('Pick List'!$AM236)>1,'Pick List'!$AL$236,"")&IF(LEN('Pick List'!$AM237)>1,'Pick List'!$AL$237,"") ->  | U16: =IF(OR(LEN('Pick List'!$AM236)>1,LEN('Pick List'!$AM237)>1),"LTS: ","")&IF(LEN('Pick List'!$AM236)>1,SUBSTITUTE('Pick List'!AO236,"LTS: ",""),"")&IF(AND(LEN('Pick List'!$AM236)>1,LEN('Pick List'!$AM237)>1)," + ","")&SUBSTITUTE('Pick List'!AO237,"LTS: ","") -> 
F17: =IF('Pick List'!$B$543<>1,"Total arms="&ARMSVAR&" ","") ->  | O17: =IF('Pick List'!$AM$272="","",'Pick List'!$AM272&" pad"&IF('Pick List'!$B282,"+mods","")) ->  | T17: =IF('Pick List'!$F$272>0,'Pick List'!$AL$272&'Pick List'!$AL$284&'Pick List'!$AL$285,"") ->  | U17: =IF('Pick List'!$F$272>0,'Pick List'!AO272&IF(AND('Pick List'!$B284,Pads!$K$2<>"Standard"),", CS="&Pads!$J$2,"")&IF(AND('Pick List'!$B285,Pads!$R$2<>"Standard"),", NC="&Pads!$Q$2,""),"") -> 
H18: ='Pick List'!$AM307&IF('Pick List'!$B$305,"+"&'Pick List'!$AM$305,"") ->  | O18: =IF('Pick List'!$B$299," + Combo Lateral","") ->  | T18: ='Pick List'!$AL$307&'Pick List'!$AL$305 ->  | U18: ='Pick List'!AO307&IF('Pick List'!$B$305," w/ TheraSleeves "&'Pick List'!$AM$305,"") -> 
G19: =IF(AND('Pick List'!$B$47,'Pick List'!$B$63),"Lumbar Support","") ->  | O19: =IF('Pick List'!$E$549,'Pick List'!$AM544&" Tray","") ->  | T19: ='Pick List'!$AL$544 ->  | U19: ='Pick List'!AO544 -> 
C20: =IF('Pick List'!$E$63>0,"Other Back Mods:","") ->  | O20: ='Pick List'!$AM556 -> 0 | T20: ='Pick List'!$AL556 ->  | U20: =IF('Pick List'!$B$556,'Pick List'!AO556,"") -> 
C21: =IF(AND('Pick List'!$B$47,'Pick List'!$B63),"[_] "&RIGHT('Pick List'!AO63,LEN('Pick List'!AO63)-SEARCH(":",'Pick List'!AO63)-1),"") ->  | O21: ='Pick List'!$AM557 -> 0 | T21: ='Pick List'!$AL557 ->  | U21: =IF('Pick List'!$B557,'Pick List'!AO557,"") -> 
C22: =IF(AND('Pick List'!$B$47,'Pick List'!$B64),"[_] "&RIGHT('Pick List'!AO64,LEN('Pick List'!AO64)-SEARCH(":",'Pick List'!AO64)-1),"") ->  | L22: =IF(AND('Pick List'!$B$47,Design!$AB$48),"- - - - - - Biangular Back- - - - - - ","") ->  | O22: =IF('Pick List'!$B$558,'Pick List'!$AM558,"")&IF(AND('Pick List'!$B$558,'Pick List'!$B$559),"+","")&IF('Pick List'!$B$559,'Pick List'!$AM559,"") ->  | T22: ='Pick List'!$AL558&IF('Pick List'!$B$559,'Pick List'!AL559,"") ->  | U22: ='Pick List'!AO558&IF(AND('Pick List'!$B$558,'Pick List'!$B$559)," plus ","")&IF('Pick List'!$B$559,'Pick List'!AO559,"") -> 
C23: =IF(AND('Pick List'!$B$47,'Pick List'!$B66),"[_] "&RIGHT('Pick List'!AO66,LEN('Pick List'!AO66)-SEARCH(":",'Pick List'!AO66)-1),"") ->  | H23: =IF(BACKLBW>0,"Back LBW="&BACKLBW&quote,"") ->  | O23: =IF('Pick List'!$B$561,'Pick List'!$AM561&" Overlay","") ->  | T23: ='Pick List'!$AL561 ->  | U23: ='Pick List'!AO561 -> 
C24: =IF(AND('Pick List'!$B$47,'Pick List'!$B67),"[_] "&RIGHT('Pick List'!AO67,LEN('Pick List'!AO67)-SEARCH(":",'Pick List'!AO67)-1),"") ->  | G24: =IF(MINBCO>0,"BCO to clear pads="&MINBCO&quote,"") ->  | O24: ='Pick List'!$AM560 -> 0 | T24: ='Pick List'!$AL560 ->  | U24: ='Pick List'!AO560 -> 
C25: =IF('Pick List'!$B69,"[_] "&RIGHT('Pick List'!AO69,LEN('Pick List'!AO69)-SEARCH(":",'Pick List'!AO69)-1),"") ->  | O25: ='Pick List'!$AM562 -> 0 | T25: ='Pick List'!$AL562 ->  | U25: ='Pick List'!AO562 -> 
G26: =IF(AND('Pick List'!$B$47,'Pick List'!$B$68),IF('Pick List'!$AN$68>1,'Pick List'!$AN$68&"@ ","")&'Pick List'!$AM68&" spreader bar","") ->  | M26: =IF('Pick List'!$B$83," Seat-to-back Hinge","") ->  | T26: ='Pick List'!AL68 ->  | U26: ='Pick List'!AO68 -> 
O28: =IF('Pick List'!$AM377="","",'Pick List'!$AM377&" belt") ->  | T28: ='Pick List'!AL377 ->  | U28: ='Pick List'!AO377 -> 
A29: =AND('Pick List'!$B$60,'Pick List'!$B$47) -> FALSE | C29: =IF(A29,"[_] Contact: "&Pads!$H$52,"") ->  | O29: =IF(AND('Pick List'!$B$375,'Pick List'!$AM$375<>"",'Pick List'!$AM$375<>"Warning"),'Pick List'!$AM$375&" sleeves","") ->  | T29: ='Pick List'!AL375 ->  | U29: ='Pick List'!AO375 -> 
A30: =AND('Pick List'!$B$61,'Pick List'!$B$47) -> FALSE | C30: =IF(A30,"[_] Non-contact: "&Pads!$O$53,"") ->  | H30: =IF('Pick List'!$B$19,CHOOSE(Y30,""," Growth notches "&Design!$Q$14," Hidden notches "&Design!$Q$14),"") ->  | N30: =IF(NOT('Pick List'!$B$433),'Pick List'!$AM433&" bracket","") ->  | T30: ='Pick List'!AL433 ->  | U30: ='Pick List'!AO433 ->  | Y30: =Design!$AB$52 -> 1 | Z30: Growth notches choice
C31: =IF(CONTIDX=3,"Front Layers of Foam","Seat Layers of Foam") -> Seat Layers of Foam | H31: =IF('Pick List'!$B$19,'Pick List'!$AM19&" Seat","") ->  | L31: =IF(AND(Design!$AB$52<>1,'Pick List'!$B$19),Design!$R$13,"") ->  | N31: =IF(NOT('Pick List'!$B$410),'Pick List'!$AM410&" pad"&IF('Pick List'!$B$422," w/ mods",""),"") ->  | T31: =IF('Pick List'!$F$411>0,'Pick List'!AL410&'Pick List'!$AL$425&'Pick List'!$AL$426,"") ->  | U31: =IF('Pick List'!$F$411>0,SUBSTITUTE(SUBSTITUTE('Pick List'!AO410," of seat","")," pad","")&IF(AND('Pick List'!$B425,Pads!$K$3<>"Standard"),", CS="&Pads!$L$3,"")&IF(AND('Pick List'!$B426,Pads!$R$3<>"Standard"),", NC="&Pads!$S$3,""),"") -> 
A32: =IF('Pick List'!$B$19,CONTIDX,0) -> 0 | C32: =IF('Pick List'!AO25="","",RIGHT('Pick List'!AO25,LEN('Pick List'!AO25)-SEARCH("-",'Pick List'!AO25)-1)) ->  | G32: =IF('Pick List'!$B$19,Design!AR139,"") ->  | N32: =IF('Pick List'!$B$429,'Pick List'!$AM429&" armpads","") ->  | T32: ='Pick List'!AL429 ->  | U32: ='Pick List'!AO429 -> 
C33: =IF('Pick List'!AO26="","",RIGHT('Pick List'!AO26,LEN('Pick List'!AO26)-SEARCH("-",'Pick List'!AO26)-1)) ->  | G33: =IF(SEATIDX<>1,"Spec usable="&TEXT(UsableDepth,"#0.0#")&IF(Seat!$BD$2>0," Default="&ROUND(Seat!$BD$2,3),""),"") ->  | N33: =IF(AND(SEATIDX<>1,'Pick List'!$B$409<>1),IF(AssemblyCode<>1,Belts!$D$278,IF('Pick List'!$U$424>0,Belts!$D$278&"?","")),"") ->  | T33: ='Pick List'!AL19 ->  | U33: ='Pick List'!AO19 -> 
C34: =IF('Pick List'!AO27="","",RIGHT('Pick List'!AO27,LEN('Pick List'!AO27)-SEARCH("-",'Pick List'!AO27)-1)) ->  | H34: =IF('Pick List'!$B$19,IF('Pick List'!$B$84,"No hdw",IF('Pick List'!$B$85,"No hdw",'Pick List'!$AM84&IF('Pick List'!$AM$84="",""," hdw"))),"") ->  | T34: ='Pick List'!$AL20 ->  | U34: ='Pick List'!AO20&IF(AND('Pick List'!$B$19,'Pick List'!$B$44)," + extra cover","") -> 
C35: =IF('Pick List'!$B$32,OtherSeatMod,"") ->  | G35: =IF('Pick List'!$AG$433<>"N/A"," Hip width="&'Pick List'!$AG$433,"") ->  | T35: ='Pick List'!$AL21 ->  | U35: ='Pick List'!AO21 -> 
C36: =IF(AND('Pick List'!$B$19,CONTIDX=3),"Rear Layers of Foam","") ->  | G36: =IF('Pick List'!$B$31,"Seat Channels Attached","") ->  | T36: ='Pick List'!$AL22 ->  | U36: =IF(AND('Pick List'!B22,FOAMSREQD),'Pick List'!AO22,"") -> 
C37: =IF('Pick List'!AO28="","",RIGHT('Pick List'!AO28,LEN('Pick List'!AO28)-SEARCH("-",'Pick List'!AO28)-1)) ->  | G37: =IF(AND('Pick List'!$B$19,'Pick List'!$B$44),'Pick List'!$J$44,"") ->  | T37: ='Pick List'!$AL23 ->  | U37: ='Pick List'!AO23 -> 
C38: =IF('Pick List'!AO29="","",RIGHT('Pick List'!AO29,LEN('Pick List'!AO29)-SEARCH("-",'Pick List'!AO29)-1)) ->  | G38: =IF('Pick List'!$B$24,"Oversized Dimensions","") ->  | T38: =IF(ISNUMBER(SEARCH("SEAT",'Pick List'!AO83)),'Pick List'!AL83,'Pick List'!AL84) ->  | U38: =IF('Pick List'!$B$19,IF('Pick List'!$B$84,"No seat attaching hardware selected",IF(LEFT('Pick List'!AO83,4)="SEAT",'Pick List'!AO83,'Pick List'!AO84)),"") ->  | Y38: =Design!$AB$54 -> FALSE | Z38: Right shortened
C39: =IF('Pick List'!AO30="","",RIGHT('Pick List'!AO30,LEN('Pick List'!AO30)-SEARCH("-",'Pick List'!AO30)-1)) ->  | G39: =Design!$S$20 ->  | K39: =Design!$U$20 ->  | Y39: =Design!$AB$55 -> FALSE | Z39: Left shortened
H40: =Design!$Q$21 -> 1 | I40: =IF(AND('Pick List'!$B$19,Design!$AB$50),"T-nuts","") ->  | K40: =Design!$W$21 -> 1 | N40: =IF(NOT('Pick List'!$B$479),'Pick List'!$AM479&" bracket","") ->  | T40: ='Pick List'!AL479 ->  | U40: ='Pick List'!AO479 ->  | Y40: =SEATIDX -> 1 | Z40: If > 1 then a seat was selected
G41: =IF(AND('Pick List'!$B$19,'Pick List'!$B$39),'Pick List'!$BV$38,"") ->  | N41: =IF(NOT('Pick List'!$B$464),'Pick List'!$AM464&" pad"&IF('Pick List'!$B$472," w/ mods",""),"") ->  | T41: =IF('Pick List'!$F$465>0,'Pick List'!AL464&'Pick List'!$AL$474&'Pick List'!$AL$475,"") ->  | U41: =IF('Pick List'!$F$465>0,'Pick List'!AO464&IF(AND('Pick List'!$B474,Pads!$K$4<>"Standard"),", CS="&Pads!$J$4,"")&IF(AND('Pick List'!$B475,Pads!$R$4<>"Standard"),", NC="&Pads!$Q$4,""),"") -> 
C42: =IF('Pick List'!E35>0,"Other Seat Mods:","") ->  | H42: =Design!$S$22 ->  | K42: =Design!$U$22 ->  | Y42: =AND(BACKSHAPE=3,Design!$AB$47) -> FALSE | Z42: Scapular cutouts
C43: =IF(AND('Pick List'!$B$19,'Pick List'!$B35),"[_] "&RIGHT('Pick List'!AO35,LEN('Pick List'!AO35)-SEARCH(":",'Pick List'!AO35)-1),"") ->  | N43: =IF(NOT('Pick List'!$B$494),'Pick List'!$AM494,"") ->  | T43: ='Pick List'!AL494 ->  | U43: ='Pick List'!AO494 -> 
C44: =IF(AND('Pick List'!$B$19,'Pick List'!$B36),"[_] "&RIGHT('Pick List'!AO36,LEN('Pick List'!AO36)-SEARCH(":",'Pick List'!AO36)-1),"") ->  | H44: =IF(NOT('Pick List'!$B$458),'Pick List'!$AM458&" bracket","") ->  | N44: =IF(NOT('Pick List'!$B$501),'Pick List'!$AM501,"") ->  | T44: ='Pick List'!AL501 -> 0 | U44: ='Pick List'!AO501 -> 
B45: =IF(AND('Pick List'!$B$19,'Pick List'!$B37),'Pick List'!$AL37,"") ->  | C45: =IF(AND('Pick List'!$B$19,'Pick List'!$B37),"[_] "&'Pick List'!AO37,"") ->  | H45: =IF(NOT('Pick List'!$B$449),'Pick List'!$AM449&" abductor","") ->  | T45: ='Pick List'!AL458 ->  | U45: ='Pick List'!AO458 -> 
B46: =IF(AND('Pick List'!$B$19,'Pick List'!$B$38),'Pick List'!$AL38,"") ->  | C46: =IF(AND('Pick List'!$B$19,'Pick List'!$B38),"[_] "&RIGHT('Pick List'!AO38,LEN('Pick List'!AO38)-SEARCH(":",'Pick List'!AO38)-1),"") ->  | T46: ='Pick List'!AL449 ->  | U46: ='Pick List'!AO449 -> 
B47: =IF(AND('Pick List'!$B$19,'Pick List'!$B$39),'Pick List'!$AL39,"") ->  | C47: =IF(AND('Pick List'!$B$19,'Pick List'!$B39),"[_] "&RIGHT('Pick List'!AO39,LEN('Pick List'!AO39)-SEARCH(":",'Pick List'!AO39)-1),"") -> 
B48: =IF(AND('Pick List'!$B$19,'Pick List'!$B40),'Pick List'!$AL40,"") ->  | C48: =IF(AND('Pick List'!$B$19,'Pick List'!$B40),"[_] "&RIGHT('Pick List'!AO40,LEN('Pick List'!AO40)-SEARCH(":",'Pick List'!AO40)-1),"") -> 
C49: =IF(AND('Pick List'!$B$19,'Pick List'!$B41),"[_] "&RIGHT('Pick List'!AO41,LEN('Pick List'!AO41)-SEARCH(":",'Pick List'!AO41)-1),"") ->  | M49: ='Pick List'!$AM508&IF('Pick List'!$B$536," + "&Belts!$K$359,"")&IF('Pick List'!$B$521," + "&Belts!$K$378,"") ->  | T49: ='Pick List'!AL508 ->  | U49: ='Pick List'!AO508&IF(OR('Pick List'!$B$521,'Pick List'!$B$536)," -- with padded inserts","") -> 
C50: =IF(AND('Pick List'!$B$19,'Pick List'!$B42),"[_] "&RIGHT('Pick List'!AO42,LEN('Pick List'!AO42)-SEARCH(":",'Pick List'!AO42)-1),"") ->  | P50: =Form!$I$7&" "&'Pick List'!L565&" "&'Pick List'!L566&" "&'Pick List'!L567 -> 
C51: =IF(AND('Pick List'!$B$19,'Pick List'!$B43),"[_] "&RIGHT('Pick List'!AO43,LEN('Pick List'!AO43)-SEARCH(":",'Pick List'!AO43)-1),"") -> 
C52: ="OTHER ITEMS: "&'Pick List'!$AM$103 -> OTHER ITEMS:

Sheet Form
A1: =FALSE -> FALSE | B1: TRUE | N1: =CHOOSE($U$1,"","Basic Opt Assembly","Install on Chair","Complete Assembly","Installation Incl") ->  | Q1: =SEARCH("[",CELL("filename",T1),1)+1 -> 78 | R1: =SEARCH("]",CELL("filename",T1),1) -> 90 | S1: =R1-Q1 -> 12 | U1: 1 | V1: =INDEX(V3:V7,$U$1,1) -> Therafin Standard Assembly | X1: =INDEX(X3:X7,$U$1,1) -> 0 | Y1: =INDEX(Y3:Y7,$U$1,1) -> S | Z1: =INDEX(Z3:Z7,$U$1,1) -> 0 | AA1: =INDEX(AA3:AA7,$U$1,1)&IF(AssemblyCode<>1,IF(ISBLANK(UsableDepth)," *** Usable seat depth required on Design screen ***",". Usable seat depth = "&TEXT(UsableDepth,"#0.0#")),"") -> 
A2: =NOT(A1) -> TRUE | K2: ="FILE: "&MID(CELL("filename",T1),Q3,S3) -> FILE: TSA 5.1.xlsm | M2: Subject: | N2: =$S$5&" "&Design!$E$7&"-"&MID(CELL("filename",A1),Q3,S3) -> ORDER -TSA 5.1.xlsm
A3: =FALSE -> FALSE | I3: =" Phone: 800-843-7234 Fax: 888-479-1515 www.Therafin.com" -> Phone: 800-843-7234 Fax: 888-479-1515 www.Therafin.com | K3: ="TSA "&Revdate&IF(ISNUMBER($D$7),"-","")&TEXT(100*D7,"##")&TEXT(100*D8,"##")&IF(ISBLANK(CSR),"","-"&CSR) -> TSA 5.1 1/20/22 | M3: #1: | N3: order@therafin.com | Q3: =SEARCH("[",CELL("filename",A1),1)+1 -> 78 | R3: =SEARCH("]",CELL("filename",A1),1) -> 90 | S3: =R3-Q3 -> 12 | U3: 1 | V3: Therafin Standard Assembly | X3: 0 | Y3: S | Z3: 0
A4: =NOT(A3) -> TRUE | J4: TF#: | M4: #2: | R4: PList Title | S4: Subj Title | U4: 2 | V4: ="Basic Assembly "&IF(X4>0,"$"&X4,"") -> Basic Assembly | X4: =K75 -> 0 | Y4: B | Z4: 59900 | AA4: Basic assembly
A5: =IF($H$72>0,"End of "&LOWER($R$5)&" (Freight Included)","End of "&LOWER($R$5)) -> End of order | B5: <=msg | F5: =TEXT(NOW(),"MM/DD/YY HH:MM") -> 01/20/22 13:53 | I5: =R5 -> ORDER | K5: ORDER? | M5: #3: | Q5: =IF(S8,2,1) -> 2 | R5: =INDEX(R6:R7,$Q5,1) -> ORDER | S5: =INDEX(S6:S7,$Q5,1) -> ORDER | U5: 3 | V5: ="Installation on Chair "&IF(X5>0,"$"&X5,"") -> Installation on Chair | X5: =K76 -> 0 | Y5: C | Z5: 59901* | AA5: WC supplied
A6: for print offset | D6: Enter Disc% | I6: =Design!$L$5&" "&Design!$E$5&IF(ISTEXT(Design!$S$5)," RTS: "&Design!$S$5,"")&IF(NOT(ISBLANK(Design!$O$5))," PO#: "&Design!$O$5,"") ->  | Q6: 1 | R6: QUOTE | S6: QUOTE | U6: 4 | V6: ="Complete Assembly "&IF(X6>0,"$"&X6,"") -> Complete Assembly | X6: =K77 -> 0 | Y6: A | Z6: 59901 | AA6: Complete assembly
A7: =A10+9 -> 10 | E7: =IF(ISNUMBER(D7),"","<=Primary?") -> <=Primary? | Q7: 2 | R7: ORDER | S7: ORDER | U7: 5 | V7: Installation included | X7: =K78 -> 0 | Y7: I | Z7: 59902 | AA7: Installation included
A8: 44 | E8: =IF(ISNUMBER(D8),"","<=Secondary?") -> <=Secondary? | I8: =IF(ISBLANK(Design!$E$7),"","Mark For: "&Design!$E$7) ->  | N8: Combine attaching hdw prices w/back & seat | R8: Is this an order? | S8: TRUE | U8: ="C:\QWINT\QWinput.CSV" -> C:\QWINT\QWinput.CSV
A9: =A10-1 -> 0
A10: =MAX('Pick List'!AK14:AK567)+1 -> 1 | G10: Item | H10: Qty | I10: Description | J10: HCPCS | K10: ='Pick List'!$N$2 -> Retail | N10: Combine modifications with the back & seat | Q10: =MID(CELL("filename",A1),FIND("[",CELL("filename",A1))+1,FIND("]",CELL("filename",A1))-FIND("[",CELL("filename",A1))-1) -> TSA 5.1.xlsm | U10: ="C:\TSAINT\EX"&$F$6&".CSV" -> C:\TSAINT\EX.CSV
A11: 1 | B11: =IF($A11=$A$10,$A$5,"") -> End of order | C11: FOR | D11: =MATCH($A11,'Pick List'!$AK$14:$AK$567,0) ->  | E11: =IF($A11<$A$10,INDEX('Pick List'!$AL$14:AL$567,$D11),"") ->  | F11: =IF($A11<=($A$10-1),$A11,"") ->  | G11: =IF($A11<$A$10,INDEX('Pick List'!$AM$14:AM$567,$D11),"") ->  | H11: =IF($A11<$A$10,INDEX('Pick List'!$AN$14:AN$567,$D11),"") ->  | I11: =IF($A11<$A$10,INDEX('Pick List'!$AO$14:AO$567,$D11),B11) -> End of order | J11: =IF($A11<$A$10,INDEX('Pick List'!$AR$14:AR$567,$D11),"") ->  | K11: =IF($A11<$A$10,INDEX('Pick List'!$AP$14:$AP$567,$D11),IF(LEFT(I11,3)="End",'Pick List'!$AP$568,"")) -> 0 | U11: ="Export of "&LEFT(Q10,SEARCH(".",Q10,1)-1)&".csv"
A12: =A11+1 -> 2 | B12: =IF($A12=$A$10,$A$5,"") ->  | D12: =MATCH($A12,'Pick List'!$AK$14:$AK$567,0) ->  | E12: =IF($A12<$A$10,INDEX('Pick List'!$AL$14:AL$567,$D12),"") ->  | F12: =IF($A12<=($A$10-1),$A12,"") ->  | G12: =IF($A12<$A$10,INDEX('Pick List'!$AM$14:AM$567,$D12),"") ->  | H12: =IF($A12<$A$10,INDEX('Pick List'!$AN$14:AN$567,$D12),"") ->  | I12: =IF($A12<$A$10,INDEX('Pick List'!$AO$14:AO$567,$D12),B12) ->  | J12: =IF($A12<$A$10,INDEX('Pick List'!$AR$14:AR$567,$D12),"") ->  | K12: =IF($A12<$A$10,INDEX('Pick List'!$AP$14:$AP$567,$D12),IF(LEFT(I12,3)="End",'Pick List'!$AP$568,"")) ->  | R12: Does PO# exist? | S12: =OR(ISTEXT(Design!O5),ISNUMBER(Design!O5)) -> FALSE | U12: =CELL("filename",A1) -> C:\Users\jiml\SyncedFolder\Lefler Jim's Files (20190320 124849)\MY DATA\TSA\[TSA 5.1.xlsm]Form
A13: =A12+1 -> 3 | D13: =MATCH($A13,'Pick List'!$AK$14:$AK$567,0) ->  | E13: =IF($A13<$A$10,INDEX('Pick List'!$AL$14:AL$567,$D13),"") ->  | F13: =IF($A13<=($A$10-1),$A13,"") ->  | G13: =IF($A13<$A$10,INDEX('Pick List'!$AM$14:AM$567,$D13),"") ->  | H13: =IF($A13<$A$10,INDEX('Pick List'!$AN$14:AN$567,$D13),"") ->  | I13: =IF($A13<$A$10,INDEX('Pick List'!$AO$14:AO$567,$D13),B13) ->  | J13: =IF($A13<$A$10,INDEX('Pick List'!$AR$14:AR$567,$D13),"") ->  | K13: =IF($A13<$A$10,INDEX('Pick List'!$AP$14:$AP$567,$D13),IF(LEFT(I13,3)="End",'Pick List'!$AP$568,"")) ->  | U13: =SUBSTITUTE(SUBSTITUTE(LEFT(CELL("filename",A1),FIND("]",CELL("filename",A1))),"[",""),"]","")
A14: 4 | D14: =MATCH($A14,'Pick List'!$AK$14:$AK$567,0) ->  | E14: =IF($A14<$A$10,INDEX('Pick List'!$AL$14:AL$567,$D14),"") ->  | G14: =IF($A14<$A$10,INDEX('Pick List'!$AM$14:AM$567,$D14),"") ->  | H14: =IF($A14<$A$10,INDEX('Pick List'!$AN$14:AN$567,$D14),"") ->  | I14: =IF($A14<$A$10,INDEX('Pick List'!$AO$14:AO$567,$D14),B14) ->  | J14: =IF($A14<$A$10,INDEX('Pick List'!$AR$14:AR$567,$D14),"") ->  | K14: =IF($A14<$A$10,INDEX('Pick List'!$AP$14:$AP$567,$D14),IF(LEFT(I14,3)="End",'Pick List'!$AP$568,"")) ->  | N14: Optional text for body of email: | U14: =SUBSTITUTE(SUBSTITUTE(SUBSTITUTE(LEFT(CELL("filename",A1),FIND("]",CELL("filename",A1))),"[","Export of "),"]",""),".xls",".csv")
A15: 5 | D15: =MATCH($A15,'Pick List'!$AK$14:$AK$567,0) ->  | E15: =IF($A15<$A$10,INDEX('Pick List'!$AL$14:AL$567,$D15),"") ->  | G15: =IF($A15<$A$10,INDEX('Pick List'!$AM$14:AM$567,$D15),"") ->  | H15: =IF($A15<$A$10,INDEX('Pick List'!$AN$14:AN$567,$D15),"") ->  | I15: =IF($A15<$A$10,INDEX('Pick List'!$AO$14:AO$567,$D15),B15) ->  | J15: =IF($A15<$A$10,INDEX('Pick List'!$AR$14:AR$567,$D15),"") ->  | K15: =IF($A15<$A$10,INDEX('Pick List'!$AP$14:$AP$567,$D15),IF(LEFT(I15,3)="End",'Pick List'!$AP$568,"")) -> 
A16: 6 | D16: =MATCH($A16,'Pick List'!$AK$14:$AK$567,0) ->  | E16: =IF($A16<$A$10,INDEX('Pick List'!$AL$14:AL$567,$D16),"") ->  | G16: =IF($A16<$A$10,INDEX('Pick List'!$AM$14:AM$567,$D16),"") ->  | H16: =IF($A16<$A$10,INDEX('Pick List'!$AN$14:AN$567,$D16),"") ->  | I16: =IF($A16<$A$10,INDEX('Pick List'!$AO$14:AO$567,$D16),B16) ->  | J16: =IF($A16<$A$10,INDEX('Pick List'!$AR$14:AR$567,$D16),"") ->  | K16: =IF($A16<$A$10,INDEX('Pick List'!$AP$14:$AP$567,$D16),IF(LEFT(I16,3)="End",'Pick List'!$AP$568,"")) -> 
A17: 7 | D17: =MATCH($A17,'Pick List'!$AK$14:$AK$567,0) ->  | E17: =IF($A17<$A$10,INDEX('Pick List'!$AL$14:AL$567,$D17),"") ->  | G17: =IF($A17<$A$10,INDEX('Pick List'!$AM$14:AM$567,$D17),"") ->  | H17: =IF($A17<$A$10,INDEX('Pick List'!$AN$14:AN$567,$D17),"") ->  | I17: =IF($A17<$A$10,INDEX('Pick List'!$AO$14:AO$567,$D17),B17) ->  | J17: =IF($A17<$A$10,INDEX('Pick List'!$AR$14:AR$567,$D17),"") ->  | K17: =IF($A17<$A$10,INDEX('Pick List'!$AP$14:$AP$567,$D17),IF(LEFT(I17,3)="End",'Pick List'!$AP$568,"")) -> 
A18: 8 | D18: =MATCH($A18,'Pick List'!$AK$14:$AK$567,0) ->  | E18: =IF($A18<$A$10,INDEX('Pick List'!$AL$14:AL$567,$D18),"") ->  | G18: =IF($A18<$A$10,INDEX('Pick List'!$AM$14:AM$567,$D18),"") ->  | H18: =IF($A18<$A$10,INDEX('Pick List'!$AN$14:AN$567,$D18),"") ->  | I18: =IF($A18<$A$10,INDEX('Pick List'!$AO$14:AO$567,$D18),B18) ->  | J18: =IF($A18<$A$10,INDEX('Pick List'!$AR$14:AR$567,$D18),"") ->  | K18: =IF($A18<$A$10,INDEX('Pick List'!$AP$14:$AP$567,$D18),IF(LEFT(I18,3)="End",'Pick List'!$AP$568,"")) -> 
A19: 9 | D19: =MATCH($A19,'Pick List'!$AK$14:$AK$567,0) ->  | E19: =IF($A19<$A$10,INDEX('Pick List'!$AL$14:AL$567,$D19),"") ->  | G19: =IF($A19<$A$10,INDEX('Pick List'!$AM$14:AM$567,$D19),"") ->  | H19: =IF($A19<$A$10,INDEX('Pick List'!$AN$14:AN$567,$D19),"") ->  | I19: =IF($A19<$A$10,INDEX('Pick List'!$AO$14:AO$567,$D19),B19) ->  | J19: =IF($A19<$A$10,INDEX('Pick List'!$AR$14:AR$567,$D19),"") ->  | K19: =IF($A19<$A$10,INDEX('Pick List'!$AP$14:$AP$567,$D19),IF(LEFT(I19,3)="End",'Pick List'!$AP$568,"")) -> 
A20: 10 | D20: =MATCH($A20,'Pick List'!$AK$14:$AK$567,0) ->  | E20: =IF($A20<$A$10,INDEX('Pick List'!$AL$14:AL$567,$D20),"") ->  | G20: =IF($A20<$A$10,INDEX('Pick List'!$AM$14:AM$567,$D20),"") ->  | H20: =IF($A20<$A$10,INDEX('Pick List'!$AN$14:AN$567,$D20),"") ->  | I20: =IF($A20<$A$10,INDEX('Pick List'!$AO$14:AO$567,$D20),B20) ->  | J20: =IF($A20<$A$10,INDEX('Pick List'!$AR$14:AR$567,$D20),"") ->  | K20: =IF($A20<$A$10,INDEX('Pick List'!$AP$14:$AP$567,$D20),IF(LEFT(I20,3)="End",'Pick List'!$AP$568,"")) -> 
A21: 11 | D21: =MATCH($A21,'Pick List'!$AK$14:$AK$567,0) ->  | E21: =IF($A21<$A$10,INDEX('Pick List'!$AL$14:AL$567,$D21),"") ->  | G21: =IF($A21<$A$10,INDEX('Pick List'!$AM$14:AM$567,$D21),"") ->  | H21: =IF($A21<$A$10,INDEX('Pick List'!$AN$14:AN$567,$D21),"") ->  | I21: =IF($A21<$A$10,INDEX('Pick List'!$AO$14:AO$567,$D21),B21) ->  | J21: =IF($A21<$A$10,INDEX('Pick List'!$AR$14:AR$567,$D21),"") ->  | K21: =IF($A21<$A$10,INDEX('Pick List'!$AP$14:$AP$567,$D21),IF(LEFT(I21,3)="End",'Pick List'!$AP$568,"")) ->  | N21: =IF(Design!$AB$7,"**Enter usable seat depth on Design screen**","") -> 
A22: 12 | D22: =MATCH($A22,'Pick List'!$AK$14:$AK$567,0) ->  | E22: =IF($A22<$A$10,INDEX('Pick List'!$AL$14:AL$567,$D22),"") ->  | G22: =IF($A22<$A$10,INDEX('Pick List'!$AM$14:AM$567,$D22),"") ->  | H22: =IF($A22<$A$10,INDEX('Pick List'!$AN$14:AN$567,$D22),"") ->  | I22: =IF($A22<$A$10,INDEX('Pick List'!$AO$14:AO$567,$D22),B22) ->  | J22: =IF($A22<$A$10,INDEX('Pick List'!$AR$14:AR$567,$D22),"") ->  | K22: =IF($A22<$A$10,INDEX('Pick List'!$AP$14:$AP$567,$D22),IF(LEFT(I22,3)="End",'Pick List'!$AP$568,"")) -> 
A23: 13 | D23: =MATCH($A23,'Pick List'!$AK$14:$AK$567,0) ->  | E23: =IF($A23<$A$10,INDEX('Pick List'!$AL$14:AL$567,$D23),"") ->  | G23: =IF($A23<$A$10,INDEX('Pick List'!$AM$14:AM$567,$D23),"") ->  | H23: =IF($A23<$A$10,INDEX('Pick List'!$AN$14:AN$567,$D23),"") ->  | I23: =IF($A23<$A$10,INDEX('Pick List'!$AO$14:AO$567,$D23),B23) ->  | J23: =IF($A23<$A$10,INDEX('Pick List'!$AR$14:AR$567,$D23),"") ->  | K23: =IF($A23<$A$10,INDEX('Pick List'!$AP$14:$AP$567,$D23),IF(LEFT(I23,3)="End",'Pick List'!$AP$568,"")) ->  | N23: =" Export to "&RANAME -> Export to EXTERNAL FILE
A24: 14 | D24: =MATCH($A24,'Pick List'!$AK$14:$AK$567,0) ->  | E24: =IF($A24<$A$10,INDEX('Pick List'!$AL$14:AL$567,$D24),"") ->  | G24: =IF($A24<$A$10,INDEX('Pick List'!$AM$14:AM$567,$D24),"") ->  | H24: =IF($A24<$A$10,INDEX('Pick List'!$AN$14:AN$567,$D24),"") ->  | I24: =IF($A24<$A$10,INDEX('Pick List'!$AO$14:AO$567,$D24),B24) ->  | J24: =IF($A24<$A$10,INDEX('Pick List'!$AR$14:AR$567,$D24),"") ->  | K24: =IF($A24<$A$10,INDEX('Pick List'!$AP$14:$AP$567,$D24),IF(LEFT(I24,3)="End",'Pick List'!$AP$568,"")) ->  | N24: =RADIR&"\"&RANAME&".CSV" -> C:\TSAEXPORT\EXTERNAL FILE.CSV
A25: 15 | D25: =MATCH($A25,'Pick List'!$AK$14:$AK$567,0) ->  | E25: =IF($A25<$A$10,INDEX('Pick List'!$AL$14:AL$567,$D25),"") ->  | G25: =IF($A25<$A$10,INDEX('Pick List'!$AM$14:AM$567,$D25),"") ->  | H25: =IF($A25<$A$10,INDEX('Pick List'!$AN$14:AN$567,$D25),"") ->  | I25: =IF($A25<$A$10,INDEX('Pick List'!$AO$14:AO$567,$D25),B25) ->  | J25: =IF($A25<$A$10,INDEX('Pick List'!$AR$14:AR$567,$D25),"") ->  | K25: =IF($A25<$A$10,INDEX('Pick List'!$AP$14:$AP$567,$D25),IF(LEFT(I25,3)="End",'Pick List'!$AP$568,"")) -> 
A26: 16 | D26: =MATCH($A26,'Pick List'!$AK$14:$AK$567,0) ->  | E26: =IF($A26<$A$10,INDEX('Pick List'!$AL$14:AL$567,$D26),"") ->  | G26: =IF($A26<$A$10,INDEX('Pick List'!$AM$14:AM$567,$D26),"") ->  | H26: =IF($A26<$A$10,INDEX('Pick List'!$AN$14:AN$567,$D26),"") ->  | I26: =IF($A26<$A$10,INDEX('Pick List'!$AO$14:AO$567,$D26),B26) ->  | J26: =IF($A26<$A$10,INDEX('Pick List'!$AR$14:AR$567,$D26),"") ->  | K26: =IF($A26<$A$10,INDEX('Pick List'!$AP$14:$AP$567,$D26),IF(LEFT(I26,3)="End",'Pick List'!$AP$568,"")) -> 
A27: 17 | D27: =MATCH($A27,'Pick List'!$AK$14:$AK$567,0) ->  | E27: =IF($A27<$A$10,INDEX('Pick List'!$AL$14:AL$567,$D27),"") ->  | G27: =IF($A27<$A$10,INDEX('Pick List'!$AM$14:AM$567,$D27),"") ->  | H27: =IF($A27<$A$10,INDEX('Pick List'!$AN$14:AN$567,$D27),"") ->  | I27: =IF($A27<$A$10,INDEX('Pick List'!$AO$14:AO$567,$D27),B27) ->  | J27: =IF($A27<$A$10,INDEX('Pick List'!$AR$14:AR$567,$D27),"") ->  | K27: =IF($A27<$A$10,INDEX('Pick List'!$AP$14:$AP$567,$D27),IF(LEFT(I27,3)="End",'Pick List'!$AP$568,"")) -> 
A28: 18 | D28: =MATCH($A28,'Pick List'!$AK$14:$AK$567,0) ->  | E28: =IF($A28<$A$10,INDEX('Pick List'!$AL$14:AL$567,$D28),"") ->  | G28: =IF($A28<$A$10,INDEX('Pick List'!$AM$14:AM$567,$D28),"") ->  | H28: =IF($A28<$A$10,INDEX('Pick List'!$AN$14:AN$567,$D28),"") ->  | I28: =IF($A28<$A$10,INDEX('Pick List'!$AO$14:AO$567,$D28),B28) ->  | J28: =IF($A28<$A$10,INDEX('Pick List'!$AR$14:AR$567,$D28),"") ->  | K28: =IF($A28<$A$10,INDEX('Pick List'!$AP$14:$AP$567,$D28),IF(LEFT(I28,3)="End",'Pick List'!$AP$568,"")) -> 
A29: 19 | D29: =MATCH($A29,'Pick List'!$AK$14:$AK$567,0) ->  | E29: =IF($A29<$A$10,INDEX('Pick List'!$AL$14:AL$567,$D29),"") ->  | G29: =IF($A29<$A$10,INDEX('Pick List'!$AM$14:AM$567,$D29),"") ->  | H29: =IF($A29<$A$10,INDEX('Pick List'!$AN$14:AN$567,$D29),"") ->  | I29: =IF($A29<$A$10,INDEX('Pick List'!$AO$14:AO$567,$D29),B29) ->  | J29: =IF($A29<$A$10,INDEX('Pick List'!$AR$14:AR$567,$D29),"") ->  | K29: =IF($A29<$A$10,INDEX('Pick List'!$AP$14:$AP$567,$D29),IF(LEFT(I29,3)="End",'Pick List'!$AP$568,"")) -> 
A30: 20 | D30: =MATCH($A30,'Pick List'!$AK$14:$AK$567,0) ->  | E30: =IF($A30<$A$10,INDEX('Pick List'!$AL$14:AL$567,$D30),"") ->  | G30: =IF($A30<$A$10,INDEX('Pick List'!$AM$14:AM$567,$D30),"") ->  | H30: =IF($A30<$A$10,INDEX('Pick List'!$AN$14:AN$567,$D30),"") ->  | I30: =IF($A30<$A$10,INDEX('Pick List'!$AO$14:AO$567,$D30),B30) ->  | J30: =IF($A30<$A$10,INDEX('Pick List'!$AR$14:AR$567,$D30),"") ->  | K30: =IF($A30<$A$10,INDEX('Pick List'!$AP$14:$AP$567,$D30),IF(LEFT(I30,3)="End",'Pick List'!$AP$568,"")) -> 
A31: 21 | D31: =MATCH($A31,'Pick List'!$AK$14:$AK$567,0) ->  | E31: =IF($A31<$A$10,INDEX('Pick List'!$AL$14:AL$567,$D31),"") ->  | G31: =IF($A31<$A$10,INDEX('Pick List'!$AM$14:AM$567,$D31),"") ->  | H31: =IF($A31<$A$10,INDEX('Pick List'!$AN$14:AN$567,$D31),"") ->  | I31: =IF($A31<$A$10,INDEX('Pick List'!$AO$14:AO$567,$D31),B31) ->  | J31: =IF($A31<$A$10,INDEX('Pick List'!$AR$14:AR$567,$D31),"") ->  | K31: =IF($A31<$A$10,INDEX('Pick List'!$AP$14:$AP$567,$D31),IF(LEFT(I31,3)="End",'Pick List'!$AP$568,"")) -> 
A32: 22 | D32: =MATCH($A32,'Pick List'!$AK$14:$AK$567,0) ->  | E32: =IF($A32<$A$10,INDEX('Pick List'!$AL$14:AL$567,$D32),"") ->  | G32: =IF($A32<$A$10,INDEX('Pick List'!$AM$14:AM$567,$D32),"") ->  | H32: =IF($A32<$A$10,INDEX('Pick List'!$AN$14:AN$567,$D32),"") ->  | I32: =IF($A32<$A$10,INDEX('Pick List'!$AO$14:AO$567,$D32),B32) ->  | J32: =IF($A32<$A$10,INDEX('Pick List'!$AR$14:AR$567,$D32),"") ->  | K32: =IF($A32<$A$10,INDEX('Pick List'!$AP$14:$AP$567,$D32),IF(LEFT(I32,3)="End",'Pick List'!$AP$568,"")) -> 
A33: 23 | D33: =MATCH($A33,'Pick List'!$AK$14:$AK$567,0) ->  | E33: =IF($A33<$A$10,INDEX('Pick List'!$AL$14:AL$567,$D33),"") ->  | G33: =IF($A33<$A$10,INDEX('Pick List'!$AM$14:AM$567,$D33),"") ->  | H33: =IF($A33<$A$10,INDEX('Pick List'!$AN$14:AN$567,$D33),"") ->  | I33: =IF($A33<$A$10,INDEX('Pick List'!$AO$14:AO$567,$D33),B33) ->  | J33: =IF($A33<$A$10,INDEX('Pick List'!$AR$14:AR$567,$D33),"") ->  | K33: =IF($A33<$A$10,INDEX('Pick List'!$AP$14:$AP$567,$D33),IF(LEFT(I33,3)="End",'Pick List'!$AP$568,"")) -> 
A34: 24 | D34: =MATCH($A34,'Pick List'!$AK$14:$AK$567,0) ->  | E34: =IF($A34<$A$10,INDEX('Pick List'!$AL$14:AL$567,$D34),"") ->  | G34: =IF($A34<$A$10,INDEX('Pick List'!$AM$14:AM$567,$D34),"") ->  | H34: =IF($A34<$A$10,INDEX('Pick List'!$AN$14:AN$567,$D34),"") ->  | I34: =IF($A34<$A$10,INDEX('Pick List'!$AO$14:AO$567,$D34),B34) ->  | J34: =IF($A34<$A$10,INDEX('Pick List'!$AR$14:AR$567,$D34),"") ->  | K34: =IF($A34<$A$10,INDEX('Pick List'!$AP$14:$AP$567,$D34),IF(LEFT(I34,3)="End",'Pick List'!$AP$568,"")) -> 
A35: 25 | D35: =MATCH($A35,'Pick List'!$AK$14:$AK$567,0) ->  | E35: =IF($A35<$A$10,INDEX('Pick List'!$AL$14:AL$567,$D35),"") ->  | G35: =IF($A35<$A$10,INDEX('Pick List'!$AM$14:AM$567,$D35),"") ->  | H35: =IF($A35<$A$10,INDEX('Pick List'!$AN$14:AN$567,$D35),"") ->  | I35: =IF($A35<$A$10,INDEX('Pick List'!$AO$14:AO$567,$D35),B35) ->  | J35: =IF($A35<$A$10,INDEX('Pick List'!$AR$14:AR$567,$D35),"") ->  | K35: =IF($A35<$A$10,INDEX('Pick List'!$AP$14:$AP$567,$D35),IF(LEFT(I35,3)="End",'Pick List'!$AP$568,"")) -> 
A36: 26 | D36: =MATCH($A36,'Pick List'!$AK$14:$AK$567,0) ->  | E36: =IF($A36<$A$10,INDEX('Pick List'!$AL$14:AL$567,$D36),"") ->  | G36: =IF($A36<$A$10,INDEX('Pick List'!$AM$14:AM$567,$D36),"") ->  | H36: =IF($A36<$A$10,INDEX('Pick List'!$AN$14:AN$567,$D36),"") ->  | I36: =IF($A36<$A$10,INDEX('Pick List'!$AO$14:AO$567,$D36),B36) ->  | J36: =IF($A36<$A$10,INDEX('Pick List'!$AR$14:AR$567,$D36),"") ->  | K36: =IF($A36<$A$10,INDEX('Pick List'!$AP$14:$AP$567,$D36),IF(LEFT(I36,3)="End",'Pick List'!$AP$568,"")) -> 
A37: 27 | D37: =MATCH($A37,'Pick List'!$AK$14:$AK$567,0) ->  | E37: =IF($A37<$A$10,INDEX('Pick List'!$AL$14:AL$567,$D37),"") ->  | G37: =IF($A37<$A$10,INDEX('Pick List'!$AM$14:AM$567,$D37),"") ->  | H37: =IF($A37<$A$10,INDEX('Pick List'!$AN$14:AN$567,$D37),"") ->  | I37: =IF($A37<$A$10,INDEX('Pick List'!$AO$14:AO$567,$D37),B37) ->  | J37: =IF($A37<$A$10,INDEX('Pick List'!$AR$14:AR$567,$D37),"") ->  | K37: =IF($A37<$A$10,INDEX('Pick List'!$AP$14:$AP$567,$D37),IF(LEFT(I37,3)="End",'Pick List'!$AP$568,"")) -> 
A38: 28 | D38: =MATCH($A38,'Pick List'!$AK$14:$AK$567,0) ->  | E38: =IF($A38<$A$10,INDEX('Pick List'!$AL$14:AL$567,$D38),"") ->  | G38: =IF($A38<$A$10,INDEX('Pick List'!$AM$14:AM$567,$D38),"") ->  | H38: =IF($A38<$A$10,INDEX('Pick List'!$AN$14:AN$567,$D38),"") ->  | I38: =IF($A38<$A$10,INDEX('Pick List'!$AO$14:AO$567,$D38),B38) ->  | J38: =IF($A38<$A$10,INDEX('Pick List'!$AR$14:AR$567,$D38),"") ->  | K38: =IF($A38<$A$10,INDEX('Pick List'!$AP$14:$AP$567,$D38),IF(LEFT(I38,3)="End",'Pick List'!$AP$568,"")) -> 
A39: 29 | D39: =MATCH($A39,'Pick List'!$AK$14:$AK$567,0) ->  | E39: =IF($A39<$A$10,INDEX('Pick List'!$AL$14:AL$567,$D39),"") ->  | G39: =IF($A39<$A$10,INDEX('Pick List'!$AM$14:AM$567,$D39),"") ->  | H39: =IF($A39<$A$10,INDEX('Pick List'!$AN$14:AN$567,$D39),"") ->  | I39: =IF($A39<$A$10,INDEX('Pick List'!$AO$14:AO$567,$D39),B39) ->  | J39: =IF($A39<$A$10,INDEX('Pick List'!$AR$14:AR$567,$D39),"") ->  | K39: =IF($A39<$A$10,INDEX('Pick List'!$AP$14:$AP$567,$D39),IF(LEFT(I39,3)="End",'Pick List'!$AP$568,"")) -> 
A40: 30 | D40: =MATCH($A40,'Pick List'!$AK$14:$AK$567,0) ->  | E40: =IF($A40<$A$10,INDEX('Pick List'!$AL$14:AL$567,$D40),"") ->  | G40: =IF($A40<$A$10,INDEX('Pick List'!$AM$14:AM$567,$D40),"") ->  | H40: =IF($A40<$A$10,INDEX('Pick List'!$AN$14:AN$567,$D40),"") ->  | I40: =IF($A40<$A$10,INDEX('Pick List'!$AO$14:AO$567,$D40),B40) ->  | J40: =IF($A40<$A$10,INDEX('Pick List'!$AR$14:AR$567,$D40),"") ->  | K40: =IF($A40<$A$10,INDEX('Pick List'!$AP$14:$AP$567,$D40),IF(LEFT(I40,3)="End",'Pick List'!$AP$568,"")) -> 
A41: 31 | D41: =MATCH($A41,'Pick List'!$AK$14:$AK$567,0) ->  | E41: =IF($A41<$A$10,INDEX('Pick List'!$AL$14:AL$567,$D41),"") ->  | G41: =IF($A41<$A$10,INDEX('Pick List'!$AM$14:AM$567,$D41),"") ->  | H41: =IF($A41<$A$10,INDEX('Pick List'!$AN$14:AN$567,$D41),"") ->  | I41: =IF($A41<$A$10,INDEX('Pick List'!$AO$14:AO$567,$D41),B41) ->  | J41: =IF($A41<$A$10,INDEX('Pick List'!$AR$14:AR$567,$D41),"") ->  | K41: =IF($A41<$A$10,INDEX('Pick List'!$AP$14:$AP$567,$D41),IF(LEFT(I41,3)="End",'Pick List'!$AP$568,"")) -> 
A42: 32 | D42: =MATCH($A42,'Pick List'!$AK$14:$AK$567,0) ->  | E42: =IF($A42<$A$10,INDEX('Pick List'!$AL$14:AL$567,$D42),"") ->  | G42: =IF($A42<$A$10,INDEX('Pick List'!$AM$14:AM$567,$D42),"") ->  | H42: =IF($A42<$A$10,INDEX('Pick List'!$AN$14:AN$567,$D42),"") ->  | I42: =IF($A42<$A$10,INDEX('Pick List'!$AO$14:AO$567,$D42),B42) ->  | J42: =IF($A42<$A$10,INDEX('Pick List'!$AR$14:AR$567,$D42),"") ->  | K42: =IF($A42<$A$10,INDEX('Pick List'!$AP$14:$AP$567,$D42),IF(LEFT(I42,3)="End",'Pick List'!$AP$568,"")) -> 
A43: 33 | D43: =MATCH($A43,'Pick List'!$AK$14:$AK$567,0) ->  | E43: =IF($A43<$A$10,INDEX('Pick List'!$AL$14:AL$567,$D43),"") ->  | G43: =IF($A43<$A$10,INDEX('Pick List'!$AM$14:AM$567,$D43),"") ->  | H43: =IF($A43<$A$10,INDEX('Pick List'!$AN$14:AN$567,$D43),"") ->  | I43: =IF($A43<$A$10,INDEX('Pick List'!$AO$14:AO$567,$D43),B43) ->  | J43: =IF($A43<$A$10,INDEX('Pick List'!$AR$14:AR$567,$D43),"") ->  | K43: =IF($A43<$A$10,INDEX('Pick List'!$AP$14:$AP$567,$D43),IF(LEFT(I43,3)="End",'Pick List'!$AP$568,"")) -> 
A44: 34 | D44: =MATCH($A44,'Pick List'!$AK$14:$AK$567,0) ->  | E44: =IF($A44<$A$10,INDEX('Pick List'!$AL$14:AL$567,$D44),"") ->  | G44: =IF($A44<$A$10,INDEX('Pick List'!$AM$14:AM$567,$D44),"") ->  | H44: =IF($A44<$A$10,INDEX('Pick List'!$AN$14:AN$567,$D44),"") ->  | I44: =IF($A44<$A$10,INDEX('Pick List'!$AO$14:AO$567,$D44),B44) ->  | J44: =IF($A44<$A$10,INDEX('Pick List'!$AR$14:AR$567,$D44),"") ->  | K44: =IF($A44<$A$10,INDEX('Pick List'!$AP$14:$AP$567,$D44),IF(LEFT(I44,3)="End",'Pick List'!$AP$568,"")) -> 
A45: 35 | D45: =MATCH($A45,'Pick List'!$AK$14:$AK$567,0) ->  | E45: =IF($A45<$A$10,INDEX('Pick List'!$AL$14:AL$567,$D45),"") ->  | G45: =IF($A45<$A$10,INDEX('Pick List'!$AM$14:AM$567,$D45),"") ->  | H45: =IF($A45<$A$10,INDEX('Pick List'!$AN$14:AN$567,$D45),"") ->  | I45: =IF($A45<$A$10,INDEX('Pick List'!$AO$14:AO$567,$D45),B45) ->  | J45: =IF($A45<$A$10,INDEX('Pick List'!$AR$14:AR$567,$D45),"") ->  | K45: =IF($A45<$A$10,INDEX('Pick List'!$AP$14:$AP$567,$D45),IF(LEFT(I45,3)="End",'Pick List'!$AP$568,"")) -> 
A46: 36 | D46: =MATCH($A46,'Pick List'!$AK$14:$AK$567,0) ->  | E46: =IF($A46<$A$10,INDEX('Pick List'!$AL$14:AL$567,$D46),"") ->  | G46: =IF($A46<$A$10,INDEX('Pick List'!$AM$14:AM$567,$D46),"") ->  | H46: =IF($A46<$A$10,INDEX('Pick List'!$AN$14:AN$567,$D46),"") ->  | I46: =IF($A46<$A$10,INDEX('Pick List'!$AO$14:AO$567,$D46),B46) ->  | J46: =IF($A46<$A$10,INDEX('Pick List'!$AR$14:AR$567,$D46),"") ->  | K46: =IF($A46<$A$10,INDEX('Pick List'!$AP$14:$AP$567,$D46),IF(LEFT(I46,3)="End",'Pick List'!$AP$568,"")) -> 
A47: 37 | D47: =MATCH($A47,'Pick List'!$AK$14:$AK$567,0) ->  | E47: =IF($A47<$A$10,INDEX('Pick List'!$AL$14:AL$567,$D47),"") ->  | G47: =IF($A47<$A$10,INDEX('Pick List'!$AM$14:AM$567,$D47),"") ->  | H47: =IF($A47<$A$10,INDEX('Pick List'!$AN$14:AN$567,$D47),"") ->  | I47: =IF($A47<$A$10,INDEX('Pick List'!$AO$14:AO$567,$D47),B47) ->  | J47: =IF($A47<$A$10,INDEX('Pick List'!$AR$14:AR$567,$D47),"") ->  | K47: =IF($A47<$A$10,INDEX('Pick List'!$AP$14:$AP$567,$D47),IF(LEFT(I47,3)="End",'Pick List'!$AP$568,"")) -> 
A48: 38 | D48: =MATCH($A48,'Pick List'!$AK$14:$AK$567,0) ->  | E48: =IF($A48<$A$10,INDEX('Pick List'!$AL$14:AL$567,$D48),"") ->  | G48: =IF($A48<$A$10,INDEX('Pick List'!$AM$14:AM$567,$D48),"") ->  | H48: =IF($A48<$A$10,INDEX('Pick List'!$AN$14:AN$567,$D48),"") ->  | I48: =IF($A48<$A$10,INDEX('Pick List'!$AO$14:AO$567,$D48),B48) ->  | J48: =IF($A48<$A$10,INDEX('Pick List'!$AR$14:AR$567,$D48),"") ->  | K48: =IF($A48<$A$10,INDEX('Pick List'!$AP$14:$AP$567,$D48),IF(LEFT(I48,3)="End",'Pick List'!$AP$568,"")) -> 
A49: =A48+1 -> 39 | D49: =MATCH($A49,'Pick List'!$AK$14:$AK$567,0) ->  | E49: =IF($A49<$A$10,INDEX('Pick List'!$AL$14:AL$567,$D49),"") ->  | G49: =IF($A49<$A$10,INDEX('Pick List'!$AM$14:AM$567,$D49),"") ->  | H49: =IF($A49<$A$10,INDEX('Pick List'!$AN$14:AN$567,$D49),"") ->  | I49: =IF($A49<$A$10,INDEX('Pick List'!$AO$14:AO$567,$D49),B49) ->  | J49: =IF($A49<$A$10,INDEX('Pick List'!$AR$14:AR$567,$D49),"") ->  | K49: =IF($A49<$A$10,INDEX('Pick List'!$AP$14:$AP$567,$D49),IF(LEFT(I49,3)="End",'Pick List'!$AP$568,"")) -> 
A50: =A49+1 -> 40 | D50: =MATCH($A50,'Pick List'!$AK$14:$AK$567,0) ->  | E50: =IF($A50<$A$10,INDEX('Pick List'!$AL$14:AL$567,$D50),"") ->  | G50: =IF($A50<$A$10,INDEX('Pick List'!$AM$14:AM$567,$D50),"") ->  | H50: =IF($A50<$A$10,INDEX('Pick List'!$AN$14:AN$567,$D50),"") ->  | I50: =IF($A50<$A$10,INDEX('Pick List'!$AO$14:AO$567,$D50),B50) ->  | J50: =IF($A50<$A$10,INDEX('Pick List'!$AR$14:AR$567,$D50),"") ->  | K50: =IF($A50<$A$10,INDEX('Pick List'!$AP$14:$AP$567,$D50),IF(LEFT(I50,3)="End",'Pick List'!$AP$568,"")) -> 
A51: =A50+1 -> 41 | D51: =MATCH($A51,'Pick List'!$AK$14:$AK$567,0) ->  | E51: =IF($A51<$A$10,INDEX('Pick List'!$AL$14:AL$567,$D51),"") ->  | G51: =IF($A51<$A$10,INDEX('Pick List'!$AM$14:AM$567,$D51),"") ->  | H51: =IF($A51<$A$10,INDEX('Pick List'!$AN$14:AN$567,$D51),"") ->  | I51: =IF($A51<$A$10,INDEX('Pick List'!$AO$14:AO$567,$D51),B51) ->  | J51: =IF($A51<$A$10,INDEX('Pick List'!$AR$14:AR$567,$D51),"") ->  | K51: =IF($A51<$A$10,INDEX('Pick List'!$AP$14:$AP$567,$D51),IF(LEFT(I51,3)="End",'Pick List'!$AP$568,"")) -> 
A52: 42 | D52: =MATCH($A52,'Pick List'!$AK$14:$AK$567,0) ->  | E52: =IF($A52<$A$10,INDEX('Pick List'!$AL$14:AL$567,$D52),"") ->  | G52: =IF($A52<$A$10,INDEX('Pick List'!$AM$14:AM$567,$D52),"") ->  | H52: =IF($A52<$A$10,INDEX('Pick List'!$AN$14:AN$567,$D52),"") ->  | I52: =IF($A52<$A$10,INDEX('Pick List'!$AO$14:AO$567,$D52),B52) ->  | J52: =IF($A52<$A$10,INDEX('Pick List'!$AR$14:AR$567,$D52),"") ->  | K52: =IF($A52<$A$10,INDEX('Pick List'!$AP$14:$AP$567,$D52),IF(LEFT(I52,3)="End",'Pick List'!$AP$568,"")) -> 
A53: 43 | D53: =MATCH($A53,'Pick List'!$AK$14:$AK$567,0) ->  | E53: =IF($A53<$A$10,INDEX('Pick List'!$AL$14:AL$567,$D53),"") ->  | G53: =IF($A53<$A$10,INDEX('Pick List'!$AM$14:AM$567,$D53),"") ->  | H53: =IF($A53<$A$10,INDEX('Pick List'!$AN$14:AN$567,$D53),"") ->  | I53: =IF($A53<$A$10,INDEX('Pick List'!$AO$14:AO$567,$D53),B53) ->  | J53: =IF($A53<$A$10,INDEX('Pick List'!$AR$14:AR$567,$D53),"") ->  | K53: =IF($A53<$A$10,INDEX('Pick List'!$AP$14:$AP$567,$D53),IF(LEFT(I53,3)="End",'Pick List'!$AP$568,"")) -> 
A54: 44 | D54: =MATCH($A54,'Pick List'!$AK$14:$AK$567,0) ->  | E54: =IF($A54<$A$10,INDEX('Pick List'!$AL$14:AL$567,$D54),"") ->  | G54: =IF($A54<$A$10,INDEX('Pick List'!$AM$14:AM$567,$D54),"") ->  | H54: =IF($A54<$A$10,INDEX('Pick List'!$AN$14:AN$567,$D54),"") ->  | I54: =IF($A54<$A$10,INDEX('Pick List'!$AO$14:AO$567,$D54),B54) ->  | J54: =IF($A54<$A$10,INDEX('Pick List'!$AR$14:AR$567,$D54),"") ->  | K54: =IF($A54<$A$10,INDEX('Pick List'!$AP$14:$AP$567,$D54),IF(LEFT(I54,3)="End",'Pick List'!$AP$568,"")) -> 
A55: 45 | D55: =MATCH($A55,'Pick List'!$AK$14:$AK$567,0) ->  | E55: =IF($A55<$A$10,INDEX('Pick List'!$AL$14:AL$567,$D55),"") ->  | G55: =IF($A55<$A$10,INDEX('Pick List'!$AM$14:AM$567,$D55),"") ->  | H55: =IF($A55<$A$10,INDEX('Pick List'!$AN$14:AN$567,$D55),"") ->  | I55: =IF($A55<$A$10,INDEX('Pick List'!$AO$14:AO$567,$D55),B55) ->  | J55: =IF($A55<$A$10,INDEX('Pick List'!$AR$14:AR$567,$D55),"") ->  | K55: =IF($A55<$A$10,INDEX('Pick List'!$AP$14:$AP$567,$D55),IF(LEFT(I55,3)="End",'Pick List'!$AP$568,"")) -> 
A56: 46 | D56: =MATCH($A56,'Pick List'!$AK$14:$AK$567,0) ->  | E56: =IF($A56<$A$10,INDEX('Pick List'!$AL$14:AL$567,$D56),"") ->  | G56: =IF($A56<$A$10,INDEX('Pick List'!$AM$14:AM$567,$D56),"") ->  | H56: =IF($A56<$A$10,INDEX('Pick List'!$AN$14:AN$567,$D56),"") ->  | I56: =IF($A56<$A$10,INDEX('Pick List'!$AO$14:AO$567,$D56),B56) ->  | J56: =IF($A56<$A$10,INDEX('Pick List'!$AR$14:AR$567,$D56),"") ->  | K56: =IF($A56<$A$10,INDEX('Pick List'!$AP$14:$AP$567,$D56),IF(LEFT(I56,3)="End",'Pick List'!$AP$568,"")) -> 
A57: 47 | D57: =MATCH($A57,'Pick List'!$AK$14:$AK$567,0) ->  | E57: =IF($A57<$A$10,INDEX('Pick List'!$AL$14:AL$567,$D57),"") ->  | G57: =IF($A57<$A$10,INDEX('Pick List'!$AM$14:AM$567,$D57),"") ->  | H57: =IF($A57<$A$10,INDEX('Pick List'!$AN$14:AN$567,$D57),"") ->  | I57: =IF($A57<$A$10,INDEX('Pick List'!$AO$14:AO$567,$D57),B57) ->  | J57: =IF($A57<$A$10,INDEX('Pick List'!$AR$14:AR$567,$D57),"") ->  | K57: =IF($A57<$A$10,INDEX('Pick List'!$AP$14:$AP$567,$D57),IF(LEFT(I57,3)="End",'Pick List'!$AP$568,"")) -> 
A58: 48 | D58: =MATCH($A58,'Pick List'!$AK$14:$AK$567,0) ->  | E58: =IF($A58<$A$10,INDEX('Pick List'!$AL$14:AL$567,$D58),"") ->  | G58: =IF($A58<$A$10,INDEX('Pick List'!$AM$14:AM$567,$D58),"") ->  | H58: =IF($A58<$A$10,INDEX('Pick List'!$AN$14:AN$567,$D58),"") ->  | I58: =IF($A58<$A$10,INDEX('Pick List'!$AO$14:AO$567,$D58),B58) ->  | J58: =IF($A58<$A$10,INDEX('Pick List'!$AR$14:AR$567,$D58),"") ->  | K58: =IF($A58<$A$10,INDEX('Pick List'!$AP$14:$AP$567,$D58),IF(LEFT(I58,3)="End",'Pick List'!$AP$568,"")) -> 
A59: 49 | D59: =MATCH($A59,'Pick List'!$AK$14:$AK$567,0) ->  | E59: =IF($A59<$A$10,INDEX('Pick List'!$AL$14:AL$567,$D59),"") ->  | G59: =IF($A59<$A$10,INDEX('Pick List'!$AM$14:AM$567,$D59),"") ->  | H59: =IF($A59<$A$10,INDEX('Pick List'!$AN$14:AN$567,$D59),"") ->  | I59: =IF($A59<$A$10,INDEX('Pick List'!$AO$14:AO$567,$D59),B59) ->  | J59: =IF($A59<$A$10,INDEX('Pick List'!$AR$14:AR$567,$D59),"") ->  | K59: =IF($A59<$A$10,INDEX('Pick List'!$AP$14:$AP$567,$D59),IF(LEFT(I59,3)="End",'Pick List'!$AP$568,"")) -> 
A60: 50 | D60: =MATCH($A60,'Pick List'!$AK$14:$AK$567,0) ->  | E60: =IF($A60<$A$10,INDEX('Pick List'!$AL$14:AL$567,$D60),"") ->  | G60: =IF($A60<$A$10,INDEX('Pick List'!$AM$14:AM$567,$D60),"") ->  | H60: =IF($A60<$A$10,INDEX('Pick List'!$AN$14:AN$567,$D60),"") ->  | I60: =IF($A60<$A$10,INDEX('Pick List'!$AO$14:AO$567,$D60),B60) ->  | J60: =IF($A60<$A$10,INDEX('Pick List'!$AR$14:AR$567,$D60),"") ->  | K60: =IF($A60<$A$10,INDEX('Pick List'!$AP$14:$AP$567,$D60),IF(LEFT(I60,3)="End",'Pick List'!$AP$568,"")) -> 
A61: 51 | D61: =MATCH($A61,'Pick List'!$AK$14:$AK$567,0) ->  | E61: =IF($A61<$A$10,INDEX('Pick List'!$AL$14:AL$567,$D61),"") ->  | G61: =IF($A61<$A$10,INDEX('Pick List'!$AM$14:AM$567,$D61),"") ->  | H61: =IF($A61<$A$10,INDEX('Pick List'!$AN$14:AN$567,$D61),"") ->  | I61: =IF($A61<$A$10,INDEX('Pick List'!$AO$14:AO$567,$D61),B61) ->  | J61: =IF($A61<$A$10,INDEX('Pick List'!$AR$14:AR$567,$D61),"") ->  | K61: =IF($A61<$A$10,INDEX('Pick List'!$AP$14:$AP$567,$D61),IF(LEFT(I61,3)="End",'Pick List'!$AP$568,"")) -> 
A62: 52 | D62: =MATCH($A62,'Pick List'!$AK$14:$AK$567,0) ->  | E62: =IF($A62<$A$10,INDEX('Pick List'!$AL$14:AL$567,$D62),"") ->  | G62: =IF($A62<$A$10,INDEX('Pick List'!$AM$14:AM$567,$D62),"") ->  | H62: =IF($A62<$A$10,INDEX('Pick List'!$AN$14:AN$567,$D62),"") ->  | I62: =IF($A62<$A$10,INDEX('Pick List'!$AO$14:AO$567,$D62),B62) ->  | J62: =IF($A62<$A$10,INDEX('Pick List'!$AR$14:AR$567,$D62),"") ->  | K62: =IF($A62<$A$10,INDEX('Pick List'!$AP$14:$AP$567,$D62),IF(LEFT(I62,3)="End",'Pick List'!$AP$568,"")) -> 
A63: 53 | D63: =MATCH($A63,'Pick List'!$AK$14:$AK$567,0) ->  | E63: =IF($A63<$A$10,INDEX('Pick List'!$AL$14:AL$567,$D63),"") ->  | G63: =IF($A63<$A$10,INDEX('Pick List'!$AM$14:AM$567,$D63),"") ->  | H63: =IF($A63<$A$10,INDEX('Pick List'!$AN$14:AN$567,$D63),"") ->  | I63: =IF($A63<$A$10,INDEX('Pick List'!$AO$14:AO$567,$D63),B63) ->  | J63: =IF($A63<$A$10,INDEX('Pick List'!$AR$14:AR$567,$D63),"") ->  | K63: =IF($A63<$A$10,INDEX('Pick List'!$AP$14:$AP$567,$D63),IF(LEFT(I63,3)="End",'Pick List'!$AP$568,"")) -> 
A64: 54 | D64: =MATCH($A64,'Pick List'!$AK$14:$AK$567,0) ->  | E64: =IF($A64<$A$10,INDEX('Pick List'!$AL$14:AL$567,$D64),"") ->  | G64: =IF($A64<$A$10,INDEX('Pick List'!$AM$14:AM$567,$D64),"") ->  | H64: =IF($A64<$A$10,INDEX('Pick List'!$AN$14:AN$567,$D64),"") ->  | I64: =IF($A64<$A$10,INDEX('Pick List'!$AO$14:AO$567,$D64),B64) ->  | J64: =IF($A64<$A$10,INDEX('Pick List'!$AR$14:AR$567,$D64),"") ->  | K64: =IF($A64<$A$10,INDEX('Pick List'!$AP$14:$AP$567,$D64),IF(LEFT(I64,3)="End",'Pick List'!$AP$568,"")) -> 
A65: 55 | D65: =MATCH($A65,'Pick List'!$AK$14:$AK$567,0) ->  | E65: =IF($A65<$A$10,INDEX('Pick List'!$AL$14:AL$567,$D65),"") ->  | G65: =IF($A65<$A$10,INDEX('Pick List'!$AM$14:AM$567,$D65),"") ->  | H65: =IF($A65<$A$10,INDEX('Pick List'!$AN$14:AN$567,$D65),"") ->  | I65: =IF($A65<$A$10,INDEX('Pick List'!$AO$14:AO$567,$D65),B65) ->  | J65: =IF($A65<$A$10,INDEX('Pick List'!$AR$14:AR$567,$D65),"") ->  | K65: =IF($A65<$A$10,INDEX('Pick List'!$AP$14:$AP$567,$D65),IF(LEFT(I65,3)="End",'Pick List'!$AP$568,"")) -> 
A66: 56 | D66: =MATCH($A66,'Pick List'!$AK$14:$AK$567,0) ->  | E66: =IF($A66<$A$10,INDEX('Pick List'!$AL$14:AL$567,$D66),"") ->  | G66: =IF($A66<$A$10,INDEX('Pick List'!$AM$14:AM$567,$D66),"") ->  | H66: =IF($A66<$A$10,INDEX('Pick List'!$AN$14:AN$567,$D66),"") ->  | I66: =IF($A66<$A$10,INDEX('Pick List'!$AO$14:AO$567,$D66),B66) ->  | J66: =IF($A66<$A$10,INDEX('Pick List'!$AR$14:AR$567,$D66),"") ->  | K66: =IF($A66<$A$10,INDEX('Pick List'!$AP$14:$AP$567,$D66),IF(LEFT(I66,3)="End",'Pick List'!$AP$568,"")) -> 
A67: 57 | D67: =MATCH($A67,'Pick List'!$AK$14:$AK$567,0) ->  | E67: =IF($A67<$A$10,INDEX('Pick List'!$AL$14:AL$567,$D67),"") ->  | G67: =IF($A67<$A$10,INDEX('Pick List'!$AM$14:AM$567,$D67),"") ->  | H67: =IF($A67<$A$10,INDEX('Pick List'!$AN$14:AN$567,$D67),"") ->  | I67: =IF($A67<$A$10,INDEX('Pick List'!$AO$14:AO$567,$D67),B67) ->  | J67: =IF($A67<$A$10,INDEX('Pick List'!$AR$14:AR$567,$D67),"") ->  | K67: =IF($A67<$A$10,INDEX('Pick List'!$AP$14:$AP$567,$D67),IF(LEFT(I67,3)="End",'Pick List'!$AP$568,"")) -> 
A68: 58 | D68: =MATCH($A68,'Pick List'!$AK$14:$AK$567,0) ->  | E68: =IF($A68<$A$10,INDEX('Pick List'!$AL$14:AL$567,$D68),"") ->  | G68: =IF($A68<$A$10,INDEX('Pick List'!$AM$14:AM$567,$D68),"") ->  | H68: =IF($A68<$A$10,INDEX('Pick List'!$AN$14:AN$567,$D68),"") ->  | I68: =IF($A68<$A$10,INDEX('Pick List'!$AO$14:AO$567,$D68),B68) ->  | J68: =IF($A68<$A$10,INDEX('Pick List'!$AR$14:AR$567,$D68),"") ->  | K68: =IF($A68<$A$10,INDEX('Pick List'!$AP$14:$AP$567,$D68),IF(LEFT(I68,3)="End",'Pick List'!$AP$568,"")) -> 
A69: 59 | D69: =MATCH($A69,'Pick List'!$AK$14:$AK$567,0) ->  | E69: =IF($A69<$A$10,INDEX('Pick List'!$AL$14:AL$567,$D69),"") ->  | G69: =IF($A69<$A$10,INDEX('Pick List'!$AM$14:AM$567,$D69),"") ->  | H69: =IF($A69<$A$10,INDEX('Pick List'!$AN$14:AN$567,$D69),"") ->  | I69: =IF($A69<$A$10,INDEX('Pick List'!$AO$14:AO$567,$D69),B69) ->  | J69: =IF($A69<$A$10,INDEX('Pick List'!$AR$14:AR$567,$D69),"") ->  | K69: =IF($A69<$A$10,INDEX('Pick List'!$AP$14:$AP$567,$D69),IF(LEFT(I69,3)="End",'Pick List'!$AP$568,"")) -> 
L71: 826T8861
G72: Add for freight: | I72: (Amount added to both back and seat)
J75: Assembly | N75: Export Parameters
J76: Installation on Chair | N76: Directory:
J77: Complete Assembly | K77: 0 | N77: C:\TSAEXPORT
J78: Installation Included | K78: 0 | N78: Filename:
N79: EXTERNAL FILE
N80: Price to export:
N81: Cost
N82: Include HCPCS for back & seat mods:

Sheet Tray Maker
A2: TRAY MAKER | Q2: =CHAIRWIDTH -> 0 | R2: CHAIR WIDTH
E3: Therafin Tray Maker | K3: Chair width | P3: Parse input tray number into components | BJ3: Padded overlay table below
C4: Choice for wheelchair total arm width: | K4: =CHAIRWIDTH -> 0 | P4: Tray material index to lookup | Q4: =MID(TRAYINPUT,2,1) -> 
F5: =$U$116 -> For EZ Lock clamps, assumes width including arms is 4" to 5" more than chair width. | P5: Tray size index to lookup table | Q5: =MID(TRAYINPUT,3,1)+1 -> 
C6: =IF(BACKLBW>0,"Back lesser body width = "&BACKLBW&quote,"")&IF(MINBCO>0," Minimum body cutout to clear LTS pads = "&MINBCO&quote,"") ->  | H6: =IF('Tray Maker'!$BL$75="NA","","Matching padded overlay:") ->  | I6: =IF('Tray Maker'!$BL$75="NA","",'Tray Maker'!$BL$75) ->  | J6: =IF($BL$75="NA","",'Pick List'!$AA$561) ->  | K6: =IF($BL$75="NA","",'Pick List'!$P$6*'Pick List'!$AA$561) ->  | P6: Cutout index to lookup table | Q6: =MID(TRAYINPUT,4,1)+Q11 ->  | R6: Add index to first std size
C7: Description | D7: =IF(OR(NOT(AB50),ISNA(AH43)),"INVALID CONFIGURATION",IF(AH43,"","INVALID ONFIGURATION"))&IF(AG53,""," - CLAMP NOT AVAILABLE ATTACHED")&IF(AND($AH$43,NOT($AB$50))," PRE-ATTACHED","") -> INVALID CONFIGURATION | I7: Part # | J7: Retail | K7: =IF(TrayPrices!$D$1,"Seating Price","Cost") -> Cost | P7: Rim PVC or no index to table | Q7: =IF(MID(TRAYINPUT,5,1)="1",2,1) -> 1 | R7: Rim = 2, no = 1
C8: =IF($AH$43,$W$35&" "&$W$73&" Tray w/"&$AA$95&IF($R$66=1,"",", "&$S$66)&IF($R$53=1,"",", "&$W$53&" "&$X$44),"NA") -> NA | I8: =IF($AH$43,IF(ISERROR(TrayInfo!$A$2),"Custom","T"&TrayInfo!I2&$T$66&$AE$53&$V$44),"UNAVAIL") -> UNAVAIL | J8: =IF($AH$43,IF(ISERROR(TrayInfo!$A$2)," -- ",TrayPrices!$B$5),"NA") -> NA | K8: =IF($AH$43,IF(ISERROR(TrayInfo!$A$2)," Quote ",FIXED(TrayPrices!$D$5,2)),"NA") -> NA | P8: Hardware index to table | Q8: =MID(TRAYINPUT,6,1)+1 -> 
C9: Material, Rim & Clamps: | I9: =IF(AND($AH$43,ISERROR(TrayInfo!$A$2)),$V$35&"-"&$U$73&"-"&$U$96&"-"&$T$66&"-"&$AE$53&$V$44,"") ->  | P9: Attached or not index | Q9: =IF(MID(TRAYINPUT,7,1)="A",2,1) -> 1 | R9: Attached = 2, not = 1
C10: Tray size & Body Cutout:
D11: =$AU$73 -> This is the smallest tray that fits the chair. | G11: =$AD$96 -> This is the largest stock cutout for this tray. | P11: Index to first std body cutout= | Q11: =MATCH(1,AL98:AL113,0)-1 -> 
C12: =$AH$53 -> Includes EZ Lock Clamps. Tray comes with clamps already attached.
C16: Pick List of Wheelchairs & Total Arm Width | G16: Quick Start Instructions:
C17: Description | E17: inches | G17: 1. CHAIR WIDTH is entered on the DESIGN screen. Use the arrow buttons to change it here.
A18: 1 | C18: Total width of both arm pads=3" | E18: 3 | G18: 2. Choose USE TYPICAL ARM WIDTH or ENTER TOTAL ARM WIDTH and enter the value.
A19: 2 | C19: Total width of both arm pads=3.5" | E19: 3.5 | G19: 3. Choose a tray MATERIAL.
A20: 3 | C20: Total width of both arm pads=4" | E20: 4 | G20: 4. Choose PVC RIM or NO RIM.
A21: 4 | C21: Total width of both arm pads=4.5" | E21: 4.5 | G21: 5. Choose a CLAMP and ATTACHED or UNATTACHED.
A22: 5 | C22: Total width of both arm pads=5" | E22: 5 | G22: 6. Choose BEST tray size to automatically pick a tray that will fit.
A23: 6 | C23: Total width of both arm pads=5.5" | E23: 5.5 | G23: 7. Choose SM STOCK or LG STOCK to automatically pick from the stock cutouts available.
A24: 7 | C24: Total width of both arm pads=6" | E24: 6
A25: 8 | E25: 0 | G25: NOTE: "NA" in a picklist or RED BORDERS indicate an INVALID choice. Change the tray size,
A26: 9 | E26: 0 | G26: change the clamp or change the body cutout size. For very small chairs or large chairs, use the
A27: 10 | E27: 0 | G27: option to enter the actual total arm width and/or choose unattached clamps.
L30: 3
R32: KEY= | S32: =IF($AH$43,$V$35&$Z$53&$U$73&$U$96,"NA") -> NA | Y32: Enter addtl amount
X33: Add for arms | Y33: =IF($Y$34,$Z$34,IF(CHAIRCONFIG=1,0,$T$115)) -> 0
R34: TRAY MATERIAL | X34: Use spinner= | Y34: FALSE | Z34: =AH45/10 -> 4.3
R35: 1 | S35: =INDEX(S37:S41,$R$35,1) -> 3/8" Clear | T35: =INDEX(T37:T41,$R$35,1) ->  | V35: =INDEX(V37:V41,$R$35,1) -> C | W35: =INDEX(W37:W41,$R$35,1) -> 3/8" Clear | AA35: Hole distance | AB35: =TW-$AB$51 ->  | AG35: =IF(CHAIRCONFIG=1,$AJ$53,IF(CHAIRCONFIG=2,$Y$33,$T$115)) -> 4.5 | AH35: <-ARM WIDTH USED BELOW
R36: IDX | S36: Material pick list | T36: Prefix | U36: Valid | V36: Mat'l Code | W36: Material Description | AA36: Tube Lock Short | AB36: =AB35+AD58-AB58 ->  | AC36: =ROUND(AB37-AB36,3) ->  | AG36: (Small chairs can't have narrow arms) | AR36: =X73 -> NA
R37: 1 | S37: =T37&W37 -> 3/8" Clear | T37: =IF(U37,"","NA - ") ->  | U37: TRUE | V37: C | W37: 3/8" Clear | AA37: Outside-to-outside | AB37: =OTO -> 4.5 | AG37: CW arm min met | AH37: =IF(OR(AND(CW=10,ARMSVAR>=3.9),AND(CW=11,ARMSVAR>=3.5),AND(CW=12,ARMSVAR>=2.5),CW>12),TRUE(),FALSE()) -> FALSE
R38: 2 | S38: =T38&W38 -> 3/8" Grey | T38: =IF(U38,"","NA - ") ->  | U38: TRUE | V38: G | W38: 3/8" Grey | AA38: Tube Lock Long | AB38: =AB35+AD58+AC58 ->  | AC38: =ROUND(AB38-AB37,3) ->  | AG38: Box checked | AH38: FALSE | AI38: <- I DON'T THINK THIS IS USED | AR38: ="Chair width = "&$Q$2 -> Chair width = 0
R39: 3 | S39: =T39&W39 -> 3/8" Black | T39: =IF(U39,"","NA - ") ->  | U39: TRUE | V39: B | W39: 3/8" Black | AA39: Top Drop Short | AB39: =AB35+AD57-AB57 ->  | AC39: =ROUND(AB40-AB39,3) ->  | AG39: Outside-to-outside | AH39: =IF(CHAIRCONFIG=1,$Q$2+$AJ$53,IF(CHAIRCONFIG=2,$Q$2+$Y$33,$Q$2+T115)) -> 4.5 | AI39: <- Value based on choice of Typical, Specify or other Drop Down pick) | AR39: ="Outside to outside = "&AH39 -> Outside to outside = 4.5
R40: 4 | S40: =T40&W40 -> Padded | T40: =IF(U40,"","NA - ") ->  | U40: TRUE | V40: D | W40: Padded | AA40: Outside-to-outside | AB40: =OTO -> 4.5 | AG40: Minimum arm width | AH40: 4 | AR40: ="Holes "&(TW-$AB$51)&""" apart" -> 
R41: 5 | S41: =T41&W41 -> 3/8" Woodgrain Laminate | T41: =IF(U41,"","NA - ") ->  | U41: TRUE | V41: W | W41: 3/8" Woodgrain Laminate | AA41: Top Drop Long | AB41: =AB35+AD57+AC57 ->  | AC41: =ROUND(AB41-AB40,3) ->  | AG41: ="Clamps min. "&($AH$39-$Y$53)&""" apart" -> Clamps min. -0.9" apart
AA42: EZ Lock Short | AB42: =AB35+AD56-AB56 ->  | AC42: =ROUND(AB43-AB42,3) ->  | AG42: ="Clamps max. "&($AH$39+$X$53)&""" apart" -> Clamps max. 5" apart
R43: PRICE GROUP | W43: Different for "Tray Only" | AA43: Outside-to-outside | AB43: =OTO -> 4.5 | AG43: Choices are valid | AH43: =AND($U$53,$V$53,$V$73,$V$96,$AH$37,$AG$53) -> FALSE | AP43: =Y73 -> NA
Q44: 2 | R44: =IF(R53=1,1,$Q$44) -> 2 | S44: =INDEX(S46:S50,$R$44,1) -> Attached | T44: =INDEX(T46:T50,$R$44,1) ->  | V44: =INDEX(V46:V50,$R$44,1) -> A | W44: =INDEX(W46:W50,$R$44,1) -> Attached | X44: =INDEX(X46:X50,$R$44,1) -> Attached | Y44: =INDEX(Y46:Y50,$R$44,1) -> 12 | AA44: EZ Lock Long | AB44: =AB35+AD56+AC56 ->  | AC44: =ROUND(AB44-AB43,3) ->  | AR44: =X96 -> 99
R45: IDX | S45: Price Group Pick List | T45: Prefix | U45: Valid | V45: Price code | W45: Price group description | Y45: Price Add | AA45: U Slides Short | AB45: =AB35+AD59-AB59 ->  | AC45: =ROUND(AB46-AB45,3) ->  | AG45: Add for arms spinner | AH45: 43
R46: 1 | S46: =T46&W46 -> Unattached | T46: =IF(U46,"","NA - ") ->  | U46: TRUE | V46: =IF($R$53=1,"X","U") -> U | W46: =IF($R$53=1,"Not applicable","Unattached") -> Unattached | X46: Unattached | Y46: 0 | AA46: Outside-to-outside | AB46: =OTO -> 4.5 | AG46: Holes to outside | AH46: =(TW-(TW-$AB$51))/2 ->  | AT46: =ROUND($AH$47,2)&"*"&ROUND($AH$46,2) -> 
R47: 2 | S47: =T47&W47 -> Attached | T47: =IF(U47,"","NA - ") ->  | U47: TRUE | V47: =IF($R$53=1,"X","A") -> A | W47: =IF($R$53=1,"Not applicable","Attached") -> Attached | X47: Attached | Y47: 12 | AA47: U Slides Long | AB47: =AB35+AD59+AC59 ->  | AC47: =ROUND(AB47-AB46,3) ->  | AG47: Cutout to holes | AH47: =(TW-$AB$51-CO)/2 ->  | AS47: =Y96 -> 0
R48: 3 | S48: =T48&W48 -> NA - | T48: =IF(U48,"","NA - ") -> NA - | Y48: 0
R49: 4 | S49: =T49&W49 -> NA - | T49: =IF(U49,"","NA - ") -> NA - | Y49: 0 | AT49: =(X73-X96)/2 -> 
R50: 5 | S50: =T50&W50 -> NA - | T50: =IF(U50,"","NA - ") -> NA - | Y50: 0 | AB50: =IF(TW="NA",FALSE,OR(AND(OTO<=(TW-$AB$51+ADDFH+MORE),(TW-$AB$51+ADDFH-LESS)<=OTO),$V$44="U")) -> FALSE | AC50: <=hole location okay or UNATTACHED which is always okay
AB51: 5 | AC51: <=amount to subtract from CW for holes
R52: CLAMPS | AH52: Below are is the text of messages used
R53: 2 | S53: =INDEX(S55:S62,$R$53,1) -> EZ Lock Clamps | U53: FALSE | V53: FALSE | W53: EZ Lock Clamps | X53: 0.5 | Y53: 5.4 | Z53: EZ | AA53: 0.05 | AB53: 1.5 | AC53: 1.5 | AD53: 3 | AE53: 1 | AF53: TRUE | AG53: TRUE | AH53: Includes EZ Lock Clamps. Tray comes with clamps already attached. | AI53: For EZ Lock clamps, assumes width including arms is 4" to 5" more than chair width. | AJ53: 4.5 | AK53: Cost | AL53: Multiplier | AM53: Cost
R54: IDX | S54: Clamp Pick List | T54: Prefix | U54: Meets outside test | V54: Meets inside test | W54: Clamp Description | X54: Min extra outside | Y54: Min extra inside | Z54: Sortkey chars | AA54: Tolerance | AB54: LESS | AC54: MORE | AD54: Dist from holes to Outside | AE54: Part# | AF54: Std tray exists? | AG54: Avail based on attached? | AH54: Caution message | AI54: Typical Width Msg | AJ54: Typical Arm Width to Add
R55: 1 | S55: Tray Only | T55: =IF(AND(U55,V55,AG55),"","NA - ") -> NA - | U55: =TRUE() -> TRUE | V55: =IF(ISNA((OTO-CO)>=Y55),FALSE,IF((OTO-CO)>=Y55,TRUE,FALSE)) -> FALSE | W55: No clamps | X55: 0 | Y55: 0 | Z55: XX | AA55: 0.05 | AB55: 9 | AC55: 9 | AD55: 0 | AE55: 0 | AF55: =TRUE() -> TRUE | AG55: =TRUE() -> TRUE | AH55: HOOK & LOOP STRAPS (#31091) MUST BE ORDERED SEPARATELY. | AI55: Assumes use of Hook & Loop straps to attach tray to chair. | AJ55: 0 | AK55: =AL55*AM55 -> 0 | AL55: 1 | AM55: 0
R56: 2 | S56: =T56&W56 -> EZ Lock Clamps | T56: =IF(AG56,IF($R$73=1,"",IF(AND(U56,V56,AG56),"","NA - "))) ->  | U56: =IF(TW="na",FALSE,IF(ISNA((TW-X56)>=OTO),FALSE,IF((TW-X56)>=OTO,TRUE,FALSE))) -> FALSE | V56: FALSE | W56: EZ Lock Clamps | X56: 0.5 | Y56: 5.4 | Z56: EZ | AA56: 0.05 | AB56: 1.5 | AC56: 1.5 | AD56: 3 | AE56: 1 | AF56: =TRUE() -> TRUE | AG56: =TRUE() -> TRUE | AH56: =IF($V$44="U","Includes EZ Lock Clamps. Attaching holes are NOT drilled when clamps are ordered unattached.","Includes EZ Lock Clamps. Tray comes with clamps already attached.") -> Includes EZ Lock Clamps. Tray comes with clamps already attached. | AI56: For EZ Lock clamps, assumes width including arms is 4" to 5" more than chair width. | AJ56: 4.5 | AK56: 8.23306 | AL56: 1 | AM56: 8.23306
R57: 3 | S57: =T57&W57 -> Top Drop Clamps | T57: =IF(AG57,IF($R$73=1,"",IF(AND(U57,V57,AG57),"","NA - "))) ->  | U57: =IF(TW="na",FALSE,IF(ISNA((TW-X57)>=OTO),FALSE,IF((TW-X57)>=OTO,TRUE,FALSE))) -> FALSE | V57: FALSE | W57: Top Drop Clamps | X57: 3 | Y57: 4 | Z57: TD | AA57: 0.05 | AB57: 4.5 | AC57: 0.0625 | AD57: 3 | AE57: 2 | AF57: =TRUE() -> TRUE | AG57: =TRUE() -> TRUE | AH57: =IF($V$44="U","Includes Top Drop Clamps. Attaching holes are NOT drilled when clamps are ordered unattached.","Includes Top Drop Clamps. Tray comes with clamps already attached.") -> Includes Top Drop Clamps. Tray comes with clamps already attached. | AI57: For Top Drop clamps, assumes width including arms is 4" to 5" more than chair width. | AJ57: 4.5 | AK57: 11.783744 | AL57: 1.4 | AM57: 8.41696
R58: 4 | S58: =T58&W58 -> Tube Lock Clamps | T58: =IF(AG58,IF($R$73=1,"",IF(AND(U58,V58,AG58),"","NA - "))) ->  | U58: =IF(TW="na",FALSE,IF(ISNA((TW-X58)>=OTO),FALSE,IF((TW-X58)>=OTO,TRUE,FALSE))) -> FALSE | V58: FALSE | W58: Tube Lock Clamps | X58: 0.5 | Y58: 5.4 | Z58: TL | AA58: 0.05 | AB58: 1.5 | AC58: 1.5 | AD58: 3 | AE58: 3 | AF58: =TRUE() -> TRUE | AG58: =TRUE() -> TRUE | AH58: =IF($V$44="U","Includes Tube Lock Clamps. Attaching holes are NOT drilled when clamps are ordered unattached.","Includes Tube Lock Clamps. Tray comes with clamps already attached.") -> Includes Tube Lock Clamps. Tray comes with clamps already attached. | AI58: For Tube Lock clamps, assumes width incl. arms is 2" to 3.5" more than chair & at least 14.5" | AJ58: 3 | AK58: 9.79976 | AL58: 1 | AM58: 9.79976
R59: 5 | S59: =T59&W59 -> 1-1/8" Thick U Slides | T59: =IF(AG59,IF($R$73=1,"",IF(AND(U59,V59,AG59),"","NA - "))) ->  | U59: =IF(TW="na",FALSE,IF(ISNA((TW-X59)>=OTO),FALSE,IF((TW-X59)>=OTO,TRUE,FALSE))) -> FALSE | V59: FALSE | W59: 1-1/8" Thick U Slides | X59: 0 | Y59: 5 | Z59: U1 | AA59: 0 | AB59: 1.875 | AC59: 1 | AD59: 3 | AE59: 4 | AF59: =TRUE -> TRUE | AG59: =TRUE() -> TRUE | AH59: =IF($V$44="U","ENSURE THAT THE U-SLIDE THICKNESS FITS THE CHAIR ARMS. Attaching holes are NOT drilled when clamps are ordered unattached.","ENSURE THAT THE U-SLIDE THICKNESS FITS THE CHAIR ARMS. Tray comes with clamps already attached.") -> ENSURE THAT THE U-SLIDE THICKNESS FITS THE CHAIR ARMS. Tray comes with clamps already attached. | AI59: For U Slides, assumes width including arms is 4" to 5" more than chair width. | AJ59: 4.5 | AK59: 10.79 | AL59: 1 | AM59: 10.79
R60: 6 | S60: =T60&W60 -> 1-1/2" Thick U Slides | T60: =IF(AG60,IF($R$73=1,"",IF(AND(U60,V60,AG60),"","NA - "))) ->  | U60: =IF(TW="na",FALSE,IF(ISNA((TW-X60)>=OTO),FALSE,IF((TW-X60)>=OTO,TRUE,FALSE))) -> FALSE | V60: FALSE | W60: 1-1/2" Thick U Slides | X60: 0 | Y60: 5 | Z60: U2 | AA60: 0 | AB60: 1.875 | AC60: 1 | AD60: 3 | AE60: 5 | AF60: =TRUE -> TRUE | AG60: =TRUE() -> TRUE | AH60: =IF($V$44="U","ENSURE THAT THE U-SLIDE THICKNESS FITS THE CHAIR ARMS. Attaching holes are NOT drilled when clamps are ordered unattached.","ENSURE THAT THE U-SLIDE THICKNESS FITS THE CHAIR ARMS. Tray comes with clamps already attached.") -> ENSURE THAT THE U-SLIDE THICKNESS FITS THE CHAIR ARMS. Tray comes with clamps already attached. | AI60: For U Slides, assumes width including arms is 4" to 5" more than chair width. | AJ60: 4.5 | AK60: 10.78 | AL60: 1 | AM60: 10.78
R61: 7 | Z61: 00 | AA61: 0 | AB61: 9 | AC61: 9
R62: 8 | Z62: 00 | AA62: 0 | AB62: 9 | AC62: 9
R63: 1 | S63: No clamps | T63: =IF(AND(U63,V63),"","NA - ") ->  | U63: =TRUE() -> TRUE | V63: =TRUE() -> TRUE | W63: No clamps | X63: 0 | Y63: 0 | Z63: << row not used>> | AB63: 9 | AC63: 9 | AF63: was FALSE before uslides trays std | AG63: old U slide formula was =$V$32="U"
AJ64: HL | AK64: =AL64*AM64 -> 2.154262 | AL64: 1.1 | AM64: 1.95842
R65: RIM
R66: 1 | S66: =INDEX(S68:S70,$R$66,1) -> No rim | T66: =INDEX(T68:T70,$R$66,1) -> 0 | U66: =INDEX(U68:U70,$R$66,1) -> 0
R67: IDX | S67: Clamp Pick List | T67: Part # chars | U67: Price Add
R68: 1 | S68: No rim | T68: 0 | U68: 0
R69: 2 | S69: PVC rim | T69: 1 | U69: 42 | AF69: Alphabetic equivalent to chair size= | AG69: =IF(AND(CW>9,CW<31),CHOOSE(CW-9,"A","B","C","D","E","F","G","H","I","J","K","L","M","N","O","P","Q","R","S","T","U"),"Z") -> Z | BA69: Cost per square foot
R70: 3 | S70: 1/4" Aluminum | T70: 2 | U70: 0 | W70: Info, tray must exceed this= | X70: =OTO+XO+TOL -> 5.05 | BA70: 7.05 | BB70: 1.632815 | BC70: 1.632815
R72: TRAY SIZES | V72: =IF(ISNA(VLOOKUP(TRUE,V76:Z92,5,FALSE)),18,VLOOKUP(TRUE,V76:Z92,5,FALSE)) -> 18 | W72: <-index to smallest that works | AF72: V--Below is always true unless TYPICAL configuration is chosen | AV72: Stuff to compute material cost of tray size | BA72: Multiplier for costs used
Q73: =INDEX(Q75:Q91,$R$73,1) -> 0 | R73: 1 | S73: Best: NA | T73: Best: | U73: 0 | V73: FALSE | W73: NA | X73: NA | Y73: NA | AM73: CHAIR WIDTHS THAT WORK WITH THIS TRAY SIZE | AS73: Feed US cols to the left | AU73: =INDEX(AU75:AU91,$R$73,1) -> This is the smallest tray that fits the chair. | AW73: =INDEX($AW$75:$AW$91,$R$73,1) -> 0 | AX73: =INDEX($AX$75:$AX$91,$R$73,1) -> 0 | AY73: =INDEX($AY$75:$AY$91,$R$73,1) -> 0 | BA73: 1 | BB73: 1.6 | BC73: 1.6
Q74: Size | R74: Row | S74: Tray Pick List | T74: Prefix | U74: Part# chars | V74: Meets width + other tests incl TYPICAL | W74: Available tray sizes given material and price group | X74: Width | Y74: Depth | Z74: Row | AA74: Size Description | AB74: Width | AC74: Depth | AD74: Meets mat'l test | AE74: Valid Matl's | AF74: Meets Typical Test | AG74: Meets HL Typical Test | AH74: Meets EZ Typical Test | AI74: Meets TD Typical Test | AJ74: Meets TL Typical Test | AK74: Meets US Typical Test | AL74: Meets US Typical Test | AM74: Works with HL & CW | AN74: Works with EZ & CW | AO74: Works with TD & CW | AP74: Works with TL & CW | AQ74: Works with thin U1 & CW | AR74: Works with thick U2 & CW | AS74: Works with US Attached | AT74: Works with US Unattached | AU74: Message under picklist | AV74: Size Descr | AW74: PC cost | AX74: Gr Cost | AY74: Blk Cost | BA74: PC cost | BB74: Gr Cost | BC74: Blk Cost | BH74: PADDED OVERLAY THAT CORRESPONDS TO STOCK TRAY SHAPES AND CUTOUT SIZES
Q75: =INDEX(Q75:Q92,$V$72,1) -> 0 | R75: 1 | S75: =T75&W75 -> Best: NA | T75: Best: | U75: =INDEX(U75:U92,$V$72,1) -> 0 | V75: =INDEX(V75:V92,$V$72,1) -> FALSE | W75: =INDEX(W75:W92,$V$72,1) -> NA | X75: =INDEX(X75:X92,$V$72,1) -> NA | Y75: =INDEX(Y75:Y92,$V$72,1) -> NA | Z75: 1 | AA75: =INDEX(AA75:AA92,$V$72,1) -> NA | AB75: =INDEX(AB75:AB92,$V$72,1) -> 0 | AC75: =INDEX(AC75:AC92,$V$72,1) -> 0 | AU75: This is the smallest tray that fits the chair. | AV75: =AA75 -> NA | AW75: =INDEX(BA75:BA92,$V$72,1) -> 0 | AX75: =INDEX(BB75:BB92,$V$72,1) -> 0 | AY75: =INDEX(BC75:BC92,$V$72,1) -> 0 | BH75: Column for shape chosen= | BI75: =HLOOKUP($W$73,BJ76:BR77,2,FALSE) ->  | BK75: Matching overlay= | BL75: =IF(ISERROR(VLOOKUP(BH77,BI78:BR89,BI75,FALSE)),"NA",VLOOKUP(BH77,BI78:BR89,BI75,FALSE)) -> NA
Q76: 1 | R76: 2 | S76: =T76&W76 -> NA - 18W x 16D | T76: =IF(V76,"","NA - ") -> NA - | U76: 1816 | V76: =AND(AD76,AF76,X76>=(OTO+XO+TOL)) -> FALSE | W76: =IF(AD76,AA76,"") -> 18W x 16D | X76: =IF($AD76,AB76,0) -> 18 | Y76: =IF($AD76,AC76,"") -> 16 | Z76: 2 | AA76: 18W x 16D | AB76: 18 | AC76: 16 | AD76: =NOT(ISERROR(SEARCH($V$35,AE76,1))) -> TRUE | AE76: BCG | AF76: =IF($Q$116<>1,TRUE(),INDEX(AG76:AL76,1,$R$53)) -> FALSE | AG76: =NOT(ISERROR(SEARCH($AG$69,AM76,1))) -> FALSE | AH76: FALSE | AI76: TRUE | AJ76: FALSE | AK76: FALSE | AL76: FALSE | AM76: BCD | AN76: BC | AO76: Z | AP76: BCD | AQ76: =IF($V$44="A",$AS76,$AT76) -> BC | AR76: =IF($V$44="A",$AS76,$AT76) -> BC | AS76: BC | AT76: BCD | AU76: Choose "Best" for smallest tray that fits. | AV76: 18W x 16D | AW76: =BA76*$BA$73 -> 14.1 | AX76: =BB76*$BB$73 -> 5.225008 | AY76: =BC76*$BC$73 -> 5.225008 | BA76: =BA$70*($AB76*$AC76)/144 -> 14.1 | BB76: 3.26563 | BC76: 3.26563 | BI76: Cutout | BJ76: 18W x 16D | BK76: 20W x 18D | BL76: 21W x 18D | BM76: 22W x 21D | BN76: 23.5W x 22D | BO76: 25.5W x 22D | BP76: 27.5W x 23.5D | BQ76: 29.5W x 23.5D | BR76: 31.5W x 23.5D
Q77: 2 | R77: 3 | S77: =T77&W77 -> NA - 20W x 18D | T77: =IF(V77,"","NA - ") -> NA - | U77: 2018 | V77: FALSE | W77: =IF(AD77,AA77,"") -> 20W x 18D | X77: 20 | Y77: 18 | Z77: 3 | AA77: 20W x 18D | AB77: 20 | AC77: 18 | AD77: TRUE | AE77: BCG | AF77: FALSE | AG77: FALSE | AH77: FALSE | AI77: FALSE | AJ77: FALSE | AK77: FALSE | AL77: FALSE | AM77: BCDEF | AN77: DE | AO77: BC | AP77: EFG | AQ77: =IF($V$44="A",$AS77,$AT77) -> DE | AR77: DE | AS77: DE | AT77: BCDEF | AU77: Choose "Best" for smallest tray that fits. | AV77: 20W x 18D | AW77: =BA77*$BA$73 -> 17.625 | AX77: 6.53126 | AY77: 6.53126 | BA77: 17.625 | BB77: 4.0820375 | BC77: 4.0820375 | BG77: Cutout chosen= | BH77: =$AA$96 -> 0 | BJ77: 2 | BK77: 3 | BL77: 4 | BM77: 5 | BN77: 6 | BO77: 7 | BP77: 8 | BQ77: 9 | BR77: 10
Q78: 3 | R78: 4 | S78: NA - 21W x 18D | T78: =IF(V78,"","NA - ") -> NA - | U78: 2118 | V78: FALSE | W78: 21W x 18D | X78: 21 | Y78: 18 | Z78: 4 | AA78: 21W x 18D | AB78: 21 | AC78: 18 | AD78: TRUE | AE78: BCG | AF78: FALSE | AG78: FALSE | AH78: FALSE | AI78: FALSE | AJ78: FALSE | AK78: FALSE | AL78: FALSE | AM78: EFG | AN78: EF | AO78: BCD | AP78: GH | AQ78: EF | AR78: EF | AS78: EF | AT78: EFG | AU78: Choose "Best" for smallest tray that fits. | AV78: 21W x 18D | AW78: =BA78*$BA$73 -> 18.50625 | AX78: 6.857823 | AY78: 6.857823 | BA78: 18.50625 | BB78: 4.286139375 | BC78: 4.286139375 | BH78: 1 | BI78: 8.5 x 5 | BJ78: 30178 | BK78: NA | BL78: NA | BM78: NA | BN78: NA | BO78: NA | BP78: NA | BQ78: NA | BR78: NA
Q79: 4 | R79: 5 | S79: NA - 22W x 21D | T79: NA - | U79: 2221 | V79: FALSE | W79: 22W x 21D | X79: 22 | Y79: 21 | Z79: 5 | AA79: 22W x 21D | AB79: 22 | AC79: 21 | AD79: TRUE | AE79: BCG | AF79: FALSE | AG79: FALSE | AH79: FALSE | AI79: FALSE | AJ79: FALSE | AK79: FALSE | AL79: FALSE | AM79: GH | AN79: FG | AO79: CDE | AP79: HI | AQ79: G | AR79: G | AS79: G | AT79: GH | AU79: Choose "Best" for smallest tray that fits. | AV79: 22W x 21D | AW79: =BA79*$BA$73 -> 22.61875 | AX79: 8.381783667 | AY79: 8.381783667 | BA79: 22.61875 | BB79: 5.238614792 | BC79: 5.238614792 | BH79: 2 | BI79: 9 x 6 | BJ79: 30179 | BK79: 30180 | BL79: NA | BM79: NA | BN79: NA | BO79: NA | BP79: NA | BQ79: NA | BR79: NA
Q80: 5 | R80: 6 | S80: NA - 23.5W x 22D | T80: NA - | U80: 2322 | V80: FALSE | W80: 23.5W x 22D | X80: 23.5 | Y80: 22 | Z80: 6 | AA80: 23.5W x 22D | AB80: 23.5 | AC80: 22 | AD80: TRUE | AE80: BCG | AF80: FALSE | AG80: FALSE | AH80: FALSE | AI80: FALSE | AJ80: FALSE | AK80: FALSE | AL80: FALSE | AM80: HI | AN80: GHI | AO80: DEF | AP80: IJ | AQ80: H | AR80: H | AS80: H | AT80: HI | AU80: Choose "Best" for smallest tray that fits. | AV80: 23.5W x 22D | AW80: =0.97*BA80*$BA$73 -> 24.55211458 | AX80: 9.379615056 | AY80: 9.379615056 | BA80: 25.31145833 | BB80: 5.86225941 | BC80: 5.86225941 | BH80: 3 | BI80: 10 x 7 | BJ80: NA | BK80: 30181 | BL80: 30183 | BM80: NA | BN80: NA | BO80: NA | BP80: NA | BQ80: NA | BR80: NA
Q81: 6 | R81: 7 | S81: NA - 25.5W x 22D | T81: NA - | U81: 2522 | V81: FALSE | W81: 25.5W x 22D | X81: 25.5 | Y81: 22 | Z81: 7 | AA81: 25.5W x 22D | AB81: 25.5 | AC81: 22 | AD81: TRUE | AE81: BCG | AF81: FALSE | AG81: FALSE | AH81: FALSE | AI81: FALSE | AJ81: FALSE | AK81: FALSE | AL81: FALSE | AM81: IJK | AN81: IJK | AO81: FGH | AP81: KL | AQ81: IJ | AR81: IJ | AS81: IJ | AT81: IJK | AU81: Choose "Best" for smallest tray that fits. | AV81: 25.5W x 22D | AW81: =BA81*$BA$73 -> 27.465625 | AX81: 10.17788017 | AY81: 10.17788017 | BA81: 27.465625 | BB81: 6.361175104 | BC81: 6.361175104 | BH81: 4 | BI81: 12 x 6 | BJ81: NA | BK81: NA | BL81: 30184 | BM81: NA | BN81: NA | BO81: NA | BP81: NA | BQ81: NA | BR81: NA
Q82: 7 | R82: 8 | S82: NA - 27.5W x 23.5D | T82: NA - | U82: 2723 | V82: FALSE | W82: 27.5W x 23.5D | X82: 27.5 | Y82: 23.5 | Z82: 8 | AA82: 27.5W x 23.5D | AB82: 27.5 | AC82: 23.5 | AD82: TRUE | AE82: BCG | AF82: FALSE | AG82: FALSE | AH82: FALSE | AI82: FALSE | AJ82: FALSE | AK82: FALSE | AL82: FALSE | AM82: JKLM | AN82: KLM | AO82: HIJ | AP82: M | AQ82: KLM | AR82: KLM | AS82: KLM | AT82: JKLM | AU82: Choose "Best" for smallest tray that fits. | AV82: 27.5W x 23.5D | AW82: =BA82*$BA$73 -> 31.63932292 | AX82: 11.72451882 | AY82: 11.72451882 | BA82: 31.63932292 | BB82: 7.327824262 | BC82: 7.327824262 | BH82: 5 | BI82: 12 x 7 | BJ82: NA | BK82: 30182 | BL82: 30185 | BM82: 30187 | BN82: NA | BO82: NA | BP82: NA | BQ82: NA | BR82: NA
Q83: 8 | R83: 9 | S83: NA - 29.5W x 23.5D | T83: NA - | U83: 2923 | V83: FALSE | W83: 29.5W x 23.5D | X83: 29.5 | Y83: 23.5 | Z83: 9 | AA83: 29.5W x 23.5D | AB83: 29.5 | AC83: 23.5 | AD83: TRUE | AE83: BCG | AF83: FALSE | AG83: FALSE | AH83: FALSE | AI83: FALSE | AJ83: FALSE | AK83: FALSE | AL83: FALSE | AM83: LMNO | AN83: NO | AO83: JKL | AP83: MNOP | AQ83: MNO | AR83: MNO | AS83: MNO | AT83: LMNO | AU83: Choose "Best" for smallest tray that fits. | AV83: 29.5W x 23.5D | AW83: =BA83*$BA$73 -> 33.94036458 | AX83: 12.5772111 | AY83: 12.5772111 | BA83: 33.94036458 | BB83: 7.860756936 | BC83: 7.860756936 | BH83: 6 | BI83: 13 x 8 | BJ83: NA | BK83: NA | BL83: 30186 | BM83: 30188 | BN83: 30189 | BO83: NA | BP83: NA | BQ83: NA | BR83: NA
Q84: 9 | R84: 10 | S84: NA - 31.5W x 23.5D | T84: NA - | U84: 3123 | V84: FALSE | W84: 31.5W x 23.5D | X84: 31.5 | Y84: 23.5 | Z84: 10 | AA84: 31.5W x 23.5D | AB84: 31.5 | AC84: 23.5 | AD84: TRUE | AE84: BCG | AF84: FALSE | AG84: FALSE | AH84: FALSE | AI84: FALSE | AJ84: FALSE | AK84: FALSE | AL84: FALSE | AM84: NOPQ | AN84: PQ | AO84: LM | AP84: MNOPQ | AQ84: OPQ | AR84: OPQ | AS84: OPQ | AT84: NOPQ | AU84: Choose "Best" for smallest tray that fits. | AV84: 31.5W x 23.5D | AW84: =BA84*$BA$73 -> 36.24140625 | AX84: 13.42990337 | AY84: 13.42990337 | BA84: 36.24140625 | BB84: 8.393689609 | BC84: 8.393689609 | BH84: 7 | BI84: 14 x 9 | BJ84: NA | BK84: NA | BL84: NA | BM84: NA | BN84: 30190 | BO84: NA | BP84: NA | BQ84: NA | BR84: NA
R85: 11 | Z85: 11 | BH85: 8 | BI85: 15 x 9 | BJ85: NA | BK85: NA | BL85: NA | BM85: NA | BN85: 30191 | BO85: 30192 | BP85: NA | BQ85: NA | BR85: NA
R86: 12 | Z86: 12 | BH86: 9 | BI86: 16 x 10 | BJ86: NA | BK86: NA | BL86: NA | BM86: NA | BN86: NA | BO86: 30193 | BP86: NA | BQ86: NA | BR86: NA
R87: 13 | Z87: 13 | BH87: 10 | BI87: 17 x 10 | BJ87: NA | BK87: NA | BL87: NA | BM87: NA | BN87: NA | BO87: 30194 | BP87: 30195 | BQ87: NA | BR87: NA
R88: 14 | Z88: 14 | BH88: 11 | BI88: 18 x 10 | BJ88: NA | BK88: NA | BL88: NA | BM88: NA | BN88: NA | BO88: NA | BP88: 30196 | BQ88: NA | BR88: NA
R89: 15 | Z89: 15 | BH89: 12 | BI89: 19 x 10 | BJ89: NA | BK89: NA | BL89: NA | BM89: NA | BN89: NA | BO89: NA | BP89: 30197 | BQ89: 30198 | BR89: 30199
R90: 16 | Z90: 16
R91: 17 | Z91: 17
R92: 18 | V92: FALSE | W92: NA | X92: NA | Y92: NA | Z92: 18 | AA92: NA
S94: Allow attached hdw w/ no body cutout? | T94: =$L$30="ALLOW" -> FALSE | V94: =MIN($AH$39-Y53,CW) -> -0.9 | W94: <-target best cutout width | AH94: FIX BELOW IF ADD/DELETE A CUTOUT SIZE
R95: CUTOUTS | T95: <-wo asterisk | V95: =IF(ISNA(VLOOKUP(V94,X101:Z113,3)),$R$113,VLOOKUP(V94,X101:Z113,3)) -> 16 | W95: <-index to best match haschair | AA95: =$AA$96&" Cutout" -> 0 Cutout | AH95: Min row of stock cutout= | AI95: =IF(ISERR($AM$95),16,$AM$95) -> 16 | AJ95: ="(value is "&$R$113&" if min is 99)" -> (value is 16 if min is 99) | AM95: =IF(MIN($AJ$101:$AJ$112)=99,$R$113,MIN($AJ$101:$AJ$112)) -> 16
R96: 3 | S96: =INDEX(S98:S113,$R$96,1) -> Lg Stock: NA | T96: Lg Stock: | U96: NA | V96: FALSE | W96: NA | X96: 99 | Y96: 0 | Z96: 3 | AA96: =INDEX(AA98:AA113,$R$96,1) -> 0 | AD96: =INDEX(AD98:AD113,$R$96,1) -> This is the largest stock cutout for this tray. | AH96: Max row of stock cutout= | AI96: =IF(ISERR($AM$96),16,$AM$96) -> 16 | AJ96: ="(value is "&$R$113&" if max is 0)" -> (value is 16 if max is 0) | AM96: =IF(MAX($AK$101:$AK$112)=0,$R$113,MAX($AK$101:$AK$112)) -> 16
R97: Row | S97: Cutout Pick List | T97: Prefix | U97: Part # chars | V97: Meets price & clearance test? | W97: Available cutouts | X97: Width | Y97: Depth | Z97: IDX | AA97: Cutout Sizes | AB97: Width | AC97: Depth | AD97: Message Under Picklist | AI97: =MATCH("*",AI98:AI113,0) -> 1 | AL97: =MATCH(1,AL98:AL113,0) -> 
R98: 1 | S98: =T98&W98 -> NA - No cutout | T98: =IF(V98,"","NA - ") -> NA - | U98: 0000 | V98: =OR($R$53=1,$Q$44=1,$T$94) -> FALSE | W98: No cutout | X98: 0 | Y98: 0 | Z98: 1 | AA98: No | AD98: This tray does not have a body cutout. | AH98: =$V$35&$Z$53&$U$73&$U98 -> CEZ00000 | AI98: =IF(V98,IF(ISNA(VLOOKUP(AH98,TrayInfo!$C$4:$D$561,2,FALSE)),"","*"),"") ->  | AJ98: =IF($AI98="*",$R98,99) -> 99 | AK98: =IF($AI98="*",$R98,0) -> 0 | AL98: =IF($AI98="*",1,0) -> 0
R99: 2 | S99: =IF($AF$53,T99&AI99&W99,"CHOOSE CUTOUT") -> Sm Stock: NA | T99: Sm Stock: | U99: =INDEX(U101:U113,$AI$95-3,1) -> NA | V99: =INDEX(V101:V113,$AI$95-3,1) -> FALSE | W99: =INDEX(S101:S113,$AI$95-3,1) -> NA | X99: =INDEX(X$101:X$113,$AI$95-3,1) -> 99 | Y99: =INDEX(Y$101:Y$113,$AI$95-3,1) -> 0 | Z99: 2 | AA99: =INDEX(AA$101:AA$113,$AI$95-3,1) -> 0 | AD99: This is the smallest stock cutout for this tray. | AL99: =IF($AI99="*",1,0) -> 0
R100: 3 | S100: =IF($AF$53,T100&AI100&W100,"CHOOSE CUTOUT") -> Lg Stock: NA | T100: Lg Stock: | U100: =INDEX(U101:U113,$AI$96-3,1) -> NA | V100: =INDEX(V101:V113,$AI$96-3,1) -> FALSE | W100: =INDEX(S101:S113,$AI$96-3,1) -> NA | X100: =INDEX(X$101:X$113,$AI$96-3,1) -> 99 | Y100: =INDEX(Y$101:Y$113,$AI$96-3,1) -> 0 | Z100: 3 | AA100: =INDEX(AA$101:AA$113,$AI$96-3,1) -> 0 | AD100: This is the largest stock cutout for this tray. | AL100: 0
R101: 4 | S101: =AI101&T101&W101 -> NA - 8.5 x 5 | T101: =IF(V101,"","NA - ") -> NA - | U101: 0805 | V101: =IF(TW="na",FALSE,IF(AND(OTO>=(X101+XI),(TW-X101)>=2*MAW,X101<=CW),TRUE,FALSE)) -> FALSE | W101: 8.5 x 5 | X101: 8.5 | Y101: 5 | Z101: 4 | AA101: 8.5 x 5 | AB101: 8.5 | AC101: 5 | AD101: =IF(AI101="*","This is a stock body cutout.","This is a custom-sized body cutout.") -> This is a custom-sized body cutout. | AH101: =$V$35&$Z$53&$U$73&$U101 -> CEZ00805 | AI101: =IF(V101,IF(ISNA(VLOOKUP(AH101,TrayInfo!$C$4:$D$561,2,FALSE)),"","*"),"") ->  | AJ101: =IF($AI101="*",$R101,99) -> 99 | AK101: =IF($AI101="*",$R101,0) -> 0 | AL101: 0
R102: 5 | S102: NA - 9 x 6 | T102: =IF(V102,"","NA - ") -> NA - | U102: 0906 | V102: FALSE | W102: 9 x 6 | X102: 9 | Y102: 6 | Z102: 5 | AA102: 9 x 6 | AB102: 9 | AC102: 6 | AD102: This is a custom-sized body cutout. | AH102: CEZ00906 | AI102: =IF(V102,IF(ISNA(VLOOKUP(AH102,TrayInfo!$C$4:$D$561,2,FALSE)),"","*"),"") ->  | AJ102: =IF($AI102="*",$R102,99) -> 99 | AK102: 0 | AL102: 0
R103: 6 | S103: NA - 10 x 7 | T103: NA - | U103: 1007 | V103: FALSE | W103: 10 x 7 | X103: 10 | Y103: 7 | Z103: 6 | AA103: 10 x 7 | AB103: 10 | AC103: 7 | AD103: This is a custom-sized body cutout. | AH103: CEZ01007 | AI103: =IF(V103,IF(ISNA(VLOOKUP(AH103,TrayInfo!$C$4:$D$561,2,FALSE)),"","*"),"") ->  | AJ103: =IF(AI103="*",R103,99) -> 99 | AK103: 0 | AL103: 0
R104: 7 | S104: NA - 12 x 6 | T104: NA - | U104: 1206 | V104: FALSE | W104: 12 x 6 | X104: 12 | Y104: 6 | Z104: 7 | AA104: 12 x 6 | AB104: 12 | AC104: 6 | AD104: This is a custom-sized body cutout. | AH104: CEZ01206 | AI104: =IF(V104,IF(ISNA(VLOOKUP(AH104,TrayInfo!$C$4:$D$561,2,FALSE)),"","*"),"") ->  | AJ104: 99 | AK104: 0 | AL104: 0
R105: 8 | S105: NA - 12 x 7 | T105: NA - | U105: 1207 | V105: FALSE | W105: 12 x 7 | X105: 12 | Y105: 7 | Z105: 8 | AA105: 12 x 7 | AB105: 12 | AC105: 7 | AD105: This is a custom-sized body cutout. | AH105: CEZ01207 | AI105: =IF(V105,IF(ISNA(VLOOKUP(AH105,TrayInfo!$C$4:$D$561,2,FALSE)),"","*"),"") ->  | AJ105: 99 | AK105: 0 | AL105: 0
R106: 9 | S106: NA - 13 x 8 | T106: NA - | U106: 1308 | V106: FALSE | W106: 13 x 8 | X106: 13 | Y106: 8 | Z106: 9 | AA106: 13 x 8 | AB106: 13 | AC106: 8 | AD106: This is a custom-sized body cutout. | AH106: CEZ01308 | AI106: =IF(V106,IF(ISNA(VLOOKUP(AH106,TrayInfo!$C$4:$D$561,2,FALSE)),"","*"),"") ->  | AJ106: 99 | AK106: 0 | AL106: 0
R107: 10 | S107: NA - 14 x 9 | T107: NA - | U107: 1409 | V107: FALSE | W107: 14 x 9 | X107: 14 | Y107: 9 | Z107: 10 | AA107: 14 x 9 | AB107: 14 | AC107: 9 | AD107: This is a custom-sized body cutout. | AH107: CEZ01409 | AI107: =IF(V107,IF(ISNA(VLOOKUP(AH107,TrayInfo!$C$4:$D$561,2,FALSE)),"","*"),"") ->  | AJ107: 99 | AK107: 0 | AL107: 0
R108: 11 | S108: NA - 15 x 9 | T108: NA - | U108: 1509 | V108: FALSE | W108: 15 x 9 | X108: 15 | Y108: 9 | Z108: 11 | AA108: 15 x 9 | AB108: 15 | AC108: 9 | AD108: This is a custom-sized body cutout. | AH108: CEZ01509 | AI108: =IF(V108,IF(ISNA(VLOOKUP(AH108,TrayInfo!$C$4:$D$561,2,FALSE)),"","*"),"") ->  | AJ108: 99 | AK108: 0 | AL108: 0
R109: 12 | S109: NA - 16 x 10 | T109: NA - | U109: 1610 | V109: FALSE | W109: 16 x 10 | X109: 16 | Y109: 10 | Z109: 12 | AA109: 16 x 10 | AB109: 16 | AC109: 10 | AD109: This is a custom-sized body cutout. | AH109: CEZ01610 | AI109: =IF(V109,IF(ISNA(VLOOKUP(AH109,TrayInfo!$C$4:$D$561,2,FALSE)),"","*"),"") ->  | AJ109: 99 | AK109: 0 | AL109: 0
R110: 13 | S110: NA - 17 x 10 | T110: NA - | U110: 1710 | V110: FALSE | W110: 17 x 10 | X110: 17 | Y110: 10 | Z110: 13 | AA110: 17 x 10 | AB110: 17 | AC110: 10 | AD110: This is a custom-sized body cutout. | AH110: CEZ01710 | AI110: =IF(V110,IF(ISNA(VLOOKUP(AH110,TrayInfo!$C$4:$D$561,2,FALSE)),"","*"),"") ->  | AJ110: 99 | AK110: 0 | AL110: 0
R111: 14 | S111: NA - 18 x 10 | T111: NA - | U111: 1810 | V111: FALSE | W111: 18 x 10 | X111: 18 | Y111: 10 | Z111: 14 | AA111: 18 x 10 | AB111: 18 | AC111: 10 | AD111: This is a custom-sized body cutout. | AH111: CEZ01810 | AI111: =IF(V111,IF(ISNA(VLOOKUP(AH111,TrayInfo!$C$4:$D$561,2,FALSE)),"","*"),"") ->  | AJ111: 99 | AK111: 0 | AL111: 0
R112: 15 | S112: NA - 19 x 10 | T112: NA - | U112: 1910 | V112: FALSE | W112: 19 x 10 | X112: 19 | Y112: 10 | Z112: 15 | AA112: 19 x 10 | AB112: 19 | AC112: 10 | AD112: This is a custom-sized body cutout. | AH112: CEZ01910 | AI112: =IF(V112,IF(ISNA(VLOOKUP(AH112,TrayInfo!$C$4:$D$561,2,FALSE)),"","*"),"") ->  | AJ112: 99 | AK112: 0 | AL112: 0
R113: 16 | S113: NA | T113: NA - | U113: NA | V113: FALSE | W113: NA | X113: 99 | Z113: 16 | AL113: 0
R115: CHAIR CONFIGURATION | T115: =INDEX(T117:T128,Q116) -> 0
Q116: 1 | S116: Description | T116: inches | U116: =INDEX(U117:U128,CHAIRCONFIG,1) -> For EZ Lock clamps, assumes width including arms is 4" to 5" more than chair width.
R117: 1 | S117: USE TYPICAL ARM WIDTH | U117: =" "&AI53 -> For EZ Lock clamps, assumes width including arms is 4" to 5" more than chair width.
R118: 2 | S118: Enter Total Width of Armpads | T118: =ARMS -> 0 | U118: <= Enter the total width of both arms in inches (e.g. 4.25)
R119: 3 | S119: =IF(LEN(C18)>1,C18,"Unused") -> Total width of both arm pads=3" | T119: =IF(E18>0,E18,0) -> 3 | U119: =IF(LEN(C18)>1,$U$130,$U$131) -> Use the total arm width entered for this chair in the table below.
R120: 4 | S120: =IF(LEN(C19)>1,C19,"Unused") -> Total width of both arm pads=3.5" | T120: 3.5 | U120: =IF(LEN(C19)>1,$U$130,$U$131) -> Use the total arm width entered for this chair in the table below.
R121: 5 | S121: Total width of both arm pads=4" | T121: 4 | U121: Use the total arm width entered for this chair in the table below.
R122: 6 | S122: Total width of both arm pads=4.5" | T122: 4.5 | U122: Use the total arm width entered for this chair in the table below.
R123: 7 | S123: Total width of both arm pads=5" | T123: 5 | U123: Use the total arm width entered for this chair in the table below.
R124: 8 | S124: Total width of both arm pads=5.5" | T124: 5.5 | U124: Use the total arm width entered for this chair in the table below.
R125: 9 | S125: Total width of both arm pads=6" | T125: 6 | U125: Use the total arm width entered for this chair in the table below.
R126: 10 | S126: Unused | T126: 0 | U126: Enter a chair name and total arm width in the table below.
R127: 11 | S127: Unused | T127: 0 | U127: Enter a chair name and total arm width in the table below.
R128: 12 | S128: Unused | T128: 0 | U128: Enter a chair name and total arm width in the table below.
U130: Use the total arm width entered for this chair in the table below.
U131: Enter a chair name and total arm width in the table below.
R134: 2 | S134: =INDEX(S136:S145,$R134,1) -> EZ Lock Clamps | T134: =INDEX(T136:T145,$R134,1) -> 31098 | U134: =INDEX(U136:U145,$R134,1) -> 143
S135: Clamp Description
R136: 1 | S136: No clamps
R137: 2 | S137: EZ Lock Clamps | T137: 31098 | U137: 143
R138: 3 | S138: Top Drop Clamps | T138: 31070 | U138: 194
R139: 4 | S139: Tube Lock Clamps | T139: 31072 | U139: 152
R140: 5 | S140: 1-1/8" Thick U Slides | T140: 32798 | U140: 99
R141: 6 | S141: 1-1/4" Thick U Slides | T141: 32794 | U141: 99
R142: 7 | S142: 1-1/2" Thick U Slides | T142: 32797 | U142: 99
R143: 8 | S143: 1-1/8" Thick Z Slides | T143: 32799 | U143: 53
R144: 9 | S144: 1-1/8" Z Slides 14 Inch | T144: 32747 | U144: 108
R145: 10 | S145: 1-1/2" Thick Z Slides | T145: 32800 | U145: 53
R146: 11 | S146: No clamps

Sheet Seat (hidden)
W1: Additional gusset if foam-in-place chosen--> | X1: =IF(AND(OR($B$7=16,$B$7=17),Design!$AO140,SEATIDX<>1),Design!$J$20,0) -> 0 | Y1: <-0 if no seat or base only | AD1: =INDEX($AC$34:$AE$43,$AD$2,3) -> 0 | AE1: <--Foam over std thickness | AH1: =IF(AD3-AD2=0.25,"70175",INDEX($AC$34:$AH$43,$AD$2,6)) -> Foam | AI1: <-foam up charge phantom or "FOAM" | AS1: =IF(SEATIDX<>1,"Seat "&SEATDEPTH&" deep. ","No seat. ")&IF(AND(BACKIDX<>1,BACKCONFIG<>2),"Back="&$AU$2&" thick "&"(base="&$AB$52&" foam="&BACKFOAMTHICK&IF(Design!$BF$127>0," wedge="&Design!$BF$127,"")&IF($AB$55>0," add gusset="&$AB$55,"")&")"&" Back LBW="&Seat!$T$50&" thick."&" STB hinge="&'Pick List'!$G$83," Assume 2"&quote&" thick back.") -> No seat. Assume 2" thick back. | AX1: ='Pick List'!$BB$410 -> 4 | BC1: Base+foam+contour+gusset= | BD1: =IF(AND(BACKIDX<>1,BACKCONFIG<>2),BACKFOAMTHICK+Design!$BF$127+$AB$52+$AB$55,2) -> 2 | BE1: (assume 2" if no back or base only) | BJ1: Messages below used in hip guide and adductor bracket warnings and use a minimum amt when vinyl covered base chosen | BS1: =IF(SEATIDX=5,"Assume ","") -> 
C2: Contoured seat so add for crosslink and enable depth adjustable option = | D2: =AND(CONTIDX>3,Seat!$B7<16) -> FALSE | G2: Shelf changed text= | H2: =IF(OR(ISNUMBER(Design!$N$38),ISNUMBER(Design!$N$40)),"**","") ->  | I2: <= (Adds "**" to contour desc to denote that the leg length or pelvic length is not standard) | U2: Front and rear thicknesses on PAT seat do not match= | X2: =AND(CONTIDX=3,Seat!AB26<>(Seat!AA5+Seat!AB5)) -> FALSE | AC2: Rounds to next integer. 1/4" treated like 1/2" | AD2: =MIN(IF(AD3>Q3,ROUND((AD3-Q3)/0.5,0),0)+1,10) -> 1 | AE2: <--Index to extra foam table below to point to retail adder | AI2: (Phantom overriden if only .25" difference) | AS2: Back edge thickness in lower serif area= | AU2: =$AB$52+BACKFOAMTHICK+Design!$BF$127+$AB$55 -> 2 | BA2: ='Pick List'!$BA$410+$BL$27-$BI$27 -> 3 | BC2: Useable seat dist= | BD2: =MAX(0,SEATDEPTH-$BD$1-$BD$5) -> 0 | BE2: (considering hinge if any) | BI2: #1 | BJ2: =IF(SEATIDX=5,"Assume seat is ","Seat is ")&IF($BS$4=$BI$4,$BI$4&quote&" incl channel (if any)",$BS$4&quote& " to "&$BI$4&quote&" thick") -> Seat is 0" incl channel (if any) | BQ2: #3 | BR2: =IF(SEATIDX=5,"Assume maximum seat thickness is ","Maximum seat thickness is ")&$BI$4&quote -> Maximum seat thickness is 0" | BS2: 1.5 | BT2: <- Input minimum thickness to use for hip guide and adductor bracket length when vinyl base only
B3: SEAT FOAM PARAMETERS | P3: Max thickness before phantom applies--> | Q3: 2 | AD3: =MAX($AC$6,$AB$27) -> 2 | AE3: <--Total thickness of layers that we do not always charge for (max of front or back if planar anti0thrust) | AV3: ='Pick List'!$BA$410 -> 3 | AZ3: =Belts!$F$278 -> 0 | BA3: =BI27-BL27 -> 0 | BC3: Pad pos'n warning= | BD3: =AND('Pick List'!$B$19,(('Pick List'!$BB$410-Belts!$F$278)>$BD$2)) -> FALSE | BE3: (pad length-overhang)>usuable) | BI3: #2 | BJ3: =IF(SEATIDX=5," (assume "," (must fit ")&IF($BS$4=$BI$4,$BI$4&quote&" thick seat)",$BS$4&quote&" to "&$BI$4&quote&" thick seat)") -> (must fit 0" thick seat) | BQ3: #4 | BR3: =IF(SEATIDX=5," (assume "," (must fit ")&$BI$4&quote&" thick seat)" -> (must fit 0" thick seat) | BS3: =IF(SEATIDX=5,BS2,0) -> 0 | BT3: <- Minimum thickness used for hip guide and adductor bracket when vinyl base only
I4: Custom | K4: Before | L4: This | M4: After | Q4: Custom | S4: Before | T4: This | U4: After | Y4: Custom | AA4: Before | AB4: This | AC4: Seat thickness wo/contour | AG4: Spinners | AW4: ='Pick List'!$BB$410-Belts!$F$278-SEATDEPTH+$BK$27 -> 4 | AX4: =SEATDEPTH-$BK$27-$BJ$27 -> 0 | AY4: =BJ27+Belts!$F$278 -> 0 | BI4: =MAX($BS$3,$BI$27+SEATBASETHICK+IF(Design!$AB$16,0.375,0)) -> 0 | BJ4: <-"C" distance plus amt for wood and/or crosslink in cushion + channel if any = length adductor must handle (OR MINIMUM) | BS4: =MAX($BS$3,$BL$27+SEATBASETHICK+IF(Design!$AB$16,0.375,0)) -> 0 | BT4: <-"F" distance plus amt for wood and/or crosslink in cushion + channel if any = length hip guide must handle (OR MINIMUM)
B5: =CHOOSE($B$7,1,1,1,2,2,2,2,3,3,3,3,4,4,4,4,5,5) -> 1 | C5: <= type of seat for formatting (UPDATE IF ADD ROWS TO TABLE) | F5: Custom contour and/or foams? -> | H5: =IF(OR(INDEX(H9:H25,B7)=1,INDEX(H9:H25,B7)=2),TRUE(),FALSE()) -> FALSE | I5: 10 | J5: BOTTOM LAYER | K5: 0 | L5: =INDEX(K9:K25,$B$7) -> 1 | M5: =K5+L5 -> 1 | N5: always charge? | O5: extra thick phantom | Q5: 4 | R5: MIDDLE LAYER | S5: =M5 -> 1 | T5: =INDEX(S9:S25,$B$7) -> 1 | U5: =S5+T5 -> 2 | V5: always charge? | W5: extra thick phantom | Y5: 32 | Z5: TOP LAYER | AA5: =U5 -> 2 | AB5: =INDEX(AA9:AA25,$B$7) -> 0 | AC5: =MAX((AA5+AB5),AB26) -> 2 | AD5: always charge? | AG5: 4 | AH5: 2 | AI5: 8 | BC5: Offset hinge depth, if any= | BD5: ='Pick List'!G83 -> 0 | BE5: (contour thickness at widest part of the back, not LBW) | BL5: Functional assumes 2" shorter than full depth (NOT USING USER VALUE)
C6: =SUBSTITUTE(SUBSTITUTE(C7,quote,""),comma," -") -> NA | I6: =INDEX(I9:I26,$B$7) -> 10 | J6: =SUBSTITUTE(J7,quote," in.") -> NA | K6: 0 | L6: =IF(N6,0,L5) -> 1 | M6: =K6+L6 -> 1 | N6: =VLOOKUP(I$6,SeatFoams,11) -> FALSE | O6: =IF(N6,"",IF(M6=$AD$3,$AH$1,"Foam")) -> Foam | Q6: =INDEX(Q9:Q26,$B$7) -> 4 | R6: =SUBSTITUTE(R7,quote," in.") -> NA | S6: =M6 -> 1 | T6: =IF(V6,0,T5) -> 1 | U6: =S6+T6 -> 2 | V6: =VLOOKUP(Q$6,SeatFoams,11) -> FALSE | W6: =IF(V6,"",IF(U6=$AD$3,$AH$1,"Foam")) -> Foam | Y6: =INDEX(Y9:Y26,$B$7) -> 32 | Z6: =SUBSTITUTE(Z7,quote," in.") -> NA | AA6: =U6 -> 2 | AB6: =IF(AD6,0,AB5) -> 0 | AC6: =AA6+AB6 -> 2 | AD6: =VLOOKUP(Y$6,SeatFoams,11) -> FALSE | AE6: =IF(AD6,"",IF(AC6=$AD$3,$AH$1,"Foam")) -> Foam | AG6: =AG5/2 -> 2 | AH6: =AH5/2 -> 1 | AI6: =AI5/2 -> 4 | BG6: Seat depth | BH6: Chair width | BJ6: =SEATDEPTH-2 -> -2 | BK6: 0.33 | BL6: <-D% of seat depth | BN6: =IF(FOAMSREQD,$BN$7,2) -> 2 | BO6: <- H for abductor height required without base (assume minimum of 2" if foams not required)
B7: 1 | C7: =INDEX(C9:C25,CONTIDX) -> NA | D7: - | E7: 1 | F7: 0 | G7: 0 | H7: 0 | J7: =IF(FOAMSREQD,INDEX(J9:J25,CONTIDX),"NA") -> NA | M7: =IF(N6,INDEX(M9:M26,CONTIDX),IF(M6=$AD$3,$AD$1,0)) -> 0 | O7: =IF(INDEX(O9:O25,CONTIDX)=" ",O6,INDEX(O9:O25,CONTIDX)) -> Foam | P7: =INDEX(P9:P25,CONTIDX,1) -> 05890 | R7: =IF(FOAMSREQD,INDEX(R9:R25,CONTIDX),"NA") -> NA | U7: =IF(V6,INDEX(U9:U26,CONTIDX),IF(U6=$AD$3,$AD$1,0)) -> 0 | W7: =IF(INDEX(W9:W25,CONTIDX)=" ",W6,INDEX(W9:W25,CONTIDX)) -> Foam | X7: =INDEX(X9:X25,CONTIDX,1) -> 05887 | Z7: =IF(FOAMSREQD,INDEX(Z9:Z25,CONTIDX),"NA") -> NA | AC7: =IF(AD6,INDEX(AC9:AC26,CONTIDX),IF(AC6=$AD$3,$AD$1,0)) -> 0 | AE7: =IF(INDEX(AE9:AE25,CONTIDX)=" ",AE6,INDEX(AE9:AE25,CONTIDX)) -> Foam | AF7: =INDEX(AF9:AF25,CONTIDX,1) -> FIP | AG7: =INDEX(AG9:AG25,CONTIDX,1) -> 0 | AK7: =1 if okay to modify | AN7: =INDEX(AN9:AN25,CONTIDX,1) -> FALSE | BG7: =INDEX(BG$9:BG$25,CONTIDX) -> 0 | BH7: 0 | BI7: 2 | BJ7: 0 | BK7: 0 | BL7: 2 | BM7: 2 | BN7: 2 | BO7: 0 | BP7: 2 | BR7: =INDEX(BR9:BR25,$B$7) -> NA
B8: Idx | C8: Description of Seat Contour (NA if vinyl covered seat) | D8: Phantom | E8: Req-d Qty | F8: Retail wo extra thick | G8: Price before foam chgs | H8: Cust Flag | I8: Foam Idx | J8: Desc | K8: Layer Thick | L8: Sub-total | M8: Retail | N8: Cost | O8: Phantom | P8: Foam | Q8: Foam Idx | R8: Desc | S8: Layer Thick | T8: Sub-total | U8: Retail | V8: Cost | W8: Phantom | X8: Foam | Y8: Foam Idx | Z8: Desc | AA8: Layer Thick | AB8: Sub-total | AC8: Retail | AD8: Cost | AE8: Phantom | AF8: Foam | AG8: Riser | AH8: Wedge | AI8: Abductor | AK8: Riser | AL8: Wedge | AM8: Abductor | AN8: Contoured hip guide okay? | AO8: crosslink titles | BF8: Idx | BG8: A | BH8: B | BI8: C | BJ8: D | BK8: E | BL8: F | BM8: G | BN8: H | BO8: I | BP8: J | BQ8: Slope | BR8: TITLES INCLUDING CUSTOM DIMENSIONS
A9: Planar with 1" medium + 1" soft visco foam | B9: 1 | C9: =IF(FOAMSREQD,A9,"NA") -> NA | D9: - | E9: 1 | F9: 0 | I9: 10 | J9: =VLOOKUP(I9,Foams!$A$4:$K$35,2) -> 1" Med Visco Foam | K9: =VLOOKUP(I9,Foams!$A$4:$K$35,9) -> 1 | L9: =K$5+K9 -> 1 | M9: =IF(VLOOKUP($I9,Foams!$A$4:$K$35,11),VLOOKUP($I9,Foams!$A$4:$K$35,7),0) -> 0 | N9: =IF(OR($L9>$Q$3,VLOOKUP($I9,Foams!$A$4:$K$35,11)),VLOOKUP($I9,Foams!$A$4:$K$35,8),0) -> 0 | O9: =IF(OR(L9>$Q$3,VLOOKUP(I9,Foams!$A$4:$K$35,11)),VLOOKUP(I9,Foams!$A$4:$K$35,6)," ") ->  | P9: =VLOOKUP(I9,Foams!$A$4:$K$35,10) -> 05890 | Q9: 4 | R9: =VLOOKUP(Q9,Foams!$A$4:$K$35,2) -> 1" Soft Visco Foam | S9: =VLOOKUP(Q9,Foams!$A$4:$K$35,9) -> 1 | T9: =S$5+S9 -> 2 | U9: =IF(VLOOKUP($Q9,Foams!$A$4:$K$35,11),VLOOKUP($Q9,Foams!$A$4:$K$35,7),0) -> 0 | V9: =IF(OR($T9>$Q$3,VLOOKUP($Q9,Foams!$A$4:$K$35,11)),VLOOKUP($Q9,Foams!$A$4:$K$35,8),0) -> 0 | W9: =IF(OR(T9>$Q$3,VLOOKUP(Q9,Foams!$A$4:$K$35,11)),VLOOKUP(Q9,Foams!$A$4:$K$35,6)," ") ->  | X9: =VLOOKUP(Q9,Foams!$A$4:$K$35,10) -> 05887 | Y9: =Foams!$A$35 -> 32 | Z9: =VLOOKUP(Y9,Foams!$A$4:$K$35,2) -> NA | AA9: =VLOOKUP(Y9,Foams!$A$4:$K$35,9) -> 0 | AB9: =AA$5+AA9 -> 2 | AC9: =IF(VLOOKUP($Y9,Foams!$A$4:$K$35,11),VLOOKUP($Y9,Foams!$A$4:$K$35,7),0) -> 0 | AD9: =IF(OR($AB9>$Q$3,VLOOKUP($Y9,Foams!$A$4:$K$35,11)),VLOOKUP($Y9,Foams!$A$4:$K$35,8),0) -> 0 | AE9: =IF(OR(AB9>$Q$3,VLOOKUP(Y9,Foams!$A$4:$K$35,11)),VLOOKUP(Y9,Foams!$A$4:$K$35,6)," ") ->  | AF9: =VLOOKUP(Y9,Foams!$A$4:$K$35,10) -> FIP | AG9: 0 | AH9: 0 | AI9: 0 | AK9: 0 | AL9: 0 | AM9: 0 | AN9: =FALSE() -> FALSE | AO9: 1 | AP9: None | BF9: 1 | BG9: =Design!$D$75 -> 0 | BH9: =Design!$E$75 -> 0 | BI9: =$BP9+$AH9+$AG9 -> 2 | BJ9: 0 | BK9: 0 | BL9: =$BP9 -> 2 | BM9: =$BP9+$AG9 -> 2 | BN9: =$BP9+$AG9+$AI9 -> 2 | BO9: =$AH9 -> 0 | BP9: =$AC$5 -> 2 | BQ9: 2 | BR9: =C9 -> NA
A10: Planar with custom foams | B10: 2 | C10: =IF(FOAMSREQD,A10,"NA") -> NA | D10: - | E10: 1 | F10: 0 | H10: 1 | I10: =I$5 -> 10 | J10: =VLOOKUP(I10,Foams!$A$4:$K$35,2) -> 1" Med Visco Foam | K10: =VLOOKUP(I10,Foams!$A$4:$K$35,9) -> 1 | L10: 1 | M10: =IF(VLOOKUP($I10,Foams!$A$4:$K$35,11),VLOOKUP($I10,Foams!$A$4:$K$35,7),0) -> 0 | N10: =IF(OR($L10>$Q$3,VLOOKUP($I10,Foams!$A$4:$K$35,11)),VLOOKUP($I10,Foams!$A$4:$K$35,8),0) -> 0 | O10: =IF(OR(L10>$Q$3,VLOOKUP(I10,Foams!$A$4:$K$35,11)),VLOOKUP(I10,Foams!$A$4:$K$35,6)," ") ->  | P10: =VLOOKUP(I10,Foams!$A$4:$K$35,10) -> 05890 | Q10: =Q$5 -> 4 | R10: =VLOOKUP(Q10,Foams!$A$4:$K$35,2) -> 1" Soft Visco Foam | S10: =VLOOKUP(Q10,Foams!$A$4:$K$35,9) -> 1 | T10: 2 | U10: =IF(VLOOKUP($Q10,Foams!$A$4:$K$35,11),VLOOKUP($Q10,Foams!$A$4:$K$35,7),0) -> 0 | V10: =IF(OR($T10>$Q$3,VLOOKUP($Q10,Foams!$A$4:$K$35,11)),VLOOKUP($Q10,Foams!$A$4:$K$35,8),0) -> 0 | W10: =IF(OR(T10>$Q$3,VLOOKUP(Q10,Foams!$A$4:$K$35,11)),VLOOKUP(Q10,Foams!$A$4:$K$35,6)," ") ->  | X10: =VLOOKUP(Q10,Foams!$A$4:$K$35,10) -> 05887 | Y10: =Y$5 -> 32 | Z10: =VLOOKUP(Y10,Foams!$A$4:$K$35,2) -> NA | AA10: =VLOOKUP(Y10,Foams!$A$4:$K$35,9) -> 0 | AB10: 2 | AC10: =IF(VLOOKUP($Y10,Foams!$A$4:$K$35,11),VLOOKUP($Y10,Foams!$A$4:$K$35,7),0) -> 0 | AD10: =IF(OR($AB10>$Q$3,VLOOKUP($Y10,Foams!$A$4:$K$35,11)),VLOOKUP($Y10,Foams!$A$4:$K$35,8),0) -> 0 | AE10: =IF(OR(AB10>$Q$3,VLOOKUP(Y10,Foams!$A$4:$K$35,11)),VLOOKUP(Y10,Foams!$A$4:$K$35,6)," ") ->  | AF10: =VLOOKUP(Y10,Foams!$A$4:$K$35,10) -> FIP | AG10: 0 | AH10: 0 | AI10: 0 | AK10: 0 | AL10: 0 | AM10: 0 | AN10: =FALSE() -> FALSE | AO10: 2 | AP10: 1/2" | BF10: 2 | BG10: =Design!$D$75 -> 0 | BH10: =Design!$E$75 -> 0 | BI10: 2 | BJ10: 0 | BK10: 0 | BL10: 2 | BM10: =$BP10+$AG10 -> 2 | BN10: =$BP10+$AG10+$AI10 -> 2 | BO10: =$AH10 -> 0 | BP10: 2 | BQ10: 2 | BR10: =C10 -> NA
A11: Planar anti-thrust w/ custom foams | B11: 3 | C11: =IF(FOAMSREQD,A11,"NA") -> NA | D11: 71087 | E11: 1 | F11: 93 | H11: 1 | I11: =I$5 -> 10 | J11: =VLOOKUP(I11,Foams!$A$4:$K$35,2) -> 1" Med Visco Foam | K11: =VLOOKUP(I11,Foams!$A$4:$K$35,9) -> 1 | L11: 1 | M11: =IF(VLOOKUP($I11,Foams!$A$4:$K$35,11),VLOOKUP($I11,Foams!$A$4:$K$35,7),0) -> 0 | N11: =IF(OR($L11>$Q$3,VLOOKUP($I11,Foams!$A$4:$K$35,11)),VLOOKUP($I11,Foams!$A$4:$K$35,8),0) -> 0 | O11: =IF(OR(L11>$Q$3,VLOOKUP(I11,Foams!$A$4:$K$35,11)),VLOOKUP(I11,Foams!$A$4:$K$35,6)," ") ->  | P11: =VLOOKUP(I11,Foams!$A$4:$K$35,10) -> 05890 | Q11: =Q$5 -> 4 | R11: =VLOOKUP(Q11,Foams!$A$4:$K$35,2) -> 1" Soft Visco Foam | S11: =VLOOKUP(Q11,Foams!$A$4:$K$35,9) -> 1 | T11: 2 | U11: =IF(VLOOKUP($Q11,Foams!$A$4:$K$35,11),VLOOKUP($Q11,Foams!$A$4:$K$35,7),0) -> 0 | V11: =IF(OR($T11>$Q$3,VLOOKUP($Q11,Foams!$A$4:$K$35,11)),VLOOKUP($Q11,Foams!$A$4:$K$35,8),0) -> 0 | W11: =IF(OR(T11>$Q$3,VLOOKUP(Q11,Foams!$A$4:$K$35,11)),VLOOKUP(Q11,Foams!$A$4:$K$35,6)," ") ->  | X11: =VLOOKUP(Q11,Foams!$A$4:$K$35,10) -> 05887 | Y11: =Y$5 -> 32 | Z11: =VLOOKUP(Y11,Foams!$A$4:$K$35,2) -> NA | AA11: =VLOOKUP(Y11,Foams!$A$4:$K$35,9) -> 0 | AB11: 2 | AC11: =IF(VLOOKUP($Y11,Foams!$A$4:$K$35,11),VLOOKUP($Y11,Foams!$A$4:$K$35,7),0) -> 0 | AD11: =IF(OR($AB11>$Q$3,VLOOKUP($Y11,Foams!$A$4:$K$35,11)),VLOOKUP($Y11,Foams!$A$4:$K$35,8),0) -> 0 | AE11: =IF(OR(AB11>$Q$3,VLOOKUP(Y11,Foams!$A$4:$K$35,11)),VLOOKUP(Y11,Foams!$A$4:$K$35,6)," ") ->  | AF11: =VLOOKUP(Y11,Foams!$A$4:$K$35,10) -> FIP | AG11: 0 | AH11: 0 | AI11: 0 | AK11: 0 | AL11: 0 | AM11: 0 | AN11: =FALSE() -> FALSE | AO11: 3 | AP11: 1" | BF11: 3 | BG11: =Design!$D$75 -> 0 | BH11: =Design!$E$75 -> 0 | BI11: 2 | BJ11: 0 | BK11: 0 | BL11: 2 | BM11: =$BP11+$AG11 -> 2 | BN11: =$BP11+$AG11+$AI11 -> 2 | BO11: =$AH11 -> 0 | BP11: 2 | BQ11: 2 | BR11: =C11&", F="&Design!$E$15&quote&", S="&Design!G$15&quote&", R="&Design!$I$15 -> NA, F=", S=2", R=0
A12: Anti-thrust , Shallow | B12: 4 | C12: =IF(FOAMSREQD,A12&$H$2,"NA") -> NA | D12: 71027 | E12: 1 | F12: 93 | I12: 10 | J12: =VLOOKUP(I12,Foams!$A$4:$K$35,2) -> 1" Med Visco Foam | K12: =VLOOKUP(I12,Foams!$A$4:$K$35,9) -> 1 | L12: 1 | M12: =IF(VLOOKUP($I12,Foams!$A$4:$K$35,11),VLOOKUP($I12,Foams!$A$4:$K$35,7),0) -> 0 | N12: =IF(OR($L12>$Q$3,VLOOKUP($I12,Foams!$A$4:$K$35,11)),VLOOKUP($I12,Foams!$A$4:$K$35,8),0) -> 0 | O12: =IF(OR(L12>$Q$3,VLOOKUP(I12,Foams!$A$4:$K$35,11)),VLOOKUP(I12,Foams!$A$4:$K$35,6)," ") ->  | P12: =VLOOKUP(I12,Foams!$A$4:$K$35,10) -> 05890 | Q12: 3 | R12: =VLOOKUP(Q12,Foams!$A$4:$K$35,2) -> 1/2" Soft Visco Foam | S12: =VLOOKUP(Q12,Foams!$A$4:$K$35,9) -> 0.5 | T12: 1.5 | U12: =IF(VLOOKUP($Q12,Foams!$A$4:$K$35,11),VLOOKUP($Q12,Foams!$A$4:$K$35,7),0) -> 0 | V12: =IF(OR($T12>$Q$3,VLOOKUP($Q12,Foams!$A$4:$K$35,11)),VLOOKUP($Q12,Foams!$A$4:$K$35,8),0) -> 0 | W12: =IF(OR(T12>$Q$3,VLOOKUP(Q12,Foams!$A$4:$K$35,11)),VLOOKUP(Q12,Foams!$A$4:$K$35,6)," ") ->  | X12: =VLOOKUP(Q12,Foams!$A$4:$K$35,10) -> 05888 | Y12: =Foams!$A$35 -> 32 | Z12: =VLOOKUP(Y12,Foams!$A$4:$K$35,2) -> NA | AA12: =VLOOKUP(Y12,Foams!$A$4:$K$35,9) -> 0 | AB12: 2 | AC12: =IF(VLOOKUP($Y12,Foams!$A$4:$K$35,11),VLOOKUP($Y12,Foams!$A$4:$K$35,7),0) -> 0 | AD12: =IF(OR($AB12>$Q$3,VLOOKUP($Y12,Foams!$A$4:$K$35,11)),VLOOKUP($Y12,Foams!$A$4:$K$35,8),0) -> 0 | AE12: =IF(OR(AB12>$Q$3,VLOOKUP(Y12,Foams!$A$4:$K$35,11)),VLOOKUP(Y12,Foams!$A$4:$K$35,6)," ") ->  | AF12: =VLOOKUP(Y12,Foams!$A$4:$K$35,10) -> FIP | AG12: 0.5 | AH12: 0 | AI12: 0 | AK12: 0 | AL12: 0 | AM12: 0 | AN12: =TRUE() -> TRUE | AO12: 4 | AP12: 1-1/2" | BF12: 4 | BG12: =Design!$D$75 -> 0 | BH12: =Design!$E$75 -> 0 | BI12: 2.5 | BJ12: =IF(ISNUMBER(Design!$N$38),Design!$N$38,IF(ISNUMBER(Design!$N$40),$BG12-$BK12-Design!$AB$60,ROUND($BJ$6*$BK$6,0))) -> -1 | BK12: =IF(ISNUMBER(Design!$N$40),Design!$N$40,$BG12-Design!$AB$60-$BJ12) -> -1 | BL12: 2 | BM12: =$BP12+$AG12 -> 2.5 | BN12: =$BP12+$AG12+$AI12 -> 2.5 | BO12: =$AH12 -> 0 | BP12: 2 | BQ12: 2 | BR12: =C12&" C="&BI12&" D="&BJ12&" E="&BK12&" F="&BL12 -> NA C=2.5 D=-1 E=-1 F=2
A13: Anti-thrust , Medium | B13: 5 | C13: =IF(FOAMSREQD,A13&$H$2,"NA") -> NA | D13: 71027 | E13: 1 | F13: 93 | I13: 10 | J13: =VLOOKUP(I13,Foams!$A$4:$K$35,2) -> 1" Med Visco Foam | K13: =VLOOKUP(I13,Foams!$A$4:$K$35,9) -> 1 | L13: 1 | M13: =IF(VLOOKUP($I13,Foams!$A$4:$K$35,11),VLOOKUP($I13,Foams!$A$4:$K$35,7),0) -> 0 | N13: =IF(OR($L13>$Q$3,VLOOKUP($I13,Foams!$A$4:$K$35,11)),VLOOKUP($I13,Foams!$A$4:$K$35,8),0) -> 0 | O13: =IF(OR(L13>$Q$3,VLOOKUP(I13,Foams!$A$4:$K$35,11)),VLOOKUP(I13,Foams!$A$4:$K$35,6)," ") ->  | P13: =VLOOKUP(I13,Foams!$A$4:$K$35,10) -> 05890 | Q13: 3 | R13: =VLOOKUP(Q13,Foams!$A$4:$K$35,2) -> 1/2" Soft Visco Foam | S13: =VLOOKUP(Q13,Foams!$A$4:$K$35,9) -> 0.5 | T13: 1.5 | U13: =IF(VLOOKUP($Q13,Foams!$A$4:$K$35,11),VLOOKUP($Q13,Foams!$A$4:$K$35,7),0) -> 0 | V13: =IF(OR($T13>$Q$3,VLOOKUP($Q13,Foams!$A$4:$K$35,11)),VLOOKUP($Q13,Foams!$A$4:$K$35,8),0) -> 0 | W13: =IF(OR(T13>$Q$3,VLOOKUP(Q13,Foams!$A$4:$K$35,11)),VLOOKUP(Q13,Foams!$A$4:$K$35,6)," ") ->  | X13: =VLOOKUP(Q13,Foams!$A$4:$K$35,10) -> 05888 | Y13: =Foams!$A$35 -> 32 | Z13: =VLOOKUP(Y13,Foams!$A$4:$K$35,2) -> NA | AA13: =VLOOKUP(Y13,Foams!$A$4:$K$35,9) -> 0 | AB13: 2 | AC13: =IF(VLOOKUP($Y13,Foams!$A$4:$K$35,11),VLOOKUP($Y13,Foams!$A$4:$K$35,7),0) -> 0 | AD13: =IF(OR($AB13>$Q$3,VLOOKUP($Y13,Foams!$A$4:$K$35,11)),VLOOKUP($Y13,Foams!$A$4:$K$35,8),0) -> 0 | AE13: =IF(OR(AB13>$Q$3,VLOOKUP(Y13,Foams!$A$4:$K$35,11)),VLOOKUP(Y13,Foams!$A$4:$K$35,6)," ") ->  | AF13: =VLOOKUP(Y13,Foams!$A$4:$K$35,10) -> FIP | AG13: 1 | AH13: 0 | AI13: 0 | AK13: 0 | AL13: 0 | AM13: 0 | AN13: =TRUE() -> TRUE | AO13: 5 | AP13: 2" | BF13: 5 | BG13: =Design!$D$75 -> 0 | BH13: =Design!$E$75 -> 0 | BI13: 3 | BJ13: =IF(ISNUMBER(Design!$N$38),Design!$N$38,IF(ISNUMBER(Design!$N$40),$BG13-$BK13-Design!$AB$60,ROUND($BJ$6*$BK$6,0))) -> -1 | BK13: =IF(ISNUMBER(Design!$N$40),Design!$N$40,$BG13-Design!$AB$60-$BJ13) -> -1 | BL13: 2 | BM13: 3 | BN13: 3 | BO13: 0 | BP13: 2 | BQ13: 2 | BR13: =C13&" C="&BI13&" D="&BJ13&" E="&BK13&" F="&BL13 -> NA C=3 D=-1 E=-1 F=2
A14: Anti-thrust , Deep | B14: 6 | C14: =IF(FOAMSREQD,A14&$H$2,"NA") -> NA | D14: 71027 | E14: 1 | F14: 93 | I14: 10 | J14: =VLOOKUP(I14,Foams!$A$4:$K$35,2) -> 1" Med Visco Foam | K14: =VLOOKUP(I14,Foams!$A$4:$K$35,9) -> 1 | L14: 1 | M14: =IF(VLOOKUP($I14,Foams!$A$4:$K$35,11),VLOOKUP($I14,Foams!$A$4:$K$35,7),0) -> 0 | N14: =IF(OR($L14>$Q$3,VLOOKUP($I14,Foams!$A$4:$K$35,11)),VLOOKUP($I14,Foams!$A$4:$K$35,8),0) -> 0 | O14: =IF(OR(L14>$Q$3,VLOOKUP(I14,Foams!$A$4:$K$35,11)),VLOOKUP(I14,Foams!$A$4:$K$35,6)," ") ->  | P14: =VLOOKUP(I14,Foams!$A$4:$K$35,10) -> 05890 | Q14: 3 | R14: =VLOOKUP(Q14,Foams!$A$4:$K$35,2) -> 1/2" Soft Visco Foam | S14: =VLOOKUP(Q14,Foams!$A$4:$K$35,9) -> 0.5 | T14: 1.5 | U14: =IF(VLOOKUP($Q14,Foams!$A$4:$K$35,11),VLOOKUP($Q14,Foams!$A$4:$K$35,7),0) -> 0 | V14: =IF(OR($T14>$Q$3,VLOOKUP($Q14,Foams!$A$4:$K$35,11)),VLOOKUP($Q14,Foams!$A$4:$K$35,8),0) -> 0 | W14: =IF(OR(T14>$Q$3,VLOOKUP(Q14,Foams!$A$4:$K$35,11)),VLOOKUP(Q14,Foams!$A$4:$K$35,6)," ") ->  | X14: =VLOOKUP(Q14,Foams!$A$4:$K$35,10) -> 05888 | Y14: =Foams!$A$35 -> 32 | Z14: =VLOOKUP(Y14,Foams!$A$4:$K$35,2) -> NA | AA14: =VLOOKUP(Y14,Foams!$A$4:$K$35,9) -> 0 | AB14: 2 | AC14: =IF(VLOOKUP($Y14,Foams!$A$4:$K$35,11),VLOOKUP($Y14,Foams!$A$4:$K$35,7),0) -> 0 | AD14: =IF(OR($AB14>$Q$3,VLOOKUP($Y14,Foams!$A$4:$K$35,11)),VLOOKUP($Y14,Foams!$A$4:$K$35,8),0) -> 0 | AE14: =IF(OR(AB14>$Q$3,VLOOKUP(Y14,Foams!$A$4:$K$35,11)),VLOOKUP(Y14,Foams!$A$4:$K$35,6)," ") ->  | AF14: =VLOOKUP(Y14,Foams!$A$4:$K$35,10) -> FIP | AG14: 1.5 | AH14: 0 | AI14: 0 | AK14: 0 | AL14: 0 | AM14: 0 | AN14: =TRUE() -> TRUE | BF14: 6 | BG14: =Design!$D$75 -> 0 | BH14: =Design!$E$75 -> 0 | BI14: 3.5 | BJ14: =IF(ISNUMBER(Design!$N$38),Design!$N$38,IF(ISNUMBER(Design!$N$40),$BG14-$BK14-Design!$AB$60,ROUND($BJ$6*$BK$6,0))) -> -1 | BK14: =IF(ISNUMBER(Design!$N$40),Design!$N$40,$BG14-Design!$AB$60-$BJ14) -> -1 | BL14: 2 | BM14: 3.5 | BN14: 3.5 | BO14: 0 | BP14: 2 | BQ14: 2 | BR14: =C14&" C="&BI14&" D="&BJ14&" E="&BK14&" F="&BL14 -> NA C=3.5 D=-1 E=-1 F=2
A15: Anti-thrust , custom foam & dimensions | B15: 7 | C15: =IF(FOAMSREQD,A15,"NA") -> NA | D15: 71027 | E15: 1 | F15: 93 | H15: 1 | I15: =I$5 -> 10 | J15: =VLOOKUP(I15,Foams!$A$4:$K$35,2) -> 1" Med Visco Foam | K15: =VLOOKUP(I15,Foams!$A$4:$K$35,9) -> 1 | L15: 1 | M15: =IF(VLOOKUP($I15,Foams!$A$4:$K$35,11),VLOOKUP($I15,Foams!$A$4:$K$35,7),0) -> 0 | N15: =IF(OR($L15>$Q$3,VLOOKUP($I15,Foams!$A$4:$K$35,11)),VLOOKUP($I15,Foams!$A$4:$K$35,8),0) -> 0 | O15: =IF(OR(L15>$Q$3,VLOOKUP(I15,Foams!$A$4:$K$35,11)),VLOOKUP(I15,Foams!$A$4:$K$35,6)," ") ->  | P15: =VLOOKUP(I15,Foams!$A$4:$K$35,10) -> 05890 | Q15: =Q$5 -> 4 | R15: =VLOOKUP(Q15,Foams!$A$4:$K$35,2) -> 1" Soft Visco Foam | S15: =VLOOKUP(Q15,Foams!$A$4:$K$35,9) -> 1 | T15: 2 | U15: =IF(VLOOKUP($Q15,Foams!$A$4:$K$35,11),VLOOKUP($Q15,Foams!$A$4:$K$35,7),0) -> 0 | V15: =IF(OR($T15>$Q$3,VLOOKUP($Q15,Foams!$A$4:$K$35,11)),VLOOKUP($Q15,Foams!$A$4:$K$35,8),0) -> 0 | W15: =IF(OR(T15>$Q$3,VLOOKUP(Q15,Foams!$A$4:$K$35,11)),VLOOKUP(Q15,Foams!$A$4:$K$35,6)," ") ->  | X15: =VLOOKUP(Q15,Foams!$A$4:$K$35,10) -> 05887 | Y15: =Y$5 -> 32 | Z15: =VLOOKUP(Y15,Foams!$A$4:$K$35,2) -> NA | AA15: =VLOOKUP(Y15,Foams!$A$4:$K$35,9) -> 0 | AB15: 2 | AC15: =IF(VLOOKUP($Y15,Foams!$A$4:$K$35,11),VLOOKUP($Y15,Foams!$A$4:$K$35,7),0) -> 0 | AD15: =IF(OR($AB15>$Q$3,VLOOKUP($Y15,Foams!$A$4:$K$35,11)),VLOOKUP($Y15,Foams!$A$4:$K$35,8),0) -> 0 | AE15: =IF(OR(AB15>$Q$3,VLOOKUP(Y15,Foams!$A$4:$K$35,11)),VLOOKUP(Y15,Foams!$A$4:$K$35,6)," ") ->  | AF15: =VLOOKUP(Y15,Foams!$A$4:$K$35,10) -> FIP | AG15: =$AG$6 -> 2 | AH15: 0 | AI15: 0 | AK15: 1 | AL15: 0 | AM15: 0 | AN15: =AG15>0 -> TRUE | BF15: 7 | BG15: =Design!$D$75 -> 0 | BH15: =Design!$E$75 -> 0 | BI15: 4 | BJ15: =IF(ISNUMBER(Design!$N$38),Design!$N$38,IF(ISNUMBER(Design!$N$40),$BG15-$BK15-Design!$AB$60,ROUND($BJ$6*$BK$6,0))) -> -1 | BK15: =IF(ISNUMBER(Design!$N$40),Design!$N$40,$BG15-Design!$AB$60-$BJ15) -> -1 | BL15: 2 | BM15: 4 | BN15: 4 | BO15: 0 | BP15: 2 | BQ15: 2 | BR15: ="Anti-thrust, C="&BI15&" D="&BJ15&" E="&BK15&" F="&BL15 -> Anti-thrust, C=4 D=-1 E=-1 F=2
A16: Antithrust w/Leg Wells, Shallow | B16: 8 | C16: =IF(FOAMSREQD,A16&$H$2,"NA") -> NA | D16: 71028 | E16: 1 | F16: 192 | I16: 10 | J16: =VLOOKUP(I16,Foams!$A$4:$K$35,2) -> 1" Med Visco Foam | K16: =VLOOKUP(I16,Foams!$A$4:$K$35,9) -> 1 | L16: 1 | M16: =IF(VLOOKUP($I16,Foams!$A$4:$K$35,11),VLOOKUP($I16,Foams!$A$4:$K$35,7),0) -> 0 | N16: =IF(OR($L16>$Q$3,VLOOKUP($I16,Foams!$A$4:$K$35,11)),VLOOKUP($I16,Foams!$A$4:$K$35,8),0) -> 0 | O16: =IF(OR(L16>$Q$3,VLOOKUP(I16,Foams!$A$4:$K$35,11)),VLOOKUP(I16,Foams!$A$4:$K$35,6)," ") ->  | P16: =VLOOKUP(I16,Foams!$A$4:$K$35,10) -> 05890 | Q16: 3 | R16: =VLOOKUP(Q16,Foams!$A$4:$K$35,2) -> 1/2" Soft Visco Foam | S16: =VLOOKUP(Q16,Foams!$A$4:$K$35,9) -> 0.5 | T16: 1.5 | U16: =IF(VLOOKUP($Q16,Foams!$A$4:$K$35,11),VLOOKUP($Q16,Foams!$A$4:$K$35,7),0) -> 0 | V16: =IF(OR($T16>$Q$3,VLOOKUP($Q16,Foams!$A$4:$K$35,11)),VLOOKUP($Q16,Foams!$A$4:$K$35,8),0) -> 0 | W16: =IF(OR(T16>$Q$3,VLOOKUP(Q16,Foams!$A$4:$K$35,11)),VLOOKUP(Q16,Foams!$A$4:$K$35,6)," ") ->  | X16: =VLOOKUP(Q16,Foams!$A$4:$K$35,10) -> 05888 | Y16: =Foams!$A$35 -> 32 | Z16: =VLOOKUP(Y16,Foams!$A$4:$K$35,2) -> NA | AA16: =VLOOKUP(Y16,Foams!$A$4:$K$35,9) -> 0 | AB16: 2 | AC16: =IF(VLOOKUP($Y16,Foams!$A$4:$K$35,11),VLOOKUP($Y16,Foams!$A$4:$K$35,7),0) -> 0 | AD16: =IF(OR($AB16>$Q$3,VLOOKUP($Y16,Foams!$A$4:$K$35,11)),VLOOKUP($Y16,Foams!$A$4:$K$35,8),0) -> 0 | AE16: =IF(OR(AB16>$Q$3,VLOOKUP(Y16,Foams!$A$4:$K$35,11)),VLOOKUP(Y16,Foams!$A$4:$K$35,6)," ") ->  | AF16: =VLOOKUP(Y16,Foams!$A$4:$K$35,10) -> FIP | AG16: 0.5 | AH16: 0.5 | AI16: 0.5 | AK16: 0 | AL16: 0 | AM16: 0 | AN16: =TRUE() -> TRUE | BF16: 8 | BG16: =Design!$D$75 -> 0 | BH16: =Design!$E$75 -> 0 | BI16: 3 | BJ16: =IF(ISNUMBER(Design!$N$38),Design!$N$38,IF(ISNUMBER(Design!$N$40),$BG16-$BK16-Design!$AB$60,ROUND($BJ$6*$BK$6,0))) -> -1 | BK16: =IF(ISNUMBER(Design!$N$40),Design!$N$40,$BG16-Design!$AB$60-$BJ16) -> -1 | BL16: 2 | BM16: 2.5 | BN16: 3 | BO16: 0.5 | BP16: 2 | BQ16: 2 | BR16: =C16&" D="&BJ16&" E="&BK16&" F="&BL16&" G="&BM16&" H="&BN16 -> NA D=-1 E=-1 F=2 G=2.5 H=3
A17: Antithrust w/Leg Wells, Medium | B17: 9 | C17: =IF(FOAMSREQD,A17&$H$2,"NA") -> NA | D17: 71028 | E17: 1 | F17: 192 | I17: 10 | J17: =VLOOKUP(I17,Foams!$A$4:$K$35,2) -> 1" Med Visco Foam | K17: =VLOOKUP(I17,Foams!$A$4:$K$35,9) -> 1 | L17: 1 | M17: =IF(VLOOKUP($I17,Foams!$A$4:$K$35,11),VLOOKUP($I17,Foams!$A$4:$K$35,7),0) -> 0 | N17: =IF(OR($L17>$Q$3,VLOOKUP($I17,Foams!$A$4:$K$35,11)),VLOOKUP($I17,Foams!$A$4:$K$35,8),0) -> 0 | O17: =IF(OR(L17>$Q$3,VLOOKUP(I17,Foams!$A$4:$K$35,11)),VLOOKUP(I17,Foams!$A$4:$K$35,6)," ") ->  | P17: =VLOOKUP(I17,Foams!$A$4:$K$35,10) -> 05890 | Q17: 3 | R17: =VLOOKUP(Q17,Foams!$A$4:$K$35,2) -> 1/2" Soft Visco Foam | S17: =VLOOKUP(Q17,Foams!$A$4:$K$35,9) -> 0.5 | T17: 1.5 | U17: =IF(VLOOKUP($Q17,Foams!$A$4:$K$35,11),VLOOKUP($Q17,Foams!$A$4:$K$35,7),0) -> 0 | V17: =IF(OR($T17>$Q$3,VLOOKUP($Q17,Foams!$A$4:$K$35,11)),VLOOKUP($Q17,Foams!$A$4:$K$35,8),0) -> 0 | W17: =IF(OR(T17>$Q$3,VLOOKUP(Q17,Foams!$A$4:$K$35,11)),VLOOKUP(Q17,Foams!$A$4:$K$35,6)," ") ->  | X17: =VLOOKUP(Q17,Foams!$A$4:$K$35,10) -> 05888 | Y17: =Foams!$A$35 -> 32 | Z17: =VLOOKUP(Y17,Foams!$A$4:$K$35,2) -> NA | AA17: =VLOOKUP(Y17,Foams!$A$4:$K$35,9) -> 0 | AB17: 2 | AC17: =IF(VLOOKUP($Y17,Foams!$A$4:$K$35,11),VLOOKUP($Y17,Foams!$A$4:$K$35,7),0) -> 0 | AD17: =IF(OR($AB17>$Q$3,VLOOKUP($Y17,Foams!$A$4:$K$35,11)),VLOOKUP($Y17,Foams!$A$4:$K$35,8),0) -> 0 | AE17: =IF(OR(AB17>$Q$3,VLOOKUP(Y17,Foams!$A$4:$K$35,11)),VLOOKUP(Y17,Foams!$A$4:$K$35,6)," ") ->  | AF17: =VLOOKUP(Y17,Foams!$A$4:$K$35,10) -> FIP | AG17: 1 | AH17: 0.5 | AI17: 0.5 | AK17: 0 | AL17: 0 | AM17: 0 | AN17: =TRUE() -> TRUE | BF17: 9 | BG17: =Design!$D$75 -> 0 | BH17: =Design!$E$75 -> 0 | BI17: 3.5 | BJ17: =IF(ISNUMBER(Design!$N$38),Design!$N$38,IF(ISNUMBER(Design!$N$40),$BG17-$BK17-Design!$AB$60,ROUND($BJ$6*$BK$6,0))) -> -1 | BK17: =IF(ISNUMBER(Design!$N$40),Design!$N$40,$BG17-Design!$AB$60-$BJ17) -> -1 | BL17: 2 | BM17: 3 | BN17: 3.5 | BO17: 0.5 | BP17: 2 | BQ17: 2 | BR17: =C17&" D="&BJ17&" E="&BK17&" F="&BL17&" G="&BM17&" H="&BN17 -> NA D=-1 E=-1 F=2 G=3 H=3.5
A18: Antithrust w/Leg Wells, Deep | B18: 10 | C18: =IF(FOAMSREQD,A18&$H$2,"NA") -> NA | D18: 71028 | E18: 1 | F18: 192 | I18: 10 | J18: =VLOOKUP(I18,Foams!$A$4:$K$35,2) -> 1" Med Visco Foam | K18: =VLOOKUP(I18,Foams!$A$4:$K$35,9) -> 1 | L18: 1 | M18: =IF(VLOOKUP($I18,Foams!$A$4:$K$35,11),VLOOKUP($I18,Foams!$A$4:$K$35,7),0) -> 0 | N18: =IF(OR($L18>$Q$3,VLOOKUP($I18,Foams!$A$4:$K$35,11)),VLOOKUP($I18,Foams!$A$4:$K$35,8),0) -> 0 | O18: =IF(OR(L18>$Q$3,VLOOKUP(I18,Foams!$A$4:$K$35,11)),VLOOKUP(I18,Foams!$A$4:$K$35,6)," ") ->  | P18: =VLOOKUP(I18,Foams!$A$4:$K$35,10) -> 05890 | Q18: 3 | R18: =VLOOKUP(Q18,Foams!$A$4:$K$35,2) -> 1/2" Soft Visco Foam | S18: =VLOOKUP(Q18,Foams!$A$4:$K$35,9) -> 0.5 | T18: 1.5 | U18: =IF(VLOOKUP($Q18,Foams!$A$4:$K$35,11),VLOOKUP($Q18,Foams!$A$4:$K$35,7),0) -> 0 | V18: =IF(OR($T18>$Q$3,VLOOKUP($Q18,Foams!$A$4:$K$35,11)),VLOOKUP($Q18,Foams!$A$4:$K$35,8),0) -> 0 | W18: =IF(OR(T18>$Q$3,VLOOKUP(Q18,Foams!$A$4:$K$35,11)),VLOOKUP(Q18,Foams!$A$4:$K$35,6)," ") ->  | X18: =VLOOKUP(Q18,Foams!$A$4:$K$35,10) -> 05888 | Y18: =Foams!$A$35 -> 32 | Z18: =VLOOKUP(Y18,Foams!$A$4:$K$35,2) -> NA | AA18: =VLOOKUP(Y18,Foams!$A$4:$K$35,9) -> 0 | AB18: 2 | AC18: =IF(VLOOKUP($Y18,Foams!$A$4:$K$35,11),VLOOKUP($Y18,Foams!$A$4:$K$35,7),0) -> 0 | AD18: =IF(OR($AB18>$Q$3,VLOOKUP($Y18,Foams!$A$4:$K$35,11)),VLOOKUP($Y18,Foams!$A$4:$K$35,8),0) -> 0 | AE18: =IF(OR(AB18>$Q$3,VLOOKUP(Y18,Foams!$A$4:$K$35,11)),VLOOKUP(Y18,Foams!$A$4:$K$35,6)," ") ->  | AF18: =VLOOKUP(Y18,Foams!$A$4:$K$35,10) -> FIP | AG18: 1 | AH18: 1 | AI18: 1 | AK18: 0 | AL18: 0 | AM18: 0 | AN18: =TRUE() -> TRUE | BF18: 10 | BG18: =Design!$D$75 -> 0 | BH18: =Design!$E$75 -> 0 | BI18: 4 | BJ18: =IF(ISNUMBER(Design!$N$38),Design!$N$38,IF(ISNUMBER(Design!$N$40),$BG18-$BK18-Design!$AB$60,ROUND($BJ$6*$BK$6,0))) -> -1 | BK18: =IF(ISNUMBER(Design!$N$40),Design!$N$40,$BG18-Design!$AB$60-$BJ18) -> -1 | BL18: 2 | BM18: 3 | BN18: 4 | BO18: 1 | BP18: 2 | BQ18: 2 | BR18: =C18&" D="&BJ18&" E="&BK18&" F="&BL18&" G="&BM18&" H="&BN18 -> NA D=-1 E=-1 F=2 G=3 H=4
A19: Antithrust w/Leg Wells, custom foam & dims | B19: 11 | C19: =IF(FOAMSREQD,A19,"NA") -> NA | D19: 71028 | E19: 1 | F19: 192 | H19: 1 | I19: =I$5 -> 10 | J19: =VLOOKUP(I19,Foams!$A$4:$K$35,2) -> 1" Med Visco Foam | K19: =VLOOKUP(I19,Foams!$A$4:$K$35,9) -> 1 | L19: 1 | M19: =IF(VLOOKUP($I19,Foams!$A$4:$K$35,11),VLOOKUP($I19,Foams!$A$4:$K$35,7),0) -> 0 | N19: =IF(OR($L19>$Q$3,VLOOKUP($I19,Foams!$A$4:$K$35,11)),VLOOKUP($I19,Foams!$A$4:$K$35,8),0) -> 0 | O19: =IF(OR(L19>$Q$3,VLOOKUP(I19,Foams!$A$4:$K$35,11)),VLOOKUP(I19,Foams!$A$4:$K$35,6)," ") ->  | P19: =VLOOKUP(I19,Foams!$A$4:$K$35,10) -> 05890 | Q19: =Q$5 -> 4 | R19: =VLOOKUP(Q19,Foams!$A$4:$K$35,2) -> 1" Soft Visco Foam | S19: =VLOOKUP(Q19,Foams!$A$4:$K$35,9) -> 1 | T19: 2 | U19: =IF(VLOOKUP($Q19,Foams!$A$4:$K$35,11),VLOOKUP($Q19,Foams!$A$4:$K$35,7),0) -> 0 | V19: =IF(OR($T19>$Q$3,VLOOKUP($Q19,Foams!$A$4:$K$35,11)),VLOOKUP($Q19,Foams!$A$4:$K$35,8),0) -> 0 | W19: =IF(OR(T19>$Q$3,VLOOKUP(Q19,Foams!$A$4:$K$35,11)),VLOOKUP(Q19,Foams!$A$4:$K$35,6)," ") ->  | X19: =VLOOKUP(Q19,Foams!$A$4:$K$35,10) -> 05887 | Y19: =Y$5 -> 32 | Z19: =VLOOKUP(Y19,Foams!$A$4:$K$35,2) -> NA | AA19: =VLOOKUP(Y19,Foams!$A$4:$K$35,9) -> 0 | AB19: 2 | AC19: =IF(VLOOKUP($Y19,Foams!$A$4:$K$35,11),VLOOKUP($Y19,Foams!$A$4:$K$35,7),0) -> 0 | AD19: =IF(OR($AB19>$Q$3,VLOOKUP($Y19,Foams!$A$4:$K$35,11)),VLOOKUP($Y19,Foams!$A$4:$K$35,8),0) -> 0 | AE19: =IF(OR(AB19>$Q$3,VLOOKUP(Y19,Foams!$A$4:$K$35,11)),VLOOKUP(Y19,Foams!$A$4:$K$35,6)," ") ->  | AF19: =VLOOKUP(Y19,Foams!$A$4:$K$35,10) -> FIP | AG19: =$AG$6 -> 2 | AH19: =$AH$6 -> 1 | AI19: =$AI$6 -> 4 | AK19: 1 | AL19: 1 | AM19: 1 | AN19: =(AG19+AH19)>0 -> TRUE | BF19: 11 | BG19: =Design!$D$75 -> 0 | BH19: =Design!$E$75 -> 0 | BI19: 5 | BJ19: =IF(ISNUMBER(Design!$N$38),Design!$N$38,IF(ISNUMBER(Design!$N$40),$BG19-$BK19-Design!$AB$60,ROUND($BJ$6*$BK$6,0))) -> -1 | BK19: =IF(ISNUMBER(Design!$N$40),Design!$N$40,$BG19-Design!$AB$60-$BJ19) -> -1 | BL19: 2 | BM19: 4 | BN19: 8 | BO19: 1 | BP19: 2 | BQ19: 2 | BR19: ="Athrust/Leg Wells, C="&BI19&" D="&BJ19&" E="&BK19&" F="&BL19&" G="&BM19&" H="&BN19 -> Athrust/Leg Wells, C=5 D=-1 E=-1 F=2 G=4 H=8
A20: Antithrust w/Leg & Pelvic Wells, Shallow | B20: 12 | C20: =IF(FOAMSREQD,A20&$H$2,"NA") -> NA | D20: 71029 | E20: 1 | F20: 273 | I20: 10 | J20: =VLOOKUP(I20,Foams!$A$4:$K$35,2) -> 1" Med Visco Foam | K20: =VLOOKUP(I20,Foams!$A$4:$K$35,9) -> 1 | L20: 1 | M20: =IF(VLOOKUP($I20,Foams!$A$4:$K$35,11),VLOOKUP($I20,Foams!$A$4:$K$35,7),0) -> 0 | N20: =IF(OR($L20>$Q$3,VLOOKUP($I20,Foams!$A$4:$K$35,11)),VLOOKUP($I20,Foams!$A$4:$K$35,8),0) -> 0 | O20: =IF(OR(L20>$Q$3,VLOOKUP(I20,Foams!$A$4:$K$35,11)),VLOOKUP(I20,Foams!$A$4:$K$35,6)," ") ->  | P20: =VLOOKUP(I20,Foams!$A$4:$K$35,10) -> 05890 | Q20: 3 | R20: =VLOOKUP(Q20,Foams!$A$4:$K$35,2) -> 1/2" Soft Visco Foam | S20: =VLOOKUP(Q20,Foams!$A$4:$K$35,9) -> 0.5 | T20: 1.5 | U20: =IF(VLOOKUP($Q20,Foams!$A$4:$K$35,11),VLOOKUP($Q20,Foams!$A$4:$K$35,7),0) -> 0 | V20: =IF(OR($T20>$Q$3,VLOOKUP($Q20,Foams!$A$4:$K$35,11)),VLOOKUP($Q20,Foams!$A$4:$K$35,8),0) -> 0 | W20: =IF(OR(T20>$Q$3,VLOOKUP(Q20,Foams!$A$4:$K$35,11)),VLOOKUP(Q20,Foams!$A$4:$K$35,6)," ") ->  | X20: =VLOOKUP(Q20,Foams!$A$4:$K$35,10) -> 05888 | Y20: =Foams!$A$35 -> 32 | Z20: =VLOOKUP(Y20,Foams!$A$4:$K$35,2) -> NA | AA20: =VLOOKUP(Y20,Foams!$A$4:$K$35,9) -> 0 | AB20: 2 | AC20: =IF(VLOOKUP($Y20,Foams!$A$4:$K$35,11),VLOOKUP($Y20,Foams!$A$4:$K$35,7),0) -> 0 | AD20: =IF(OR($AB20>$Q$3,VLOOKUP($Y20,Foams!$A$4:$K$35,11)),VLOOKUP($Y20,Foams!$A$4:$K$35,8),0) -> 0 | AE20: =IF(OR(AB20>$Q$3,VLOOKUP(Y20,Foams!$A$4:$K$35,11)),VLOOKUP(Y20,Foams!$A$4:$K$35,6)," ") ->  | AF20: =VLOOKUP(Y20,Foams!$A$4:$K$35,10) -> FIP | AG20: 0.5 | AH20: 0.5 | AI20: 0.5 | AK20: 0 | AL20: 0 | AM20: 0 | AN20: =TRUE() -> TRUE | BF20: 12 | BG20: =Design!$D$75 -> 0 | BH20: =Design!$E$75 -> 0 | BI20: 3 | BJ20: =IF(ISNUMBER(Design!$N$38),Design!$N$38,IF(ISNUMBER(Design!$N$40),$BG20-$BK20-Design!$AB$60,ROUND($BJ$6*$BK$6,0))) -> -1 | BK20: =IF(ISNUMBER(Design!$N$40),Design!$N$40,$BG20-Design!$AB$60-$BJ20) -> -1 | BL20: =$BP20+$AH20 -> 2.5 | BM20: 2.5 | BN20: 3 | BO20: 0.5 | BP20: 2 | BQ20: 2 | BR20: =C20&" D="&BJ20&" E="&BK20&" F="&BL20&" G="&BM20&" H="&BN20&" J="&BP20 -> NA D=-1 E=-1 F=2.5 G=2.5 H=3 J=2
A21: Antithrust w/Leg & Pelvic Wells, Medium | B21: 13 | C21: =IF(FOAMSREQD,A21&$H$2,"NA") -> NA | D21: 71029 | E21: 1 | F21: 273 | I21: 10 | J21: =VLOOKUP(I21,Foams!$A$4:$K$35,2) -> 1" Med Visco Foam | K21: =VLOOKUP(I21,Foams!$A$4:$K$35,9) -> 1 | L21: 1 | M21: =IF(VLOOKUP($I21,Foams!$A$4:$K$35,11),VLOOKUP($I21,Foams!$A$4:$K$35,7),0) -> 0 | N21: =IF(OR($L21>$Q$3,VLOOKUP($I21,Foams!$A$4:$K$35,11)),VLOOKUP($I21,Foams!$A$4:$K$35,8),0) -> 0 | O21: =IF(OR(L21>$Q$3,VLOOKUP(I21,Foams!$A$4:$K$35,11)),VLOOKUP(I21,Foams!$A$4:$K$35,6)," ") ->  | P21: =VLOOKUP(I21,Foams!$A$4:$K$35,10) -> 05890 | Q21: 3 | R21: =VLOOKUP(Q21,Foams!$A$4:$K$35,2) -> 1/2" Soft Visco Foam | S21: =VLOOKUP(Q21,Foams!$A$4:$K$35,9) -> 0.5 | T21: 1.5 | U21: =IF(VLOOKUP($Q21,Foams!$A$4:$K$35,11),VLOOKUP($Q21,Foams!$A$4:$K$35,7),0) -> 0 | V21: =IF(OR($T21>$Q$3,VLOOKUP($Q21,Foams!$A$4:$K$35,11)),VLOOKUP($Q21,Foams!$A$4:$K$35,8),0) -> 0 | W21: =IF(OR(T21>$Q$3,VLOOKUP(Q21,Foams!$A$4:$K$35,11)),VLOOKUP(Q21,Foams!$A$4:$K$35,6)," ") ->  | X21: =VLOOKUP(Q21,Foams!$A$4:$K$35,10) -> 05888 | Y21: =Foams!$A$35 -> 32 | Z21: =VLOOKUP(Y21,Foams!$A$4:$K$35,2) -> NA | AA21: =VLOOKUP(Y21,Foams!$A$4:$K$35,9) -> 0 | AB21: 2 | AC21: =IF(VLOOKUP($Y21,Foams!$A$4:$K$35,11),VLOOKUP($Y21,Foams!$A$4:$K$35,7),0) -> 0 | AD21: =IF(OR($AB21>$Q$3,VLOOKUP($Y21,Foams!$A$4:$K$35,11)),VLOOKUP($Y21,Foams!$A$4:$K$35,8),0) -> 0 | AE21: =IF(OR(AB21>$Q$3,VLOOKUP(Y21,Foams!$A$4:$K$35,11)),VLOOKUP(Y21,Foams!$A$4:$K$35,6)," ") ->  | AF21: =VLOOKUP(Y21,Foams!$A$4:$K$35,10) -> FIP | AG21: 1 | AH21: 0.5 | AI21: 0.5 | AK21: 0 | AL21: 0 | AM21: 0 | AN21: =TRUE() -> TRUE | BF21: 13 | BG21: =Design!$D$75 -> 0 | BH21: =Design!$E$75 -> 0 | BI21: 3.5 | BJ21: =IF(ISNUMBER(Design!$N$38),Design!$N$38,IF(ISNUMBER(Design!$N$40),$BG21-$BK21-Design!$AB$60,ROUND($BJ$6*$BK$6,0))) -> -1 | BK21: =IF(ISNUMBER(Design!$N$40),Design!$N$40,$BG21-Design!$AB$60-$BJ21) -> -1 | BL21: =$BP21+$AH21 -> 2.5 | BM21: 3 | BN21: 3.5 | BO21: 0.5 | BP21: 2 | BQ21: 2 | BR21: =C21&" D="&BJ21&" E="&BK21&" F="&BL21&" G="&BM21&" H="&BN21&" J="&BP21 -> NA D=-1 E=-1 F=2.5 G=3 H=3.5 J=2
A22: Antithrust w/Leg & Pelvic Wells, Deep | B22: 14 | C22: =IF(FOAMSREQD,A22&$H$2,"NA") -> NA | D22: 71029 | E22: 1 | F22: 273 | I22: 10 | J22: =VLOOKUP(I22,Foams!$A$4:$K$35,2) -> 1" Med Visco Foam | K22: =VLOOKUP(I22,Foams!$A$4:$K$35,9) -> 1 | L22: 1 | M22: =IF(VLOOKUP($I22,Foams!$A$4:$K$35,11),VLOOKUP($I22,Foams!$A$4:$K$35,7),0) -> 0 | N22: =IF(OR($L22>$Q$3,VLOOKUP($I22,Foams!$A$4:$K$35,11)),VLOOKUP($I22,Foams!$A$4:$K$35,8),0) -> 0 | O22: =IF(OR(L22>$Q$3,VLOOKUP(I22,Foams!$A$4:$K$35,11)),VLOOKUP(I22,Foams!$A$4:$K$35,6)," ") ->  | P22: =VLOOKUP(I22,Foams!$A$4:$K$35,10) -> 05890 | Q22: 3 | R22: =VLOOKUP(Q22,Foams!$A$4:$K$35,2) -> 1/2" Soft Visco Foam | S22: =VLOOKUP(Q22,Foams!$A$4:$K$35,9) -> 0.5 | T22: 1.5 | U22: =IF(VLOOKUP($Q22,Foams!$A$4:$K$35,11),VLOOKUP($Q22,Foams!$A$4:$K$35,7),0) -> 0 | V22: =IF(OR($T22>$Q$3,VLOOKUP($Q22,Foams!$A$4:$K$35,11)),VLOOKUP($Q22,Foams!$A$4:$K$35,8),0) -> 0 | W22: =IF(OR(T22>$Q$3,VLOOKUP(Q22,Foams!$A$4:$K$35,11)),VLOOKUP(Q22,Foams!$A$4:$K$35,6)," ") ->  | X22: =VLOOKUP(Q22,Foams!$A$4:$K$35,10) -> 05888 | Y22: =Foams!$A$35 -> 32 | Z22: =VLOOKUP(Y22,Foams!$A$4:$K$35,2) -> NA | AA22: =VLOOKUP(Y22,Foams!$A$4:$K$35,9) -> 0 | AB22: 2 | AC22: =IF(VLOOKUP($Y22,Foams!$A$4:$K$35,11),VLOOKUP($Y22,Foams!$A$4:$K$35,7),0) -> 0 | AD22: =IF(OR($AB22>$Q$3,VLOOKUP($Y22,Foams!$A$4:$K$35,11)),VLOOKUP($Y22,Foams!$A$4:$K$35,8),0) -> 0 | AE22: =IF(OR(AB22>$Q$3,VLOOKUP(Y22,Foams!$A$4:$K$35,11)),VLOOKUP(Y22,Foams!$A$4:$K$35,6)," ") ->  | AF22: =VLOOKUP(Y22,Foams!$A$4:$K$35,10) -> FIP | AG22: 1 | AH22: 1 | AI22: 1 | AK22: 0 | AL22: 0 | AM22: 0 | AN22: =TRUE() -> TRUE | BF22: 14 | BG22: =Design!$D$75 -> 0 | BH22: =Design!$E$75 -> 0 | BI22: 4 | BJ22: =IF(ISNUMBER(Design!$N$38),Design!$N$38,IF(ISNUMBER(Design!$N$40),$BG22-$BK22-Design!$AB$60,ROUND($BJ$6*$BK$6,0))) -> -1 | BK22: =IF(ISNUMBER(Design!$N$40),Design!$N$40,$BG22-Design!$AB$60-$BJ22) -> -1 | BL22: =$BP22+$AH22 -> 3 | BM22: 3 | BN22: 4 | BO22: 1 | BP22: 2 | BQ22: 2 | BR22: =C22&" D="&BJ22&" E="&BK22&" F="&BL22&" G="&BM22&" H="&BN22&" J="&BP22 -> NA D=-1 E=-1 F=3 G=3 H=4 J=2
A23: Antithrust w/Leg & Pelvic Wells, custom foam & dims | B23: 15 | C23: =IF(FOAMSREQD,A23,"NA") -> NA | D23: 71029 | E23: 1 | F23: 273 | H23: 1 | I23: =I$5 -> 10 | J23: =VLOOKUP(I23,Foams!$A$4:$K$35,2) -> 1" Med Visco Foam | K23: =VLOOKUP(I23,Foams!$A$4:$K$35,9) -> 1 | L23: 1 | M23: =IF(VLOOKUP($I23,Foams!$A$4:$K$35,11),VLOOKUP($I23,Foams!$A$4:$K$35,7),0) -> 0 | N23: =IF(OR($L23>$Q$3,VLOOKUP($I23,Foams!$A$4:$K$35,11)),VLOOKUP($I23,Foams!$A$4:$K$35,8),0) -> 0 | O23: =IF(OR(L23>$Q$3,VLOOKUP(I23,Foams!$A$4:$K$35,11)),VLOOKUP(I23,Foams!$A$4:$K$35,6)," ") ->  | P23: =VLOOKUP(I23,Foams!$A$4:$K$35,10) -> 05890 | Q23: =Q$5 -> 4 | R23: =VLOOKUP(Q23,Foams!$A$4:$K$35,2) -> 1" Soft Visco Foam | S23: =VLOOKUP(Q23,Foams!$A$4:$K$35,9) -> 1 | T23: 2 | U23: =IF(VLOOKUP($Q23,Foams!$A$4:$K$35,11),VLOOKUP($Q23,Foams!$A$4:$K$35,7),0) -> 0 | V23: =IF(OR($T23>$Q$3,VLOOKUP($Q23,Foams!$A$4:$K$35,11)),VLOOKUP($Q23,Foams!$A$4:$K$35,8),0) -> 0 | W23: =IF(OR(T23>$Q$3,VLOOKUP(Q23,Foams!$A$4:$K$35,11)),VLOOKUP(Q23,Foams!$A$4:$K$35,6)," ") ->  | X23: =VLOOKUP(Q23,Foams!$A$4:$K$35,10) -> 05887 | Y23: =Y$5 -> 32 | Z23: =VLOOKUP(Y23,Foams!$A$4:$K$35,2) -> NA | AA23: =VLOOKUP(Y23,Foams!$A$4:$K$35,9) -> 0 | AB23: 2 | AC23: =IF(VLOOKUP($Y23,Foams!$A$4:$K$35,11),VLOOKUP($Y23,Foams!$A$4:$K$35,7),0) -> 0 | AD23: =IF(OR($AB23>$Q$3,VLOOKUP($Y23,Foams!$A$4:$K$35,11)),VLOOKUP($Y23,Foams!$A$4:$K$35,8),0) -> 0 | AE23: =IF(OR(AB23>$Q$3,VLOOKUP(Y23,Foams!$A$4:$K$35,11)),VLOOKUP(Y23,Foams!$A$4:$K$35,6)," ") ->  | AF23: =VLOOKUP(Y23,Foams!$A$4:$K$35,10) -> FIP | AG23: =$AG$6 -> 2 | AH23: =$AH$6 -> 1 | AI23: =$AI$6 -> 4 | AK23: 1 | AL23: 1 | AM23: 1 | AN23: =AG23>0 -> TRUE | BF23: 15 | BG23: =Design!$D$75 -> 0 | BH23: =Design!$E$75 -> 0 | BI23: 5 | BJ23: =IF(ISNUMBER(Design!$N$38),Design!$N$38,IF(ISNUMBER(Design!$N$40),$BG23-$BK23-Design!$AB$60,ROUND($BJ$6*$BK$6,0))) -> -1 | BK23: =IF(ISNUMBER(Design!$N$40),Design!$N$40,$BG23-Design!$AB$60-$BJ23) -> -1 | BL23: =$BP23+$AH23 -> 3 | BM23: 4 | BN23: 8 | BO23: 1 | BP23: 2 | BQ23: 2 | BR23: ="Antithrust w/Leg & Pelvic Wells, C="&BI23&" D="&BJ23&" E="&BK23&" F="&BL23&" G="&BM23&" H="&BN23&" J="&BP23 -> Antithrust w/Leg & Pelvic Wells, C=5 D=-1 E=-1 F=3 G=4 H=8 J=2
A24: Foam-in-place w/ visco foam | B24: 16 | C24: =IF(FOAMSREQD,A24,"NA") -> NA | D24: 71007 | E24: 1 | F24: 93 | I24: 4 | J24: =VLOOKUP(I24,Foams!$A$4:$K$35,2) -> 1" Soft Visco Foam | K24: =VLOOKUP(I24,Foams!$A$4:$K$35,9) -> 1 | L24: 1 | M24: =IF(VLOOKUP($I24,Foams!$A$4:$K$35,11),VLOOKUP($I24,Foams!$A$4:$K$35,7),0) -> 0 | N24: =IF(OR($L24>$Q$3,VLOOKUP($I24,Foams!$A$4:$K$35,11)),VLOOKUP($I24,Foams!$A$4:$K$35,8),0) -> 0 | O24: =IF(OR(L24>$Q$3,VLOOKUP(I24,Foams!$A$4:$K$35,11)),VLOOKUP(I24,Foams!$A$4:$K$35,6)," ") ->  | P24: =VLOOKUP(I24,Foams!$A$4:$K$35,10) -> 05887 | Q24: =Foams!$A$35 -> 32 | R24: Foam-in-Place | S24: =VLOOKUP(Q24,Foams!$A$4:$K$35,9) -> 0 | T24: 1 | U24: =IF(VLOOKUP($Q24,Foams!$A$4:$K$35,11),VLOOKUP($Q24,Foams!$A$4:$K$35,7),0) -> 0 | V24: =IF(OR($T24>$Q$3,VLOOKUP($Q24,Foams!$A$4:$K$35,11)),VLOOKUP($Q24,Foams!$A$4:$K$35,8),0) -> 0 | W24: =IF(OR(T24>$Q$3,VLOOKUP(Q24,Foams!$A$4:$K$35,11)),VLOOKUP(Q24,Foams!$A$4:$K$35,6)," ") ->  | X24: =VLOOKUP(Q24,Foams!$A$4:$K$35,10) -> FIP | Y24: 3 | Z24: =VLOOKUP(Y24,Foams!$A$4:$K$35,2) -> 1/2" Soft Visco Foam | AA24: =VLOOKUP(Y24,Foams!$A$4:$K$35,9) -> 0.5 | AB24: 2.5 | AC24: =IF(VLOOKUP($Y24,Foams!$A$4:$K$35,11),VLOOKUP($Y24,Foams!$A$4:$K$35,7),0) -> 0 | AD24: =IF(OR($AB24>$Q$3,VLOOKUP($Y24,Foams!$A$4:$K$35,11)),VLOOKUP($Y24,Foams!$A$4:$K$35,8),0) -> 26.86 | AE24: =IF(OR(AB24>$Q$3,VLOOKUP(Y24,Foams!$A$4:$K$35,11)),VLOOKUP(Y24,Foams!$A$4:$K$35,6)," ") ->  | AF24: =VLOOKUP(Y24,Foams!$A$4:$K$35,10) -> 05888 | AG24: 0 | AH24: 0 | AI24: 0 | AK24: 0 | AL24: 0 | AM24: 0 | AN24: =FALSE() -> FALSE | BI24: =AB24+SEATGUS -> 2.5 | BJ24: =SEATGUS -> 0 | BL24: =$BP24 -> 2 | BM24: 2 | BN24: 2 | BO24: 0 | BP24: 2 | BQ24: 2 | BR24: =A24 -> Foam-in-place w/ visco foam
A25: Foam-in-place w/custom foam | B25: 17 | C25: =IF(FOAMSREQD,A25,"NA") -> NA | D25: 71007 | E25: 1 | F25: 93 | H25: 2 | I25: =I$5 -> 10 | J25: =VLOOKUP(I25,Foams!$A$4:$K$35,2) -> 1" Med Visco Foam | K25: =VLOOKUP(I25,Foams!$A$4:$K$35,9) -> 1 | L25: 1 | M25: =IF(VLOOKUP($I25,Foams!$A$4:$K$35,11),VLOOKUP($I25,Foams!$A$4:$K$35,7),0) -> 0 | N25: =IF(OR($L25>$Q$3,VLOOKUP($I25,Foams!$A$4:$K$35,11)),VLOOKUP($I25,Foams!$A$4:$K$35,8),0) -> 0 | O25: =IF(OR(L25>$Q$3,VLOOKUP(I25,Foams!$A$4:$K$35,11)),VLOOKUP(I25,Foams!$A$4:$K$35,6)," ") ->  | P25: =VLOOKUP(I25,Foams!$A$4:$K$35,10) -> 05890 | Q25: =Foams!$A$35 -> 32 | R25: Foam-in-Place | S25: =VLOOKUP(Q25,Foams!$A$4:$K$35,9) -> 0 | T25: 1 | U25: =IF(VLOOKUP($Q25,Foams!$A$4:$K$35,11),VLOOKUP($Q25,Foams!$A$4:$K$35,7),0) -> 0 | V25: =IF(OR($T25>$Q$3,VLOOKUP($Q25,Foams!$A$4:$K$35,11)),VLOOKUP($Q25,Foams!$A$4:$K$35,8),0) -> 0 | W25: =IF(OR(T25>$Q$3,VLOOKUP(Q25,Foams!$A$4:$K$35,11)),VLOOKUP(Q25,Foams!$A$4:$K$35,6)," ") ->  | X25: =VLOOKUP(Q25,Foams!$A$4:$K$35,10) -> FIP | Y25: =Y$5 -> 32 | Z25: =VLOOKUP(Y25,Foams!$A$4:$K$35,2) -> NA | AA25: =VLOOKUP(Y25,Foams!$A$4:$K$35,9) -> 0 | AB25: 2 | AC25: =IF(VLOOKUP($Y25,Foams!$A$4:$K$35,11),VLOOKUP($Y25,Foams!$A$4:$K$35,7),0) -> 0 | AD25: =IF(OR($AB25>$Q$3,VLOOKUP($Y25,Foams!$A$4:$K$35,11)),VLOOKUP($Y25,Foams!$A$4:$K$35,8),0) -> 0 | AE25: =IF(OR(AB25>$Q$3,VLOOKUP(Y25,Foams!$A$4:$K$35,11)),VLOOKUP(Y25,Foams!$A$4:$K$35,6)," ") ->  | AF25: =VLOOKUP(Y25,Foams!$A$4:$K$35,10) -> FIP | AG25: =$AG$6 -> 2 | AH25: =$AH$6 -> 1 | AI25: =$AI$6 -> 4 | AK25: 1 | AL25: 1 | AM25: 1 | AN25: =FALSE() -> FALSE | BI25: =AB25+SEATGUS -> 2 | BJ25: =SEATGUS -> 0 | BL25: =$BP25 -> 2 | BM25: 4 | BN25: 8 | BO25: 1 | BP25: 2 | BQ25: 2 | BR25: =A25 -> Foam-in-place w/custom foam
A26: FOAMS FOR BACK PORTION OF PLANAR ANTI-THRUST SEAT | E26: Added retail for back must charge foams (excess thickness handled elsewhere) | F26: =M26+U26+AC26 -> 0 | I26: 10 | J26: =VLOOKUP(I26,Foams!$A$41:$E$72,3) -> NA | K26: =IF(J26<>"NA",VLOOKUP(I26,Foams!$A$4:$K$35,9),0) -> 0 | L26: =K26 -> 0 | M26: =IF($N$27,IF(VLOOKUP($I26,Foams!$A$4:$K$35,11),VLOOKUP($I26,Foams!$A$4:$K$35,7),0),0) -> 0 | N26: =VLOOKUP(I$26,SeatFoams,11) -> FALSE | O26: =IF($N$27,IF(OR(L26>$Q$3,VLOOKUP(I26,Foams!$A$4:$K$35,11)),IF(VLOOKUP(I26,Foams!$A$4:$K$35,6)=" ","Foam",VLOOKUP(I26,Foams!$A$4:$K$35,6)),"Foam"),"Foam") -> Foam | P26: =VLOOKUP(I26,Foams!$A$4:$K$35,10) -> 05890 | Q26: 4 | R26: =VLOOKUP(Q26,Foams!$A$41:$E$72,4) -> NA | S26: =IF(R26<>"NA",VLOOKUP(Q26,Foams!$A$4:$K$35,9),0) -> 0 | T26: =L26+S26 -> 0 | U26: =IF($V$27,IF(VLOOKUP($Q26,Foams!$A$4:$K$35,11),VLOOKUP($Q26,Foams!$A$4:$K$35,7),0),0) -> 0 | V26: =VLOOKUP(Q$26,SeatFoams,11) -> FALSE | W26: =IF($V$27,IF(OR(T26>$Q$3,VLOOKUP(Q26,Foams!$A$4:$K$35,11)),IF(VLOOKUP(Q26,Foams!$A$4:$K$35,6)=" ","Foam",VLOOKUP(Q26,Foams!$A$4:$K$35,6)),"Foam"),"Foam") -> Foam | X26: =VLOOKUP(Q26,Foams!$A$4:$K$35,10) -> 05887 | Y26: 32 | Z26: =VLOOKUP(Y26,Foams!$A$41:$E$72,5) -> NA | AA26: =IF(Z26<>"NA",VLOOKUP(Y26,Foams!$A$4:$K$35,9),0) -> 0 | AB26: =T26+AA26 -> 0 | AC26: =IF($AD$27,IF(VLOOKUP($Y26,Foams!$A$4:$K$35,11),VLOOKUP($Y26,Foams!$A$4:$K$35,7),0),0) -> 0 | AD26: =VLOOKUP(Y$26,SeatFoams,11) -> FALSE | AE26: =IF($AD$27,IF(OR(AB26>$Q$3,VLOOKUP(Y26,Foams!$A$4:$K$35,11)),IF(VLOOKUP(Y26,Foams!$A$4:$K$35,6)=" ","Foam",VLOOKUP(Y26,Foams!$A$4:$K$35,6)),"Foam"),"Foam") -> Foam | AF26: =VLOOKUP(Y26,Foams!$A$4:$K$35,10) -> FIP | AG26: 0 | AH26: 0 | AI26: 0 | BF26: 1 | BG26: 2 | BH26: 3 | BI26: 4 | BJ26: 5 | BK26: 6 | BL26: 7 | BM26: 8 | BN26: 9 | BO26: 10 | BP26: 11 | BQ26: 12
J27: =SUBSTITUTE(J26,quote," in.") -> NA | L27: =IF(N26,0,K26) -> 0 | N27: =IF($I$5=$I$26,FALSE,N$26) -> FALSE | R27: =SUBSTITUTE(R26,quote," in.") -> NA | T27: =IF(V26,L27,L27+S26) -> 0 | V27: =IF($Q$5=$Q$26,FALSE,V26) -> FALSE | Z27: =SUBSTITUTE(Z26,quote," in.") -> NA | AB27: =IF($B$7=3,IF(AD26,T27,T27+AA26),0) -> 0 | AD27: =IF($Y$5=$Y$26,FALSE,AD26) -> FALSE | BH27: VALUES FOR SEAT CHOSEN-> | BI27: =IF(FOAMSREQD,$BI$7,0) -> 0 | BJ27: =$BJ$7 -> 0 | BK27: =$BK$7 -> 0 | BL27: =IF(FOAMSREQD,BL$7,0) -> 0 | BM27: =IF(FOAMSREQD,$BM$7,0) -> 0 | BN27: =IF(FOAMSREQD,BN$7,0) -> 0 | BO27: =IF(FOAMSREQD,$BO$7,0) -> 0 | BP27: =$BP$7 -> 2 | BR27: <--Used for hip guide contour calculations (considers if foam required)
N28: False if already charged for this always-charge-foam on same layer | V28: False if already charged for this always-charge-foam on same layer | AD28: False if already charged for this always-charge-foam on same layer | BH28: VALUES FOR SEAT CHOSEN-> | BI28: =BI27 -> 0 | BJ28: =IF(CONTIDX=3,Design!$E15,BJ27) -> 0 | BK28: =IF(CONTIDX=3,Design!$G15,BK27) -> 0 | BL28: =IF(CONTIDX=3,Design!$I15,BL27) -> 0 | BM28: =IF(CONTIDX=3,0,BM27) -> 0 | BN28: =IF(CONTIDX=3,0,BN27) -> 0 | BO28: =IF(CONTIDX=3,0,BO27) -> 0 | BR28: <--Used for export (value overriden if planar antithrust seat)
AS30: NOTE: 71021 AND 71022 PHASED-OUT. SUBSTITUTE 71020 IN TABLE BELOW.
AS31: NOTE: 71083 AND 71084 PHASED-OUT. SUBSTITUTE 71059 IN TABLE BELOW.
AD32: CHARGES FOR EXTRA FOAM | AF32: (1/4" treated like 1/2" because they cost the same)
AD33: (points to foam table) | AH33: Phantom
AC34: 1 | AD34: NA | AE34: 0 | AH34: Foam | AI34: <--shown when no up charge | AS34: Phantom Nos. & Prices for Gel Pad -- Depends on the Maximum Dimension | BA34: Max of SEAT W & D
AC35: 2 | AD35: .5 in. | AE35: =Foams!G4 -> 79 | AG35: =Foams!H4 -> 26.86 | AH35: 71016 | AI35: <-Use this price if .25" extra, correct phantom # in formula in AD47) | AS35: 1/2" Gel Pad
AC36: 3 | AD36: 1 in. | AE36: =Foams!G5 -> 116 | AG36: =Foams!H5 -> 39.44 | AH36: 71017 | AT36: Index | AU36: Phantom | AV36: Price | AW36: Cost | BA36: =MAX(SEATDEPTH,CHAIRWIDTH) -> 0 | BL36: =Data!$M$11-Data!$R$22 | BQ36: BG5 was the formula at the left before assuming 2"
AC37: 4 | AD37: 1.5 in. | AE37: =Foams!G8 -> 195 | AG37: =Foams!H8 -> 66.3 | AH37: 71015 | AS37: <18 | AT37: 1 | AU37: 71020 | AV37: 247 | AW37: =0.34*AV37 -> 83.98
AC38: 5 | AD38: 2 in. | AE38: =2*AE36 -> 232 | AG38: =2*AG36 -> 78.88 | AH38: 70139 | AS38: 18 to 20 | AT38: 2 | AU38: 71020 | AV38: 247 | AW38: =0.34*AV38 -> 83.98 | BA38: Indexes for Gel table
AC39: 6 | AD39: 2.5 in. | AE39: =AE38+AE35 -> 311 | AG39: =AG38+AG35 -> 105.74 | AH39: 70140 | AS39: >20 | AT39: 3 | AU39: 71020 | AV39: 247 | AW39: =0.34*AV39 -> 83.98 | BA39: =IF(BA$36<=18,1,IF(AND(BA$36>18,BA$36<=20),2,3)) -> 1 | BC39: <-for gel pads
AC40: 7 | AD40: 3 in. | AE40: =3*AE36 -> 348 | AG40: =3*AG36 -> 118.32 | AH40: 70141 | BA40: =IF(BA$36<=14,1,IF(AND(BA$36>14,BA$36<=18),2,IF(AND(BA$36>18,BA$36<=20),3,4))) -> 1 | BC40: <-for Cubed Gel
AC41: 8 | AD41: 3.5 in. | AE41: =AE40+AE35 -> 427 | AG41: =AG40+AG35 -> 145.18 | AH41: 71031 | AS41: 1'4" Gel Pad
AC42: 9 | AD42: 4 in. | AE42: =4*AE36 -> 464 | AG42: =4*AG36 -> 157.76 | AH42: 71031 | AT42: Index | AU42: Phantom | AV42: Price | AW42: Cost | BA42: Max of BACK W & D
M43: Formula below was in AB49. It was replaced by Todd's formula 5/11/11 | AC43: 10 | AD43: 4.5 in. | AE43: =AE42+AE35 -> 543 | AG43: =AG42+AG35 -> 184.62 | AH43: 71031 | AS43: <18 | AT43: 1 | AU43: 71059 | AV43: 195 | AW43: =0.34*AV43 -> 66.3
M44: =IF($AB$50>18,2.5,IF($AB$50>14,ROUND(1.5+0.5*((($AB$50-2)/2)-6),3),IF($AB$50>10,ROUND(0.875+0.3125*((($AB$50-2)/2)-4),3),IF($AB$50>6,ROUND(0.34375+0.265625*((($AB$50-2)/2)-2),3),ROUND(0.171878*(($AB$50-2)/2),3))))) | AD44: =INDEX($AC$34:$AE$43,$AD$45,3) -> 0 | AE44: <--Foam over std thickness | AS44: 18 to 20 | AT44: 2 | AU44: 71059 | AV44: 195 | AW44: =0.34*AV44 -> 66.3 | BA44: =MAX(Design!$E$46,BACKWIDTH) -> 0
AC45: Rounds to next integer. 1/4" treated like 1/2" | AD45: =MIN(IF(AD46>Q56,ROUND((AD46-Q56)/0.5,0),0)+1,10) -> 1 | AE45: <--Index to table above to point to retail adder | AS45: >20 | AT45: 3 | AU45: 71059 | AV45: 195 | AW45: =0.34*AV45 -> 66.3
AD46: =AC60 -> 1.5 | AE46: <--Total thickness of layers that we do not always charge for | BA46: Indexes for Gel table
AA47: Paremeter for contour foam height calculation. Center Adj= | AB47: =IF($AB$50<=18,3.049-1,3.049-($AB$50-(2*8))/2) -> 2.049 | AD47: =IF(AD45-AD46=0.25,"70175",INDEX($AC$34:$AH$43,$AD$45,6)) -> Foam | AE47: <--foam up charge phantom # or "FOAM" Includes phantom change for 1.4" extra foam | AS47: 1/2" Dimensions Cubed Gel | BA47: =IF(BA$44<=18,1,IF(AND(BA$44>18,BA$44<=20),2,3)) -> 1 | BC47: <-for gel pads
AA48: Back thickness in middle including wood, foam & additional FIP gusset (no contours)--> | AB48: =BACKFOAMTHICK+BACKBASETHICK+$AB$55 -> 0 | AE48: (Phantom overriden if only .25" difference) | AT48: Index | AU48: Phantom | AV48: Price | AW48: Cost | BA48: =IF(BA$44<=14,1,IF(AND(BA$44>14,BA$44<=18),2,IF(AND(BA$44>18,BA$44<=20),3,4))) -> 1 | BC48: <-for Cubed Gel
AA49: FULL contour foam width at LBW if full contour chosen (max is 2.5, min is 0)--> | AB49: =MIN(2.5,MAX(0,0.125*ROUND(((((48-SQRT(2304 - (4*((($AB$50/2) + $AB$47)^2))))/2)-0.171)/0.125),0))) -> 0 | AC49: to closest 1/8" | AH49: FULL contour foam width at widest point if full contour chosen--> | AI49: =MIN(2.5,MAX(0,0.125*ROUND(((((48-SQRT(2304 - (4*((($AI$50/2) + $AB$47)^2))))/2)-0.171)/0.125),0))) -> 0 | AK49: LIMIT IS 0 to 2.5" | AS49: <14 | AT49: 1 | AU49: 71099 | AV49: 242 | AW49: =0.34*AV49 -> 82.28
S50: Total thickness of foam, contour, base & channel at edge--> | T50: =AB51+AB54+AB55 -> 0 | AA50: Back actual wood base width LESS INSET if any--> | AB50: =Design!$BB$127 -> 0 | AH50: Back actual wood base width at WIDEST POINT--> | AI50: =BACKBASEWIDTH -> 0 | AS50: 14 to 18 | AT50: 2 | AU50: 71095 | AV50: 279 | AW50: =0.34*AV50 -> 94.86
S51: Number of 1/16 of an inch--> | T51: =INT(0.99+T50/0.0625) -> 0 | AA51: Contour foam width at LESSER BODY edge if a contour is chosen--> | AB51: =IF(BACKIDX<>1,AG61,0) -> 0 | AC51: <-zero if no back | AH51: Contour foam width at WIDEST POINT if a contour is chosen--> | AI51: =IF(BACKIDX<>1,AH61,0) -> 0 | AS51: 18 to 20 | AT51: 3 | AU51: 71096 | AV51: 389 | AW51: =0.34*AV51 -> 132.26
S52: Whole inches--> | T52: =INT(T51/16) -> 0 | AA52: Wood base thickness--> | AB52: =BACKBASETHICK -> 0 | AC52: <-wood (crosslink if cushion only) zero if no back | AS52: >20 | AT52: 4 | AU52: 71097 | AV52: 604 | AW52: =0.34*AV52 -> 205.36
S53: Remaining sixteenths--> | T53: =T51-(T52*16) -> 0 | AA53: Back channel thickness if chosen--> | AB53: =IF(Design!$AB$15>1,0.375,0) -> 0
S54: Text equivalent of thickness rounded up to nearest 1/16"--> | T54: =IF(T53=0,""," "&CHOOSE(T53,"1/16","1/8","3/16","1/4","5/16","3/8","7/16","1/2","9/16","5/8","11/16","3/4","13/16","7/8","15/16")) ->  | AA54: Back thickness including wood and back channel--> | AB54: =BACKFOAMTHICK+$AB52+$AB53 -> 0
A55: Contain | AA55: Additional gusset if foam-in-place chosen and back exists and not base only--> | AB55: =IF(AND(BACKFIP,BACKCONFIG<>2,BACKIDX<>1),BACKGUS,0) -> 0 | AC55: <-0 if no back or base only
P56: Max thickness before phantom applies--> | Q56: 1.5 | AA56: Total thickness of foam, contour, base & channel at edge--> | AB56: =IF(T50=0,IF('Pick List'!Q236>0,'Pick List'!Q236,2),IF(T52>0,T52,"")&T54) -> 2
B57: BACK FOAM PARAMETERS
F58: Foam-in-Place? -> | G58: FALSE | I58: Custom | K58: Before | L58: + | M58: After | Q58: Custom | S58: Before | T58: + | U58: After | Y58: Custom | AA58: Before | AB58: + | AC58: After
B59: =CHOOSE(BACKCONTOUR,1,1,2,2,3,3,4,4) -> 1 | C59: <<-- 1 to 4 = Type of back (UPDATE IF ADD ROWS TO TABLE) | I59: 5 | J59: BOTTOM LAYER | K59: 0 | L59: =INDEX(K63:K70,BACKCONTOUR) -> 1.5 | M59: =K59+L59 -> 1.5 | O59: extra thick phantom | Q59: 29 | R59: MIDDLE LAYER | S59: =M59 -> 1.5 | T59: =INDEX(S63:S70,BACKCONTOUR) -> 0 | U59: =S59+T59 -> 1.5 | W59: extra thick phantom | Y59: 29 | Z59: TOP LAYER | AA59: =U59 -> 1.5 | AB59: =INDEX(AA63:AA70,BACKCONTOUR) -> 0 | AC59: =IF(AND(BACKIDX<>1,BACKCONFIG<>2),AA59+AB59,0) -> 0 | AD59: <-BACKFOAMTHICK. Foam thickness wo/contours (zero if no back or base only)
C60: =SUBSTITUTE(C61,quote,"") -> NA | D60: <-NO QUOTES in this version of description | I60: =INDEX(I63:I70,BACKCONTOUR) -> 5 | J60: =SUBSTITUTE(J61,quote," in.") -> 1-1/2 in. Soft Visco Foam | K60: 0 | L60: =IF(N60,0,L59) -> 1.5 | M60: =K60+L60 -> 1.5 | N60: =VLOOKUP(I60,BackFoams,11) -> FALSE | O60: =IF(N60,"",IF(M60=$AD$46,$AD$47,"Foam")) -> Foam | Q60: =INDEX(Q63:Q70,BACKCONTOUR) -> 29 | R60: =SUBSTITUTE(R61,quote," in.") -> NA | S60: =M60 -> 1.5 | T60: =IF(V60,0,T59) -> 0 | U60: =S60+T60 -> 1.5 | V60: =VLOOKUP(Q$60,BackFoams,11) -> FALSE | W60: =IF(V60,"",IF(U60=$AD$46,$AD$47,"Foam")) -> Foam | Y60: =INDEX(Y63:Y70,BACKCONTOUR) -> 29 | Z60: =SUBSTITUTE(Z61,quote," in.") -> NA | AA60: =U60 -> 1.5 | AB60: =IF(AD60,0,AB59) -> 0 | AC60: =AA60+AB60 -> 1.5 | AD60: =VLOOKUP(Y$60,BackFoams,11) -> FALSE | AE60: =IF(AD60,"",IF(AC60=$AD$46,$AD$47,"Foam")) -> Foam | AH60: <--THIS ROW ADDS THICKNESSES OF 'NOT ALWAYS CHARGE' LAYERS
B61: 1 | C61: =INDEX(C63:C70,BACKCONTOUR) -> NA | D61: =INDEX(D63:D70,BACKCONTOUR) -> - | E61: =INDEX(E63:E70,BACKCONTOUR) -> FALSE | F61: =INDEX(F63:F70,BACKCONTOUR) -> 0 | H61: =INDEX(H63:H70,BACKCONTOUR) -> FALSE | J61: =IF(BACKFOAMSREQD,INDEX(J63:J70,BACKCONTOUR),"NA") -> 1-1/2" Soft Visco Foam | K61: =INDEX(K63:K70,BACKCONTOUR) -> 1.5 | M61: =IF(N60,INDEX(M63:M70,BACKCONTOUR),IF(M60=$AD$46,$AD$44,0)) -> 0 | O61: =IF(INDEX(O63:O70,BACKCONTOUR)=" ",O60,INDEX(O63:O70,BACKCONTOUR)) -> Foam | P61: =INDEX(P63:P70,BACKCONTOUR) -> 05891 | R61: =IF(BACKFOAMSREQD,INDEX(R63:R70,BACKCONTOUR),"NA") -> NA | U61: =IF(V60,INDEX(U63:U70,BACKCONTOUR),IF(U60=$AD$46,$AD$44,0)) -> 0 | W61: =IF(INDEX(W63:W70,BACKCONTOUR)=" ",W60,INDEX(W63:W70,BACKCONTOUR)) -> Foam | X61: =INDEX(X63:X70,BACKCONTOUR) ->  | Z61: =IF(BACKFOAMSREQD,INDEX(Z63:Z70,BACKCONTOUR),"NA") -> NA | AC61: =IF(AD60,INDEX(AC63:AC70,BACKCONTOUR),IF(AC60=$AD$46,$AD$44,0)) -> 0 | AE61: =IF(INDEX(AE63:AE70,BACKCONTOUR)=" ",AE60,INDEX(AE63:AE70,BACKCONTOUR)) -> Foam | AF61: =INDEX(AF63:AF70,BACKCONTOUR) ->  | AG61: =IF(BACKCONFIG<>2,INDEX(AG63:AG70,BACKCONTOUR),0) -> 0 | AH61: =IF(BACKCONFIG<>2,INDEX(AH63:AH70,BACKCONTOUR),0) -> 0 | AI61: <-zero if base only
B62: Idx | C62: Description of Back Contour (NA if vinyl covered back) | D62: Phantom | E62: Contoured? | F62: Retail wo extra thick | H62: Cust Foams? | I62: Foam Idx | J62: Desc | K62: Layer Thick | L62: Sub-total | M62: Retail | O62: Phantom | P62: Foam | Q62: Foam Idx | R62: Desc | S62: Layer Thick | T62: Sub-total | U62: Retail | V62: Cost | W62: Phantom | X62: Foam | Y62: Foam Idx | Z62: Desc | AA62: Layer Thick | AB62: Sub-total | AC62: Retail | AD62: Cost | AE62: Phantom | AF62: Foam | AG62: Contour thickness at LBW edge | AH62: Contour thickness at widest point | AI62: <-thickness at widest point used for hip guide length test & calc
A63: Planar with 1-1/2" soft visco foam | B63: 1 | C63: =IF(AND(BACKSHAPE>1,BACKFOAMSREQD),A63,"NA") -> NA | D63: - | E63: =FALSE() -> FALSE | F63: 0 | H63: =FALSE() -> FALSE | I63: =IF(BACKFIP,Foams!$A82,Foams!$A$83) -> 5 | J63: =VLOOKUP(I63,BackFoams,2) -> 1-1/2" Soft Visco Foam | K63: =VLOOKUP(I63,BackFoams,9) -> 1.5 | L63: =K$59+K63 -> 1.5 | M63: =IF(VLOOKUP($I63,BackFoams,11),VLOOKUP($I63,BackFoams,7),0) -> 0 | O63: =IF(OR(L63>$Q$56,VLOOKUP(I63,BackFoams,11)),VLOOKUP(I63,BackFoams,6)," ") ->  | P63: =VLOOKUP(I63,BackFoams,10) -> 05891 | Q63: =IF(BACKFIP,Foams!$A$108,Foams!$A$107) -> 29 | R63: =VLOOKUP(Q63,BackFoams,2) -> NA | S63: =VLOOKUP(Q63,BackFoams,9) -> 0 | T63: =S$59+S63 -> 1.5 | U63: =IF(VLOOKUP($Q63,BackFoams,11),VLOOKUP($Q63,BackFoams,7),0) -> 0 | V63: =IF(VLOOKUP($Q63,BackFoams,11),VLOOKUP($Q63,BackFoams,8),0) -> 0 | W63: =IF(OR(T63>$Q$56,VLOOKUP(Q63,BackFoams,11)),VLOOKUP(Q63,BackFoams,6)," ") ->  | X63: =VLOOKUP(Q63,BackFoams,10) ->  | Y63: =IF(BACKFIP,Foams!$A$81,Foams!$A$107) -> 29 | Z63: =VLOOKUP(Y63,BackFoams,2) -> NA | AA63: =VLOOKUP(Y63,BackFoams,9) -> 0 | AB63: =AA$59+AA63 -> 1.5 | AC63: =IF(VLOOKUP($Y63,BackFoams,11),VLOOKUP($Y63,BackFoams,7),0) -> 0 | AD63: =IF(VLOOKUP($Y63,BackFoams,11),VLOOKUP($Y63,BackFoams,8),0) -> 0 | AE63: =IF(OR(AB63>$Q$56,VLOOKUP(Y63,BackFoams,11)),VLOOKUP(Y63,BackFoams,6)," ") ->  | AF63: =VLOOKUP(Y63,BackFoams,10) ->  | AG63: 0 | AH63: 0
A64: Planar w/custom foam | B64: 2 | C64: NA | D64: - | E64: =FALSE() -> FALSE | F64: 0 | H64: =TRUE() -> TRUE | I64: =$I$59 -> 5 | J64: 1-1/2" Soft Visco Foam | K64: 1.5 | L64: =K$59+K64 -> 1.5 | M64: 0 | P64: 05891 | Q64: =IF(BACKFIP,Foams!$A$108,$Q$59) -> 29 | R64: NA | S64: 0 | T64: =S$59+S64 -> 1.5 | U64: 0 | V64: 0 | Y64: =$Y$59 -> 29 | Z64: NA | AA64: 0 | AB64: =AA$59+AA64 -> 1.5 | AC64: 0 | AD64: 0 | AG64: 0 | AH64: 0
A65: 1/2" Contour back w/standard visco foam | B65: 3 | C65: =IF(AND(BACKSHAPE>1,BACKFOAMSREQD,NOT(CURVED)),A65,"NA") -> NA | D65: 71002 | E65: =TRUE() -> TRUE | F65: 79 | H65: =FALSE() -> FALSE | I65: =IF(BACKFIP,Foams!$A82,Foams!$A$83) -> 5 | J65: 1-1/2" Soft Visco Foam | K65: 1.5 | L65: 1.5 | M65: 0 | P65: 05891 | Q65: =IF(BACKFIP,Foams!$A$108,Foams!$A$107) -> 29 | R65: NA | S65: 0 | T65: 1.5 | U65: 0 | V65: 0 | Y65: =IF(BACKFIP,Foams!$A$81,Foams!$A$107) -> 29 | Z65: NA | AA65: 0 | AB65: 1.5 | AC65: 0 | AD65: 0 | AG65: =$AI$66 -> 0.5 | AH65: =$AK$66 -> 0.5 | AI65: HALF INCH CONTOUR THICKNESSES BELOW (0 to .5)
A66: 1/2" Contour back w/custom foam | B66: 4 | C66: NA | D66: 71002 | E66: =TRUE() -> TRUE | F66: 79 | H66: =TRUE() -> TRUE | I66: =$I$59 -> 5 | J66: 1-1/2" Soft Visco Foam | K66: 1.5 | L66: 1.5 | M66: 0 | P66: 05891 | Q66: =IF(BACKFIP,Foams!$A$108,$Q$59) -> 29 | R66: NA | S66: 0 | T66: 1.5 | U66: 0 | V66: 0 | Y66: =$Y$59 -> 29 | Z66: NA | AA66: 0 | AB66: 1.5 | AC66: 0 | AD66: 0 | AG66: =$AI$66 -> 0.5 | AH66: =$AK$66 -> 0.5 | AI66: =MIN(0.5,MAX(0,0.125*ROUND((0.5-0.25*Design!$BA$125)/0.125,0))) -> 0.5 | AK66: =IF(OR(BACKIDX=6,BACKIDX=7),MIN(0.5,MAX(0,0.125*ROUND((0.5-0.25*Design!$BA$125)/0.125,0))),0.125*ROUND(0.5/0.125,0)) -> 0.5 | AL66: <right # for widest point at bottom of back
A67: 1" Contour back w/standard visco foam | B67: 5 | C67: NA | D67: 71003 | E67: =TRUE() -> TRUE | F67: 116 | H67: =FALSE() -> FALSE | I67: =IF(BACKFIP,Foams!$A82,Foams!$A$83) -> 5 | J67: 1-1/2" Soft Visco Foam | K67: 1.5 | L67: 1.5 | M67: 0 | P67: 05891 | Q67: =IF(BACKFIP,Foams!$A$108,Foams!$A$107) -> 29 | R67: NA | S67: 0 | T67: 1.5 | U67: 0 | V67: 0 | Y67: =IF(BACKFIP,Foams!$A$81,Foams!$A$107) -> 29 | Z67: NA | AA67: 0 | AB67: 1.5 | AC67: 0 | AD67: 0 | AG67: =$AI$68 -> 1 | AH67: =$AK$68 -> 1 | AI67: INCH CONTOUR THICKNESSES BELOW (0 to 1)
A68: 1" Contour back w/custom foam | B68: 6 | C68: NA | D68: 71003 | E68: =TRUE() -> TRUE | F68: 116 | H68: =TRUE() -> TRUE | I68: =$I$59 -> 5 | J68: 1-1/2" Soft Visco Foam | K68: 1.5 | L68: 1.5 | M68: 0 | P68: 05891 | Q68: =IF(BACKFIP,Foams!$A$108,$Q$59) -> 29 | R68: NA | S68: 0 | T68: 1.5 | U68: 0 | V68: 0 | Y68: =$Y$59 -> 29 | Z68: NA | AA68: 0 | AB68: 1.5 | AC68: 0 | AD68: 0 | AG68: =$AI$68 -> 1 | AH68: =$AK$68 -> 1 | AI68: =MIN(1,MAX(0,0.125*ROUND((1-0.5*Design!$BA$125)/0.125,0))) -> 1 | AK68: =IF(OR(BACKIDX=6,BACKIDX=7),MIN(1,MAX(0,0.125*ROUND((1-0.5*Design!$BA$125)/0.125,0))),0.125*ROUND(1/0.125,0)) -> 1 | AL68: <right # for widest point at bottom of back
A69: Full Contour back w/standard visco foam | B69: 7 | C69: NA | D69: 71004 | E69: =TRUE() -> TRUE | F69: 126 | H69: =FALSE() -> FALSE | I69: =IF(BACKFIP,Foams!$A82,Foams!$A$83) -> 5 | J69: 1-1/2" Soft Visco Foam | K69: 1.5 | L69: 1.5 | M69: 0 | P69: 05891 | Q69: =IF(BACKFIP,Foams!$A$108,Foams!$A$107) -> 29 | R69: NA | S69: 0 | T69: 1.5 | U69: 0 | V69: 0 | Y69: =IF(BACKFIP,Foams!$A$81,Foams!$A$107) -> 29 | Z69: NA | AA69: 0 | AB69: 1.5 | AC69: 0 | AD69: 0 | AG69: =$AB$49 -> 0 | AH69: =$AI$49 -> 0 | AI69: <-contour is thicker at widest point than at LBW (0 to 2.5)
A70: Full Contour back w/custom foam | B70: 8 | C70: NA | D70: 71004 | E70: =TRUE() -> TRUE | F70: 126 | H70: =TRUE() -> TRUE | I70: =$I$59 -> 5 | J70: 1-1/2" Soft Visco Foam | K70: 1.5 | L70: 1.5 | M70: 0 | P70: 05891 | Q70: =IF(BACKFIP,Foams!$A$108,$Q$59) -> 29 | R70: NA | S70: 0 | T70: 1.5 | U70: 0 | V70: 0 | Y70: =$Y$59 -> 29 | Z70: NA | AA70: 0 | AB70: 1.5 | AC70: 0 | AD70: 0 | AG70: =$AB$49 -> 0 | AH70: =$AI$49 -> 0 | AI70: <-contour is thicker at widest point than at LBW (0 to 2.5)
B73: 11 | C73: =IF(BACKFOAMSREQD,A73,"NA") -> 0 | D73: 71074 | E73: 1 | F73: 360 | I73: =Foams!$A$108 -> 30 | J73: Foam-in-Place | K73: 0 | L73: 0 | M73: 93 | O73: 71007 | P73: FIP | Q73: =Foams!$A$107 -> 29 | R73: =VLOOKUP(Q73,BackFoams,2) -> NA | S73: =VLOOKUP(Q73,BackFoams,9) -> 0 | T73: 1.5 | U73: 0 | V73: 0 | W73: =IF(OR(T73>$Q$56,VLOOKUP(Q73,BackFoams,11)),VLOOKUP(Q73,BackFoams,6)," ") ->  | X73: =VLOOKUP(Q73,BackFoams,10) ->  | Y73: =Foams!$A$107 -> 29 | Z73: NA | AA73: 0 | AB73: 1.5 | AC73: 0 | AD73: 0 | AG73: 0 | AH73: 0
B74: 12 | C74: 0 | D74: 71091 | E74: 1 | F74: 395 | I74: =Foams!$A$109 -> 0 | Q74: =Foams!$A$107 -> 29 | R74: =VLOOKUP(Q74,BackFoams,2) -> NA | S74: 0 | T74: 1.5 | U74: 0 | V74: 0 | Y74: =Foams!$A$107 -> 29 | Z74: NA | AA74: 0 | AB74: 1.5 | AC74: 0 | AD74: 0 | AG74: 0 | AH74: 0

Sheet Hardware (hidden)
C1: BACK HARDWARE KIT PICK LIST | H1: DEC 2019 CHANGES
C2: BACKHDWDESC | F2: Back rail size= | G2: =BACKRAILSIZE -> 2 | I2: 1=7/8", 2=1" | L2: Cane size = 2 for 1" | M2: Cane size = 1 for 7/8" | N2: Cane2 Part# | O2: Cane1 Part# | V2: Works w/ curved back?
A3: BACKHDWKIT | B3: 31 | C3: =INDEX(C$5:C$35,BACKHDWKIT) -> None | D3: =INDEX(D$5:D$35,BACKHDWKIT) -> No | E3: =INDEX(E$5:E$35,BACKHDWKIT) -> W | G3: =INDEX(G$5:G$35,BACKHDWKIT) -> TRUE | J3: =INDEX(J$5:J$35,BACKHDWKIT) -> 0 | P3: =INDEX(P$5:P$35,BACKHDWKIT,1) -> FALSE | Q3: 0 | T3: 0 | U3: 0 | V3: 0 | X3: RETAIL PRICES | AD3: CURVED BACK VERSIONS OF KNOB HARDWARE THAT DEPEND ON BACK WIDTH
C4: Pick List | D4: Item # | E4: BackHdwID | F4: Prefix | G4: Works? | H4: Will work w/ these seat hdw IDs | I4: 7/8" & 1"? | J4: Retail | K4: Thick Test | L4: Actual Description for 1" Tube (if available) | M4: Actual Description for 7/8" Tube (if available) | N4: 1" Tube# | O4: 7/8" Tube# | P4: Has hinge? | Q4: Rise | R4: Which hinge picked? | S4: Choose own warning | T4: Depth | U4: No hinge needed? | V4: T/F | X4: FLAT | Y4: CURVED | AA4: BACK PROFILE? | AD4: BACK WIDTHS
B5: 1 | C5: =F5&CHOOSE(BACKRAILSIZE,M5,L5) -> Two knobs, L/R Pair (no seat-to-back hinge) | D5: =CHOOSE(BACKRAILSIZE,O5,N5) -> 50472 | E5: A | F5: =IF(G5,"","NA-") ->  | G5: =IF(ISERR(SEARCH(BACKRAILSIZE,I5,1)),FALSE,IF(SEATIDX=1,TRUE,NOT(ISERR(SEARCH(SeatHdwID,H5,1))))) -> TRUE | H5: ABCDEFGHIJKLMNOPS | I5: 12 | J5: =IF(CURVED,Y5,X5) -> 266 | K5: =TRUE -> TRUE | L5: ="Two knobs, L/R Pair (no seat-to-back hinge)"&CURVEDTOOWIDEMSG -> Two knobs, L/R Pair (no seat-to-back hinge) | M5: ="Two knobs, L/R Pair (no seat-to-back hinge)"&CURVEDTOOWIDEMSG -> Two knobs, L/R Pair (no seat-to-back hinge) | N5: 50472 | O5: =N5 -> 50472 | P5: =FALSE() -> FALSE | Q5: 0 | S5: ** Does not have hinge to secure lower back ** | U5: =FALSE() -> FALSE | V5: =TRUE() -> TRUE | X5: 266 | Y5: 437 | AA5: FLAT | AB5: CURVED | AD5: 12 | AE5: 13 | AF5: 14 | AG5: 15 | AH5: 16 | AI5: 17 | AJ5: 17 | AK5: 19
B6: 2 | C6: Four knobs, 2 L/R Pairs | D6: 50473 | E6: B | F6: =IF(G6,"","NA-") ->  | G6: =IF(ISERR(SEARCH(BACKRAILSIZE,I6,1)),FALSE,IF(SEATIDX=1,TRUE,NOT(ISERR(SEARCH(SeatHdwID,H6,1))))) -> TRUE | H6: ABCDEFGHIJKLMNOPS | I6: 12 | J6: 444 | K6: =TRUE -> TRUE | L6: ="Four knobs, 2 L/R Pairs"&CURVEDTOOWIDEMSG -> Four knobs, 2 L/R Pairs | M6: ="Four knobs, 2 L/R Pairs"&CURVEDTOOWIDEMSG -> Four knobs, 2 L/R Pairs | N6: =IF(CURVED,AB6,AA6) -> 50473 | O6: =N6 -> 50473 | P6: =FALSE() -> FALSE | Q6: 0 | U6: =TRUE() -> TRUE | V6: =TRUE() -> TRUE | X6: 444 | Y6: 502 | AA6: 50473 | AB6: =IF(AND(BACKWIDTH>=12,BACKWIDTH<=19),INDEX(AD6:AK6,1,BACKWIDTH-11),"99999") -> 99999 | AD6: 50739 | AE6: =AD6 -> 50739 | AF6: 50747 | AG6: =AF6 -> 50747 | AH6: 50755 | AI6: =AH6 -> 50755 | AJ6: 50763 | AK6: =AJ6 -> 50763
B7: 3 | C7: Two knobs w/ flush hinge | D7: 50460 | E7: C | G7: =IF(ISERR(SEARCH(BACKRAILSIZE,I7,1)),FALSE,IF(SEATIDX=1,TRUE,NOT(ISERR(SEARCH(SeatHdwID,H7,1))))) -> TRUE | H7: ABCDEFGHIJKLMNOPS | I7: 12 | J7: 386 | K7: =TRUE -> TRUE | L7: =IF(THICKNESSOFSEAT>2,L40,L39) -> Two knobs w/ flush hinge | M7: =IF(THICKNESSOFSEAT>2,M40,M39) -> Two knobs w/ flush hinge | N7: =IF(THICKNESSOFSEAT>2,N40,N39) -> 50460 | O7: =IF(THICKNESSOFSEAT>2,O40,O39) -> 50460 | P7: =TRUE() -> TRUE | Q7: =IF(THICKNESSOFSEAT>2,Q40,Q39) -> 0" | T7: =IF(THICKNESSOFSEAT>2,T40,T39) -> 0 | U7: =FALSE() -> FALSE | V7: =TRUE() -> TRUE | X7: 386 | Y7: 437 | AD7: Note: Only one curved hdw number needs to be tested for 99999 because if one bracket selected is 99999 all knob brackets are 99999.
B8: 4 | C8: Two knobs w/ 2" rise 1" deep hinge | D8: 50461 | E8: D | G8: =AND(IF(ISERR(SEARCH(BACKRAILSIZE,I8,1)),FALSE,IF(SEATIDX=1,TRUE,NOT(ISERR(SEARCH(SeatHdwID,H8,1))))),$K8) -> TRUE | H8: ABCDEFGHIJKLMNOPS | I8: 12 | J8: 386 | K8: =$Q8>=THICKNESSOFSEAT -> TRUE | L8: =IF(THICKNESSOFSEAT>2,L44,L41) -> Two knobs w/ 2" rise 1" deep hinge | M8: Two knobs w/ 2" rise 1" deep hinge | N8: 50461 | O8: 50461 | P8: =TRUE() -> TRUE | Q8: =IF(THICKNESSOFSEAT>2,Q44,Q41) -> 2 | R8: =CHOOSE(MATCH(THICKNESSOFSEAT,{0,2.1,3.1}),R41,R44,"Seat too thick for hinge") -> Selected 2" rise hinge | T8: =IF(THICKNESSOFSEAT>2,T44,T41) -> 1 | U8: =FALSE() -> FALSE | V8: =TRUE() -> TRUE | X8: 386 | Y8: 437
B9: 5 | C9: Two knobs w/ 2" rise 2" deep hinge | D9: 50462 | E9: E | G9: =AND(IF(ISERR(SEARCH(BACKRAILSIZE,I9,1)),FALSE,IF(SEATIDX=1,TRUE,NOT(ISERR(SEARCH(SeatHdwID,H9,1))))),$K9) -> TRUE | H9: ABCDEFGHIJKLMNOPS | I9: 12 | J9: 386 | K9: =$Q9>=THICKNESSOFSEAT -> TRUE | L9: Two knobs w/ 2" rise 2" deep hinge | M9: Two knobs w/ 2" rise 2" deep hinge | N9: 50462 | O9: 50462 | P9: =TRUE() -> TRUE | Q9: =IF(THICKNESSOFSEAT>2,Q45,Q42) -> 2 | R9: =CHOOSE(MATCH(THICKNESSOFSEAT,{0,2.1,3.1}),R42,R45,"Seat too thick for hinge") -> Selected 2" rise hinge | T9: =IF(THICKNESSOFSEAT>2,T45,T42) -> 2 | U9: =FALSE() -> FALSE | V9: =TRUE() -> TRUE | X9: 386 | Y9: 437
B10: 6 | C10: Two knobs w/ 2" rise 3" deep hinge | D10: 50463 | E10: F | G10: =AND(IF(ISERR(SEARCH(BACKRAILSIZE,I10,1)),FALSE,IF(SEATIDX=1,TRUE,NOT(ISERR(SEARCH(SeatHdwID,H10,1))))),$K10) -> TRUE | H10: ABCDEFGHIJKLMNOPS | I10: 12 | J10: 386 | K10: =$Q10>=THICKNESSOFSEAT -> TRUE | L10: Two knobs w/ 2" rise 3" deep hinge | M10: Two knobs w/ 2" rise 3" deep hinge | N10: 50463 | O10: 50463 | P10: =TRUE() -> TRUE | Q10: =IF(THICKNESSOFSEAT>2,Q46,Q43) -> 2 | R10: =CHOOSE(MATCH(THICKNESSOFSEAT,{0,2.1,3.1}),R43,R46,"Seat too thick for hinge") -> Selected 2" rise hinge | T10: =IF(THICKNESSOFSEAT>2,T46,T43) -> 3 | U10: =FALSE() -> FALSE | V10: =TRUE() -> TRUE | X10: 386 | Y10: 437
B11: 7 | C11: Two knobs w/ 2.5 " rise adj depth hinge | D11: 51092 | E11: X | G11: =AND(IF(ISERR(SEARCH(BACKRAILSIZE,I11,1)),FALSE,IF(SEATIDX=1,TRUE,NOT(ISERR(SEARCH(SeatHdwID,H11,1))))),$K11) -> TRUE | H11: ABCDEFGHIJKLMNOPS | I11: 12 | J11: 488 | K11: =$Q11>=THICKNESSOFSEAT -> TRUE | L11: =M11 -> Two knobs w/ 2.5 " rise adj depth hinge | M11: ="Two knobs w/ 2.5 "" rise adj depth hinge"&IF(THICKNESSOFSEAT>$Q11,SeatTooThickMsg,"")&NotForCurvedMsg -> Two knobs w/ 2.5 " rise adj depth hinge | N11: 51092 | O11: =N11 -> 51092 | P11: =TRUE() -> TRUE | Q11: 2.5 | R11: =IF(THICKNESSOFSEAT> 2.5,"Seat too thick for hinge","2.5"&quote&" rise hinge") -> 2.5" rise hinge | T11: 2 | U11: =FALSE() -> FALSE | V11: =FALSE() -> FALSE
B12: 8 | C12: Two knobs w/ two 2.5" rise adj depth hinges | D12: 51093 | E12: Y | G12: =AND(IF(ISERR(SEARCH(BACKRAILSIZE,I12,1)),FALSE,IF(SEATIDX=1,TRUE,NOT(ISERR(SEARCH(SeatHdwID,H12,1))))),$K12) -> TRUE | H12: ABCDEFGHIJKLMNOPS | I12: 12 | J12: 488 | K12: =$Q12>=THICKNESSOFSEAT -> TRUE | L12: =M12 -> Two knobs w/ two 2.5" rise adj depth hinges | M12: ="Two knobs w/ two 2.5"" rise adj depth hinges"&IF(THICKNESSOFSEAT>$Q11,SeatTooThickMsg,"")&NotForCurvedMsg -> Two knobs w/ two 2.5" rise adj depth hinges | N12: 51093 | O12: =N12 -> 51093 | P12: =TRUE() -> TRUE | Q12: 2.5 | R12: =IF(THICKNESSOFSEAT> 2.5,"Seat too thick for hinge","2.5"&quote&" rise hinge") -> 2.5" rise hinge | T12: 2 | U12: =FALSE() -> FALSE | V12: =FALSE() -> FALSE | AA12: DESCRIPTIONS TO USE IN THE FORMULAS FOR DESCRIPTIONS
B13: 9 | C13: Molded Js & slotted Ls for 1" tube w/ swing tabs, 2 L/R pairs | D13: 50475 | E13: G | G13: =IF(ISERR(SEARCH(BACKRAILSIZE,I13,1)),FALSE,IF(SEATIDX=1,TRUE,NOT(ISERR(SEARCH(SeatHdwID,H13,1))))) -> TRUE | H13: ABCDEFGHIJKLMNOPS | I13: 2 | J13: 250 | K13: =TRUE -> TRUE | L13: =AA13&NotForCurvedMsg -> Molded Js & slotted Ls for 1" tube w/ swing tabs, 2 L/R pairs | M13: Molded Js & slotted Ls, 2 L/R pairs UNAVAILABLE for 7/8" tube | N13: 50475 | O13: UNAVAIL | P13: =FALSE() -> FALSE | Q13: 0 | U13: =TRUE() -> TRUE | V13: =FALSE() -> FALSE | AA13: Molded Js & slotted Ls for 1" tube w/ swing tabs, 2 L/R pairs | AB13: Molded Js & slotted Ls, 2 L/R pairs UNAVAILABLE for 7/8" tube
B14: 10 | C14: Molded Js & slotted Ls w/ swing tabs, 1 L/R pair | D14: 51096 | E14: 1 | G14: =IF(ISERR(SEARCH(BACKRAILSIZE,I14,1)),FALSE,IF(SEATIDX=1,TRUE,NOT(ISERR(SEARCH(SeatHdwID,H14,1))))) -> TRUE | H14: ABCDEFGHIJKLMNOPS | I14: 2 | J14: 153 | K14: =TRUE -> TRUE | L14: Molded Js & slotted Ls w/ swing tabs, 1 L/R pair | M14: Molded Js & slotted Ls w/ swing tabs, 1 L/R pair | N14: 51096 | O14: =N14 -> 51096 | P14: =FALSE() -> FALSE | Q14: 0 | U14: =FALSE() -> FALSE | V14: =FALSE() -> FALSE | AA14: Molded Js & slotted Ls w/ swing tabs, 1 L/R pair | AB14: ="Molded Js & slotted Ls w/ swing tabs, 1 L/R pair"&NotForCurvedMsg -> Molded Js & slotted Ls w/ swing tabs, 1 L/R pair
B15: 11 | C15: Molded Js & long slotted Ls for 1" tube w/swing tabs, 2 L/R pairs | D15: 50469 | E15: H | G15: =IF(ISERR(SEARCH(BACKRAILSIZE,I15,1)),FALSE,IF(SEATIDX=1,TRUE,NOT(ISERR(SEARCH(SeatHdwID,H15,1))))) -> TRUE | H15: ABCDEFGHIJKLMNOPS | I15: 2 | J15: 316 | K15: =TRUE -> TRUE | L15: Molded Js & long slotted Ls for 1" tube w/swing tabs, 2 L/R pairs | M15: Molded Js & long slotted Ls, 2 L/R pairs UNAVAILABLE for 7/8" tube | N15: 50469 | O15: UNAVAIL | P15: =FALSE() -> FALSE | Q15: 0 | U15: =TRUE() -> TRUE | V15: =FALSE() -> FALSE | AA15: Molded Js & long slotted Ls for 1" tube w/swing tabs, 2 L/R pairs | AB15: Molded Js & long slotted Ls, 2 L/R pairs UNAVAILABLE for 7/8" tube
B16: 12 | C16: Molded Js & slotted Ls w/ flush hinges | D16: 51097 | E16: 2 | G16: =IF(ISERR(SEARCH(BACKRAILSIZE,I16,1)),FALSE,IF(SEATIDX=1,TRUE,NOT(ISERR(SEARCH(SeatHdwID,H16,1))))) -> TRUE | H16: ABCDEFGHIJKLMNOPS | I16: 2 | J16: 250 | K16: =TRUE -> TRUE | L16: =IF(THICKNESSOFSEAT>2,L48,L47) -> Molded Js & slotted Ls w/ flush hinges | M16: =IF(THICKNESSOFSEAT>2,M48,M47) -> Molded Js & slotted Ls w/ flush hinges | N16: =IF(THICKNESSOFSEAT>2,N48,N47) -> 51097 | O16: =IF(THICKNESSOFSEAT>2,O48,O47) -> 51097 | P16: =TRUE() -> TRUE | Q16: =IF(THICKNESSOFSEAT>2,Q48,Q47) -> 0" | T16: =IF(THICKNESSOFSEAT>2,T48,T47) -> 0 | U16: =FALSE() -> FALSE | V16: =FALSE() -> FALSE
B17: 13 | C17: Molded Js & slotted Ls w/ 2" rise 1" deep hinge | D17: 51098 | E17: 3 | G17: =AND(IF(ISERR(SEARCH(BACKRAILSIZE,I17,1)),FALSE,IF(SEATIDX=1,TRUE,NOT(ISERR(SEARCH(SeatHdwID,H17,1))))),$K17) -> TRUE | H17: ABCDEFGHIJKLMNOPS | I17: 2 | J17: 250 | K17: =$Q17>=THICKNESSOFSEAT -> TRUE | L17: =IF(THICKNESSOFSEAT>2,L52,L49) -> Molded Js & slotted Ls w/ 2" rise 1" deep hinge | M17: Molded Js & slotted Ls w/ 2" rise 1" deep hinge | N17: 51098 | O17: 51098 | P17: =TRUE() -> TRUE | Q17: =IF(THICKNESSOFSEAT>2,Q52,Q49) -> 2 | R17: =CHOOSE(MATCH(THICKNESSOFSEAT,{0,2.1,3.1}),R49,R52,"Seat too thick for hinge") -> Selected 2" rise hinge | T17: =IF(THICKNESSOFSEAT>2,T52,T49) -> 1 | U17: =FALSE() -> FALSE | V17: =FALSE() -> FALSE
B18: 14 | C18: Molded Js & slotted Ls w/ 2" rise 2" deep hinge | D18: 51099 | E18: 4 | G18: =AND(IF(ISERR(SEARCH(BACKRAILSIZE,I18,1)),FALSE,IF(SEATIDX=1,TRUE,NOT(ISERR(SEARCH(SeatHdwID,H18,1))))),$K18) -> TRUE | H18: ABCDEFGHIJKLMNOPS | I18: 2 | J18: 250 | K18: =$Q18>=THICKNESSOFSEAT -> TRUE | L18: Molded Js & slotted Ls w/ 2" rise 2" deep hinge | M18: Molded Js & slotted Ls w/ 2" rise 2" deep hinge | N18: 51099 | O18: 51099 | P18: =TRUE() -> TRUE | Q18: =IF(THICKNESSOFSEAT>2,Q53,Q50) -> 2 | R18: =CHOOSE(MATCH(THICKNESSOFSEAT,{0,2.1,3.1}),R50,R53,"Seat too thick for hinge") -> Selected 2" rise hinge | T18: =IF(THICKNESSOFSEAT>2,T53,T50) -> 2 | U18: =FALSE() -> FALSE | V18: =FALSE() -> FALSE
B19: 15 | C19: Molded Js & slotted Ls w/ 2" rise 3" deep hinge | D19: 51100 | E19: 5 | G19: =AND(IF(ISERR(SEARCH(BACKRAILSIZE,I19,1)),FALSE,IF(SEATIDX=1,TRUE,NOT(ISERR(SEARCH(SeatHdwID,H19,1))))),$K19) -> TRUE | H19: ABCDEFGHIJKLMNOPS | I19: 2 | J19: 250 | K19: =$Q19>=THICKNESSOFSEAT -> TRUE | L19: Molded Js & slotted Ls w/ 2" rise 3" deep hinge | M19: Molded Js & slotted Ls w/ 2" rise 3" deep hinge | N19: 51100 | O19: 51100 | P19: =TRUE() -> TRUE | Q19: =IF(THICKNESSOFSEAT>2,Q54,Q51) -> 2 | R19: =CHOOSE(MATCH(THICKNESSOFSEAT,{0,2.1,3.1}),R51,R54,"Seat too thick for hinge") -> Selected 2" rise hinge | T19: =IF(THICKNESSOFSEAT>2,T54,T51) -> 3 | U19: =FALSE() -> FALSE | V19: =FALSE() -> FALSE | AA19: DESCRIPTIONS TO USE IN THE FORMULAS FOR DESCRIPTIONS
B20: 16 | C20: Molded Js & slotted Ls w/2.5" rise adj depth hinge | D20: 51101 | E20: 6 | G20: =AND(IF(ISERR(SEARCH(BACKRAILSIZE,I20,1)),FALSE,IF(SEATIDX=1,TRUE,NOT(ISERR(SEARCH(SeatHdwID,H20,1))))),$K20) -> TRUE | H20: ABCDEFGHIJKLMNOPS | I20: 2 | J20: 410 | K20: =$Q20>=THICKNESSOFSEAT -> TRUE | L20: =M20 -> Molded Js & slotted Ls w/2.5" rise adj depth hinge | M20: ="Molded Js & slotted Ls w/2.5"" rise adj depth hinge"&IF(THICKNESSOFSEAT>$Q20,SeatTooThickMsg,"")&NotForCurvedMsg -> Molded Js & slotted Ls w/2.5" rise adj depth hinge | N20: 51101 | O20: =N20 -> 51101 | P20: =TRUE() -> TRUE | Q20: 2.5 | R20: =IF(THICKNESSOFSEAT> 2.5,"Seat too thick for hinge","2.5"&quote&" rise hinge") -> 2.5" rise hinge | T20: 2 | U20: =FALSE() -> FALSE | V20: =FALSE() -> FALSE | AA20: 1" DESC | AB20: 7/8" DESC
B21: 17 | C21: 2 hole Js, 6 hole Ls for 1" tube w/ top & bottom rail locks | D21: 50486 | E21: I | G21: =IF(ISERR(SEARCH(BACKRAILSIZE,I21,1)),FALSE,IF(SEATIDX=1,TRUE,NOT(ISERR(SEARCH(SeatHdwID,H21,1))))) -> TRUE | H21: ABCDEFGHIJKLMNOPS | I21: 12 | J21: 168 | K21: =TRUE -> TRUE | L21: =AA21&NotForCurvedMsg -> 2 hole Js, 6 hole Ls for 1" tube w/ top & bottom rail locks | M21: 2 hole Js, 6 hole Ls for 7/8" tube w/ top & bottom rail locks | N21: 50486 | O21: 50471 | P21: =FALSE() -> FALSE | Q21: 0 | U21: =TRUE() -> TRUE | V21: =FALSE() -> FALSE | AA21: 2 hole Js, 6 hole Ls for 1" tube w/ top & bottom rail locks | AB21: 2 hole Js, 6 hole Ls for 7/8" tube w/ top & bottom rail locks
B22: 18 | C22: 2 hole Js, 6 hole Ls for 1" tube w/ swingtabs & rail locks | D22: 50295 | E22: J | G22: TRUE | H22: ABCDEFGHIJKLMNOPS | I22: 12 | J22: 168 | K22: =TRUE -> TRUE | L22: 2 hole Js, 6 hole Ls for 1" tube w/ swingtabs & rail locks | M22: 2 hole Js, 6 hole Ls for 7/8" tube w/ swingtabs & rail locks | N22: 50295 | O22: 50290 | P22: =FALSE() -> FALSE | Q22: 0 | U22: =TRUE() -> TRUE | V22: =FALSE() -> FALSE | AA22: 2 hole Js, 6 hole Ls for 1" tube w/ swingtabs & rail locks | AB22: 2 hole Js, 6 hole Ls for 7/8" tube w/ swingtabs & rail locks
B23: 19 | C23: 4 hole Js, 6 hole Ls for 1" tube w/ swingtabs & rail locks | D23: 50292 | E23: K | G23: TRUE | H23: ABCDEFGHIJKLMNOPS | I23: 12 | J23: 168 | K23: =TRUE -> TRUE | L23: 4 hole Js, 6 hole Ls for 1" tube w/ swingtabs & rail locks | M23: 4 hole Js, 6 hole Ls for 7/8" tube w/ swingtabs & rail locks | N23: 50292 | O23: 50291 | P23: =FALSE() -> FALSE | Q23: 0 | U23: =TRUE() -> TRUE | V23: =FALSE() -> FALSE | AA23: 4 hole Js, 6 hole Ls for 1" tube w/ swingtabs & rail locks | AB23: 4 hole Js, 6 hole Ls for 7/8" tube w/ swingtabs & rail locks
B24: 20 | C24: 6 hole Js, 6 hole Ls for 1" tube w/ swingtabs & rail locks | D24: 50296 | E24: L | G24: TRUE | H24: ABCDEFGHIJKLMNOPS | I24: 12 | J24: 168 | K24: =TRUE -> TRUE | L24: 6 hole Js, 6 hole Ls for 1" tube w/ swingtabs & rail locks | M24: 6 hole Js, 6 hole Ls for 7/8" tube w/ swingtabs & rail locks | N24: 50296 | O24: 50297 | P24: =FALSE() -> FALSE | Q24: 0 | U24: =TRUE() -> TRUE | V24: =FALSE() -> FALSE | AA24: 6 hole Js, 6 hole Ls for 1" tube w/ swingtabs & rail locks | AB24: 6 hole Js, 6 hole Ls for 7/8" tube w/ swingtabs & rail locks
B25: 21 | C25: 2 hole Js, 10 hole Ls for 1" tube w/ swingtabs & rail locks | D25: 50330 | E25: M | G25: TRUE | H25: ABCDEFGHIJKLMNOPS | I25: 12 | J25: 168 | K25: =TRUE -> TRUE | L25: 2 hole Js, 10 hole Ls for 1" tube w/ swingtabs & rail locks | M25: 2 hole Js, 10 hole Ls for 7/8" tube w/ swingtabs & rail locks | N25: 50330 | O25: 50329 | P25: =FALSE() -> FALSE | Q25: 0 | U25: =TRUE() -> TRUE | V25: =FALSE() -> FALSE | AA25: 2 hole Js, 10 hole Ls for 1" tube w/ swingtabs & rail locks | AB25: 2 hole Js, 10 hole Ls for 7/8" tube w/ swingtabs & rail locks
B26: 22 | C26: 2 hole Js, 6 hole Ls w/2" offset hinge for 1" tube | D26: 50294 | E26: N | G26: TRUE | H26: ABCDEFGHIJKLMNOPS | I26: 12 | J26: 261 | K26: =TRUE -> TRUE | L26: 2 hole Js, 6 hole Ls w/2" offset hinge for 1" tube | M26: 2 hole Js, 6 hole Ls w/2" offset hinge for 7/8" tube | N26: 50294 | O26: 50293 | P26: =TRUE() -> TRUE | Q26: 0 | U26: =FALSE() -> FALSE | V26: =FALSE() -> FALSE | AA26: 2 hole Js, 6 hole Ls w/2" offset hinge for 1" tube | AB26: 2 hole Js, 6 hole Ls w/2" offset hinge for 7/8" tube
B27: 23 | C27: 2 hole Js, 6 hole Ls for chair w/ both 7/8" & 1" tube | D27: 50395 | E27: O | G27: TRUE | H27: ABCDEFGHIJKLMNOPS | I27: 12 | J27: 168 | K27: =TRUE -> TRUE | L27: 2 hole Js, 6 hole Ls for chair w/ both 7/8" & 1" tube | M27: 2 hole Js, 6 hole Ls for chair w/ both 7/8" & 1" tube | N27: 50395 | O27: 50395 | P27: =FALSE() -> FALSE | Q27: 0 | U27: =TRUE() -> TRUE | V27: =FALSE() -> FALSE | AA27: 2 hole Js, 6 hole Ls for chair w/ both 7/8" & 1" tube | AB27: 2 hole Js, 6 hole Ls for chair w/ both 7/8" & 1" tube
B28: 24 | C28: WC20 Four knobs | D28: 51076 | E28: P | G28: TRUE | H28: QRS | I28: 12 | J28: 609 | K28: =TRUE -> TRUE | L28: WC20 Four knobs | M28: WC20 Four knobs | N28: 51076 | O28: =N28 -> 51076 | P28: =FALSE() -> FALSE | Q28: 0 | U28: =TRUE() -> TRUE | V28: =FALSE() -> FALSE | AA28: WC20 Four knobs | AB28: WC20 Four knobs
B29: 25 | C29: WC20 Two knobs w/ flush hinge | D29: 51082 | E29: Q | G29: TRUE | H29: QRS | I29: 12 | J29: 417 | K29: =TRUE -> TRUE | L29: =IF(THICKNESSOFSEAT>2,L56,L55) -> WC20 Two knobs w/ flush hinge | M29: =IF(THICKNESSOFSEAT>2,M56,M55) -> WC20 Two knobs w/ flush hinge | N29: =IF(THICKNESSOFSEAT>2,N56,N55) -> 51082 | O29: =IF(THICKNESSOFSEAT>2,O56,O55) -> 51082 | P29: =TRUE() -> TRUE | Q29: =IF(THICKNESSOFSEAT>2,Q56,Q55) -> 0" | T29: =IF(THICKNESSOFSEAT>2,T61,T60) -> 1 | U29: =FALSE() -> FALSE | V29: =FALSE() -> FALSE
B30: 26 | C30: WC20 Two knobs w/ 2" rise 1" deep hinge | D30: 51083 | E30: R | G30: =AND(IF(ISERR(SEARCH(BACKRAILSIZE,I30,1)),FALSE,IF(SEATIDX=1,TRUE,NOT(ISERR(SEARCH(SeatHdwID,H30,1))))),$K30) -> TRUE | H30: QRS | I30: 12 | J30: 417 | K30: =$Q30>=THICKNESSOFSEAT -> TRUE | L30: =IF(THICKNESSOFSEAT>2,L60,L57) -> WC20 Two knobs w/ 2" rise 1" deep hinge | M30: WC20 Two knobs w/ 2" rise 1" deep hinge | N30: 51083 | O30: 51083 | P30: =TRUE() -> TRUE | Q30: =IF(THICKNESSOFSEAT>2,Q60,Q57) -> 2 | R30: =CHOOSE(MATCH(THICKNESSOFSEAT,{0,2.1,3.1}),R57,R60,"Seat too thick for hinge") -> Selected 2" rise hinge | T30: =IF(THICKNESSOFSEAT>2,T60,T57) -> 1 | U30: =FALSE() -> FALSE | V30: =FALSE() -> FALSE
B31: 27 | C31: WC20 Two knobs w/ 2" rise 2" deep hinge | D31: 51084 | E31: S | G31: =AND(IF(ISERR(SEARCH(BACKRAILSIZE,I31,1)),FALSE,IF(SEATIDX=1,TRUE,NOT(ISERR(SEARCH(SeatHdwID,H31,1))))),$K31) -> TRUE | H31: QRS | I31: 12 | J31: 417 | K31: =$Q31>=THICKNESSOFSEAT -> TRUE | L31: WC20 Two knobs w/ 2" rise 2" deep hinge | M31: WC20 Two knobs w/ 2" rise 2" deep hinge | N31: 51084 | O31: 51084 | P31: =TRUE() -> TRUE | Q31: =IF(THICKNESSOFSEAT>2,Q61,Q58) -> 2 | R31: =CHOOSE(MATCH(THICKNESSOFSEAT,{0,2.1,3.1}),R58,R61,"Seat too thick for hinge") -> Selected 2" rise hinge | T31: =IF(THICKNESSOFSEAT>2,T61,T58) -> 2 | U31: =FALSE() -> FALSE | V31: =FALSE() -> FALSE
B32: 28 | C32: WC20 Two knobs w/ 2" rise 3" deep hinge | D32: 51085 | E32: T | G32: =AND(IF(ISERR(SEARCH(BACKRAILSIZE,I32,1)),FALSE,IF(SEATIDX=1,TRUE,NOT(ISERR(SEARCH(SeatHdwID,H32,1))))),$K32) -> TRUE | H32: QRS | I32: 12 | J32: 417 | K32: =$Q32>=THICKNESSOFSEAT -> TRUE | L32: WC20 Two knobs w/ 2" rise 3" deep hinge | M32: WC20 Two knobs w/ 2" rise 3" deep hinge | N32: 51085 | O32: 51085 | P32: =TRUE() -> TRUE | Q32: =IF(THICKNESSOFSEAT>2,Q62,Q59) -> 2 | R32: =CHOOSE(MATCH(THICKNESSOFSEAT,{0,2.1,3.1}),R59,R62,"Seat too thick for hinge") -> Selected 2" rise hinge | T32: =IF(THICKNESSOFSEAT>2,T62,T59) -> 3 | U32: =FALSE() -> FALSE | V32: =FALSE() -> FALSE
B33: 29 | C33: WC20 Two knobs w/ adj depth hinge | D33: 51090 | E33: U | G33: =AND(IF(ISERR(SEARCH(BACKRAILSIZE,I33,1)),FALSE,IF(SEATIDX=1,TRUE,NOT(ISERR(SEARCH(SeatHdwID,H33,1))))),$K33) -> TRUE | H33: QRS | I33: 12 | J33: 552 | K33: =$Q33>=THICKNESSOFSEAT -> TRUE | L33: =M33 -> WC20 Two knobs w/ adj depth hinge | M33: ="WC20 Two knobs w/ adj depth hinge"&IF(THICKNESSOFSEAT>$Q34,SeatTooThickMsg,"")&NotForCurvedMsg -> WC20 Two knobs w/ adj depth hinge | N33: 51090 | O33: =N33 -> 51090 | P33: =TRUE() -> TRUE | Q33: 2.5 | R33: =IF(THICKNESSOFSEAT> 2.5,"Seat too thick for hinge","2.5"&quote&" rise hinge") -> 2.5" rise hinge | T33: 2 | U33: =FALSE() -> FALSE | V33: =FALSE() -> FALSE
B34: 30 | C34: WC20 Two knobs w/ two adj depth hinges | D34: 51089 | E34: V | G34: =AND(IF(ISERR(SEARCH(BACKRAILSIZE,I34,1)),FALSE,IF(SEATIDX=1,TRUE,NOT(ISERR(SEARCH(SeatHdwID,H34,1))))),$K34) -> TRUE | H34: QRS | I34: 12 | J34: 552 | K34: =$Q34>=THICKNESSOFSEAT -> TRUE | L34: =M34 -> WC20 Two knobs w/ two adj depth hinges | M34: ="WC20 Two knobs w/ two adj depth hinges"&IF(THICKNESSOFSEAT>$Q34,SeatTooThickMsg,"")&NotForCurvedMsg -> WC20 Two knobs w/ two adj depth hinges | N34: 51089 | O34: =N34 -> 51089 | P34: =TRUE() -> TRUE | Q34: 2.5 | R34: =IF(THICKNESSOFSEAT> 2.5,"Seat too thick for hinge","2.5"&quote&" rise hinge") -> 2.5" rise hinge | T34: 2 | U34: =FALSE() -> FALSE | V34: =FALSE() -> FALSE
B35: 31 | C35: None | D35: No | E35: W | G35: TRUE | H35: ABCDEFGHIJKLMNOPQRS | I35: 12 | J35: 0 | L35: None | M35: None | N35: NA | O35: NA | P35: FALSE
C37: Hinge rise message: | J37: THICKNESSOFSEAT-> | K37: =IF(SEATIDX>1,Seat!$AC$5+Design!$BB$140,2) -> 2 | L37: <-- SEAT THICKNESS INCL ANY BASE OR 2" TOTAL IF UNKNOWN (does not include any pelvic well riser because hinge will clear foam in middle of seat) | U37: Use duplicate row if add taller flush hinges in the future | AA37: BACK PROFILE? | AD37: BACK WIDTHS
